Workbook

Sheet 原始问卷
A1: 问卷基本信息 | J1: 基本情况 | EG1: 测土配方施肥技术采纳及认知情况 | JQ1: 农村绿色发展现状 | QM1: 四、对于以下观点
T3: 家庭劳动力基本情况 | BR3: 家庭生产经营情况 | CC3: 水稻种植成本收益 | DH3: 购买农机服务难易程度 | EG3: 测土配方施肥技术采纳现状 | HK3: 施肥认知 | HP3: 测土配方施肥技术认知现状 | IO3: 测土配方施肥技术整体认知 | JQ3: 农业绿色发展 | LM3: （二）病虫害管理 | OI3: 农村人居环境
CC4: 收益 | CG4: 成本 | CM4: 收益 | CQ4: 成本 | CW4: 收益 | DA4: 成本 | DH4: 插秧环节 | DJ4: 耕地环节 | DL4: 收割环节 | DS4: 测土配方施肥技术 | DW4: 病虫害管理技术 | EA4: 其他 | EG4: 2018水稻种植生产中的施肥情况 | HH4: 初次采纳非2018年，当年情况 | HR4: 认知环节 | HX4: 配方环节 | IC4: 配肥环节 | IG4: 供应环节 | IL4: 施肥指导环节 | KM4: 14.邻里效应（居住地邻里） | KY4: 14.邻里效应（地块邻里） | LU4: 8.农药毒性的了解程度 | MA4: 10.是否认识以下病虫害 | MY4: 抗病虫种子 | NB4: 灌水淹虫、翻土晒田 | NE4: 生物农药 | NH4: 天敌 | NK4: 灯光捕杀 | NN4: 粘虫板 | NQ4: 轮换施用农药品种 | NT4: 遵守安全间隔期 | OA4: 统一购买生物农药服务 | OC4: 农药施用技术指导服务 | OE4: 农产品质量安全监测或追溯服务 | OG4: 绿色农产品统购统销服务 | OK4: 1.生活垃圾集中处理 | ON4: 2.生活污水集中处理 | OQ4: 3.村庄周边绿化带建设 | OT4: 4.厕所改造 | OW4: 1.减少化肥农药用量 | OZ4: 2.畜禽粪便综合处理及资源化利用 | PC4: 3.农膜回收及污染治理 | PF4: 4.秸秆综合利用工程 | PI4: 5.农药化肥等包装袋回收及污染治理 | PL4: 1.河流、池塘水污染治理 | PO4: 2.饮用水源地保护 | PR4: 3.森林植被 | QA4: 取消或暂缓村里的优惠 | QC4: 经济处罚 | QE4: 广播/告示通报 | QG4: 私底批评教育 | QI4: 荣誉称号 | QK4: 物质奖励
A5: 问卷编号 | B5: 问卷 录入 者 | C5: 问卷 调查 者 | D5: 省份 | E5: 市县 | F5: 具体地址 （镇） | G5: 具体地址 （村） | H5: 被调查者姓名 | I5: 电话 | J5: 地形 | K5: 最近的集镇市场离住处距离km | L5: 家庭总人口 | M5: 儿童（0-6岁） | N5: 老人（≥60岁） | O5: 农业劳动力 | P5: 常年在家 | Q5: 2018家庭总收入（万元） | R5: 2018农业总收入（万元) | S5: 周边邻里的人情支出（元） | T5: 家庭成员编码1（受访者） | U5: 与户主的关系 | V5: 性别 | W5: 年龄（周岁） | X5: 健康状况 | Y5: 受教育年限（年） | Z5: 是否为公职人员或村干部 | AA5: 务工地点 | AB5: 一年务工收入（万元） | AC5: 务工时间（月） | AD5: 家庭成员编码2 | AE5: 与户主的关系 | AF5: 性别 | AG5: 年龄（周岁） | AH5: 健康状况 | AI5: 受教育年限（年） | AJ5: 是否为公职人员或村干部 | AK5: 务工地点 | AL5: 一年务工收入（万元） | AM5: 务工时间（月） | AN5: 家庭成员编码3 | AO5: 与户主的关系 | AP5: 性别 | AQ5: 年龄（周岁） | AR5: 健康状况 | AS5: 受教育年限（年） | AT5: 是否为公职人员或村干部 | AU5: 务工地点 | AV5: 一年务工收入（万元） | AW5: 务工时间（月） | AX5: 家庭成员编码4 | AY5: 与户主的关系 | AZ5: 性别 | BA5: 年龄（周岁） | BB5: 健康状况 | BC5: 受教育年限（年） | BD5: 是否为公职人员或村干部 | BE5: 务工地点 | BF5: 一年务工收入（万元） | BG5: 务工时间（月） | BH5: 家庭成员编码5 | BI5: 与户主的关系 | BJ5: 性别 | BK5: 年龄（周岁） | BL5: 健康状况 | BM5: 受教育年限（年） | BN5: 是否为公职人员或村干部 | BO5: 务工地点 | BP5: 一年务工收入（万元） | BQ5: 务工时间（月） | BR5: 家庭生产经营主体形式 | BS5: 2018家庭耕作面积（亩） | BT5: 1亩= 平方米 | BU5: 分为（ ）块 | BV5: 水稻种植面积（亩） | BW5: 块 | BX5: 土壤肥力 | BY5: 是否便于灌溉 | BZ5: 土壤质地 | CA5: 水稻各地块离家平均距离（米） | CB5: 是否都通了机耕路/马路 | CC5: 品种 | CD5: 规模（亩） | CE5: 单产（斤/亩） | CF5: 单价（元/斤） | CG5: 种子 | CH5: 化学农药 | CI5: 生物农药 | CJ5: 机械 | CK5: 雇工 | CL5: 自用工（工） | CM5: 品种 | CN5: 规模（亩） | CO5: 单产（斤/亩） | CP5: 单价（元/斤） | CQ5: 种子 | CR5: 化学农药 | CS5: 生物农药 | CT5: 机械 | CU5: 雇工 | CV5: 自用工（工） | CW5: 品种 | CX5: 规模（亩） | CY5: 单产（斤/亩） | CZ5: 单价（元/斤） | DA5: 种子 | DB5: 化学农药 | DC5: 生物农药 | DD5: 机械 | DE5: 雇工 | DF5: 自用工（工） | DG5: 所在村庄是否有农业机械服务 | DH5: 是否购买 | DI5: 获取难易程度 | DJ5: 是否购买 | DK5: 获取难易程度 | DL5: 是否购买 | DM5: 获取难易程度 | DN5: 种植水稻目的 | DO5: 部分自留数量（斤） | DP5: 农闲时意愿 | DQ5: 农闲时村庄打牌人数 | DR5: 是否参加过农业技术培训 | DS5: 培训主体 | DT5: 平均一年（ ）次 | DU5: 最近一年 | DV5: 有效性 | DW5: 培训主体 | DX5: 平均一年（ ）次 | DY5: 最近一年 | DZ5: 有效性 | EA5: 其他 | EB5: 培训主体 | EC5: 平均一年（ ）次 | ED5: 最近一年 | EE5: 有效性 | EF5: 未参加原因 | EG5: 施肥次序 | EH5: 施肥时期 | EI5: 购买来源 | EJ5: 化肥代码 | EK5: 施用量（斤/亩） | EL5: 肥料品牌 | EM5: 每袋单价 | EN5: 肥料规格（斤/袋） | EO5: N(%) | EP5: P2O5(%) | EQ5: K2O(%) | ER5: 施肥次序 | ES5: 施肥时期 | ET5: 购买来源 | EU5: 化肥代码 | EV5: 施用量（斤/亩） | EW5: 肥料品牌 | EX5: 每袋单价 | EY5: 肥料规格（斤/袋） | EZ5: N(%) | FA5: P2O5(%) | FB5: K2O(%) | FC5: 施肥次序 | FD5: 施肥时期 | FE5: 购买来源 | FF5: 化肥代码 | FG5: 施用量（斤/亩） | FH5: 肥料品牌 | FI5: 每袋单价 | FJ5: 肥料规格（斤/袋） | FK5: N(%) | FL5: P2O5(%) | FM5: K2O(%) | FN5: 施肥次序 | FO5: 施肥时期 | FP5: 购买来源 | FQ5: 化肥代码 | FR5: 施用量（斤/亩） | FS5: 肥料品牌 | FT5: 每袋单价 | FU5: 肥料规格（斤/袋） | FV5: N(%) | FW5: P2O5(%) | FX5: K2O(%) | FY5: 施肥次序 | FZ5: 施肥时期 | GA5: 购买来源 | GB5: 化肥代码 | GC5: 施用量（斤/亩） | GD5: 肥料品牌 | GE5: 每袋单价 | GF5: 肥料规格（斤/袋） | GG5: N(%) | GH5: P2O5(%) | GI5: K2O(%) | GJ5: 施用配方肥同时施用其他肥料原因 | GK5: 是否会根据施肥建议购买相应肥料 | GL5: 2018年之前是否使用配方肥 | GM5: 每年都使用配方肥吗？ | GN5: 从哪一年开始使用 | GO5: 初次使用是否全部地块都用？ | GP5: 当时使用情形 | GQ5: 1.学习掌握测土配方肥技术对我来说很容易 | GR5: 2.通过技术讲解，很容易理解技术要领 | GS5: 3.通过简单培训，能掌握并熟练使用测土配方肥技术 | GT5: 4.使用测土配方肥技术可以提高粮食单产 | GU5: 5.可以节约生产资料投入 | GV5: 6.可以节省劳动力 | GW5: 7.可以改善土壤质量 | GX5: 8.可以保护生物多样性 | GY5: 9.可以缓解水体污染 | GZ5: 10.我想要学习使用测土配方施肥技术 | HA5: 11.如果条件允许，我会考虑使用测土配方施肥技术 | HB5: 12.我愿意向亲戚朋友推荐测土配方施肥技术 | HC5: 13.地下水、池塘河流的水体污染十分普遍 | HD5: 14.土壤板结、酸化等现象十分普遍 | HE5: 15.我可以方便的购买到配方肥 | HF5: 16.当有困难时，我可以获得测土配方施肥指导 | HG5: 17.当有测土服务需求是，我可以轻易的找到相关组织 | HH5: 水稻种植面积（亩） | HI5: 家庭总收入（万元） | HJ5: 主要农业劳动力是否兼业 | HK5: 1.购买肥料时如何选择 | HL5: 2.是否清楚袋子上数字组合的含义 | HM5: 3.施肥越多，产量越高？ | HN5: 4.化肥用量判断 | HO5: 5.是否有必要使用微量元素肥料 | HP5: 1.对测土配方施肥技术的了解程度 | HQ5: 2.各环节知晓度 | HR5: 3.是否见过相关人员下田测土？ | HS5: 4.相关人员是否将测土结果及时公布？ | HT5: 若“是”，结果是否准确？ | HU5: 5.哪些组织可以提供测土服务？ | HV5: 6.测土环节对配方肥的精准配置有多大帮助？ | HW5: 7.是否知道测土结果出来后的用途 | HX5: 8.是否知道根据测土结果进行的配方肥设计 | HY5: 9.相信相关组织能根据测土结果进行配方设计吗？ | HZ5: 10.哪些组织可以提供配方服务？ | IA5: 11.是否听说过“大配方、小调整？” | IB5: 12.“大配方、小调整”的有效性 | IC5: 13.是否知道化肥企业会根据配方进行配方肥生产？ | ID5: 14.化肥企业是否会完全按照配方进行生产？ | IE5: 15.哪些组织可以提供配肥服务？ | IF5: 16.政府是否应该对化肥企业进行监管？ | IG5: 17.是否能从市场买到配方肥？ | IH5: 18.配方肥和复合肥有区别吗？ | II5: 19.家附近是否有配方肥供肥点？ | IJ5: 20.市场上可供选择的肥料品种多吗？ | IK5: 21.当地肥料市场是否规范？ | IL5: 22.是否收到过测土配方施肥建议卡？ | IM5: 23.是否使用过“测土配方施肥手机综合信息服务平台？ | IN5: 若是，使用后是否满意？ | IO5: 1.使用前和使用后看法不一样 | IP5: 2.可以提高粮食单产 | IQ5: 3.提高了粮食单产，并超出了 我的预期 | IR5: 4.可以节约生产资料投入 | IS5: 5.节约了生产成本，并超出了我的预期 | IT5: 6.可以节省劳动力 | IU5: 7.节省了劳动力，炳超过了我的预期 | IV5: 8.可以改善土壤质量 | IW5: 9.改善了土壤质量，并超出了我的预期 | IX5: 10.可以保护生物多样性 | IY5: 11.保护了生物多样性，并超出了我的预期 | IZ5: 12.可以缓解水体污染 | JA5: 13.缓解了水体污染，并超出了我的预期 | JB5: 14.使用之后感觉很满意 | JC5: 15.使用之后很高兴 | JD5: 16.使用之后很有成就感 | JE5: 17.非常确信以上回答基于多次使用测土配方施肥技术 | JF5: 18.相信自己可以学会并掌握 | JG5: 19.通过别人的简单知道，就可以学会 | JH5: 20.有丰富的种植经验，可以应对农业生产中的不确定因素 | JI5: 21.可以方便的购买到配方肥 | JJ5: 22.在使用过程中遇到问题可以轻易找到人咨询 | JK5: 23.具有使用的经济条件 | JL5: 24.愿意继续使用 | JM5: 25.愿意使用更多的配方肥来替代化肥 | JN5: 26.愿意使用来提高生产效率 | JO5: 27.一直在使用测土配方施肥技术 | JP5: 28.多年在使用测土配方施肥技术 | JQ5: 1.化学农药大量施用对环境的影响程度 | JR5: 2.化学农药大量施用对人类健康的影响程度 | JS5: 3.农产品质量安全重要吗？ | JT5: 4.目前农药施用对农产品质量安全的原因 | JU5: 5.游戏① | JV5: 5.游戏② | JW5: 5.游戏③ | JX5: 5.游戏④ | JY5: 5.游戏⑤ | JZ5: 8.对农业保险了解吗 | KA5: 9.所在地区是否有农业保险服务 | KB5: 10.是否购买了农业保险？ | KC5: 若购买，方式是 | KD5: 购买的保险范畴 | KE5: 保费（ ）元/年 | KF5: 保费（ ）元/亩 | KG5: 赔偿比例 | KH5: 农业保险的保费是否由政府承担 | KI5: 自己承担（ ）%保费 | KJ5: 11.对目前的赔偿标准是否满意 | KK5: 12.自行选择赔偿费用是（ ）元/亩 | KL5: 13.是否同意农业保险能避免损失？ | KM5: 1.平常会经常和邻居保持联系 | KN5: 2.经常和邻居一起接触 | KO5: 3.经常邀请邻居来家聊天 | KP5: 4.经常和邻居交流种田的心得方法 | KQ5: 5.经常向邻居请教技术使用方法 | KR5: 6.经常观察邻居施肥 | KS5: 7.农忙时邻居经常相互帮忙 | KT5: 8.能从邻居那里获得有用的信息 | KU5: 9.遇到困难时大家都来帮忙 | KV5: 10.愿意把自己家的农业用品借给邻居 | KW5: 11.邻居是否信守承诺 | KX5: 12.平常出门是否会请邻居看门 | KY5: 1.平常会经常和邻居保持联系 | KZ5: 2.经常和邻居一起接触 | LA5: 3.经常邀请邻居来家聊天 | LB5: 4.经常和邻居交流种田的心得方法 | LC5: 5.经常向邻居请教技术使用方法 | LD5: 6.经常观察邻居施肥 | LE5: 7.农忙时邻居经常相互帮忙 | LF5: 8.能从邻居那里获得有用的信息 | LG5: 9.遇到困难时大家都来帮忙 | LH5: 10.愿意把自己家的农业用品借给邻居 | LI5: 11.邻居是否信守承诺 | LJ5: 12.平常出门是否会请邻居看门 | LK5: 15.住处邻里人群 | LL5: 15.地块邻里人群 | LM5: 1.2018年，农作物病虫害严重程度 | LN5: 2.近五年，是否出现减产1/3及以上的情况 | LO5: 3.2018半年单次农药施用量 | LP5: 施药次数 | LQ5: 4.如何判断何时施用农药 | LR5: 5.选择药剂品种的方式 | LS5: 6.单次用药标准依据 | LT5: 7.施药方式是否经济合理 | LU5: 农药毒性高不高 | LV5: 残留严不严重 | LW5: 好不好降解 | LX5: 施药安全间隔期 | LY5: 是否了解农药使用标准 | LZ5: 9.目前使用的施药工具 | MA5: 稻飞虱 | MB5: 稻纵卷叶螟 | MC5: 二化螟 | MD5: 三化螟 | ME5: 稻苞虫 | MF5: 稻蓟马 | MG5: 稻瘟病 | MH5: 水稻纹枯病 | MI5: 稻曲病 | MJ5: 11.能否看懂《农药使用说明书》？ | MK5: 12.生产的农产品是否做“农药残留”检测 | ML5: 若是，检测主体是？ | MM5: 13.是否根据不同作物更换喷头 | MN5: 13.是否在极端天气施药 | MO5: 13.喷雾器是否存在“跑、冒、滴、漏”现象 | MP5: 13.近3年是否购买过假冒伪劣农药 | MQ5: 13.平时自己会主动学习和积累农药施用知识和技能 | MR5: 14.是否通过手机接收病虫害预警 | MS5: 若是，时效性如何 | MT5: 15.当地是否有病虫害统防统治服务 | MU5: 您是否购买过该服务 | MV5: 有统防统治服务，（ ）元/亩 | MW5: 若否，是否愿意购买 | MX5: 若愿意，愿意支付的最高金额 | MY5: 是否采纳 | MZ5: 该技术能减少农药施用量% | NA5: 需求排序 | NB5: 是否采纳 | NC5: 该技术能减少农药施用量% | ND5: 需求排序 | NE5: 是否采纳 | NF5: 该技术能减少农药施用量% | NG5: 需求排序 | NH5: 是否采纳 | NI5: 该技术能减少农药施用量% | NJ5: 需求排序 | NK5: 是否采纳 | NL5: 该技术能减少农药施用量% | NM5: 需求排序 | NN5: 是否采纳 | NO5: 该技术能减少农药施用量% | NP5: 需求排序 | NQ5: 是否采纳 | NR5: 该技术能减少农药施用量% | NS5: 需求排序 | NT5: 是否采纳 | NU5: 该技术能减少农药施用量% | NV5: 需求排序 | NW5: 17.采用上述绿色防控技术能否获得政府补贴？ | NX5: 18.生物农药能有效防治病虫害吗？ | NY5: 19.采用生物农药种植的农产品不愁卖？ | NZ5: 20.采用生物农药种植的农产品卖出高价的可能性 | OA5: 获取方式 | OB5: 服务来源 | OC5: 获取方式 | OD5: 服务来源 | OE5: 获取方式 | OF5: 服务来源 | OG5: 获取方式 | OH5: 服务来源 | OI5: 1.当前村庄环境状况 | OJ5: 2.是否愿意参加农村环境治理 | OK5: 去年是否参与？ | OL5: 施行效果？ | OM5: 是否了解相关政策？ | ON5: 去年是否参与？ | OO5: 施行效果？ | OP5: 是否了解相关政策？ | OQ5: 去年是否参与？ | OR5: 施行效果？ | OS5: 是否了解相关政策？ | OT5: 去年是否参与？ | OU5: 施行效果？ | OV5: 是否了解相关政策？ | OW5: 去年是否参与？ | OX5: 施行效果？ | OY5: 是否了解相关政策？ | OZ5: 去年是否参与？ | PA5: 施行效果？ | PB5: 是否了解相关政策？ | PC5: 去年是否参与？ | PD5: 施行效果？ | PE5: 是否了解相关政策？ | PF5: 去年是否参与？ | PG5: 施行效果？ | PH5: 是否了解相关政策？ | PI5: 去年是否参与？ | PJ5: 施行效果？ | PK5: 是否了解相关政策？ | PL5: 去年是否参与？ | PM5: 施行效果？ | PN5: 是否了解相关政策？ | PO5: 去年是否参与？ | PP5: 施行效果？ | PQ5: 是否了解相关政策？ | PR5: 去年是否参与？ | PS5: 施行效果？ | PT5: 是否了解相关政策？ | PU5: 4.您家是否进行生活垃圾分类？ | PV5: 5.是否愿意垃圾分类？ | PW5: 分类方式 | PX5: 自己分类，政府补贴 | PY5: 他人分类，支付的金额 | PZ5: 6.政府部门对垃圾分类的宣传活动 | QA5: 是否有相关奖惩方式 | QB5: 相关方式对行为的影响 | QC5: 是否有相关奖惩方式 | QD5: 相关方式对行为的影响 | QE5: 是否有相关奖惩方式 | QF5: 相关方式对行为的影响 | QG5: 是否有相关奖惩方式 | QH5: 相关方式对行为的影响 | QI5: 是否有相关奖惩方式 | QJ5: 相关方式对行为的影响 | QK5: 是否有相关奖惩方式 | QL5: 相关方式对行为的影响 | QM5: 1.村庄规范及村规民约对我参与环境治理有重要影响 | QN5: 2.村民邻里参与过环境治理 | QO5: 3.村民邻里认为您应该参与环境治理 | QP5: 4.我觉得赚钱就是为了消费 | QQ5: 5.生活垃圾分类处理对生态环境很重要 | QR5: 6.生活垃圾分类可以改善农村环境 | QS5: 7.我了解垃圾分类处理的法律 | QT5: 8.人与自然应该和谐相处 | QU5: 9.生态环境保护与农村经济发展同样重要 | QV5: 10.生态环境保护很重要 | QW5: 11.随意丢弃辣鸡会有负罪感 | QX5: 12.村庄是我家，保护环境靠大家 | QY5: 13.看到村庄垃圾治理越来越好，我会很自豪 | QZ5: 14.为了保护环境，农户应该警醒生活垃圾分类处理 | RA5: 15.我能比较准确掌握垃圾分类的方法 | RB5: 16.学习垃圾分类方法对我来说很容易 | RC5: 17.我当前的知识水平能够支持我对生活垃圾进行分类
A6: 1 | B6: 李明月 | C6: 黄炎忠 | D6: 湖北省 | E6: 襄阳市南漳县 | F6: 九集镇 | G6: 方庙村 | H6: 方有伦 | I6: 15571021008 | J6: 2 | K6: 3 | L6: 5 | M6: 1 | N6: 0 | O6: 1 | P6: 3 | Q6: 6 | R6: 2.6 | S6: 1500 | T6: 1 | U6: 1 | V6: 1 | W6: 56 | X6: 5 | Y6: 10 | Z6: 2 | AA6: 0 | AD6: 2 | AE6: 2 | AF6: 2 | AG6: 57 | AH6: 3 | AI6: 6 | AJ6: 2 | AK6: 0 | AN6: 3 | AO6: 4 | AP6: 2 | AQ6: 32 | AR6: 5 | AS6: 9 | AT6: 2 | AU6: 5 | AV6: 4.5 | AW6: 12 | BR6: 4 | BS6: 26 | BT6: 667 | BU6: 5 | BV6: 26 | BW6: 5 | BX6: 4 | BY6: 2 | BZ6: 2 | CA6: 100 | CB6: 1 | CC6: 2 | CD6: 26 | CE6: 1200 | CF6: 1.15 | CG6: 64 | CH6: 60 | CI6: 75 | CJ6: 1250 | CK6: 350 | CL6: 60 | DG6: 1 | DH6: 2 | DI6: 3 | DJ6: 3 | DK6: 5 | DL6: 1 | DM6: 5 | DN6: 2 | DO6: 2000 | DP6: 2 | DQ6: 2 | DR6: 2 | EF6: 5 | EG6: 1 | EH6: 1 | EI6: 1 | EJ6: 10 | EK6: 50 | EL6: 洋丰 | EM6: 85 | EN6: 50 | EO6: 15 | EP6: 15 | EQ6: 15 | ER6: 1 | ES6: 1 | ET6: 1 | EU6: 2 | EV6: 50 | EX6: 30 | EY6: 50 | FC6: 2 | FD6: 2 | FE6: 1 | FF6: 1 | FG6: 20 | FI6: 110 | FJ6: 100 | GJ6: 3 | GK6: 2 | GL6: 2 | GQ6: 4 | GR6: 4 | GS6: 5 | GT6: 5 | GU6: 5 | GV6: 5 | GW6: 3 | GX6: 3 | GY6: 2 | GZ6: 2 | HA6: 2 | HB6: 3 | HC6: 4 | HD6: 2 | HE6: 3 | HF6: 3 | HG6: 3 | HK6: 1 | HL6: 5 | HM6: 2 | HN6: 1,7（价格） | HO6: 2 | HP6: 2 | HR6: 2 | HS6: 2 | HU6: 1 | HV6: 2 | HW6: 2 | HX6: 2 | HY6: 2 | HZ6: 1 | IA6: 2 | IB6: 2 | IC6: 2 | ID6: 2 | IE6: 1 | IF6: 2 | IG6: 2 | IH6: 3 | II6: 2 | IJ6: 5 | IK6: 2 | IL6: 2 | IM6: 2 | JQ6: 4 | JR6: 3 | JS6: 5 | JT6: 3 | JU6: 1 | JV6: 2 | JZ6: 4 | KA6: 1 | KB6: 2 | KJ6: 2 | KL6: 2 | KM6: 4 | KN6: 5 | KO6: 5 | KP6: 5 | KQ6: 4 | KR6: 5 | KS6: 4 | KT6: 5 | KU6: 5 | KV6: 4 | KW6: 5 | KX6: 4 | KY6: 4 | KZ6: 5 | LA6: 4 | LB6: 5 | LC6: 5 | LD6: 5 | LE6: 5 | LF6: 5 | LG6: 5 | LH6: 4 | LI6: 4 | LJ6: 5 | LK6: 3 | LL6: 1 | LM6: 2 | LN6: 1 | LO6: 2 | LP6: 2 | LQ6: 1 | LR6: 1,2 | LS6: 2 | LT6: 2 | LU6: 4 | LV6: 2 | LW6: 3 | LX6: 4 | LY6: 4 | LZ6: 2 | MA6: 1 | MB6: 1 | MC6: 1 | MD6: 1 | ME6: 1 | MF6: 1 | MG6: 1 | MH6: 1 | MI6: 1 | MJ6: 4 | MK6: 3 | MM6: 1 | MN6: 2 | MO6: 1 | MP6: 2 | MQ6: 1 | MR6: 1 | MS6: 3 | MT6: 1 | MU6: 2 | MW6: 1 | MX6: 4 | MY6: 2 | NB6: 1 | ND6: 2 | NE6: 1 | NG6: 3 | NH6: 2 | NK6: 2 | NN6: 2 | NQ6: 1 | NS6: 1 | NT6: 1 | NW6: 2 | NX6: 3 | NY6: 2 | NZ6: 2 | OA6: 1 | OC6: 1 | OE6: 1 | OG6: 1 | OI6: 4 | OJ6: 5 | OK6: 1 | OL6: 4 | OM6: 1 | ON6: 2 | OP6: 2 | OQ6: 2 | OS6: 2 | OT6: 1 | OU6: 4 | OV6: 1 | OW6: 1 | OX6: 2 | OY6: 1 | OZ6: 2 | PB6: 2 | PC6: 1 | PE6: 2 | PF6: 1 | PG6: 2 | PH6: 1 | PI6: 2 | PK6: 2 | PL6: 2 | PN6: 2 | PO6: 2 | PQ6: 2 | PR6: 2 | PT6: 2 | PU6: 2 | PV6: 2 | PW6: 1 | PX6: 1 | PZ6: 5 | QA6: 1 | QB6: 3 | QC6: 1 | QD6: 5 | QE6: 1 | QF6: 3 | QG6: 1 | QH6: 3 | QI6: 1 | QJ6: 3 | QK6: 1 | QL6: 3 | QM6: 4 | QN6: 5 | QO6: 5 | QP6: 5 | QQ6: 4 | QR6: 5 | QS6: 5 | QT6: 5 | QU6: 5 | QV6: 5 | QW6: 4 | QX6: 5 | QY6: 1 | QZ6: 3 | RA6: 2 | RB6: 2 | RC6: 1
A7: 2 | B7: 李明月 | C7: 孙彬涵 | D7: 湖北省 | E7: 襄阳市南漳县 | F7: 九集镇 | G7: 良种场村 | H7: 刘志宝 | I7: 13871756816 | J7: 2 | K7: 1 | L7: 3 | M7: 0 | N7: 0 | O7: 2 | P7: 2 | Q7: 4.6 | R7: 0.8 | S7: 6000 | T7: 1 | U7: 1 | V7: 1 | W7: 46 | X7: 4 | Y7: 6 | Z7: 2 | AA7: 2 | AB7: 1.5 | AC7: 5 | AD7: 2 | AE7: 2 | AF7: 2 | AG7: 43 | AH7: 4 | AI7: 6 | AJ7: 2 | AK7: 2 | AL7: 0.8 | AM7: 4 | AN7: 3 | AO7: 4 | AP7: 1 | AQ7: 20 | AR7: 5 | AS7: 9 | AT7: 2 | AU7: 5 | AV7: 1.5 | AW7: 12 | BR7: 1 | BS7: 7 | BT7: 667 | BU7: 7 | BV7: 7 | BW7: 7 | BX7: 2 | BY7: 2 | BZ7: 3 | CA7: 400 | CB7: 2 | CC7: 2 | CD7: 7 | CE7: 1100 | CF7: 1.08 | CG7: 100 | CH7: 65 | CI7: 25 | CJ7: 200 | CK7: 250 | CL7: 9 | DG7: 1 | DH7: 2 | DI7: 2 | DJ7: 1 | DK7: 5 | DL7: 1 | DM7: 5 | DN7: 3 | DO7: 1300 | DP7: 1 | DQ7: 2 | DR7: 2 | EF7: 1 | EG7: 1 | EH7: 1 | EI7: 1 | EJ7: 10 | EK7: 45 | EL7: 阿波罗 | EM7: 130 | EN7: 80 | ER7: 1 | ES7: 1 | ET7: 1 | EU7: 2 | EV7: 50 | EX7: 38 | EY7: 100 | FC7: 2 | FD7: 1 | FE7: 1 | FF7: 1 | FG7: 20 | FI7: 110 | FJ7: 100 | GJ7: 2,3,5 | GK7: 1 | GL7: 2 | GQ7: 5 | GR7: 4 | GS7: 4 | GT7: 3 | GU7: 3 | GV7: 3 | GW7: 3 | GX7: 3 | GY7: 3 | GZ7: 4 | HA7: 5 | HB7: 5 | HC7: 2 | HD7: 3 | HE7: 1 | HF7: 1 | HG7: 1 | HK7: 1 | HL7: 4 | HM7: 1 | HN7: 1 | HO7: 3 | HP7: 1 | HR7: 2 | HS7: 2 | HU7: 1 | HV7: 3 | HW7: 3 | HX7: 2 | HY7: 3 | HZ7: 1 | IA7: 2 | IB7: 2 | IC7: 2 | ID7: 2 | IE7: 1 | IF7: 3 | IG7: 2 | IH7: 3 | II7: 2 | IJ7: 2 | IK7: 2 | IL7: 2 | IM7: 2 | JQ7: 4 | JR7: 4 | JS7: 4 | JT7: 1 | JU7: 2 | JV7: 2 | JW7: 1 | JZ7: 4 | KA7: 1 | KB7: 1 | KC7: 1 | KD7: 1 | KF7: 6 | KG7: 200 | KH7: 2 | KI7: 100 | KJ7: 1 | KK7: 650 | KL7: 4 | KM7: 4 | KN7: 4 | KO7: 4 | KP7: 3 | KQ7: 3 | KR7: 3 | KS7: 4 | KT7: 3 | KU7: 3 | KV7: 3 | KW7: 4 | KX7: 5 | KY7: 3 | KZ7: 3 | LA7: 4 | LB7: 3 | LC7: 3 | LD7: 4 | LE7: 3 | LF7: 3 | LG7: 3 | LH7: 3 | LI7: 2 | LJ7: 1 | LK7: 1 | LL7: 1 | LM7: 2 | LN7: 1 | LO7: 2 | LP7: 2 | LQ7: 4 | LR7: 1,2 | LS7: 1,2 | LT7: 2 | LU7: 4 | LV7: 2 | LW7: 2 | LX7: 2 | LY7: 2 | LZ7: 2 | MA7: 1 | MB7: 1 | MC7: 1 | MD7: 1 | ME7: 1 | MF7: 1 | MG7: 1 | MH7: 1 | MI7: 1 | MJ7: 4 | MK7: 3 | MM7: 2 | MN7: 2 | MO7: 1 | MP7: 1 | MQ7: 2 | MR7: 2 | MT7: 2 | MU7: 2 | MW7: 1 | MX7: 4 | MY7: 1 | MZ7: 5 | NA7: 2 | NB7: 1 | NC7: 10 | ND7: 1 | NE7: 1 | NF7: 5 | NG7: 3 | NQ7: 1 | NR7: 5 | NW7: 2 | NX7: 3 | NY7: 3 | NZ7: 3 | OA7: 1 | OC7: 1 | OE7: 1 | OG7: 1 | OI7: 3 | OJ7: 4 | OK7: 2 | OM7: 2 | ON7: 2 | OP7: 2 | OQ7: 2 | OS7: 2 | OT7: 2 | OV7: 2 | OW7: 2 | OY7: 2 | OZ7: 2 | PB7: 2 | PC7: 2 | PE7: 2 | PF7: 1 | PG7: 4 | PH7: 1 | PI7: 2 | PK7: 2 | PL7: 2 | PN7: 2 | PO7: 2 | PQ7: 2 | PR7: 2 | PT7: 2 | PU7: 2 | PV7: 2 | PW7: 2 | PY7: 1 | PZ7: 2 | QA7: 2 | QB7: 4 | QC7: 2 | QD7: 4 | QE7: 2 | QF7: 1 | QG7: 2 | QH7: 2 | QI7: 2 | QJ7: 3 | QK7: 2 | QL7: 5 | QM7: 4 | QN7: 4 | QO7: 5 | QP7: 5 | QQ7: 4 | QR7: 4 | QS7: 1 | QT7: 3 | QU7: 5 | QV7: 4 | QW7: 4 | QX7: 4 | QY7: 3 | QZ7: 3 | RA7: 1 | RB7: 4 | RC7: 4
A8: 3 | B8: 李明月 | C8: 孙彬涵 | D8: 湖北省 | E8: 襄阳市南漳县 | F8: 九集镇 | G8: 方庙村 | H8: 浦安 | I8: 13277116937 | J8: 2 | K8: 2.5 | L8: 4 | M8: 0 | N8: 0 | O8: 2 | P8: 3 | Q8: 6.3 | R8: 2 | S8: 10000 | T8: 1 | U8: 1 | V8: 1 | W8: 52 | X8: 4 | Y8: 6 | Z8: 2 | AA8: 2 | AB8: 0.7 | AC8: 2 | AD8: 2 | AE8: 2 | AF8: 2 | AG8: 48 | AH8: 4 | AI8: 6 | AJ8: 2 | AK8: 2 | AL8: 0.6 | AM8: 2 | AN8: 3 | AO8: 4 | AP8: 2 | AQ8: 20 | AR8: 5 | AS8: 9 | AT8: 2 | AU8: 5 | AV8: 3 | AW8: 12 | BR8: 1 | BS8: 12 | BT8: 667 | BU8: 10 | BV8: 12 | BW8: 10 | BX8: 3 | BY8: 1 | BZ8: 3 | CA8: 700 | CB8: 1 | CC8: 2 | CD8: 12 | CE8: 1400 | CF8: 1.1 | CG8: 150 | CH8: 50 | CI8: 50 | CJ8: 220 | CK8: 300 | CL8: 5 | DG8: 1 | DH8: 2 | DI8: 2 | DJ8: 1 | DK8: 5 | DL8: 1 | DM8: 5 | DN8: 3 | DO8: 1000 | DP8: 1 | DQ8: 2 | DR8: 2 | EF8: 1 | EG8: 1 | EH8: 1 | EI8: 1 | EJ8: 10 | EK8: 50 | EL8: 洋丰 | EM8: 80 | EN8: 50 | ER8: 1 | ES8: 1 | ET8: 1 | EU8: 2 | EV8: 50 | EX8: 38 | EY8: 100 | FC8: 2 | FD8: 2 | FE8: 1 | FF8: 1 | FG8: 10 | FI8: 120 | FJ8: 100 | GJ8: 3 | GK8: 1 | GL8: 2 | GQ8: 5 | GR8: 4 | GS8: 4 | GT8: 4 | GU8: 3 | GV8: 3 | GW8: 4 | GX8: 3 | GY8: 3 | GZ8: 4 | HA8: 4 | HB8: 5 | HC8: 2 | HD8: 1 | HE8: 1 | HF8: 2 | HG8: 2 | HK8: 1 | HL8: 4 | HM8: 1 | HN8: 1 | HO8: 3 | HP8: 2 | HQ8: 4 | HR8: 2 | HS8: 2 | HU8: 1 | HV8: 3 | HW8: 2 | HX8: 2 | HY8: 3 | HZ8: 1 | IA8: 2 | IB8: 4 | IC8: 2 | ID8: 2 | IE8: 1 | IF8: 3 | IG8: 1 | IH8: 1 | II8: 2 | IJ8: 4 | IK8: 4 | IL8: 2 | IM8: 2 | JQ8: 2 | JR8: 3 | JS8: 4 | JT8: 1 | JU8: 1 | JZ8: 3 | KA8: 1 | KB8: 1 | KC8: 1 | KD8: 1 | KF8: 30 | KG8: 不清楚 | KH8: 2 | KI8: 100 | KJ8: 3 | KK8: 1500 | KL8: 4 | KM8: 3 | KN8: 2 | KO8: 3 | KP8: 3 | KQ8: 3 | KR8: 2 | KS8: 3 | KT8: 2 | KU8: 2 | KV8: 2 | KW8: 3 | KX8: 3 | KY8: 3 | KZ8: 4 | LA8: 3 | LB8: 3 | LC8: 3 | LD8: 3 | LE8: 4 | LF8: 3 | LG8: 3 | LH8: 2 | LI8: 3 | LJ8: 1 | LK8: 1 | LL8: 1 | LM8: 4 | LN8: 2 | LO8: 1 | LP8: 1 | LQ8: 4 | LR8: 2 | LS8: 3 | LT8: 3 | LU8: 2 | LV8: 2 | LW8: 1 | LX8: 2 | LY8: 2 | LZ8: 2 | MA8: 1 | MB8: 1 | MC8: 1 | MD8: 1 | ME8: 1 | MF8: 2 | MG8: 1 | MH8: 1 | MI8: 2 | MJ8: 3 | MK8: 3 | MM8: 1 | MN8: 2 | MO8: 1 | MP8: 1 | MQ8: 2 | MR8: 2 | MT8: 1 | MU8: 2 | MW8: 1 | MX8: 4 | NB8: 1 | NC8: 10 | ND8: 2 | NE8: 1 | NF8: 30 | NG8: 1 | NH8: 2 | NK8: 2 | NN8: 2 | NQ8: 1 | NR8: 5 | NS8: 3 | NT8: 2 | NW8: 2 | NX8: 4 | NY8: 4 | NZ8: 3 | OA8: 3 | OB8: 2 | OC8: 1 | OE8: 1 | OG8: 1 | OI8: 4 | OJ8: 4 | OK8: 1 | OL8: 2 | OM8: 2 | ON8: 2 | OP8: 2 | OQ8: 2 | OS8: 2 | OT8: 2 | OV8: 2 | OW8: 2 | OY8: 2 | OZ8: 2 | PB8: 2 | PC8: 2 | PE8: 2 | PF8: 1 | PG8: 4 | PH8: 2 | PI8: 2 | PK8: 2 | PL8: 2 | PN8: 2 | PO8: 2 | PQ8: 2 | PR8: 2 | PT8: 2 | PU8: 2 | PV8: 2 | PW8: 2 | PY8: 2 | PZ8: 4 | QA8: 2 | QB8: 3 | QC8: 2 | QD8: 4 | QE8: 2 | QF8: 2 | QG8: 2 | QH8: 1 | QI8: 2 | QJ8: 1 | QK8: 2 | QL8: 5 | QM8: 4 | QN8: 5 | QO8: 5 | QP8: 5 | QQ8: 4 | QR8: 4 | QS8: 2 | QT8: 4 | QU8: 5 | QV8: 4 | QW8: 4 | QX8: 5 | QY8: 4 | QZ8: 3 | RA8: 1 | RB8: 4 | RC8: 4
A9: 4 | B9: 李明月 | C9: 孙彬涵 | D9: 湖北省 | E9: 襄阳市南漳县 | F9: 九集镇 | G9: 郑家畈 | H9: 杨维青 | I9: 15172619594 | J9: 3 | K9: 6 | L9: 6 | M9: 2 | N9: 2 | O9: 3 | P9: 6 | Q9: 7 | R9: 3 | S9: 1000 | T9: 1 | U9: 1 | V9: 2 | W9: 39 | X9: 5 | Y9: 6 | Z9: 2 | AA9: 2 | AB9: 2 | AC9: 3 | AD9: 2 | AE9: 3 | AF9: 1 | AG9: 75 | AH9: 3 | AI9: 6 | AJ9: 2 | AK9: 0 | AN9: 3 | AO9: 3 | AP9: 2 | AQ9: 68 | AR9: 4 | AS9: 6 | AT9: 2 | AU9: 0 | AX9: 4 | AY9: 2 | AZ9: 1 | BA9: 45 | BB9: 5 | BC9: 6 | BD9: 2 | BE9: 2 | BF9: 2 | BG9: 3 | BR9: 1 | BS9: 15 | BT9: 666 | BU9: 10 | BV9: 15 | BW9: 10 | BX9: 2 | BY9: 1 | BZ9: 3 | CA9: 600 | CB9: 1 | CC9: 1 | CD9: 2.5 | CE9: 1450 | CF9: 1.2 | CG9: 100 | CH9: 35 | CI9: 0 | CJ9: 120 | CK9: 0 | CL9: 10 | CM9: 3 | CN9: 12 | CO9: 1650 | CP9: 1.2 | CQ9: 110 | CR9: 40 | CS9: 0 | CT9: 120 | CU9: 0 | CV9: 9 | DG9: 1 | DH9: 2 | DI9: 1 | DJ9: 3 | DK9: 5 | DL9: 1 | DM9: 5 | DN9: 3 | DO9: 1500 | DP9: 1 | DQ9: 2 | DR9: 2 | EF9: 5 | EG9: 1 | EH9: 1 | EI9: 1 | EJ9: 10 | EK9: 50 | EM9: 75 | EN9: 50 | ER9: 1 | ES9: 1 | ET9: 1 | EU9: 2 | EV9: 80 | EX9: 40 | EY9: 80 | EZ9: 17 | GJ9: 3 | GK9: 2 | GL9: 2 | GQ9: 5 | GR9: 5 | GS9: 5 | GT9: 4 | GU9: 3 | GV9: 2 | GW9: 4 | GX9: 3 | GY9: 4 | GZ9: 5 | HA9: 5 | HB9: 4 | HC9: 1 | HD9: 2 | HE9: 3 | HF9: 4 | HG9: 3 | HK9: 1 | HL9: 1 | HM9: 1 | HN9: 1 | HO9: 1 | HP9: 2 | HQ9: 4,5 | HR9: 1 | HS9: 2 | HU9: 1 | HV9: 3 | HW9: 3 | HX9: 1 | HY9: 2 | HZ9: 1 | IA9: 2 | IB9: 4 | IC9: 2 | ID9: 2 | IE9: 1 | IF9: 3 | IG9: 2 | IH9: 1 | II9: 2 | IJ9: 2 | IK9: 2 | IL9: 2 | IM9: 2 | JQ9: 2 | JR9: 1 | JS9: 4 | JT9: 1,2,3 | JU9: 1 | JZ9: 4 | KA9: 1 | KB9: 1 | KC9: 1 | KD9: 1 | KF9: 15 | KG9: 不清楚 | KH9: 2 | KI9: 100 | KJ9: 4 | KK9: 160 | KL9: 4 | KM9: 5 | KN9: 4 | KO9: 4 | KP9: 2 | KQ9: 2 | KR9: 4 | KS9: 2 | KT9: 4 | KU9: 3 | KV9: 4 | KW9: 4 | KX9: 5 | KY9: 4 | KZ9: 2 | LA9: 2 | LB9: 4 | LC9: 3 | LD9: 4 | LE9: 2 | LF9: 2 | LG9: 2 | LH9: 4 | LI9: 4 | LJ9: 1 | LK9: 1 | LL9: 1 | LM9: 2 | LN9: 1 | LO9: 2 | LP9: 2 | LQ9: 1,4 | LR9: 1 | LS9: 1 | LT9: 4 | LU9: 4 | LV9: 2 | LW9: 2 | LX9: 3 | LY9: 3 | LZ9: 2 | MA9: 2 | MB9: 2 | MC9: 1 | MD9: 1 | ME9: 2 | MF9: 2 | MG9: 2 | MH9: 2 | MI9: 2 | MJ9: 4 | MK9: 3 | MM9: 2 | MN9: 2 | MO9: 1 | MP9: 2 | MQ9: 2 | MR9: 2 | MT9: 1 | MU9: 1 | MW9: 2 | MY9: 2 | NB9: 2 | NE9: 2 | NH9: 2 | NK9: 2 | NN9: 2 | NQ9: 1 | NS9: 1 | NT9: 2 | NW9: 2 | NX9: 3 | NY9: 3 | NZ9: 3 | OA9: 1 | OC9: 1 | OE9: 1 | OG9: 3 | OH9: 7 | OI9: 4 | OJ9: 2 | OK9: 1 | OL9: 4 | OM9: 2 | ON9: 2 | OP9: 2 | OQ9: 2 | OS9: 2 | OT9: 1 | OU9: 5 | OV9: 1 | OW9: 2 | OY9: 2 | OZ9: 1 | PA9: 4 | PB9: 1 | PC9: 2 | PE9: 2 | PF9: 1 | PG9: 3 | PH9: 1 | PI9: 2 | PK9: 2 | PL9: 2 | PN9: 2 | PO9: 2 | PQ9: 2 | PR9: 2 | PT9: 2 | PU9: 2 | PV9: 2 | PW9: 1 | PX9: 5 | PZ9: 2 | QA9: 2 | QB9: 2 | QC9: 2 | QD9: 5 | QE9: 2 | QF9: 2 | QG9: 2 | QH9: 2 | QI9: 2 | QJ9: 1 | QK9: 2 | QL9: 4 | QM9: 5 | QN9: 4 | QO9: 4 | QP9: 4 | QQ9: 3 | QR9: 3 | QS9: 1 | QT9: 4 | QU9: 5 | QV9: 4 | QW9: 2 | QX9: 4 | QY9: 3 | QZ9: 3 | RA9: 1 | RB9: 2 | RC9: 2
A10: 5 | B10: 李明月 | C10: 孙彬涵 | D10: 湖北省 | E10: 襄阳市南漳县 | F10: 九集镇 | G10: 郑家畈 | H10: 郑生友 | J10: 3 | K10: 6 | L10: 3 | M10: 0 | N10: 2 | O10: 3 | P10: 3 | Q10: 1.2 | R10: 1.2 | S10: 2000 | T10: 1 | U10: 1 | V10: 1 | W10: 68 | X10: 2 | Y10: 0 | Z10: 2 | AA10: 0 | AD10: 2 | AE10: 2 | AF10: 2 | AG10: 68 | AH10: 3 | AI10: 0 | AJ10: 2 | AK10: 0 | AN10: 3 | AO10: 4 | AP10: 1 | AQ10: 40 | AR10: 2 | AS10: 0 | AT10: 2 | AU10: 0 | BR10: 1 | BS10: 7.2 | BT10: 666 | BU10: 7 | BV10: 6 | BW10: 6 | BX10: 4 | BY10: 2 | BZ10: 2 | CA10: 250 | CB10: 1 | CC10: 2 | CD10: 6 | CE10: 1600 | CF10: 1.13 | CG10: 150 | CH10: 60 | CI10: 0 | CJ10: 250 | CK10: 0 | CL10: 20 | DG10: 1 | DH10: 2 | DI10: 4 | DJ10: 1 | DK10: 5 | DL10: 1 | DM10: 5 | DN10: 3 | DO10: 1600 | DP10: 2 | DQ10: 1 | DR10: 2 | EF10: 5 | EG10: 1 | EH10: 2 | EI10: 5 | EJ10: 9 | EK10: 100 | EL10: 大力 | EM10: 120 | EN10: 100 | EO10: 25 | EP10: 12 | EQ10: 8 | GK10: 1 | GL10: 1 | GM10: 1 | GN10: 2015 | GO10: 1 | GP10: 2 | GQ10: 5 | GR10: 4 | GS10: 4 | GT10: 3 | GU10: 1 | GV10: 2 | GW10: 2 | GX10: 3 | GY10: 2 | GZ10: 3 | HA10: 4 | HB10: 3 | HC10: 2 | HD10: 3 | HE10: 5 | HF10: 4 | HG10: 3 | HH10: 6 | HI10: 1.5 | HJ10: 2 | HK10: 1,2,5 | HL10: 2 | HM10: 1 | HN10: 1 | HO10: 1 | HP10: 3 | HQ10: 1,4 | HR10: 2 | HS10: 2 | HU10: 1 | HV10: 4 | HW10: 2 | HX10: 2 | HY10: 3 | HZ10: 1 | IA10: 2 | IB10: 4 | IC10: 1 | ID10: 2 | IE10: 1 | IF10: 3 | IG10: 1 | IH10: 2 | II10: 1 | IJ10: 3 | IK10: 2 | IL10: 2 | IM10: 2 | IO10: 4 | IP10: 2 | IQ10: 2 | IR10: 2 | IS10: 2 | IT10: 4 | IU10: 3 | IV10: 3 | IW10: 3 | IX10: 3 | IY10: 3 | IZ10: 3 | JA10: 3 | JB10: 4 | JC10: 4 | JD10: 4 | JE10: 5 | JF10: 4 | JG10: 3 | JH10: 4 | JI10: 4 | JJ10: 1 | JK10: 4 | JL10: 4 | JM10: 3 | JN10: 3 | JO10: 4 | JP10: 4 | JQ10: 2 | JR10: 3 | JS10: 4 | JT10: 1 | JU10: 1 | JZ10: 3 | KA10: 1 | KB10: 2 | KF10: 25 | KG10: 不清楚 | KH10: 2 | KI10: 100 | KJ10: 2 | KK10: 800 | KL10: 2 | KM10: 2 | KN10: 2 | KO10: 2 | KP10: 2 | KQ10: 2 | KR10: 3 | KS10: 1 | KT10: 4 | KU10: 1 | KV10: 2 | KW10: 1 | KX10: 1 | KY10: 3 | KZ10: 2 | LA10: 3 | LB10: 3 | LC10: 4 | LD10: 4 | LE10: 1 | LF10: 3 | LG10: 2 | LH10: 2 | LI10: 3 | LJ10: 1 | LK10: 1 | LL10: 1 | LM10: 3 | LN10: 2 | LO10: 3 | LP10: 3 | LQ10: 1,4 | LR10: 1 | LS10: 2 | LT10: 2 | LU10: 3 | LV10: 4 | LW10: 2 | LX10: 3 | LY10: 5 | LZ10: 1 | MA10: 2 | MB10: 2 | MC10: 1 | MD10: 1 | ME10: 2 | MF10: 1 | MG10: 1 | MH10: 1 | MI10: 1 | MJ10: 4 | MK10: 3 | MM10: 1 | MN10: 2 | MO10: 1 | MP10: 1 | MQ10: 2 | MR10: 2 | MT10: 1 | MU10: 1 | MV10: 10 | MW10: 2 | MY10: 2 | NB10: 2 | NE10: 1 | NF10: 10 | NG10: 2 | NH10: 2 | NK10: 2 | NN10: 1 | NO10: 20 | NP10: 1 | NQ10: 2 | NT10: 2 | NW10: 2 | NX10: 3 | NY10: 3 | NZ10: 3 | OA10: 3 | OB10: 2 | OC10: 1 | OE10: 2 | OF10: 6 | OG10: 1 | OI10: 4 | OJ10: 2 | OK10: 1 | OL10: 4 | OM10: 2 | ON10: 2 | OP10: 2 | OQ10: 2 | OS10: 2 | OT10: 2 | OV10: 2 | OW10: 2 | OY10: 2 | OZ10: 1 | PA10: 4 | PB10: 1 | PC10: 2 | PE10: 2 | PF10: 1 | PG10: 1 | PH10: 2 | PI10: 2 | PK10: 2 | PL10: 2 | PN10: 2 | PO10: 2 | PQ10: 2 | PR10: 2 | PT10: 2 | PU10: 2 | PV10: 2 | PW10: 1 | PX10: 3 | PZ10: 2 | QA10: 2 | QB10: 2 | QC10: 2 | QD10: 4 | QE10: 2 | QF10: 1 | QG10: 2 | QH10: 1 | QI10: 2 | QJ10: 2 | QK10: 2 | QL10: 5 | QM10: 4 | QN10: 3 | QO10: 4 | QP10: 4 | QQ10: 5 | QR10: 5 | QS10: 1 | QT10: 4 | QU10: 1 | QV10: 3 | QW10: 3 | QX10: 4 | QY10: 5 | QZ10: 3 | RA10: 1 | RB10: 1 | RC10: 1
A11: 6 | B11: 李明月 | C11: 孙彬涵 | D11: 湖北省 | E11: 襄阳市南漳县 | F11: 九集镇 | G11: 邓家集 | H11: 张华荣 | I11: 13277109987 | J11: 2 | K11: 2.5 | L11: 4 | M11: 1 | N11: 2 | O11: 2 | P11: 4 | Q11: 2 | R11: 0.8 | S11: 4500 | T11: 1 | U11: 2 | V11: 2 | W11: 60 | X11: 5 | Y11: 4 | Z11: 2 | AA11: 1 | AB11: 0.3 | AC11: 12 | AD11: 2 | AE11: 1 | AF11: 1 | AG11: 62 | AH11: 5 | AI11: 6 | AJ11: 2 | AK11: 1 | AL11: 0.3 | AM11: 12 | AN11: 3 | AO11: 4 | AP11: 1 | AQ11: 32 | AR11: 4 | AS11: 15 | AT11: 2 | AU11: 1 | AV11: 0.4 | AW11: 12 | BR11: 1 | BS11: 5.5 | BT11: 666 | BU11: 3 | BV11: 5.5 | BW11: 3 | BX11: 2 | BY11: 2 | BZ11: 3 | CA11: 1500 | CB11: 1 | CC11: 2 | CD11: 5.5 | CE11: 1200 | CF11: 1.08 | CG11: 140 | CH11: 40 | CI11: 60 | CJ11: 300 | CK11: 0 | CL11: 13 | DG11: 1 | DH11: 1 | DI11: 5 | DJ11: 1 | DK11: 4 | DL11: 1 | DM11: 4 | DN11: 3 | DO11: 2000 | DP11: 1 | DQ11: 2 | DR11: 2 | EF11: 5 | EG11: 1 | EH11: 1 | EI11: 1 | EJ11: 2 | EK11: 100 | EM11: 50 | EN11: 100 | ER11: 1 | ES11: 1 | ET11: 1 | EU11: 10 | EV11: 50 | EW11: 洋丰 | EX11: 180 | EY11: 100 | FC11: 2 | FD11: 2 | FE11: 1 | FF11: 1 | FG11: 15 | FI11: 120 | FJ11: 80 | FN11: 2 | FO11: 2 | FP11: 1 | FQ11: 10 | FR11: 20 | FS11: 洋丰 | FT11: 180 | FU11: 100 | GJ11: 2 | GK11: 2 | GL11: 2 | GQ11: 4 | GR11: 4 | GS11: 3 | GT11: 3 | GU11: 4 | GV11: 5 | GW11: 3 | GX11: 3 | GY11: 3 | GZ11: 4 | HA11: 4 | HB11: 4 | HC11: 2 | HD11: 2 | HE11: 5 | HF11: 2 | HG11: 2 | HK11: 1,5 | HL11: 1 | HM11: 1 | HN11: 1 | HO11: 1 | HP11: 1 | HQ11: 4 | HR11: 2 | HS11: 2 | HU11: 1 | HV11: 3 | HW11: 1 | HX11: 2 | HY11: 4 | HZ11: 1 | IA11: 2 | IB11: 4 | IC11: 2 | ID11: 2 | IE11: 1 | IF11: 5 | IG11: 1 | IH11: 3 | II11: 1 | IJ11: 4 | IK11: 3 | IL11: 2 | IM11: 2 | JQ11: 5 | JR11: 3 | JS11: 5 | JT11: 1 | JU11: 1 | JZ11: 4 | KA11: 1 | KB11: 1 | KC11: 1 | KD11: 1 | KF11: 10 | KG11: 80 | KH11: 2 | KI11: 100 | KJ11: 3 | KK11: 200 | KL11: 4 | KM11: 5 | KN11: 4 | KO11: 3 | KP11: 4 | KQ11: 5 | KR11: 5 | KS11: 1 | KT11: 4 | KU11: 3 | KV11: 5 | KW11: 4 | KX11: 4 | KY11: 4 | KZ11: 4 | LA11: 3 | LB11: 4 | LC11: 3 | LD11: 4 | LE11: 4 | LF11: 4 | LG11: 5 | LH11: 5 | LI11: 2 | LJ11: 1 | LK11: 1 | LL11: 1 | LM11: 2 | LN11: 1 | LO11: 3 | LP11: 3 | LQ11: 4 | LR11: 1 | LS11: 3 | LT11: 2 | LU11: 4 | LV11: 3 | LW11: 3 | LX11: 3 | LY11: 2 | LZ11: 2 | MA11: 1 | MB11: 1 | MC11: 1 | MD11: 1 | ME11: 1 | MF11: 2 | MG11: 1 | MH11: 1 | MI11: 2 | MJ11: 2 | MK11: 3 | MM11: 2 | MN11: 2 | MO11: 2 | MP11: 1 | MQ11: 1 | MR11: 2 | MT11: 2 | MW11: 1 | MX11: 4 | MY11: 1 | MZ11: 10 | NA11: 3 | NB11: 2 | NE11: 1 | NG11: 1 | NH11: 2 | NK11: 2 | NN11: 2 | NQ11: 1 | NS11: 2 | NT11: 2 | NW11: 2 | NX11: 3 | NY11: 3 | NZ11: 3 | OA11: 1 | OC11: 1 | OE11: 1 | OG11: 1 | OI11: 3 | OJ11: 5 | OK11: 1 | OL11: 4 | OM11: 2 | ON11: 1 | OO11: 3 | OP11: 2 | OQ11: 2 | OS11: 2 | OT11: 1 | OU11: 4 | OV11: 2 | OW11: 1 | OX11: 3 | OY11: 2 | OZ11: 2 | PB11: 2 | PC11: 2 | PE11: 2 | PF11: 1 | PG11: 3 | PH11: 2 | PI11: 2 | PK11: 2 | PL11: 2 | PN11: 2 | PO11: 2 | PQ11: 2 | PR11: 2 | PT11: 2 | PU11: 2 | PV11: 2 | PW11: 2 | PY11: 1 | PZ11: 3 | QA11: 2 | QB11: 3 | QC11: 2 | QD11: 2 | QE11: 2 | QF11: 3 | QG11: 2 | QH11: 2 | QI11: 2 | QJ11: 1 | QK11: 2 | QL11: 4 | QM11: 4 | QN11: 4 | QO11: 5 | QP11: 4 | QQ11: 4 | QR11: 4 | QS11: 3 | QT11: 5 | QU11: 5 | QV11: 5 | QW11: 3 | QX11: 4 | QY11: 3 | QZ11: 2 | RA11: 2 | RB11: 2 | RC11: 2
A12: 7 | B12: 李明月 | C12: 孙彬涵 | D12: 湖北省 | E12: 襄阳市南漳县 | F12: 九集镇 | G12: 邓家集 | H12: 谭习清 | I12: 13886283989 | J12: 2 | K12: 2 | L12: 5 | M12: 0 | N12: 1 | O12: 2 | P12: 4 | Q12: 11 | R12: 0.65 | S12: 5500 | T12: 1 | U12: 2 | V12: 1 | W12: 56 | X12: 4 | Y12: 15 | Z12: 1 | AA12: 1 | AB12: 3.5 | AC12: 12 | AD12: 2 | AE12: 1 | AF12: 2 | AG12: 56 | AH12: 4 | AI12: 12 | AJ12: 2 | AK12: 0 | AN12: 3 | AO12: 3 | AP12: 2 | AQ12: 90 | AR12: 4 | AS12: 0 | AT12: 2 | AU12: 0 | AX12: 4 | AY12: 4 | AZ12: 1 | BA12: 34 | BB12: 5 | BC12: 16 | BD12: 2 | BE12: 5 | BF12: 6 | BG12: 12 | BR12: 1 | BS12: 4 | BT12: 666 | BU12: 1 | BV12: 4 | BW12: 1 | BX12: 3 | BY12: 1 | BZ12: 3 | CA12: 1000 | CB12: 1 | CC12: 2 | CD12: 4 | CE12: 1400 | CF12: 1.1 | CG12: 130 | CH12: 20 | CI12: 0 | CJ12: 200 | CK12: 160 | CL12: 20 | DG12: 1 | DH12: 2 | DI12: 5 | DJ12: 1 | DK12: 5 | DL12: 1 | DM12: 5 | DN12: 3 | DO12: 1500 | DP12: 1 | DQ12: 1 | DR12: 1 | DW12: 1 | DX12: 3 | DY12: 2019 | DZ12: 4 | EG12: 1 | EH12: 1 | EI12: 1 | EJ12: 2 | EK12: 100 | EM12: 35 | EN12: 100 | ER12: 1 | ES12: 1 | ET12: 1 | EU12: 10 | EV12: 35 | EX12: 40 | EY12: 100 | FC12: 2 | FD12: 2 | FE12: 1 | FF12: 1 | FG12: 6 | FI12: 100 | FJ12: 100 | GJ12: 2 | GK12: 1 | GL12: 2 | GQ12: 5 | GR12: 4 | GS12: 4 | GT12: 4 | GU12: 2 | GV12: 5 | GW12: 4 | GX12: 3 | GY12: 3 | GZ12: 3 | HA12: 3 | HB12: 5 | HC12: 2 | HD12: 4 | HE12: 1 | HF12: 1 | HG12: 1 | HK12: 3 | HL12: 5 | HM12: 1 | HN12: 1 | HO12: 4 | HP12: 3 | HQ12: 1,4 | HR12: 2 | HS12: 2 | HU12: 3 | HV12: 3 | HW12: 3 | HX12: 1 | HY12: 3 | HZ12: 3 | IA12: 1 | IB12: 2 | IC12: 1 | ID12: 2 | IE12: 1 | IF12: 4 | IG12: 2 | IH12: 1 | II12: 2 | IJ12: 2 | IK12: 4 | IL12: 2 | IM12: 2 | JQ12: 4 | JR12: 4 | JS12: 5 | JT12: 1 | JU12: 2 | JV12: 1 | JZ12: 4 | KA12: 1 | KB12: 1 | KC12: 1 | KD12: 1 | KF12: 6 | KG12: 400 | KH12: 2 | KI12: 100 | KJ12: 4 | KK12: 1800 | KL12: 4 | KM12: 3 | KN12: 3 | KO12: 3 | KP12: 4 | KQ12: 5 | KR12: 5 | KS12: 2 | KT12: 3 | KU12: 3 | KV12: 4 | KW12: 4 | KX12: 4 | KY12: 3 | KZ12: 4 | LA12: 3 | LB12: 4 | LC12: 5 | LD12: 5 | LE12: 3 | LF12: 3 | LG12: 2 | LH12: 3 | LI12: 4 | LJ12: 1 | LK12: 1 | LL12: 1 | LM12: 2 | LN12: 2 | LO12: 2 | LP12: 2 | LQ12: 1 | LR12: 2 | LS12: 2 | LT12: 2 | LU12: 4 | LV12: 4 | LW12: 3 | LX12: 3 | LY12: 5 | LZ12: 2 | MA12: 1 | MB12: 1 | MC12: 1 | MD12: 1 | ME12: 1 | MF12: 1 | MG12: 1 | MH12: 1 | MI12: 1 | MJ12: 5 | MK12: 3 | MM12: 1 | MN12: 2 | MO12: 1 | MP12: 2 | MQ12: 1 | MR12: 2 | MT12: 1 | MU12: 2 | MW12: 2 | MY12: 1 | MZ12: 20 | NA12: 2 | NB12: 2 | NE12: 2 | NH12: 2 | NK12: 2 | NN12: 2 | NQ12: 1 | NR12: 30 | NS12: 1 | NT12: 2 | NW12: 2 | NX12: 3 | NY12: 3 | NZ12: 3 | OA12: 1 | OC12: 3 | OD12: 6 | OE12: 1 | OG12: 1 | OI12: 3 | OJ12: 5 | OK12: 1 | OL12: 4 | OM12: 1 | ON12: 2 | OP12: 1 | OQ12: 2 | OS12: 1 | OT12: 1 | OU12: 3 | OV12: 1 | OW12: 1 | OX12: 4 | OY12: 1 | OZ12: 2 | PB12: 2 | PC12: 2 | PE12: 1 | PF12: 1 | PG12: 4 | PH12: 1 | PI12: 2 | PK12: 2 | PL12: 1 | PM12: 2 | PN12: 1 | PO12: 1 | PP12: 2 | PQ12: 1 | PR12: 2 | PT12: 1 | PU12: 2 | PV12: 2 | PW12: 1 | PX12: 5 | PZ12: 2 | QA12: 2 | QB12: 1 | QC12: 2 | QD12: 4 | QE12: 2 | QF12: 1 | QG12: 2 | QH12: 2 | QI12: 2 | QJ12: 2 | QK12: 2 | QL12: 4 | QM12: 4 | QN12: 4 | QO12: 4 | QP12: 5 | QQ12: 5 | QR12: 5 | QS12: 4 | QT12: 4 | QU12: 2 | QV12: 5 | QW12: 4 | QX12: 4 | QY12: 3 | QZ12: 4 | RA12: 3 | RB12: 3 | RC12: 3
A13: 8 | B13: 李明月 | C13: 孙彬涵 | D13: 湖北省 | E13: 襄阳市南漳县 | F13: 九集镇 | G13: 邓家集 | H13: 熊燕香 | I13: 13871993748 | J13: 2 | K13: 2 | L13: 4 | M13: 0 | N13: 1 | O13: 2 | P13: 4 | Q13: 3 | R13: 0.8 | S13: 7000 | T13: 1 | U13: 1 | V13: 2 | W13: 55 | X13: 4 | Y13: 6 | Z13: 2 | AA13: 1 | AB13: 0.5 | AC13: 2 | AD13: 2 | AE13: 2 | AF13: 1 | AG13: 55 | AH13: 3 | AI13: 6 | AJ13: 2 | AK13: 1 | AL13: 1 | AM13: 4 | AN13: 3 | AO13: 4 | AP13: 2 | AQ13: 25 | AR13: 5 | AS13: 19 | AT13: 2 | AU13: 0 | AX13: 4 | AY13: 3 | AZ13: 2 | BA13: 78 | BB13: 1 | BC13: 0 | BR13: 1 | BS13: 4 | BT13: 666 | BU13: 1 | BV13: 4 | BW13: 1 | BX13: 2 | BY13: 2 | BZ13: 3 | CA13: 1000 | CB13: 1 | CC13: 2 | CD13: 4 | CE13: 1400 | CF13: 1.1 | CG13: 120 | CH13: 100 | CI13: 0 | CJ13: 180 | CK13: 150 | CL13: 15 | DG13: 1 | DH13: 2 | DI13: 5 | DJ13: 1 | DK13: 4 | DL13: 1 | DM13: 5 | DN13: 2 | DP13: 1 | DQ13: 2 | DR13: 2 | EF13: 4 | EG13: 1 | EH13: 1 | EI13: 1 | EJ13: 10 | EK13: 80 | EM13: 130 | EN13: 80 | ER13: 1 | ES13: 1 | ET13: 1 | EU13: 1 | EV13: 30 | EX13: 80 | EY13: 80 | FC13: 1 | FD13: 1 | FE13: 1 | FF13: 5 | FG13: 80 | FI13: 28 | FJ13: 80 | FN13: 2 | FO13: 2 | FP13: 1 | FQ13: 1 | FR13: 15 | FT13: 80 | FU13: 80 | GJ13: 5 | GK13: 2 | GL13: 2 | GQ13: 5 | GR13: 3 | GS13: 3 | GT13: 3 | GU13: 2 | GV13: 5 | GW13: 3 | GX13: 3 | GY13: 3 | GZ13: 3 | HA13: 3 | HB13: 5 | HC13: 2 | HD13: 3 | HE13: 1 | HF13: 1 | HG13: 1 | HK13: 1 | HL13: 1 | HM13: 1 | HN13: 1 | HO13: 3 | HP13: 2 | HQ13: 1,4 | HR13: 2 | HS13: 2 | HU13: 1 | HV13: 3 | HW13: 1 | HX13: 2 | HY13: 4 | HZ13: 1 | IA13: 2 | IB13: 3 | IC13: 2 | ID13: 2 | IE13: 1 | IF13: 3 | IG13: 2 | IH13: 3 | II13: 2 | IJ13: 4 | IK13: 2 | IL13: 2 | IM13: 2 | JQ13: 4 | JR13: 3 | JS13: 4 | JT13: 1 | JU13: 1 | JZ13: 4 | KA13: 1 | KB13: 1 | KC13: 1 | KD13: 1 | KF13: 6 | KG13: 不清楚 | KH13: 2 | KI13: 100 | KJ13: 3 | KK13: 200 | KL13: 3 | KM13: 5 | KN13: 5 | KO13: 4 | KP13: 3 | KQ13: 3 | KR13: 3 | KS13: 2 | KT13: 3 | KU13: 4 | KV13: 3 | KW13: 5 | KX13: 5 | KY13: 4 | KZ13: 3 | LA13: 4 | LB13: 4 | LC13: 3 | LD13: 3 | LE13: 3 | LF13: 4 | LG13: 5 | LH13: 5 | LI13: 2 | LJ13: 1 | LK13: 1 | LL13: 1 | LM13: 4 | LN13: 2 | LO13: 1 | LP13: 1 | LQ13: 1,3 | LR13: 2 | LS13: 3 | LT13: 3 | LU13: 2 | LV13: 1 | LW13: 1 | LX13: 1 | LY13: 2 | LZ13: 2 | MA13: 2 | MB13: 1 | MC13: 1 | MD13: 1 | ME13: 1 | MF13: 2 | MG13: 1 | MH13: 1 | MI13: 1 | MJ13: 4 | MK13: 3 | MM13: 1 | MN13: 2 | MO13: 2 | MP13: 1 | MQ13: 2 | MR13: 1 | MS13: 4 | MT13: 1 | MU13: 2 | MV13: 20 | MW13: 2 | MY13: 1 | MZ13: 5 | NA13: 2 | NB13: 2 | NE13: 2 | NH13: 2 | NK13: 2 | NN13: 2 | NQ13: 1 | NR13: 10 | NS13: 1 | NT13: 2 | NW13: 2 | NX13: 3 | NY13: 3 | NZ13: 3 | OA13: 1 | OC13: 1 | OE13: 1 | OG13: 1 | OI13: 4 | OJ13: 3 | OK13: 1 | OL13: 5 | OM13: 2 | ON13: 1 | OO13: 4 | OP13: 2 | OQ13: 2 | OS13: 2 | OT13: 2 | OV13: 2 | OW13: 2 | OY13: 2 | OZ13: 2 | PB13: 2 | PC13: 2 | PE13: 2 | PF13: 1 | PG13: 3 | PH13: 2 | PI13: 2 | PK13: 2 | PL13: 2 | PN13: 2 | PO13: 2 | PQ13: 2 | PR13: 2 | PT13: 2 | PU13: 2 | PV13: 2 | PW13: 1 | PX13: 5 | PZ13: 2 | QA13: 2 | QB13: 1 | QC13: 2 | QD13: 5 | QE13: 2 | QF13: 3 | QG13: 2 | QH13: 2 | QI13: 2 | QJ13: 2 | QK13: 2 | QL13: 5 | QM13: 4 | QN13: 5 | QO13: 5 | QP13: 4 | QQ13: 4 | QR13: 4 | QS13: 2 | QT13: 4 | QU13: 2 | QV13: 5 | QW13: 3 | QX13: 3 | QY13: 3 | QZ13: 3 | RA13: 2 | RB13: 2 | RC13: 2
A14: 9 | B14: 李明月 | C14: 孙彬涵 | D14: 湖北省 | E14: 襄阳市南漳县 | F14: 九集镇 | G14: 邓家集 | H14: 王丽 | I14: 13227654850 | J14: 2 | K14: 3.5 | L14: 4 | M14: 0 | N14: 0 | O14: 2 | P14: 4 | Q14: 7 | R14: 0.45 | S14: 15000 | T14: 1 | U14: 2 | V14: 2 | W14: 42 | X14: 4 | Y14: 9 | Z14: 2 | AA14: 0 | AD14: 2 | AE14: 1 | AF14: 1 | AG14: 40 | AH14: 4 | AI14: 6 | AJ14: 2 | AK14: 1 | AL14: 5 | AM14: 12 | BR14: 1 | BS14: 2 | BT14: 666 | BU14: 2 | BV14: 2 | BW14: 2 | BX14: 2 | BY14: 2 | BZ14: 3 | CA14: 650 | CB14: 2 | CC14: 2 | CD14: 2 | CE14: 1200 | CF14: 1.15 | CG14: 120 | CH14: 200 | CI14: 0 | CJ14: 200 | CK14: 0 | CL14: 30 | DG14: 1 | DH14: 2 | DI14: 4 | DJ14: 1 | DK14: 5 | DL14: 1 | DM14: 5 | DN14: 3 | DO14: 1000 | DP14: 1 | DQ14: 1 | DR14: 2 | EF14: 5 | EG14: 1 | EH14: 1 | EI14: 1 | EJ14: 2 | EK14: 100 | EM14: 38 | EN14: 100 | ER14: 1 | ES14: 1 | ET14: 1 | EU14: 10 | EV14: 40 | EX14: 140 | EY14: 80 | FC14: 2 | FD14: 2 | FE14: 1 | FF14: 1 | FG14: 15 | FI14: 100 | FJ14: 100 | GJ14: 2 | GK14: 1 | GL14: 2 | GQ14: 4 | GR14: 4 | GS14: 3 | GT14: 5 | GU14: 2 | GV14: 4 | GW14: 3 | GX14: 3 | GY14: 3 | GZ14: 5 | HA14: 5 | HB14: 5 | HC14: 4 | HD14: 4 | HE14: 1 | HF14: 1 | HG14: 1 | HK14: 1 | HL14: 2 | HM14: 1 | HN14: 1 | HO14: 3 | HP14: 1 | HQ14: 1,4 | HR14: 2 | HS14: 2 | HU14: 1 | HV14: 4 | HW14: 4 | HX14: 1 | HY14: 4 | HZ14: 1 | IA14: 2 | IB14: 3 | IC14: 2 | ID14: 1 | IE14: 1 | IF14: 4 | IG14: 2 | IH14: 1 | II14: 2 | IJ14: 4 | IK14: 4 | IL14: 2 | IM14: 2 | JQ14: 5 | JR14: 4 | JS14: 4 | JT14: 3 | JU14: 2 | JV14: 2 | JW14: 2 | JX14: 2 | JY14: 1 | JZ14: 3 | KA14: 1 | KB14: 1 | KC14: 1 | KD14: 1 | KF14: 20 | KG14: 不清楚 | KH14: 2 | KI14: 100 | KJ14: 3 | KK14: 1200 | KL14: 4 | KM14: 5 | KN14: 4 | KO14: 4 | KP14: 2 | KQ14: 2 | KR14: 3 | KS14: 3 | KT14: 3 | KU14: 4 | KV14: 4 | KW14: 5 | KX14: 4 | KY14: 2 | KZ14: 1 | LA14: 2 | LB14: 3 | LC14: 4 | LD14: 4 | LE14: 4 | LF14: 3 | LG14: 1 | LH14: 3 | LI14: 2 | LJ14: 1 | LK14: 1 | LL14: 1 | LM14: 2 | LN14: 2 | LO14: 2 | LP14: 2 | LQ14: 4 | LR14: 2 | LS14: 2 | LT14: 4 | LU14: 2 | LV14: 2 | LW14: 1 | LX14: 1 | LY14: 2 | LZ14: 1 | MA14: 1 | MB14: 1 | MC14: 1 | MD14: 1 | ME14: 1 | MF14: 2 | MG14: 1 | MH14: 1 | MI14: 1 | MJ14: 4 | MK14: 3 | MM14: 2 | MN14: 2 | MO14: 1 | MP14: 1 | MQ14: 1 | MR14: 2 | MT14: 2 | MU14: 2 | MW14: 1 | MX14: 4 | MY14: 1 | MZ14: 5 | NA14: 1 | NB14: 2 | NE14: 2 | NH14: 2 | NK14: 2 | NN14: 2 | NQ14: 2 | NT14: 2 | NW14: 2 | NX14: 4 | NY14: 3 | NZ14: 3 | OA14: 1 | OC14: 1 | OE14: 1 | OG14: 1 | OI14: 4 | OJ14: 5 | OK14: 2 | OM14: 2 | ON14: 2 | OP14: 2 | OQ14: 2 | OS14: 2 | OT14: 2 | OV14: 2 | OW14: 2 | OY14: 2 | OZ14: 2 | PB14: 2 | PC14: 2 | PE14: 2 | PF14: 1 | PG14: 3 | PH14: 2 | PI14: 2 | PK14: 2 | PL14: 2 | PN14: 2 | PO14: 2 | PQ14: 2 | PR14: 2 | PT14: 2 | PU14: 2 | PV14: 2 | PW14: 1 | PX14: 3 | PZ14: 2 | QA14: 2 | QB14: 3 | QC14: 2 | QD14: 4 | QE14: 2 | QF14: 1 | QG14: 2 | QH14: 1 | QI14: 2 | QJ14: 2 | QK14: 2 | QL14: 5 | QM14: 4 | QN14: 5 | QO14: 5 | QP14: 4 | QQ14: 4 | QR14: 4 | QS14: 2 | QT14: 3 | QU14: 5 | QV14: 3 | QW14: 3 | QX14: 4 | QY14: 4 | QZ14: 4 | RA14: 2 | RB14: 2 | RC14: 2
A15: 10 | B15: 李明月 | C15: 孙彬涵 | D15: 湖北省 | E15: 襄阳市南漳县 | F15: 九集镇 | G15: 邓家集 | H15: 张文权 | I15: 13117233035 | J15: 2 | K15: 3 | L15: 4 | M15: 0 | N15: 0 | O15: 2 | P15: 3 | Q15: 9.6 | R15: 0.9 | S15: 7500 | T15: 1 | U15: 1 | V15: 1 | W15: 50 | X15: 4 | Y15: 0 | Z15: 2 | AA15: 2 | AB15: 1.7 | AC15: 4 | AD15: 2 | AE15: 2 | AF15: 2 | AG15: 48 | AH15: 4 | AI15: 0 | AJ15: 2 | AK15: 0 | AN15: 3 | AO15: 4 | AP15: 2 | AQ15: 29 | AR15: 5 | AS15: 16 | AT15: 2 | AU15: 5 | AV15: 7 | AW15: 12 | AX15: 4 | AY15: 4 | AZ15: 2 | BA15: 23 | BB15: 5 | BC15: 17 | BD15: 2 | BE15: 0 | BR15: 1 | BS15: 8 | BT15: 667 | BU15: 5 | BV15: 6 | BW15: 5 | BX15: 2 | BY15: 2 | BZ15: 3 | CA15: 700 | CB15: 2 | CC15: 2 | CD15: 6 | CE15: 950 | CF15: 1.15 | CG15: 120 | CH15: 100 | CI15: 0 | CJ15: 200 | CK15: 0 | CL15: 10 | DG15: 1 | DH15: 2 | DI15: 4 | DJ15: 1 | DK15: 5 | DL15: 1 | DM15: 5 | DN15: 3 | DO15: 1000 | DP15: 1 | DQ15: 1 | DR15: 2 | EF15: 3 | EG15: 1 | EH15: 1 | EI15: 1 | EJ15: 10 | EK15: 65 | EM15: 85 | EN15: 50 | ER15: 1 | ES15: 1 | ET15: 1 | EU15: 2 | EV15: 100 | EX15: 35 | EY15: 100 | FC15: 2 | FD15: 2 | FE15: 1 | FF15: 1 | FG15: 14 | FI15: 95 | FJ15: 80 | GJ15: 2,3 | GK15: 1 | GL15: 2 | GQ15: 4 | GR15: 4 | GS15: 4 | GT15: 3 | GU15: 3 | GV15: 3 | GW15: 5 | GX15: 3 | GY15: 3 | GZ15: 5 | HA15: 5 | HB15: 5 | HC15: 3 | HD15: 4 | HE15: 4 | HF15: 1 | HG15: 1 | HK15: 2 | HL15: 4 | HM15: 1 | HN15: 1 | HO15: 2 | HP15: 1 | HQ15: 4 | HR15: 2 | HS15: 2 | HU15: 1 | HV15: 3 | HW15: 2 | HX15: 2 | HY15: 3 | HZ15: 1 | IA15: 2 | IB15: 3 | IC15: 2 | ID15: 1 | IE15: 2 | IF15: 3 | IG15: 1 | IH15: 3 | II15: 2 | IJ15: 2 | IK15: 3 | IL15: 2 | IM15: 2 | JQ15: 5 | JR15: 4 | JS15: 4 | JT15: 1,2,3 | JU15: 1 | JZ15: 4 | KA15: 1 | KB15: 1 | KC15: 1 | KD15: 1 | KF15: 6 | KG15: 不清楚 | KH15: 2 | KI15: 100 | KJ15: 2 | KK15: 500 | KL15: 5 | KM15: 5 | KN15: 4 | KO15: 4 | KP15: 4 | KQ15: 5 | KR15: 4 | KS15: 4 | KT15: 3 | KU15: 5 | KV15: 4 | KW15: 5 | KX15: 5 | KY15: 3 | KZ15: 3 | LA15: 4 | LB15: 3 | LC15: 4 | LD15: 4 | LE15: 4 | LF15: 3 | LG15: 4 | LH15: 4 | LI15: 3 | LJ15: 2 | LK15: 3 | LL15: 1 | LM15: 2 | LN15: 1 | LO15: 2 | LP15: 2 | LQ15: 1,2 | LR15: 1,2 | LS15: 2 | LT15: 4 | LU15: 4 | LV15: 3 | LW15: 2 | LX15: 2 | LY15: 4 | LZ15: 2 | MA15: 1 | MB15: 1 | MC15: 1 | MD15: 1 | ME15: 1 | MF15: 1 | MG15: 1 | MH15: 1 | MI15: 1 | MJ15: 4 | MK15: 3 | MM15: 1 | MN15: 2 | MO15: 2 | MP15: 1 | MQ15: 1 | MR15: 2 | MT15: 1 | MU15: 2 | MW15: 1 | MX15: 3 | MY15: 2 | NB15: 2 | NE15: 2 | NH15: 2 | NK15: 2 | NN15: 2 | NQ15: 1 | NR15: 20 | NS15: 1 | NT15: 2 | NW15: 2 | NX15: 3 | NY15: 3 | NZ15: 3 | OA15: 1 | OC15: 1 | OE15: 1 | OG15: 1 | OI15: 4 | OJ15: 4 | OK15: 1 | OL15: 3 | OM15: 2 | ON15: 2 | OP15: 2 | OQ15: 2 | OS15: 2 | OT15: 2 | OV15: 2 | OW15: 2 | OY15: 2 | OZ15: 2 | PB15: 2 | PC15: 2 | PE15: 2 | PF15: 1 | PG15: 3 | PH15: 2 | PI15: 2 | PK15: 2 | PL15: 2 | PN15: 2 | PO15: 2 | PQ15: 2 | PR15: 2 | PT15: 2 | PU15: 2 | PV15: 2 | PW15: 1 | PX15: 2 | PZ15: 2 | QA15: 2 | QB15: 4 | QC15: 2 | QD15: 3 | QE15: 2 | QF15: 2 | QG15: 2 | QH15: 2 | QI15: 2 | QJ15: 3 | QK15: 2 | QL15: 5 | QM15: 4 | QN15: 4 | QO15: 5 | QP15: 5 | QQ15: 4 | QR15: 5 | QS15: 3 | QT15: 4 | QU15: 5 | QV15: 4 | QW15: 3 | QX15: 4 | QY15: 4 | QZ15: 4 | RA15: 1 | RB15: 4 | RC15: 1
A16: 11 | B16: 李明月 | C16: 孙彬涵 | D16: 湖北省 | E16: 襄阳市南漳县 | F16: 九集镇 | G16: 邓家集 | H16: 李家军 | I16: 17786708201 | J16: 2 | K16: 3 | L16: 4 | M16: 0 | N16: 1 | O16: 2 | P16: 3 | Q16: 5.3 | R16: 2.4 | S16: 3500 | T16: 1 | U16: 1 | V16: 1 | W16: 53 | X16: 4 | Y16: 6 | Z16: 2 | AA16: 2 | AB16: 0.9 | AC16: 4 | AD16: 2 | AE16: 2 | AF16: 2 | AG16: 47 | AH16: 4 | AI16: 6 | AJ16: 2 | AK16: 0 | AN16: 3 | AO16: 4 | AP16: 1 | AQ16: 25 | AR16: 5 | AS16: 9 | AT16: 2 | AU16: 5 | AV16: 2 | AW16: 12 | BR16: 1 | BS16: 20 | BT16: 667 | BU16: 14 | BV16: 20 | BW16: 14 | BX16: 4 | BY16: 1 | BZ16: 3 | CA16: 400 | CB16: 2 | CC16: 2 | CD16: 20 | CE16: 1100 | CF16: 1.08 | CG16: 150 | CH16: 40 | CI16: 0 | CJ16: 0 | CK16: 200 | CL16: 9 | DG16: 1 | DH16: 2 | DI16: 5 | DJ16: 3 | DK16: 5 | DL16: 3 | DM16: 5 | DN16: 3 | DO16: 1500 | DP16: 1 | DQ16: 2 | DR16: 2 | EF16: 3 | EG16: 1 | EH16: 1 | EI16: 1 | EJ16: 2 | EK16: 80 | EM16: 38 | EN16: 100 | ER16: 1 | ES16: 1 | ET16: 1 | EU16: 5 | EV16: 100 | EX16: 30 | EY16: 100 | FC16: 1 | FD16: 1 | FE16: 1 | FF16: 10 | FG16: 50 | FI16: 80 | FJ16: 50 | FK16: 15 | FL16: 15 | FM16: 15 | FN16: 2 | FO16: 2 | FP16: 1 | FQ16: 1 | FR16: 10 | FT16: 110 | FU16: 100 | GJ16: 2,3 | GK16: 1 | GL16: 2 | GQ16: 5 | GR16: 4 | GS16: 4 | GT16: 3 | GU16: 3 | GV16: 4 | GW16: 4 | GX16: 3 | GY16: 3 | GZ16: 5 | HA16: 4 | HB16: 3 | HC16: 2 | HD16: 2 | HE16: 2 | HF16: 1 | HG16: 1 | HK16: 1 | HL16: 5 | HM16: 1 | HN16: 1 | HO16: 1 | HP16: 2 | HQ16: 4 | HR16: 2 | HS16: 2 | HU16: 1 | HV16: 3 | HW16: 1 | HX16: 2 | HY16: 4 | HZ16: 1 | IA16: 2 | IB16: 2 | IC16: 2 | ID16: 2 | IE16: 1 | IF16: 3 | IG16: 1 | IH16: 1 | II16: 2 | IJ16: 4 | IK16: 4 | IL16: 2 | IM16: 2 | JQ16: 2 | JR16: 2 | JS16: 5 | JT16: 1,2 | JU16: 2 | JV16: 2 | JW16: 1 | JZ16: 4 | KA16: 1 | KB16: 2 | KJ16: 1 | KK16: 850 | KL16: 2 | KM16: 5 | KN16: 4 | KO16: 4 | KP16: 4 | KQ16: 5 | KR16: 5 | KS16: 4 | KT16: 4 | KU16: 5 | KV16: 4 | KW16: 5 | KX16: 5 | KY16: 4 | KZ16: 3 | LA16: 4 | LB16: 4 | LC16: 4 | LD16: 4 | LE16: 5 | LF16: 4 | LG16: 2 | LH16: 3 | LI16: 4 | LJ16: 2 | LK16: 1 | LL16: 1 | LM16: 2 | LN16: 2 | LO16: 2 | LP16: 2 | LQ16: 2 | LR16: 1 | LS16: 2 | LT16: 4 | LU16: 2 | LV16: 2 | LW16: 1 | LX16: 1 | LY16: 3 | LZ16: 2 | MA16: 1 | MB16: 1 | MC16: 1 | MD16: 1 | ME16: 2 | MF16: 1 | MG16: 1 | MH16: 1 | MI16: 1 | MJ16: 4 | MK16: 3 | MM16: 1 | MN16: 2 | MO16: 1 | MP16: 1 | MQ16: 2 | MR16: 2 | MT16: 2 | MU16: 2 | MW16: 1 | MX16: 4 | MY16: 2 | NB16: 1 | NC16: 20 | ND16: 1 | NE16: 2 | NH16: 2 | NK16: 2 | NN16: 2 | NQ16: 2 | NT16: 2 | NW16: 2 | NX16: 3 | NY16: 3 | NZ16: 3 | OA16: 1 | OC16: 1 | OE16: 1 | OG16: 1 | OI16: 5 | OJ16: 4 | OK16: 1 | OL16: 5 | OM16: 2 | ON16: 2 | OP16: 2 | OQ16: 2 | OS16: 2 | OT16: 1 | OU16: 5 | OV16: 2 | OW16: 2 | OY16: 2 | OZ16: 1 | PA16: 4 | PB16: 2 | PC16: 2 | PE16: 2 | PF16: 1 | PG16: 4 | PH16: 2 | PI16: 2 | PK16: 2 | PL16: 2 | PN16: 2 | PO16: 2 | PQ16: 2 | PR16: 2 | PT16: 2 | PU16: 2 | PV16: 2 | PW16: 2 | PY16: 1 | PZ16: 1 | QA16: 2 | QB16: 3 | QC16: 2 | QD16: 4 | QE16: 2 | QF16: 1 | QG16: 2 | QH16: 2 | QI16: 2 | QJ16: 3 | QK16: 2 | QL16: 5 | QM16: 5 | QN16: 5 | QO16: 5 | QP16: 4 | QQ16: 5 | QR16: 5 | QS16: 2 | QT16: 4 | QU16: 5 | QV16: 4 | QW16: 3 | QX16: 4 | QY16: 4 | QZ16: 4 | RA16: 2 | RB16: 4 | RC16: 4
A17: 12 | B17: 李明月 | C17: 孙彬涵 | D17: 湖北省 | E17: 襄阳市南漳县 | F17: 九集镇 | G17: 邓家集 | H17: 李全申 | I17: 15997273137 | J17: 2 | K17: 3 | L17: 3 | M17: 0 | N17: 0 | O17: 2 | P17: 2 | Q17: 11 | R17: 1 | S17: 5000 | T17: 1 | U17: 1 | V17: 1 | W17: 53 | X17: 4 | Y17: 9 | Z17: 2 | AA17: 5 | AB17: 6 | AC17: 6 | AD17: 2 | AE17: 2 | AF17: 2 | AG17: 56 | AH17: 4 | AI17: 6 | AJ17: 2 | AK17: 4 | AL17: 1 | AM17: 3 | AN17: 3 | AO17: 4 | AP17: 2 | AQ17: 26 | AR17: 5 | AS17: 9 | AT17: 2 | AU17: 2 | AV17: 3 | AW17: 12 | BR17: 1 | BS17: 6 | BT17: 667 | BU17: 3 | BV17: 6 | BW17: 3 | BX17: 4 | BY17: 1 | BZ17: 3 | CA17: 500 | CB17: 1 | CC17: 2 | CD17: 6 | CE17: 1000 | CF17: 1.1 | CG17: 100 | CH17: 50 | CI17: 10 | CJ17: 300 | CK17: 200 | CL17: 7 | DG17: 1 | DH17: 2 | DI17: 4 | DJ17: 1 | DK17: 5 | DL17: 1 | DM17: 5 | DN17: 2 | DP17: 1 | DQ17: 2 | DR17: 2 | EF17: 5 | EG17: 1 | EH17: 1 | EI17: 1 | EJ17: 10 | EK17: 50 | EM17: 90 | EN17: 50 | ER17: 2 | ES17: 2 | ET17: 1 | EU17: 1 | EV17: 15 | EX17: 100 | EY17: 80 | GK17: 1 | GL17: 2 | GQ17: 5 | GR17: 5 | GS17: 4 | GT17: 4 | GU17: 4 | GV17: 4 | GW17: 3 | GX17: 3 | GY17: 3 | GZ17: 4 | HA17: 4 | HB17: 5 | HC17: 2 | HD17: 2 | HE17: 3 | HF17: 1 | HG17: 1 | HK17: 1 | HL17: 2 | HM17: 1 | HN17: 1 | HO17: 2 | HP17: 2 | HQ17: 4 | HR17: 2 | HS17: 2 | HU17: 1 | HV17: 4 | HW17: 1 | HX17: 2 | HY17: 3 | HZ17: 1 | IA17: 2 | IB17: 3 | IC17: 2 | ID17: 2 | IE17: 1 | IF17: 4 | IG17: 1 | IH17: 1 | II17: 1 | IJ17: 4 | IK17: 4 | IL17: 2 | IM17: 2 | JQ17: 3 | JR17: 2 | JS17: 5 | JT17: 3 | JU17: 1 | JZ17: 4 | KA17: 1 | KB17: 2 | KJ17: 3 | KK17: 550 | KL17: 3 | KM17: 4 | KN17: 5 | KO17: 4 | KP17: 5 | KQ17: 5 | KR17: 4 | KS17: 4 | KT17: 3 | KU17: 4 | KV17: 3 | KW17: 5 | KX17: 4 | KY17: 3 | KZ17: 4 | LA17: 3 | LB17: 3 | LC17: 3 | LD17: 3 | LE17: 4 | LF17: 3 | LG17: 3 | LH17: 4 | LI17: 2 | LJ17: 1 | LK17: 1 | LL17: 1 | LM17: 2 | LN17: 2 | LO17: 2 | LP17: 2 | LQ17: 2 | LR17: 2 | LS17: 2 | LT17: 3 | LU17: 3 | LV17: 2 | LW17: 2 | LX17: 4 | LY17: 4 | LZ17: 2 | MA17: 1 | MB17: 1 | MC17: 1 | MD17: 1 | ME17: 1 | MF17: 1 | MG17: 1 | MH17: 1 | MI17: 1 | MJ17: 4 | MK17: 3 | MM17: 1 | MN17: 2 | MO17: 1 | MP17: 2 | MQ17: 1 | MR17: 1 | MS17: 4 | MT17: 2 | MU17: 2 | MW17: 1 | MX17: 4 | MY17: 1 | MZ17: 40 | NA17: 1 | NB17: 1 | NC17: 20 | ND17: 2 | NE17: 2 | NH17: 2 | NK17: 2 | NN17: 2 | NQ17: 2 | NT17: 2 | NW17: 2 | NX17: 3 | NY17: 3 | NZ17: 3 | OA17: 1 | OC17: 1 | OE17: 1 | OG17: 1 | OI17: 4 | OJ17: 4 | OK17: 1 | OL17: 4 | OM17: 2 | ON17: 2 | OP17: 2 | OQ17: 2 | OS17: 2 | OT17: 1 | OU17: 4 | OV17: 2 | OW17: 2 | OY17: 2 | OZ17: 2 | PB17: 2 | PC17: 2 | PE17: 2 | PF17: 1 | PG17: 3 | PH17: 1 | PI17: 2 | PK17: 2 | PL17: 2 | PN17: 2 | PO17: 2 | PQ17: 2 | PR17: 2 | PT17: 2 | PU17: 2 | PV17: 2 | PW17: 1 | PX17: 1 | PZ17: 1 | QA17: 2 | QB17: 2 | QC17: 2 | QD17: 5 | QE17: 2 | QF17: 2 | QG17: 2 | QH17: 1 | QI17: 2 | QJ17: 2 | QK17: 2 | QL17: 5 | QM17: 4 | QN17: 5 | QO17: 4 | QP17: 4 | QQ17: 4 | QR17: 5 | QS17: 2 | QT17: 4 | QU17: 5 | QV17: 4 | QW17: 3 | QX17: 4 | QY17: 4 | QZ17: 3 | RA17: 1 | RB17: 2 | RC17: 2
A18: 13 | B18: 李明月 | C18: 孙彬涵 | D18: 湖北省 | E18: 襄阳市南漳县 | F18: 九集镇 | G18: 邓家集 | H18: 李华生 | I18: 18972265184 | J18: 2 | K18: 3 | L18: 5 | M18: 1 | N18: 0 | O18: 2 | P18: 3 | Q18: 8.5 | R18: 1 | S18: 6000 | T18: 1 | U18: 1 | V18: 1 | W18: 50 | X18: 4 | Y18: 6 | Z18: 2 | AA18: 3 | AB18: 1.5 | AC18: 3 | AD18: 2 | AE18: 2 | AF18: 2 | AG18: 46 | AH18: 4 | AI18: 6 | AJ18: 2 | AK18: 0 | AN18: 3 | AO18: 4 | AP18: 1 | AQ18: 28 | AR18: 5 | AS18: 9 | AT18: 2 | AU18: 5 | AV18: 3 | AW18: 12 | AX18: 4 | AY18: 4 | AZ18: 2 | BA18: 29 | BB18: 5 | BC18: 6 | BD18: 2 | BE18: 5 | BF18: 3 | BG18: 12 | BR18: 1 | BS18: 6.5 | BT18: 667 | BU18: 6 | BV18: 6.5 | BW18: 6 | BX18: 2 | BY18: 1 | BZ18: 3 | CA18: 500 | CB18: 1 | CC18: 2 | CD18: 6.5 | CE18: 1000 | CF18: 1.1 | CG18: 105 | CH18: 35 | CI18: 15 | CJ18: 400 | CK18: 200 | CL18: 10 | DG18: 1 | DH18: 2 | DI18: 4 | DJ18: 1 | DK18: 5 | DL18: 1 | DM18: 5 | DN18: 3 | DO18: 1350 | DP18: 1 | DQ18: 2 | DR18: 1 | DW18: 3 | DX18: 0.5 | DZ18: 4 | EG18: 1 | EH18: 1 | EI18: 1 | EJ18: 10 | EK18: 60 | EM18: 160 | EN18: 100 | ER18: 1 | ES18: 1 | ET18: 1 | EU18: 2 | EV18: 100 | EW18: 洋丰 | EX18: 38 | EY18: 100 | GJ18: 2,3 | GK18: 1 | GL18: 2 | GQ18: 4 | GR18: 4 | GS18: 4 | GT18: 3 | GU18: 3 | GV18: 4 | GW18: 3 | GX18: 3 | GY18: 3 | GZ18: 3 | HA18: 3 | HB18: 4 | HC18: 2 | HD18: 4 | HE18: 4 | HF18: 2 | HG18: 2 | HK18: 1,2 | HL18: 3 | HM18: 1 | HN18: 1 | HO18: 2 | HP18: 4 | HQ18: 1,2,4 | HR18: 2 | HS18: 2 | HU18: 1 | HV18: 3 | HW18: 4 | HX18: 1 | HY18: 3 | HZ18: 1 | IA18: 2 | IB18: 3 | IC18: 1 | ID18: 2 | IE18: 1 | IF18: 3 | IG18: 1 | IH18: 1 | II18: 2 | IJ18: 5 | IK18: 2 | IL18: 2 | IM18: 2 | JQ18: 3 | JR18: 4 | JS18: 4 | JT18: 1,3 | JU18: 2 | JV18: 1 | JZ18: 4 | KA18: 1 | KB18: 1 | KC18: 1 | KD18: 1 | KF18: 15 | KG18: 350 | KH18: 2 | KI18: 100 | KJ18: 2 | KK18: 850 | KL18: 3 | KM18: 4 | KN18: 5 | KO18: 4 | KP18: 5 | KQ18: 5 | KR18: 5 | KS18: 1 | KT18: 3 | KU18: 3 | KV18: 2 | KW18: 4 | KX18: 3 | KY18: 4 | KZ18: 3 | LA18: 4 | LB18: 3 | LC18: 3 | LD18: 2 | LE18: 3 | LF18: 4 | LG18: 3 | LH18: 3 | LI18: 3 | LJ18: 1 | LK18: 1 | LL18: 3 | LM18: 2 | LN18: 2 | LO18: 2 | LP18: 2 | LQ18: 1 | LR18: 2 | LS18: 3 | LT18: 4 | LU18: 3 | LV18: 1 | LW18: 1 | LX18: 2 | LY18: 3 | LZ18: 2 | MA18: 1 | MB18: 1 | MC18: 1 | MD18: 1 | ME18: 1 | MF18: 2 | MG18: 1 | MH18: 1 | MI18: 1 | MJ18: 4 | MK18: 3 | MM18: 2 | MN18: 2 | MO18: 2 | MP18: 1 | MQ18: 1 | MR18: 2 | MT18: 2 | MU18: 2 | MW18: 1 | MX18: 4 | MY18: 1 | MZ18: 20 | NA18: 2 | NB18: 1 | NC18: 20 | ND18: 1 | NE18: 1 | NF18: 5 | NG18: 3 | NH18: 2 | NK18: 2 | NN18: 2 | NQ18: 2 | NT18: 2 | NW18: 2 | NX18: 2 | NY18: 2 | NZ18: 2 | OA18: 1 | OC18: 1 | OE18: 1 | OG18: 1 | OI18: 4 | OJ18: 4 | OK18: 1 | OL18: 4 | OM18: 2 | ON18: 2 | OP18: 2 | OQ18: 2 | OS18: 2 | OT18: 1 | OU18: 5 | OV18: 2 | OW18: 2 | OY18: 2 | OZ18: 2 | PB18: 2 | PC18: 2 | PE18: 2 | PF18: 2 | PH18: 1 | PI18: 2 | PK18: 2 | PL18: 2 | PN18: 2 | PO18: 2 | PQ18: 2 | PR18: 2 | PT18: 2 | PU18: 2 | PV18: 2 | PW18: 1 | PX18: 1 | PZ18: 1 | QA18: 2 | QB18: 1 | QC18: 2 | QD18: 3 | QE18: 2 | QF18: 1 | QG18: 2 | QH18: 1 | QI18: 2 | QJ18: 1 | QK18: 2 | QL18: 4 | QM18: 4 | QN18: 5 | QO18: 4 | QP18: 4 | QQ18: 4 | QR18: 5 | QS18: 2 | QT18: 4 | QU18: 3 | QV18: 5 | QW18: 3 | QX18: 4 | QY18: 3 | QZ18: 4 | RA18: 1 | RB18: 1 | RC18: 1
A19: 14 | B19: 李明月 | C19: 孙彬涵 | D19: 湖北省 | E19: 襄阳市南漳县 | F19: 九集镇 | G19: 方家集 | H19: 熊成军 | I19: 13545337450 | J19: 2 | K19: 5 | L19: 6 | M19: 2 | N19: 2 | O19: 4 | P19: 6 | Q19: 6 | R19: 1 | S19: 10000 | T19: 1 | U19: 1 | V19: 1 | W19: 63 | X19: 3 | Y19: 0 | Z19: 2 | AA19: 0 | AD19: 2 | AE19: 2 | AF19: 2 | AG19: 62 | AH19: 2 | AI19: 0 | AJ19: 2 | AK19: 0 | AN19: 3 | AO19: 4 | AP19: 1 | AQ19: 41 | AR19: 4 | AS19: 9 | AT19: 2 | AU19: 1 | AV19: 2.5 | AW19: 12 | AX19: 4 | AY19: 4 | AZ19: 2 | BA19: 40 | BB19: 4 | BC19: 9 | BD19: 2 | BE19: 1 | BF19: 2.5 | BG19: 12 | BR19: 1 | BS19: 14 | BT19: 667 | BU19: 13 | BV19: 10 | BW19: 9 | BX19: 3 | BY19: 2 | BZ19: 3 | CA19: 800 | CB19: 2 | CC19: 2 | CD19: 10 | CE19: 1000 | CF19: 1.14 | CG19: 180 | CH19: 40 | CI19: 50 | CJ19: 200 | CK19: 220 | CL19: 12 | DG19: 1 | DH19: 2 | DI19: 1 | DJ19: 1 | DK19: 5 | DL19: 1 | DM19: 5 | DN19: 3 | DO19: 2200 | DP19: 2 | DQ19: 2 | DR19: 2 | EF19: 2,3 | EG19: 1 | EH19: 1 | EI19: 1 | EJ19: 2 | EK19: 45 | EM19: 35 | EN19: 100 | ER19: 1 | ES19: 1 | ET19: 1 | EU19: 10 | EV19: 45 | EX19: 170 | EY19: 100 | FC19: 2 | FD19: 2 | FE19: 1 | FF19: 1 | FG19: 10 | FI19: 100 | FJ19: 90 | GJ19: 3 | GK19: 1 | GL19: 2 | GQ19: 4 | GR19: 4 | GS19: 4 | GT19: 3 | GU19: 3 | GV19: 4 | GW19: 3 | GX19: 3 | GY19: 3 | GZ19: 4 | HA19: 4 | HB19: 5 | HC19: 2 | HD19: 2 | HE19: 1 | HF19: 1 | HG19: 1 | HK19: 1 | HL19: 1 | HM19: 1 | HN19: 1 | HO19: 3 | HP19: 1 | HR19: 2 | HS19: 2 | HU19: 1 | HV19: 3 | HW19: 3 | HX19: 2 | HY19: 4 | HZ19: 1 | IA19: 2 | IB19: 3 | IC19: 2 | ID19: 2 | IE19: 1 | IF19: 4 | IG19: 2 | IH19: 1 | II19: 2 | IJ19: 4 | IK19: 4 | IL19: 2 | IM19: 2 | JQ19: 2 | JR19: 2 | JS19: 4 | JT19: 1 | JU19: 2 | JV19: 2 | JW19: 1 | JZ19: 2 | KA19: 2 | KB19: 2 | KK19: 550 | KL19: 4 | KM19: 4 | KN19: 4 | KO19: 3 | KP19: 3 | KQ19: 4 | KR19: 4 | KS19: 3 | KT19: 3 | KU19: 3 | KV19: 3 | KW19: 5 | KX19: 2 | KY19: 4 | KZ19: 4 | LA19: 4 | LB19: 3 | LC19: 4 | LD19: 3 | LE19: 2 | LF19: 3 | LG19: 3 | LH19: 4 | LI19: 3 | LJ19: 1 | LK19: 1 | LL19: 1 | LM19: 2 | LN19: 2 | LO19: 2 | LP19: 2 | LQ19: 2 | LR19: 2 | LS19: 3 | LT19: 3 | LU19: 3 | LV19: 1 | LW19: 1 | LX19: 1 | LY19: 2 | LZ19: 2 | MA19: 1 | MB19: 1 | MC19: 1 | MD19: 1 | ME19: 1 | MF19: 1 | MG19: 1 | MH19: 1 | MI19: 2 | MJ19: 1 | MK19: 3 | MM19: 1 | MN19: 2 | MO19: 2 | MP19: 2 | MQ19: 2 | MR19: 2 | MT19: 1 | MU19: 1 | MV19: 15 | MY19: 1 | MZ19: 10 | NA19: 3 | NB19: 1 | NC19: 10 | ND19: 2 | NE19: 1 | NF19: 15 | NG19: 1 | NH19: 2 | NK19: 2 | NN19: 2 | NQ19: 2 | NT19: 2 | NW19: 2 | NX19: 4 | NY19: 4 | NZ19: 4 | OA19: 2 | OC19: 1 | OE19: 1 | OG19: 1 | OI19: 3 | OJ19: 3 | OK19: 1 | OL19: 4 | OM19: 2 | ON19: 2 | OP19: 2 | OQ19: 2 | OS19: 2 | OT19: 1 | OU19: 5 | OV19: 2 | OW19: 2 | OY19: 2 | OZ19: 2 | PB19: 2 | PC19: 2 | PE19: 2 | PF19: 2 | PH19: 1 | PI19: 2 | PK19: 2 | PL19: 2 | PN19: 2 | PO19: 2 | PQ19: 2 | PR19: 2 | PT19: 2 | PU19: 2 | PV19: 2 | PW19: 1 | PX19: 1 | PZ19: 3 | QA19: 2 | QB19: 3 | QC19: 2 | QD19: 4 | QE19: 2 | QF19: 2 | QG19: 2 | QH19: 2 | QI19: 2 | QJ19: 1 | QK19: 2 | QL19: 5 | QM19: 4 | QN19: 5 | QO19: 4 | QP19: 5 | QQ19: 4 | QR19: 4 | QS19: 1 | QT19: 4 | QU19: 5 | QV19: 4 | QW19: 3 | QX19: 3 | QY19: 3 | QZ19: 3 | RA19: 1 | RB19: 1 | RC19: 1
A20: 15 | B20: 李明月 | C20: 孙彬涵 | D20: 湖北省 | E20: 襄阳市南漳县 | F20: 九集镇 | G20: 方家集 | H20: 夏家梅 | I20: 357611 | J20: 2 | K20: 3 | L20: 2 | M20: 0 | N20: 1 | O20: 1 | P20: 2 | Q20: 3.5 | R20: 0.5 | S20: 2500 | T20: 1 | U20: 1 | V20: 2 | W20: 60 | X20: 3 | Y20: 0 | Z20: 2 | AA20: 0 | AD20: 2 | AE20: 4 | AF20: 1 | AG20: 39 | AH20: 4 | AI20: 6 | AJ20: 2 | AK20: 5 | AL20: 3 | AM20: 12 | BR20: 1 | BS20: 7 | BT20: 667 | BU20: 6 | BV20: 7 | BW20: 6 | BX20: 2 | BY20: 2 | BZ20: 3 | CA20: 650 | CB20: 2 | CC20: 2 | CD20: 7 | CE20: 900 | CF20: 1.12 | CG20: 140 | CH20: 40 | CI20: 0 | CJ20: 200 | CK20: 0 | CL20: 10 | DG20: 1 | DH20: 2 | DI20: 3 | DJ20: 1 | DK20: 5 | DL20: 1 | DM20: 5 | DN20: 3 | DO20: 2000 | DP20: 2 | DQ20: 2 | DR20: 2 | EF20: 1,5 | EG20: 1 | EH20: 1 | EI20: 1 | EJ20: 2 | EK20: 200 | EM20: 35 | EN20: 100 | ER20: 1 | ES20: 1 | ET20: 1 | EU20: 10 | EV20: 35 | EX20: 160 | EY20: 100 | FC20: 1 | FD20: 1 | FE20: 1 | FF20: 5 | FG20: 150 | FI20: 45 | FJ20: 100 | FN20: 2 | FO20: 2 | FP20: 1 | FQ20: 1 | FR20: 25 | FT20: 110 | FU20: 100 | GJ20: 2,5 | GK20: 1 | GL20: 2 | GQ20: 3 | GR20: 3 | GS20: 3 | GT20: 3 | GU20: 3 | GV20: 4 | GW20: 3 | GX20: 3 | GY20: 3 | GZ20: 4 | HA20: 4 | HB20: 4 | HC20: 4 | HD20: 3 | HE20: 1 | HF20: 1 | HG20: 1 | HK20: 2 | HL20: 1 | HM20: 1 | HN20: 2 | HO20: 3 | HP20: 1 | HR20: 2 | HS20: 2 | HU20: 1 | HV20: 3 | HW20: 3 | HX20: 2 | HY20: 3 | HZ20: 1 | IA20: 2 | IB20: 3 | IC20: 2 | ID20: 2 | IE20: 1 | IF20: 3 | IG20: 2 | IH20: 3 | II20: 2 | IJ20: 2 | IK20: 4 | IL20: 2 | IM20: 2 | JQ20: 5 | JR20: 3 | JS20: 4 | JT20: 1 | JU20: 1 | JZ20: 2 | KA20: 2 | KB20: 2 | KK20: 700 | KL20: 4 | KM20: 3 | KN20: 3 | KO20: 3 | KP20: 4 | KQ20: 4 | KR20: 4 | KS20: 2 | KT20: 3 | KU20: 4 | KV20: 3 | KW20: 4 | KX20: 3 | KY20: 3 | KZ20: 4 | LA20: 4 | LB20: 4 | LC20: 3 | LD20: 4 | LE20: 2 | LF20: 3 | LG20: 1 | LH20: 2 | LI20: 4 | LJ20: 1 | LK20: 1 | LL20: 1 | LM20: 3 | LN20: 2 | LO20: 1 | LP20: 1 | LQ20: 3 | LR20: 2 | LS20: 3 | LT20: 3 | LU20: 1 | LV20: 1 | LW20: 1 | LX20: 1 | LY20: 1 | LZ20: 1 | MA20: 1 | MB20: 1 | MC20: 1 | MD20: 1 | ME20: 1 | MF20: 1 | MG20: 1 | MH20: 1 | MI20: 1 | MJ20: 1 | MK20: 3 | MM20: 1 | MN20: 2 | MO20: 1 | MP20: 1 | MQ20: 2 | MR20: 2 | MT20: 1 | MU20: 2 | MV20: 15 | MW20: 1 | MX20: 4 | MY20: 2 | NB20: 2 | NE20: 1 | NF20: 15 | NG20: 1 | NH20: 2 | NK20: 2 | NN20: 2 | NQ20: 1 | NR20: 10 | NS20: 2 | NT20: 2 | NW20: 2 | NX20: 4 | NY20: 4 | NZ20: 3 | OA20: 2 | OC20: 1 | OE20: 1 | OG20: 1 | OI20: 2 | OJ20: 4 | OK20: 1 | OL20: 2 | OM20: 2 | ON20: 2 | OP20: 2 | OQ20: 2 | OS20: 2 | OT20: 2 | OV20: 2 | OW20: 2 | OY20: 2 | OZ20: 2 | PB20: 2 | PC20: 2 | PE20: 2 | PF20: 2 | PH20: 2 | PI20: 2 | PK20: 2 | PL20: 2 | PN20: 2 | PO20: 2 | PQ20: 2 | PR20: 2 | PT20: 2 | PU20: 2 | PV20: 2 | PW20: 1 | PX20: 1 | PZ20: 1 | QA20: 2 | QB20: 1 | QC20: 2 | QD20: 4 | QE20: 2 | QF20: 1 | QG20: 2 | QH20: 2 | QI20: 2 | QJ20: 2 | QK20: 2 | QL20: 5 | QM20: 4 | QN20: 4 | QO20: 4 | QP20: 5 | QQ20: 4 | QR20: 3 | QS20: 1 | QT20: 3 | QU20: 5 | QV20: 4 | QW20: 3 | QX20: 4 | QY20: 2 | QZ20: 2 | RA20: 1 | RB20: 1 | RC20: 1
A21: 16 | B21: 李明月 | C21: 孙彬涵 | D21: 湖北省 | E21: 襄阳市南漳县 | F21: 九集镇 | G21: 方家集 | H21: 张家国 | I21: 13329862579 | J21: 2 | K21: 3 | L21: 6 | M21: 0 | N21: 2 | O21: 2 | P21: 4 | Q21: 15 | R21: 0.6 | S21: 20000 | T21: 1 | U21: 1 | V21: 1 | W21: 50 | X21: 5 | Y21: 6 | Z21: 2 | AA21: 1 | AB21: 1.5 | AC21: 3 | AD21: 2 | AE21: 2 | AF21: 2 | AG21: 48 | AH21: 2 | AI21: 6 | AJ21: 2 | AK21: 0 | AN21: 3 | AO21: 4 | AP21: 1 | AQ21: 30 | AR21: 5 | AS21: 15 | AT21: 2 | AU21: 5 | AV21: 3 | AW21: 12 | AX21: 4 | AY21: 4 | AZ21: 2 | BA21: 25 | BB21: 5 | BC21: 16 | BD21: 2 | BE21: 5 | BF21: 10 | BG21: 12 | BR21: 1 | BS21: 8 | BT21: 667 | BU21: 8 | BV21: 8 | BW21: 8 | BX21: 3 | BY21: 2 | BZ21: 3 | CA21: 500 | CB21: 1 | CC21: 2 | CD21: 8 | CE21: 1000 | CF21: 1.1 | CG21: 100 | CH21: 120 | CI21: 70 | CJ21: 200 | CK21: 0 | CL21: 12 | DG21: 1 | DH21: 2 | DI21: 2 | DJ21: 1 | DK21: 5 | DL21: 1 | DM21: 5 | DN21: 3 | DO21: 1000 | DP21: 1 | DQ21: 1 | DR21: 2 | EF21: 5 | EG21: 1 | EH21: 1 | EI21: 5 | EJ21: 10 | EK21: 50 | EM21: 160 | EN21: 100 | ER21: 1 | ES21: 1 | ET21: 5 | EU21: 9 | EV21: 15 | EX21: 10 | EY21: 2 | FC21: 2 | FD21: 2 | FE21: 5 | FF21: 10 | FG21: 20 | FI21: 160 | FJ21: 100 | GJ21: 5 | GK21: 1 | GL21: 1 | GM21: 1 | GN21: 2014 | GO21: 2 | GP21: 3 | GQ21: 5 | GR21: 4 | GS21: 4 | GT21: 4 | GU21: 2 | GV21: 5 | GW21: 4 | GX21: 3 | GY21: 3 | GZ21: 4 | HA21: 4 | HB21: 5 | HC21: 4 | HD21: 4 | HE21: 5 | HF21: 4 | HG21: 4 | HH21: 8 | HI21: 5 | HJ21: 1 | HK21: 2 | HL21: 1 | HM21: 1 | HN21: 1 | HO21: 2 | HP21: 4 | HQ21: 1,2,3,4,5 | HR21: 1 | HS21: 2 | HU21: 4 | HV21: 4 | HW21: 4 | HX21: 1 | HY21: 4 | HZ21: 1 | IA21: 2 | IB21: 2 | IC21: 1 | ID21: 2 | IE21: 1 | IF21: 4 | IG21: 1 | IH21: 1 | II21: 1 | IJ21: 4 | IK21: 3 | IL21: 2 | IM21: 2 | IO21: 4 | IP21: 4 | IQ21: 3 | IR21: 2 | IS21: 1 | IT21: 3 | IU21: 4 | IV21: 3 | IW21: 3 | IX21: 3 | IY21: 3 | IZ21: 3 | JA21: 3 | JB21: 4 | JC21: 4 | JD21: 4 | JE21: 5 | JF21: 5 | JG21: 5 | JH21: 4 | JI21: 5 | JJ21: 4 | JK21: 4 | JL21: 5 | JM21: 5 | JN21: 5 | JO21: 5 | JP21: 5 | JQ21: 4 | JR21: 5 | JS21: 5 | JT21: 4 | JU21: 2 | JV21: 2 | JW21: 2 | JX21: 2 | JY21: 1 | JZ21: 3 | KA21: 1 | KB21: 1 | KC21: 1 | KD21: 1 | KF21: 3 | KG21: 15 | KH21: 2 | KI21: 100 | KJ21: 4 | KK21: 750 | KL21: 5 | KM21: 5 | KN21: 5 | KO21: 5 | KP21: 4 | KQ21: 5 | KR21: 4 | KS21: 4 | KT21: 3 | KU21: 4 | KV21: 4 | KW21: 5 | KX21: 5 | KY21: 4 | KZ21: 4 | LA21: 3 | LB21: 4 | LC21: 3 | LD21: 4 | LE21: 4 | LF21: 4 | LG21: 2 | LH21: 3 | LI21: 4 | LJ21: 1 | LK21: 1 | LL21: 1 | LM21: 2 | LN21: 2 | LO21: 3 | LP21: 3 | LQ21: 4 | LR21: 2 | LS21: 2 | LT21: 4 | LU21: 4 | LV21: 4 | LW21: 4 | LX21: 4 | LY21: 4 | LZ21: 2 | MA21: 1 | MB21: 1 | MC21: 1 | MD21: 1 | ME21: 1 | MF21: 1 | MG21: 1 | MH21: 1 | MI21: 1 | MJ21: 5 | MK21: 3 | MM21: 1 | MN21: 2 | MO21: 1 | MP21: 1 | MQ21: 1 | MR21: 2 | MT21: 1 | MU21: 1 | MV21: 0 | MY21: 1 | MZ21: 10 | NA21: 1 | NB21: 1 | NC21: 10 | ND21: 3 | NE21: 1 | NF21: 10 | NH21: 2 | NK21: 2 | NN21: 2 | NQ21: 1 | NR21: 10 | NS21: 2 | NT21: 1 | NU21: 15 | NW21: 2 | NX21: 3 | NY21: 4 | NZ21: 1 | OA21: 1 | OC21: 3 | OD21: 2 | OE21: 1 | OG21: 1 | OI21: 3 | OJ21: 4 | OK21: 1 | OL21: 4 | OM21: 1 | ON21: 2 | OP21: 2 | OQ21: 2 | OS21: 2 | OT21: 1 | OU21: 4 | OV21: 1 | OW21: 1 | OX21: 5 | OY21: 1 | OZ21: 2 | PB21: 2 | PC21: 2 | PE21: 2 | PF21: 1 | PG21: 4 | PH21: 1 | PI21: 2 | PK21: 2 | PL21: 2 | PN21: 2 | PO21: 2 | PQ21: 2 | PR21: 2 | PT21: 2 | PU21: 2 | PV21: 2 | PW21: 1 | PX21: 1 | PZ21: 4 | QA21: 2 | QB21: 3 | QC21: 2 | QD21: 4 | QE21: 2 | QF21: 3 | QG21: 2 | QH21: 3 | QI21: 2 | QJ21: 3 | QK21: 2 | QL21: 4 | QM21: 5 | QN21: 5 | QO21: 4 | QP21: 5 | QQ21: 4 | QR21: 4 | QS21: 3 | QT21: 4 | QU21: 5 | QV21: 4 | QW21: 4 | QX21: 4 | QY21: 3 | QZ21: 3 | RA21: 1 | RB21: 5 | RC21: 5
A22: 17 | B22: 李明月 | C22: 孙彬涵 | D22: 湖北省 | E22: 襄阳市南漳县 | F22: 九集镇 | G22: 方家集 | H22: 常昌元 | I22: 15872226721 | J22: 2 | K22: 3 | L22: 6 | M22: 1 | N22: 2 | O22: 4 | P22: 6 | Q22: 18 | R22: 14 | S22: 15000 | T22: 1 | U22: 1 | V22: 1 | W22: 34 | X22: 4 | Y22: 6 | Z22: 2 | AA22: 2 | AB22: 2 | AC22: 4 | AD22: 2 | AE22: 2 | AF22: 2 | AG22: 36 | AH22: 4 | AI22: 6 | AJ22: 2 | AK22: 0 | AN22: 3 | AO22: 3 | AP22: 1 | AQ22: 60 | AR22: 4 | AS22: 0 | AT22: 2 | AU22: 2 | AV22: 2 | AW22: 4 | AX22: 4 | AY22: 3 | AZ22: 2 | BA22: 60 | BB22: 3 | BC22: 0 | BD22: 2 | BE22: 0 | BR22: 4 | BS22: 65 | BT22: 667 | BU22: 45 | BV22: 65 | BW22: 45 | BX22: 4 | BY22: 2 | BZ22: 3 | CA22: 250 | CB22: 1 | CC22: 2 | CD22: 65 | CE22: 1800 | CF22: 1.25 | CG22: 100 | CH22: 0 | CI22: 0 | CJ22: 0 | CK22: 220 | CL22: 5 | DG22: 1 | DH22: 2 | DI22: 2 | DJ22: 3 | DK22: 5 | DL22: 3 | DM22: 5 | DN22: 3 | DO22: 2200 | DP22: 1 | DQ22: 2 | DR22: 2 | EF22: 5 | EG22: 1 | EH22: 1 | EI22: 1 | EJ22: 2 | EK22: 60 | EM22: 38 | EN22: 100 | ER22: 1 | ES22: 1 | ET22: 1 | EU22: 10 | EV22: 40 | EX22: 140 | EY22: 100 | EZ22: 15 | FA22: 15 | FB22: 15 | GK22: 1 | GL22: 2 | GQ22: 5 | GR22: 4 | GS22: 4 | GT22: 4 | GU22: 3 | GV22: 3 | GW22: 5 | GX22: 3 | GY22: 3 | GZ22: 4 | HA22: 4 | HB22: 4 | HC22: 4 | HD22: 3 | HE22: 1 | HF22: 1 | HG22: 1 | HK22: 1 | HL22: 4 | HM22: 1 | HN22: 1 | HO22: 2 | HP22: 1 | HR22: 2 | HS22: 2 | HU22: 1 | HV22: 3 | HW22: 3 | HX22: 2 | HY22: 4 | HZ22: 1 | IA22: 2 | IB22: 3 | IC22: 2 | ID22: 2 | IE22: 1 | IF22: 4 | IG22: 2 | IH22: 3 | II22: 2 | IJ22: 4 | IK22: 4 | IL22: 2 | IM22: 2 | JQ22: 4 | JR22: 4 | JS22: 4 | JT22: 1 | JU22: 1 | JZ22: 3 | KA22: 1 | KB22: 1 | KC22: 1 | KD22: 1 | KF22: 5 | KG22: 不清楚 | KH22: 1 | KI22: 25 | KJ22: 3 | KK22: 400 | KL22: 4 | KM22: 4 | KN22: 3 | KO22: 3 | KP22: 3 | KQ22: 3 | KR22: 4 | KS22: 2 | KT22: 3 | KU22: 4 | KV22: 4 | KW22: 4 | KX22: 3 | KY22: 3 | KZ22: 3 | LA22: 3 | LB22: 4 | LC22: 4 | LD22: 4 | LE22: 4 | LF22: 2 | LG22: 3 | LH22: 4 | LI22: 4 | LJ22: 2 | LK22: 1 | LL22: 3 | LM22: 2 | LN22: 2 | LO22: 2 | LP22: 2 | LQ22: 4 | LR22: 2 | LS22: 2 | LT22: 4 | LU22: 4 | LV22: 4 | LW22: 3 | LX22: 4 | LY22: 4 | LZ22: 2 | MA22: 2 | MB22: 1 | MC22: 1 | MD22: 1 | ME22: 1 | MF22: 1 | MG22: 2 | MH22: 1 | MI22: 2 | MJ22: 4 | MK22: 3 | MM22: 2 | MN22: 2 | MO22: 2 | MP22: 2 | MQ22: 1 | MR22: 2 | MT22: 1 | MU22: 2 | MV22: 9 | MW22: 2 | MY22: 1 | MZ22: 30 | NA22: 1 | NB22: 2 | NE22: 2 | NH22: 2 | NK22: 2 | NN22: 2 | NQ22: 2 | NT22: 2 | NW22: 2 | NX22: 4 | NY22: 3 | NZ22: 3 | OA22: 3 | OB22: 2 | OC22: 1 | OE22: 1 | OG22: 1 | OI22: 2 | OJ22: 4 | OK22: 1 | OL22: 3 | OM22: 2 | ON22: 2 | OP22: 2 | OQ22: 2 | OS22: 2 | OT22: 2 | OV22: 2 | OW22: 1 | OX22: 4 | OY22: 2 | OZ22: 2 | PB22: 2 | PC22: 2 | PE22: 2 | PF22: 1 | PG22: 3 | PH22: 2 | PI22: 2 | PK22: 2 | PL22: 2 | PN22: 2 | PO22: 2 | PQ22: 2 | PR22: 2 | PT22: 2 | PU22: 2 | PV22: 2 | PW22: 1 | PX22: 1 | PZ22: 2 | QA22: 2 | QB22: 2 | QC22: 2 | QD22: 5 | QE22: 2 | QF22: 2 | QG22: 2 | QH22: 2 | QI22: 2 | QJ22: 1 | QK22: 2 | QL22: 5 | QM22: 4 | QN22: 4 | QO22: 4 | QP22: 4 | QQ22: 5 | QR22: 5 | QS22: 1 | QT22: 3 | QU22: 5 | QV22: 5 | QW22: 4 | QX22: 4 | QY22: 4 | QZ22: 4 | RA22: 1 | RB22: 2 | RC22: 2
A23: 18 | B23: 杜三峡 | C23: 杜三峡 | D23: 湖北省 | E23: 荆门市钟祥县 | F23: 冷水镇 | G23: 白佛村 | H23: 苏祖祥 | I23: 13197137800 | J23: 2 | K23: 7 | L23: 8 | M23: 1 | N23: 2 | O23: 2 | P23: 2 | Q23: 8 | R23: 1 | S23: 5000 | T23: 1 | U23: 1 | V23: 1 | W23: 66 | X23: 3 | Y23: 4 | Z23: 2 | AA23: 0 | AB23: 0 | AC23: 0 | AD23: 2 | AE23: 2 | AF23: 2 | AG23: 63 | AH23: 3 | AI23: 0 | AJ23: 2 | AK23: 0 | AL23: 0 | AM23: 0 | AN23: 3 | AO23: 4 | AP23: 2 | AQ23: 40 | AR23: 5 | AS23: 9 | AT23: 2 | AU23: 5 | AV23: 0.2 | AW23: 1 | BR23: 1 | BS23: 10 | BT23: 667 | BU23: 8 | BV23: 10 | BW23: 8 | BX23: 4 | BY23: 2 | BZ23: 3 | CA23: 500 | CB23: 1 | CC23: 2 | CD23: 10 | CE23: 1200 | CF23: 1.05 | CG23: 50 | CH23: 0 | CI23: 0 | CJ23: 80 | CK23: 0 | CL23: 5 | DG23: 1 | DH23: 2 | DI23: 5 | DJ23: 3 | DK23: 5 | DL23: 1 | DM23: 5 | DN23: 2 | DO23: 3000 | DP23: 2 | DQ23: 2 | DR23: 2 | EF23: 4 | EG23: 1 | EH23: 1 | EI23: 1 | EJ23: 10 | EK23: 80 | EM23: 120 | EN23: 80 | ER23: 2 | ES23: 2 | ET23: 1 | EU23: 1 | EV23: 8 | EX23: 90 | EY23: 80 | GJ23: 2 | GK23: 2 | GL23: 2 | GQ23: 2 | GR23: 4 | GS23: 5 | GT23: 2 | GU23: 3 | GV23: 3 | GW23: 4 | GX23: 3 | GY23: 3 | GZ23: 5 | HA23: 5 | HB23: 5 | HC23: 1 | HD23: 5 | HE23: 1 | HF23: 1 | HG23: 1 | HK23: 1、6只有一种肥料 | HL23: 5 | HM23: 5 | HN23: 1 | HO23: 3 | HP23: 2 | HQ23: 1 | HR23: 1 | HS23: 2 | HU23: 3 | HV23: 3 | HW23: 4 | HX23: 2 | HY23: 5 | HZ23: 1 | IA23: 2 | IB23: 3 | IC23: 2 | ID23: 2 | IE23: 1 | IF23: 5 | IG23: 2 | IH23: 3 | II23: 2 | IJ23: 1 | IK23: 3 | IL23: 2 | IM23: 2 | JQ23: 5 | JR23: 5 | JS23: 5 | JT23: 1 | JU23: 1 | JZ23: 4 | KA23: 2 | KB23: 2 | KJ23: 2 | KK23: 100 | KL23: 1 | KM23: 2 | KN23: 1 | KO23: 1 | KP23: 1 | KQ23: 1 | KR23: 1 | KS23: 5 | KT23: 3 | KU23: 5 | KV23: 5 | KW23: 5 | KX23: 5 | KY23: 1 | KZ23: 1 | LA23: 1 | LB23: 5 | LC23: 5 | LD23: 5 | LE23: 5 | LF23: 5 | LG23: 4 | LH23: 5 | LI23: 5 | LJ23: 4 | LK23: 1 | LL23: 1 | LM23: 3 | LN23: 2 | LO23: 3 | LP23: 3 | LU23: 2 | LV23: 4 | LW23: 4 | LX23: 1 | LY23: 1 | MA23: 1 | MB23: 1 | MC23: 1 | MD23: 1 | ME23: 1 | MG23: 1 | MH23: 1 | MJ23: 1 | MK23: 4 | MT23: 2 | MU23: 2 | MW23: 2 | MY23: 1 | MZ23: 10 | NA23: 1 | NB23: 2 | ND23: 2 | NE23: 2 | NG23: 3 | NH23: 2 | NK23: 2 | NN23: 2 | NQ23: 2 | NT23: 2 | NW23: 2 | NX23: 3 | NY23: 5 | NZ23: 3 | OA23: 1 | OC23: 1 | OE23: 1 | OG23: 1 | OI23: 4 | OJ23: 5 | OK23: 1 | OL23: 5 | OM23: 1 | ON23: 2 | OP23: 2 | OQ23: 2 | OS23: 2 | OT23: 2 | OV23: 1 | OW23: 1 | OX23: 5 | OY23: 2 | OZ23: 2 | PB23: 2 | PC23: 2 | PE23: 2 | PF23: 1 | PG23: 5 | PH23: 1 | PI23: 2 | PK23: 2 | PL23: 2 | PN23: 2 | PO23: 1 | PP23: 2 | PQ23: 2 | PR23: 1 | PS23: 5 | PT23: 1 | PU23: 2 | PV23: 2 | PW23: 1 | PX23: 2 | PY23: 1 | PZ23: 4 | QA23: 2 | QB23: 3 | QC23: 2 | QD23: 5 | QE23: 2 | QF23: 4 | QG23: 2 | QH23: 4 | QI23: 2 | QJ23: 5 | QK23: 2 | QL23: 5 | QM23: 4 | QN23: 5 | QO23: 5 | QP23: 4 | QQ23: 5 | QR23: 5 | QS23: 1 | QT23: 3 | QU23: 4 | QV23: 4 | QW23: 5 | QX23: 5 | QY23: 5 | QZ23: 5 | RA23: 1 | RB23: 4 | RC23: 4
A24: 19 | B24: 杜三峡 | C24: 杜三峡 | D24: 湖北省 | E24: 荆门市钟祥县 | F24: 冷水镇 | G24: 白佛村 | H24: 周发菊 | I24: 15572695537 | J24: 2 | K24: 8.5 | L24: 6 | M24: 1 | N24: 1 | O24: 1 | P24: 1 | Q24: 10 | R24: 0.3 | S24: 20000 | T24: 1 | U24: 2 | V24: 2 | W24: 52 | X24: 4 | Y24: 9 | Z24: 2 | AA24: 0 | AB24: 0 | AC24: 0 | AD24: 2 | AE24: 1 | AF24: 1 | AG24: 49 | AH24: 5 | AI24: 6 | AJ24: 2 | AK24: 5 | AL24: 4 | AM24: 10 | BR24: 1 | BS24: 2 | BT24: 667 | BU24: 2 | BV24: 2 | BW24: 2 | BX24: 3 | BY24: 2 | BZ24: 2 | CA24: 1000 | CB24: 2 | CC24: 2 | CD24: 2 | CE24: 1100 | CF24: 1.1 | CG24: 60 | CH24: 30 | CI24: 0 | CJ24: 0 | CK24: 0 | CL24: 6 | DG24: 1 | DH24: 2 | DI24: 4 | DJ24: 1 | DK24: 4 | DL24: 1 | DM24: 5 | DN24: 3 | DO24: 1000 | DP24: 1 | DQ24: 2 | DR24: 2 | EF24: 2 | EG24: 1 | EH24: 1 | EI24: 1 | EJ24: 10 | EK24: 100 | EM24: 128 | EN24: 80 | ER24: 2 | ES24: 2 | ET24: 1 | EU24: 1 | EV24: 9 | EX24: 90 | EY24: 80 | GJ24: 2、4、5 | GK24: 2 | GL24: 2 | GQ24: 4 | GR24: 5 | GS24: 5 | GT24: 3 | GU24: 3 | GV24: 4 | GW24: 3 | GX24: 3 | GY24: 2 | GZ24: 4 | HA24: 5 | HB24: 5 | HC24: 4 | HD24: 5 | HE24: 1 | HF24: 1 | HG24: 1 | HK24: 2、5 | HL24: 1 | HM24: 3 | HN24: 6 | HO24: 2 | HP24: 1 | HR24: 2 | HS24: 2 | HU24: 1 | HV24: 4 | HW24: 1 | HX24: 2 | HY24: 1 | HZ24: 1 | IA24: 2 | IB24: 3 | IC24: 2 | ID24: 2 | IE24: 1 | IF24: 5 | IG24: 2 | IH24: 3 | II24: 2 | IJ24: 4 | IK24: 4 | IL24: 2 | IM24: 2 | JQ24: 5 | JR24: 4 | JS24: 5 | JT24: 3 | JU24: 1 | JZ24: 1 | KA24: 2 | KB24: 2 | KJ24: 2 | KK24: 500 | KL24: 2 | KM24: 2 | KN24: 1 | KO24: 1 | KP24: 5 | KQ24: 5 | KR24: 5 | KS24: 4 | KT24: 5 | KU24: 5 | KV24: 5 | KW24: 4 | KX24: 4 | KY24: 1 | KZ24: 1 | LA24: 1 | LB24: 3 | LC24: 3 | LD24: 3 | LE24: 2 | LF24: 3 | LG24: 4 | LH24: 5 | LI24: 2 | LJ24: 1 | LK24: 1 | LL24: 1 | LM24: 4 | LN24: 1 | LO24: 2 | LP24: 3 | LQ24: 4 | LR24: 2 | LS24: 3 | LT24: 4 | LU24: 2 | LV24: 1 | LW24: 1 | LX24: 1 | LY24: 1 | LZ24: 1 | MA24: 2 | MB24: 2 | MC24: 1 | MD24: 2 | ME24: 1 | MF24: 2 | MG24: 2 | MH24: 1 | MI24: 2 | MJ24: 4 | MK24: 3 | MM24: 2 | MN24: 2 | MO24: 1 | MP24: 2 | MQ24: 2 | MR24: 2 | MT24: 2 | MU24: 2 | MW24: 2 | NA24: 2 | NB24: 1 | NC24: 10 | ND24: 1 | NE24: 2 | NG24: 3 | NH24: 2 | NK24: 2 | NN24: 2 | NQ24: 2 | NT24: 2 | NW24: 2 | NX24: 3 | NY24: 5 | NZ24: 3 | OA24: 1 | OC24: 3 | OD24: 2 | OE24: 1 | OG24: 1 | OI24: 4 | OJ24: 4 | OK24: 1 | OL24: 3 | OM24: 2 | ON24: 2 | OP24: 2 | OQ24: 2 | OS24: 2 | OT24: 2 | OV24: 1 | OW24: 1 | OX24: 4 | OY24: 1 | OZ24: 2 | PB24: 1 | PC24: 2 | PE24: 2 | PF24: 2 | PH24: 1 | PI24: 2 | PK24: 2 | PL24: 2 | PN24: 2 | PO24: 2 | PQ24: 2 | PR24: 1 | PS24: 5 | PT24: 2 | PU24: 2 | PV24: 2 | PW24: 1 | PX24: 3 | PY24: 1 | PZ24: 2 | QA24: 2 | QB24: 3 | QC24: 2 | QD24: 4 | QE24: 2 | QF24: 3 | QG24: 2 | QH24: 2 | QI24: 2 | QJ24: 3 | QK24: 2 | QL24: 3 | QM24: 3 | QN24: 2 | QO24: 3 | QP24: 5 | QQ24: 5 | QR24: 4 | QS24: 2 | QT24: 5 | QU24: 5 | QV24: 5 | QW24: 5 | QX24: 5 | QY24: 5 | QZ24: 5 | RA24: 3 | RB24: 4 | RC24: 4
A25: 20 | B25: 杜三峡 | C25: 杜三峡 | D25: 湖北省 | E25: 荆门市钟祥县 | F25: 冷水镇 | G25: 白佛村 | H25: 刘中山 | I25: 15972632738 | J25: 2 | K25: 8 | L25: 7 | M25: 1 | N25: 2 | O25: 2 | P25: 2 | Q25: 15 | R25: 2 | S25: 15000 | T25: 1 | U25: 1 | V25: 1 | W25: 73 | X25: 4 | Y25: 6 | Z25: 2 | AA25: 0 | AB25: 0 | AC25: 0 | AD25: 2 | AE25: 2 | AF25: 2 | AG25: 72 | AH25: 3 | AI25: 1 | AJ25: 2 | AK25: 0 | AL25: 0 | AM25: 0 | AN25: 3 | AO25: 4 | AP25: 1 | AQ25: 50 | AR25: 4 | AS25: 6 | AT25: 2 | AU25: 5 | AV25: 8 | AW25: 11 | AX25: 4 | AY25: 4 | AZ25: 2 | BA25: 48 | BB25: 3 | BC25: 6 | BD25: 2 | BE25: 5 | BF25: 5 | BG25: 11 | BR25: 1 | BS25: 13 | BT25: 667 | BU25: 15 | BV25: 13 | BW25: 15 | BX25: 3 | BY25: 1 | BZ25: 3 | CA25: 1000 | CB25: 1 | CC25: 2 | CD25: 13 | CE25: 1300 | CF25: 1 | CG25: 50 | CH25: 0 | CI25: 10 | CJ25: 300 | CK25: 0 | CL25: 10 | DG25: 1 | DH25: 1 | DI25: 5 | DJ25: 1 | DK25: 5 | DL25: 1 | DM25: 5 | DN25: 2 | DO25: 2000 | DP25: 1 | DQ25: 2 | DR25: 2 | EF25: 2 | EG25: 1 | EH25: 1 | EI25: 1 | EJ25: 10 | EK25: 100 | EM25: 120 | EN25: 80 | ER25: 2 | ES25: 2 | ET25: 1 | EU25: 1 | EV25: 10 | EX25: 90 | EY25: 80 | GJ25: 2 | GK25: 2 | GL25: 2 | GQ25: 1 | GR25: 2 | GS25: 2 | GT25: 3 | GU25: 3 | GV25: 3 | GW25: 3 | GX25: 2 | GY25: 2 | GZ25: 3 | HA25: 4 | HB25: 4 | HC25: 3 | HD25: 2 | HE25: 3 | HF25: 1 | HG25: 2 | HK25: 5 | HL25: 1 | HM25: 2 | HN25: 1 | HO25: 1 | HP25: 1 | HR25: 2 | HS25: 2 | HU25: 1 | HV25: 4 | HW25: 2 | HX25: 2 | HY25: 4 | HZ25: 1 | IA25: 2 | IB25: 3 | IC25: 2 | ID25: 2 | IE25: 1 | IF25: 5 | IG25: 2 | IH25: 1 | II25: 2 | IJ25: 5 | IK25: 4 | IL25: 2 | IM25: 2 | JQ25: 5 | JR25: 3 | JS25: 5 | JT25: 1 | JU25: 1 | JZ25: 4 | KA25: 2 | KB25: 2 | KJ25: 1 | KK25: 400 | KL25: 3 | KM25: 2 | KN25: 1 | KO25: 3 | KP25: 1 | KQ25: 1 | KR25: 1 | KS25: 3 | KT25: 2 | KU25: 4 | KV25: 5 | KW25: 4 | KX25: 5 | KY25: 1 | KZ25: 1 | LA25: 1 | LB25: 1 | LC25: 1 | LD25: 1 | LE25: 4 | LF25: 4 | LG25: 3 | LH25: 5 | LI25: 3 | LJ25: 2 | LK25: 1 | LL25: 1 | LM25: 5 | LN25: 1 | LO25: 2 | LP25: 2 | LQ25: 4 | LR25: 2 | LS25: 3 | LT25: 4 | LU25: 2 | LV25: 1 | LW25: 1 | LX25: 1 | LY25: 1 | LZ25: 1 | MA25: 1 | MB25: 2 | MC25: 1 | MD25: 1 | ME25: 1 | MF25: 2 | MG25: 1 | MH25: 1 | MI25: 1 | MJ25: 4 | MK25: 3 | MM25: 1 | MN25: 1 | MO25: 2 | MP25: 2 | MQ25: 2 | MR25: 2 | MT25: 2 | MU25: 2 | MW25: 2 | MY25: 1 | MZ25: 5 | NA25: 1 | NB25: 1 | NC25: 5 | ND25: 3 | NE25: 1 | NF25: 10 | NG25: 2 | NH25: 2 | NK25: 2 | NN25: 2 | NQ25: 2 | NT25: 2 | NW25: 2 | NX25: 4 | NY25: 5 | NZ25: 4 | OA25: 1 | OC25: 3 | OD25: 2 | OE25: 1 | OG25: 1 | OI25: 5 | OJ25: 5 | OK25: 1 | OL25: 5 | OM25: 1 | ON25: 2 | OP25: 2 | OQ25: 2 | OS25: 2 | OT25: 2 | OV25: 2 | OW25: 2 | OY25: 2 | OZ25: 2 | PB25: 2 | PC25: 2 | PE25: 2 | PF25: 2 | PH25: 2 | PI25: 2 | PK25: 2 | PL25: 2 | PN25: 2 | PO25: 2 | PQ25: 2 | PR25: 1 | PS25: 5 | PT25: 1 | PU25: 2 | PV25: 2 | PW25: 1 | PX25: 2 | PY25: 1 | PZ25: 3 | QA25: 2 | QB25: 3 | QC25: 2 | QD25: 5 | QE25: 1 | QF25: 5 | QG25: 2 | QH25: 3 | QI25: 2 | QJ25: 4 | QK25: 2 | QL25: 4 | QM25: 3 | QN25: 3 | QO25: 4 | QP25: 3 | QQ25: 5 | QR25: 4 | QS25: 2 | QT25: 4 | QU25: 4 | QV25: 5 | QW25: 5 | QX25: 5 | QY25: 5 | QZ25: 4 | RA25: 2 | RB25: 3 | RC25: 3
A26: 21 | B26: 杜三峡 | C26: 杜三峡 | D26: 湖北省 | E26: 荆门市钟祥县 | F26: 冷水镇 | G26: 白佛村 | H26: 刘红珍 | I26: 18727611339 | J26: 2 | K26: 7.5 | L26: 8 | M26: 1 | N26: 2 | O26: 4 | P26: 4 | Q26: 2 | R26: 1 | S26: 20000 | T26: 1 | U26: 2 | V26: 2 | W26: 46 | X26: 3 | Y26: 9 | Z26: 2 | AA26: 0 | AB26: 0 | AC26: 0 | AD26: 2 | AE26: 1 | AF26: 1 | AG26: 48 | AH26: 3 | AI26: 9 | AJ26: 2 | AK26: 0 | AL26: 0 | AM26: 0 | AN26: 3 | AO26: 4 | AP26: 2 | AQ26: 25 | AR26: 5 | AS26: 12 | AT26: 2 | AU26: 3 | AV26: 0.4 | AW26: 2 | AX26: 4 | AY26: 4 | AZ26: 1 | BA26: 29 | BB26: 5 | BC26: 9 | BD26: 2 | BE26: 0 | BF26: 0 | BG26: 0 | BR26: 1 | BS26: 6 | BT26: 667 | BU26: 10 | BV26: 6 | BW26: 10 | BX26: 1 | BY26: 2 | BZ26: 3 | CA26: 800 | CB26: 2 | CC26: 2 | CD26: 6 | CE26: 1200 | CF26: 1.1 | CG26: 200 | CH26: 0 | CI26: 30 | CJ26: 300 | CK26: 0 | CL26: 15 | DG26: 1 | DH26: 1 | DI26: 5 | DJ26: 3 | DK26: 5 | DL26: 1 | DM26: 5 | DN26: 3 | DO26: 2000 | DP26: 1 | DQ26: 2 | DR26: 2 | EF26: 3 | EG26: 1 | EH26: 1 | EI26: 1 | EJ26: 10 | EK26: 55 | EM26: 140 | EN26: 100 | ER26: 2 | ES26: 2 | ET26: 1 | EU26: 1 | EV26: 6 | EX26: 90 | EY26: 80 | GJ26: 2 | GK26: 2 | GL26: 1 | GM26: 2 | GN26: 2016 | GO26: 2 | GP26: 3 | GQ26: 3 | GR26: 4 | GS26: 5 | GT26: 4 | GU26: 4 | GV26: 4 | GW26: 4 | GX26: 3 | GY26: 4 | GZ26: 3 | HA26: 3 | HB26: 3 | HC26: 2 | HD26: 2 | HE26: 5 | HF26: 1 | HG26: 1 | HH26: 6 | HI26: 1 | HJ26: 2 | HK26: 1、5 | HL26: 5 | HM26: 2 | HN26: 1 | HO26: 4 | HP26: 3 | HQ26: 4 | HR26: 2 | HS26: 2 | HU26: 1 | HV26: 5 | HW26: 3 | HX26: 2 | HY26: 3 | HZ26: 1 | IA26: 2 | IB26: 2 | IC26: 2 | ID26: 2 | IE26: 1 | IF26: 3 | IG26: 1 | IH26: 1 | II26: 2 | IJ26: 5 | IK26: 3 | IL26: 2 | IM26: 2 | IO26: 5 | IP26: 2 | IQ26: 1 | IR26: 4 | IS26: 3 | IT26: 4 | IU26: 3 | IV26: 4 | IW26: 2 | IX26: 2 | IY26: 2 | IZ26: 2 | JA26: 2 | JB26: 4 | JC26: 4 | JD26: 3 | JE26: 4 | JF26: 4 | JG26: 4 | JH26: 1 | JI26: 3 | JJ26: 2 | JK26: 4 | JL26: 4 | JM26: 4 | JN26: 4 | JO26: 1 | JP26: 1 | JQ26: 3 | JR26: 4 | JS26: 5 | JT26: 1、3 | JU26: 2 | JV26: 2 | JW26: 1 | JZ26: 2 | KA26: 2 | KB26: 2 | KJ26: 3 | KK26: 400 | KL26: 3 | KM26: 3 | KN26: 3 | KO26: 3 | KP26: 5 | KQ26: 5 | KR26: 5 | KS26: 5 | KT26: 5 | KU26: 5 | KV26: 5 | KW26: 5 | KX26: 5 | KY26: 3 | KZ26: 3 | LA26: 3 | LB26: 5 | LC26: 5 | LD26: 5 | LE26: 4 | LF26: 5 | LG26: 5 | LH26: 5 | LI26: 4 | LJ26: 4 | LK26: 1、3 | LL26: 1、3 | LM26: 4 | LN26: 1 | LO26: 2 | LP26: 2 | LQ26: 4 | LR26: 2 | LS26: 3 | LT26: 4 | LU26: 4 | LV26: 4 | LW26: 2 | LX26: 2 | LY26: 2 | LZ26: 1 | MA26: 1 | MB26: 1 | MC26: 1 | MD26: 1 | ME26: 1 | MF26: 2 | MG26: 1 | MH26: 1 | MI26: 1 | MJ26: 4 | MK26: 3 | MM26: 2 | MN26: 2 | MO26: 1 | MP26: 2 | MQ26: 1 | MR26: 2 | MT26: 2 | MU26: 2 | MW26: 1 | MX26: 4 | MY26: 1 | MZ26: 5 | NA26: 2 | NB26: 1 | NC26: 5 | ND26: 1 | NE26: 1 | NF26: 10 | NG26: 3 | NH26: 2 | NK26: 2 | NN26: 2 | NQ26: 2 | NT26: 2 | NW26: 2 | NX26: 2 | NY26: 5 | NZ26: 5 | OA26: 1 | OC26: 3 | OD26: 2 | OE26: 1 | OG26: 1 | OI26: 5 | OJ26: 5 | OK26: 1 | OL26: 5 | OM26: 1 | ON26: 2 | OP26: 2 | OQ26: 2 | OS26: 2 | OT26: 2 | OV26: 2 | OW26: 2 | OY26: 2 | OZ26: 2 | PB26: 2 | PC26: 2 | PE26: 2 | PF26: 2 | PH26: 1 | PI26: 2 | PK26: 2 | PL26: 2 | PN26: 2 | PO26: 2 | PQ26: 2 | PR26: 1 | PS26: 5 | PT26: 1 | PU26: 2 | PV26: 2 | PW26: 1 | PX26: 2 | PY26: 2 | PZ26: 4 | QA26: 2 | QB26: 3 | QC26: 2 | QD26: 3 | QE26: 2 | QF26: 3 | QG26: 2 | QH26: 2 | QI26: 2 | QJ26: 4 | QK26: 2 | QL26: 4 | QM26: 5 | QN26: 4 | QO26: 4 | QP26: 5 | QQ26: 5 | QR26: 5 | QS26: 3 | QT26: 5 | QU26: 5 | QV26: 4 | QW26: 5 | QX26: 5 | QY26: 5 | QZ26: 5 | RA26: 4 | RB26: 5 | RC26: 5
A27: 22 | B27: 杜三峡 | C27: 杜三峡 | D27: 湖北省 | E27: 荆门市钟祥县 | F27: 冷水镇 | G27: 侯集村 | H27: 唐吉萍 | I27: 13093232028 | J27: 2 | K27: 8 | L27: 4 | M27: 0 | N27: 1 | O27: 2 | P27: 3 | Q27: 4 | R27: 3 | S27: 15000 | T27: 1 | U27: 2 | V27: 2 | W27: 47 | X27: 4 | Y27: 7 | Z27: 2 | AA27: 0 | AB27: 0 | AC27: 0 | AD27: 2 | AE27: 1 | AF27: 1 | AG27: 47 | AH27: 5 | AI27: 6 | AJ27: 2 | AK27: 0 | AL27: 0 | AM27: 0 | BR27: 1.4 | BS27: 27 | BT27: 667 | BU27: 21 | BV27: 25 | BW27: 20 | BX27: 4 | BY27: 1 | BZ27: 3 | CA27: 500 | CB27: 1 | CC27: 2 | CD27: 25 | CE27: 1300 | CF27: 1.26 | CG27: 150 | CH27: 0 | CI27: 0 | CJ27: 0 | CK27: 200 | CL27: 20 | DG27: 1 | DH27: 3 | DI27: 5 | DJ27: 3 | DK27: 5 | DL27: 3 | DM27: 5 | DN27: 2 | DO27: 3000 | DP27: 2 | DQ27: 2 | DR27: 1 | DS27: 1 | DT27: 1 | DU27: 2019 | DV27: 5 | DW27: 1 | DX27: 1 | DY27: 2019 | DZ27: 5 | EG27: 1 | EH27: 1 | EI27: 1 | EJ27: 10 | EK27: 70 | EL27: 桂湖 | EM27: 130 | EN27: 80 | EO27: 26 | EP27: 10 | EQ27: 15 | ER27: 2 | ES27: 2 | ET27: 1 | EU27: 1 | EV27: 5 | EW27: 天泽 | EX27: 88 | EY27: 80 | EZ27: 46.4 | FC27: 3 | FD27: 2 | FE27: 1 | FF27: 17硝酸磷 | FG27: 15 | FH27: 天脊 | FI27: 130 | FJ27: 80 | FK27: 26.5 | FL27: 11.5 | FM27: 0 | GJ27: 2 | GK27: 2 | GL27: 2 | GQ27: 4 | GR27: 5 | GS27: 5 | GT27: 3 | GU27: 4 | GV27: 1 | GW27: 5 | GX27: 5 | GY27: 4 | GZ27: 5 | HA27: 5 | HB27: 5 | HC27: 5 | HD27: 5 | HE27: 4 | HF27: 2 | HG27: 1 | HK27: 1 | HL27: 5 | HM27: 2 | HN27: 1 | HO27: 4 | HP27: 3 | HQ27: 1、2、3、4、5 | HR27: 1 | HS27: 2 | HU27: 3 | HV27: 4 | HW27: 4 | HX27: 2 | HY27: 4 | HZ27: 3 | IA27: 2 | IB27: 3 | IC27: 1 | ID27: 1 | IE27: 2 | IF27: 5 | IG27: 1 | IH27: 1 | II27: 2 | IJ27: 5 | IK27: 2 | IL27: 2 | IM27: 2 | JQ27: 4 | JR27: 5 | JS27: 5 | JT27: 1、2 | JU27: 1 | JZ27: 2 | KA27: 1 | KB27: 2 | KJ27: 1 | KK27: 700 | KL27: 1 | KM27: 4 | KN27: 1 | KO27: 3 | KP27: 3 | KQ27: 4 | KR27: 5 | KS27: 5 | KT27: 4 | KU27: 5 | KV27: 5 | KW27: 3 | KX27: 5 | KY27: 4 | KZ27: 1 | LA27: 1 | LB27: 4 | LC27: 5 | LD27: 5 | LE27: 5 | LF27: 5 | LG27: 5 | LH27: 5 | LI27: 4 | LJ27: 3 | LK27: 1 | LL27: 1 | LM27: 2 | LN27: 2 | LO27: 2 | LP27: 3 | LQ27: 5 | LR27: 2 | LS27: 3 | LT27: 4 | LU27: 4 | LV27: 4 | LW27: 2 | LX27: 4 | LY27: 4 | LZ27: 2 | MA27: 1 | MB27: 1 | MC27: 1 | MD27: 1 | ME27: 1 | MF27: 1 | MG27: 1 | MH27: 1 | MI27: 1 | MJ27: 5 | MK27: 3 | MM27: 1 | MN27: 2 | MO27: 2 | MP27: 2 | MQ27: 1 | MR27: 1 | MS27: 4 | MT27: 2 | MU27: 2 | MW27: 1 | MX27: 3 | MY27: 1 | MZ27: 10 | NA27: 3 | NB27: 2 | NE27: 2 | NG27: 1 | NH27: 2 | NK27: 2 | NN27: 2 | NQ27: 2 | NT27: 1 | NU27: 5 | NW27: 1 | NX27: 4 | NY27: 5 | NZ27: 4 | OA27: 1 | OC27: 3 | OD27: 8种子服务站 | OE27: 3 | OF27: 8种子服务站 | OG27: 1 | OI27: 5 | OJ27: 5 | OK27: 1 | OL27: 5 | OM27: 1 | ON27: 2 | OP27: 2 | OQ27: 1 | OR27: 5 | OS27: 2 | OT27: 1 | OU27: 4 | OV27: 1 | OW27: 1 | OX27: 5 | OY27: 1 | OZ27: 2 | PB27: 1 | PC27: 2 | PE27: 1 | PF27: 2 | PH27: 1 | PI27: 1 | PJ27: 4 | PK27: 2 | PL27: 2 | PN27: 2 | PO27: 2 | PQ27: 2 | PR27: 1 | PS27: 4 | PT27: 1 | PU27: 2 | PV27: 2 | PW27: 1 | PX27: 3 | PY27: 3 | PZ27: 3 | QA27: 2 | QB27: 5 | QC27: 2 | QD27: 4 | QE27: 2 | QF27: 5 | QG27: 2 | QH27: 5 | QI27: 2 | QJ27: 4 | QK27: 2 | QL27: 4 | QM27: 5 | QN27: 5 | QO27: 5 | QP27: 5 | QQ27: 5 | QR27: 5 | QS27: 1 | QT27: 5 | QU27: 5 | QV27: 5 | QW27: 5 | QX27: 5 | QY27: 5 | QZ27: 5 | RA27: 3 | RB27: 4 | RC27: 4
A28: 23 | B28: 杜三峡 | C28: 杜三峡 | D28: 湖北省 | E28: 荆门市钟祥县 | F28: 冷水镇 | G28: 鲍岗村 | H28: 董香 | I28: 18671613294 | J28: 2 | K28: 2.5 | L28: 5 | M28: 0 | N28: 2 | O28: 2 | P28: 5 | Q28: 5 | R28: 2 | S28: 20000 | T28: 1 | U28: 2 | V28: 2 | W28: 44 | X28: 4 | Y28: 8 | Z28: 2 | AA28: 0 | AB28: 0 | AC28: 0 | AD28: 2 | AE28: 1 | AF28: 1 | AG28: 46 | AH28: 5 | AI28: 6 | AJ28: 2 | AK28: 0 | AL28: 0 | AM28: 0 | BR28: 1 | BS28: 15 | BT28: 1000 | BU28: 9 | BV28: 12 | BW28: 4 | BX28: 4 | BY28: 2 | BZ28: 3 | CA28: 1500 | CB28: 1 | CC28: 2 | CD28: 12 | CE28: 1300 | CF28: 1.25 | CG28: 225 | CH28: 25 | CI28: 0 | CJ28: 280 | CK28: 0 | CL28: 10 | DG28: 1 | DH28: 1 | DI28: 5 | DJ28: 1 | DK28: 5 | DL28: 1 | DM28: 5 | DN28: 2 | DO28: 4000 | DP28: 1 | DQ28: 2 | DR28: 1 | DS28: 1 | DT28: 1 | DU28: 2019 | DV28: 5 | EG28: 1 | EH28: 1 | EI28: 1 | EJ28: 10 | EK28: 70 | EL28: 桂湖 | EM28: 138 | EN28: 180 | EO28: 26 | EP28: 10 | EQ28: 15 | ER28: 2 | ES28: 2 | ET28: 1 | EU28: 1 | EV28: 6 | EW28: 天泽 | EX28: 88 | EY28: 80 | EZ28: 46.4 | GJ28: 2、4 | GK28: 2 | GL28: 2 | GQ28: 4 | GR28: 4 | GS28: 4 | GT28: 5 | GU28: 5 | GV28: 4 | GW28: 5 | GX28: 5 | GY28: 4 | GZ28: 5 | HA28: 5 | HB28: 3 | HC28: 4 | HD28: 4 | HE28: 4 | HF28: 3 | HG28: 3 | HK28: 1、2 | HL28: 1 | HM28: 1 | HN28: 1 | HO28: 3 | HP28: 4 | HQ28: 1、2、3、4、5 | HR28: 1 | HS28: 2 | HU28: 3 | HV28: 5 | HW28: 2 | HX28: 2 | HY28: 3 | HZ28: 1 | IA28: 2 | IB28: 3 | IC28: 2 | ID28: 1 | IE28: 2 | IF28: 5 | IG28: 1 | IH28: 1 | II28: 2 | IJ28: 5 | IK28: 2 | IL28: 2 | IM28: 2 | JQ28: 3 | JR28: 4 | JS28: 4 | JT28: 3 | JU28: 1 | JZ28: 3 | KA28: 1 | KB28: 2 | KJ28: 4 | KK28: 600 | KL28: 4 | KM28: 5 | KN28: 1 | KO28: 1 | KP28: 5 | KQ28: 5 | KR28: 5 | KS28: 5 | KT28: 5 | KU28: 5 | KV28: 5 | KW28: 4 | KX28: 5 | KY28: 4 | KZ28: 2 | LA28: 2 | LB28: 4 | LC28: 4 | LD28: 5 | LE28: 5 | LF28: 4 | LG28: 5 | LH28: 5 | LI28: 4 | LJ28: 5 | LK28: 1 | LL28: 1 | LM28: 2 | LN28: 2 | LO28: 3 | LP28: 3 | LQ28: 4 | LR28: 2 | LS28: 3 | LT28: 4 | LU28: 3 | LV28: 3 | LW28: 2 | LX28: 4 | LY28: 2 | LZ28: 2 | MA28: 1 | MB28: 1 | MC28: 1 | MD28: 1 | ME28: 1 | MF28: 1 | MG28: 1 | MH28: 1 | MI28: 1 | MJ28: 4 | MK28: 3 | MM28: 1 | MN28: 2 | MO28: 2 | MP28: 2 | MQ28: 1 | MR28: 2 | MT28: 2 | MU28: 2 | MW28: 1 | MX28: 4 | MY28: 1 | MZ28: 5 | NA28: 1 | NB28: 1 | NC28: 5 | ND28: 2 | NE28: 2 | NG28: 3 | NH28: 2 | NK28: 2 | NN28: 2 | NQ28: 2 | NT28: 2 | NW28: 2 | NX28: 3 | NY28: 4 | NZ28: 4 | OA28: 1 | OC28: 3 | OD28: 6 | OE28: 1 | OG28: 1 | OI28: 5 | OJ28: 5 | OK28: 1 | OL28: 5 | OM28: 1 | ON28: 2 | OP28: 2 | OQ28: 2 | OS28: 2 | OT28: 1 | OU28: 4 | OV28: 1 | OW28: 2 | OY28: 2 | OZ28: 2 | PB28: 2 | PC28: 2 | PE28: 2 | PF28: 2 | PH28: 1 | PI28: 2 | PK28: 2 | PL28: 2 | PN28: 2 | PO28: 2 | PQ28: 2 | PR28: 1 | PS28: 5 | PT28: 1 | PU28: 2 | PV28: 2 | PW28: 1 | PX28: 3 | PY28: 4 | PZ28: 4 | QA28: 2 | QB28: 4 | QC28: 1 | QD28: 5 | QE28: 2 | QF28: 3 | QG28: 1 | QH28: 4 | QI28: 2 | QJ28: 3 | QK28: 2 | QL28: 3 | QM28: 4 | QN28: 5 | QO28: 5 | QP28: 5 | QQ28: 5 | QR28: 5 | QS28: 2 | QT28: 5 | QU28: 4 | QV28: 5 | QW28: 5 | QX28: 5 | QY28: 5 | QZ28: 4 | RA28: 4 | RB28: 5 | RC28: 5
A29: 24 | B29: 杜三峡 | C29: 杜三峡 | D29: 湖北省 | E29: 荆门市钟祥县 | F29: 冷水镇 | G29: 侯集村 | H29: 李冬梅 | I29: 18872427370 | J29: 2 | K29: 8 | L29: 8 | M29: 2 | N29: 2 | O29: 2 | P29: 6 | Q29: 3 | R29: 1 | S29: 10000 | T29: 1 | U29: 2 | V29: 2 | W29: 51 | X29: 3 | Y29: 9 | Z29: 2 | AA29: 0 | AB29: 0 | AC29: 0 | AD29: 2 | AE29: 1 | AF29: 1 | AG29: 53 | AH29: 3 | AI29: 9 | AJ29: 2 | AK29: 0 | AL29: 0 | AM29: 0 | AN29: 3 | AO29: 4 | AP29: 2 | AQ29: 25 | AR29: 5 | AS29: 9 | AT29: 2 | AU29: 5 | AV29: 1.8 | AW29: 6 | BR29: 1.4 | BS29: 25 | BT29: 667 | BU29: 8 | BV29: 22 | BW29: 7 | BX29: 3 | BY29: 1 | BZ29: 3 | CA29: 2000 | CB29: 1 | CC29: 2 | CD29: 2 | CE29: 1200 | CF29: 1.25 | CG29: 160 | CH29: 25 | CI29: 0 | CJ29: 80 | CK29: 200 | CL29: 8 | DG29: 1 | DH29: 3 | DI29: 5 | DJ29: 3 | DK29: 5 | DL29: 1 | DM29: 5 | DN29: 2 | DO29: 2500 | DP29: 2 | DQ29: 2 | DR29: 1 | DS29: 1 | DT29: 1 | DU29: 2019 | DV29: 5 | DW29: 1 | DX29: 1 | DY29: 2019 | DZ29: 5 | EG29: 1 | EH29: 1 | EI29: 1 | EJ29: 10 | EK29: 100 | EL29: 史丹利 | EM29: 150 | EN29: 100 | GJ29: 4 | GK29: 2 | GL29: 1 | GM29: 2 | GN29: 2009 | GO29: 2 | GP29: 2 | GQ29: 4 | GR29: 5 | GS29: 5 | GT29: 5 | GU29: 4 | GV29: 2 | GW29: 4 | GX29: 2 | GY29: 1 | GZ29: 5 | HA29: 4 | HB29: 4 | HC29: 1 | HD29: 1 | HE29: 3 | HF29: 1 | HG29: 1 | HH29: 12 | HI29: 2 | HJ29: 2 | HK29: 2 | HL29: 1 | HM29: 1 | HN29: 1 | HO29: 4 | HP29: 4 | HQ29: 1、2、3、4、5 | HR29: 2 | HS29: 2 | HU29: 1 | HV29: 5 | HW29: 5 | HX29: 1 | HY29: 5 | HZ29: 2 | IA29: 1 | IB29: 2 | IC29: 2 | ID29: 2 | IE29: 2 | IF29: 5 | IG29: 1 | IH29: 1 | II29: 2 | IJ29: 4 | IK29: 3 | IL29: 2 | IM29: 2 | IO29: 2 | IP29: 4 | IQ29: 4 | IR29: 2 | IS29: 3 | IT29: 1 | IU29: 1 | IV29: 1 | IW29: 1 | IX29: 3 | IY29: 3 | IZ29: 3 | JA29: 3 | JB29: 3 | JC29: 4 | JD29: 3 | JE29: 4 | JF29: 4 | JG29: 5 | JH29: 3 | JI29: 3 | JJ29: 1 | JK29: 4 | JL29: 3 | JM29: 3 | JN29: 4 | JO29: 2 | JP29: 2 | JQ29: 4 | JR29: 4 | JS29: 5 | JT29: 3 | JU29: 2 | JV29: 1 | JZ29: 2 | KA29: 1 | KB29: 1 | KC29: 2 | KD29: 2 | KE29: 10 | KG29: 不清楚 | KH29: 2 | KJ29: 1 | KK29: 500 | KL29: 4 | KM29: 3 | KN29: 1 | KO29: 1 | KP29: 4 | KQ29: 4 | KR29: 5 | KS29: 5 | KT29: 3 | KU29: 4 | KV29: 5 | KW29: 4 | KX29: 3 | KY29: 4 | KZ29: 1 | LA29: 1 | LB29: 4 | LC29: 4 | LD29: 4 | LE29: 4 | LF29: 3 | LG29: 4 | LH29: 5 | LI29: 4 | LJ29: 1 | LK29: 1 | LL29: 1 | LM29: 3 | LN29: 2 | LO29: 2 | LP29: 2 | LQ29: 4 | LR29: 2 | LS29: 3 | LT29: 2 | LU29: 2 | LV29: 2 | LW29: 2 | LX29: 1 | LY29: 1 | LZ29: 2 | MA29: 1 | MB29: 1 | MC29: 1 | MD29: 1 | ME29: 1 | MF29: 1 | MG29: 1 | MH29: 1 | MI29: 1 | MJ29: 5 | MK29: 3 | MM29: 1 | MN29: 2 | MO29: 2 | MP29: 2 | MQ29: 1 | MR29: 2 | MT29: 2 | MU29: 2 | MW29: 1 | MX29: 3 | MY29: 1 | MZ29: 10 | NA29: 1 | NB29: 1 | NC29: 10 | ND29: 2 | NE29: 2 | NG29: 3 | NH29: 2 | NK29: 2 | NN29: 2 | NQ29: 2 | NT29: 2 | NW29: 2 | NX29: 4 | NY29: 4 | NZ29: 4 | OA29: 1 | OC29: 1 | OE29: 1 | OG29: 1 | OI29: 4 | OJ29: 4 | OK29: 1 | OL29: 5 | OM29: 1 | ON29: 2 | OP29: 2 | OQ29: 2 | OS29: 2 | OT29: 1 | OU29: 5 | OV29: 1 | OW29: 2 | OY29: 2 | OZ29: 1 | PA29: 4 | PB29: 1 | PC29: 1 | PD29: 4 | PE29: 1 | PF29: 2 | PH29: 1 | PI29: 2 | PK29: 2 | PL29: 1 | PM29: 4 | PN29: 1 | PO29: 2 | PQ29: 2 | PR29: 1 | PT29: 2 | PU29: 2 | PV29: 2 | PW29: 1 | PX29: 10 | PY29: 10 | PZ29: 2 | QA29: 2 | QB29: 4 | QC29: 1 | QD29: 5 | QE29: 1 | QF29: 5 | QG29: 1 | QH29: 5 | QI29: 2 | QJ29: 4 | QK29: 2 | QL29: 4 | QM29: 4 | QN29: 5 | QO29: 5 | QP29: 5 | QQ29: 5 | QR29: 4 | QS29: 1 | QT29: 5 | QU29: 5 | QV29: 5 | QW29: 4 | QX29: 5 | QY29: 5 | QZ29: 4 | RA29: 4 | RB29: 5 | RC29: 5
A30: 25 | B30: 杜三峡 | C30: 杜三峡 | D30: 湖北省 | E30: 荆门市钟祥县 | F30: 石牌镇 | G30: 贺集村 | H30: 贺艳萍 | I30: 13477563827 | J30: 2 | K30: 5 | L30: 5 | M30: 0 | N30: 2 | O30: 4 | P30: 5 | Q30: 2 | R30: 1.5 | S30: 10000 | T30: 1 | U30: 2 | V30: 2 | W30: 38 | X30: 5 | Y30: 9 | Z30: 2 | AA30: 0 | AB30: 0 | AC30: 0 | AD30: 2 | AE30: 1 | AF30: 1 | AG30: 40 | AH30: 4 | AI30: 16 | AJ30: 2 | AK30: 0 | AL30: 0 | AM30: 0 | AN30: 3 | AO30: 3 | AP30: 1 | AQ30: 63 | AR30: 3 | AS30: 12 | AT30: 2 | AU30: 0 | AV30: 0 | AW30: 0 | AX30: 4 | AY30: 3 | AZ30: 2 | BA30: 63 | BB30: 2 | BC30: 0 | BD30: 2 | BE30: 0 | BF30: 0 | BG30: 0 | BR30: 1 | BS30: 10 | BT30: 667 | BU30: 8 | BV30: 9 | BW30: 7 | BX30: 3 | BY30: 1 | BZ30: 3 | CA30: 500 | CB30: 1 | CC30: 2 | CD30: 9 | CE30: 1300 | CF30: 1.17 | CG30: 120 | CH30: 10 | CI30: 20 | CJ30: 180 | CK30: 200 | CL30: 3 | DG30: 1 | DH30: 2 | DI30: 4 | DJ30: 1 | DK30: 5 | DL30: 1 | DM30: 5 | DN30: 2 | DO30: 1500 | DP30: 1 | DQ30: 1 | DR30: 1 | DS30: 1 | DT30: 1 | DU30: 2019 | DV30: 5 | DW30: 1 | DX30: 1 | DY30: 2019 | DZ30: 5 | EG30: 1 | EH30: 1 | EI30: 1 | EJ30: 10 | EK30: 80 | EL30: 洋丰 | EM30: 100 | EN30: 80 | EO30: 26 | EP30: 10 | EQ30: 12 | ER30: 2 | ES30: 2 | ET30: 1 | EU30: 1 | EV30: 10 | EX30: 70 | EY30: 80 | GJ30: 2 | GK30: 2 | GL30: 2 | GQ30: 4 | GR30: 5 | GS30: 5 | GT30: 4 | GU30: 4 | GV30: 5 | GW30: 5 | GX30: 4 | GY30: 4 | GZ30: 5 | HA30: 5 | HB30: 5 | HC30: 5 | HD30: 5 | HE30: 4 | HF30: 4 | HG30: 4 | HK30: 1、5 | HL30: 5 | HM30: 1 | HN30: 1 | HO30: 5 | HP30: 2 | HQ30: 5 | HR30: 2 | HS30: 2 | HU30: 1 | HV30: 5 | HW30: 3 | HX30: 1 | HY30: 4 | HZ30: 1 | IA30: 2 | IB30: 5 | IC30: 2 | ID30: 1 | IE30: 2 | IF30: 4 | IG30: 1 | IH30: 3 | II30: 2 | IJ30: 5 | IK30: 2 | IL30: 2 | IM30: 2 | JQ30: 5 | JR30: 4 | JS30: 5 | JT30: 1 | JU30: 1 | JZ30: 2 | KA30: 2 | KB30: 2 | KJ30: 4 | KK30: 1000 | KL30: 3 | KM30: 4 | KN30: 1 | KO30: 1 | KP30: 1 | KQ30: 3 | KR30: 4 | KS30: 5 | KT30: 5 | KU30: 5 | KV30: 5 | KW30: 4 | KX30: 5 | KY30: 1 | KZ30: 1 | LA30: 1 | LB30: 3 | LC30: 3 | LD30: 5 | LE30: 5 | LF30: 5 | LG30: 5 | LH30: 5 | LI30: 4 | LJ30: 1 | LK30: 1 | LL30: 1 | LM30: 2 | LN30: 1 | LO30: 1 | LP30: 1 | LQ30: 1 | LR30: 4 | LS30: 1 | LT30: 5 | LU30: 2 | LV30: 1 | LW30: 1 | LX30: 1 | LY30: 1 | LZ30: 2 | MA30: 1 | MB30: 1 | MC30: 1 | MD30: 1 | ME30: 1 | MF30: 1 | MG30: 1 | MH30: 1 | MI30: 1 | MJ30: 5 | MK30: 3 | MM30: 1 | MN30: 2 | MO30: 2 | MP30: 2 | MQ30: 1 | MR30: 2 | MT30: 2 | MU30: 2 | MW30: 1 | MX30: 2 | MY30: 1 | MZ30: 20 | NA30: 3 | NB30: 1 | NC30: 30 | ND30: 2 | NE30: 1 | NF30: 50 | NG30: 3 | NH30: 2 | NK30: 2 | NN30: 2 | NQ30: 2 | NT30: 2 | NW30: 2 | NX30: 5 | NY30: 5 | NZ30: 2 | OA30: 1 | OC30: 3 | OD30: 2 | OE30: 1 | OG30: 1 | OI30: 3 | OJ30: 3 | OK30: 2 | OM30: 1 | ON30: 2 | OP30: 2 | OQ30: 2 | OS30: 2 | OT30: 1 | OU30: 5 | OV30: 1 | OW30: 2 | OY30: 1 | OZ30: 2 | PB30: 2 | PC30: 2 | PE30: 2 | PF30: 2 | PH30: 2 | PI30: 2 | PK30: 2 | PL30: 2 | PN30: 2 | PO30: 2 | PQ30: 2 | PR30: 1 | PS30: 5 | PT30: 1 | PU30: 2 | PV30: 2 | PW30: 1 | PX30: 2 | PY30: 2 | PZ30: 1 | QA30: 2 | QB30: 1 | QC30: 2 | QD30: 2 | QE30: 1 | QF30: 3 | QG30: 2 | QH30: 2 | QI30: 2 | QJ30: 2 | QK30: 2 | QL30: 3 | QM30: 1 | QN30: 2 | QO30: 1 | QP30: 2 | QQ30: 5 | QR30: 5 | QS30: 2 | QT30: 5 | QU30: 5 | QV30: 5 | QW30: 5 | QX30: 4 | QY30: 4 | QZ30: 5 | RA30: 4 | RB30: 5 | RC30: 5
A31: 26 | B31: 杜三峡 | C31: 杜三峡 | D31: 湖北省 | E31: 荆门市钟祥县 | F31: 长滩镇 | G31: 同心村 | H31: 张兴兰 | I31: 15971968689 | J31: 2 | K31: 0.5 | L31: 8 | M31: 1 | N31: 2 | O31: 2 | P31: 4 | Q31: 8 | R31: 1 | S31: 10000 | T31: 1 | U31: 2 | V31: 2 | W31: 60 | X31: 2 | Y31: 6 | Z31: 2 | AA31: 0 | AB31: 0 | AC31: 0 | AD31: 2 | AE31: 1 | AF31: 1 | AG31: 64 | AH31: 3 | AI31: 6 | AJ31: 2 | AK31: 0 | AL31: 0 | AM31: 0 | BR31: 1 | BS31: 15 | BT31: 667 | BU31: 17 | BV31: 15 | BW31: 17 | BX31: 3 | BY31: 2 | BZ31: 3 | CA31: 1000 | CB31: 1 | CC31: 2 | CD31: 15 | CE31: 1200 | CF31: 0.85 | CG31: 150 | CH31: 0 | CI31: 100 | CJ31: 160 | CK31: 180 | CL31: 5 | DG31: 1 | DH31: 2 | DI31: 4 | DJ31: 1 | DK31: 5 | DL31: 1 | DM31: 5 | DN31: 2 | DO31: 1500 | DP31: 1 | DQ31: 2 | DR31: 2 | EF31: 2 | EG31: 1 | EH31: 1 | EI31: 1 | EJ31: 10 | EK31: 100 | EL31: 洋丰 | EM31: 115 | EN31: 80 | EO31: 27 | EP31: 16 | EQ31: 9 | ER31: 2 | ES31: 2 | ET31: 1 | EU31: 1 | EV31: 20 | EW31: 枝江 | EX31: 98 | EY31: 80 | GJ31: 2 | GK31: 2 | GL31: 1 | GM31: 1 | GN31: 2009 | GO31: 1 | GP31: 2 | GQ31: 4 | GR31: 5 | GS31: 5 | GT31: 5 | GU31: 4 | GV31: 4 | GW31: 2 | GX31: 2 | GY31: 3 | GZ31: 4 | HA31: 4 | HB31: 1 | HC31: 5 | HD31: 5 | HE31: 5 | HF31: 3 | HG31: 2 | HH31: 30 | HI31: 6 | HJ31: 2 | HK31: 2 | HL31: 5 | HM31: 1 | HN31: 1 | HO31: 5 | HP31: 3 | HQ31: 4 | HR31: 2 | HS31: 2 | HU31: 1 | HV31: 5 | HW31: 2 | HX31: 2 | HY31: 1 | HZ31: 5 | IA31: 2 | IB31: 3 | IC31: 2 | ID31: 2 | IE31: 1 | IF31: 4 | IG31: 1 | IH31: 3 | II31: 1 | IJ31: 5 | IK31: 3 | IL31: 2 | IM31: 2 | IO31: 3 | IP31: 2 | IQ31: 3 | IR31: 2 | IS31: 2 | IT31: 2 | IU31: 2 | IV31: 2 | IW31: 3 | IX31: 2 | IY31: 3 | IZ31: 2 | JA31: 2 | JB31: 3 | JC31: 2 | JD31: 1 | JE31: 4 | JF31: 4 | JG31: 4 | JH31: 5 | JI31: 4 | JJ31: 2 | JK31: 2 | JL31: 2 | JM31: 2 | JN31: 3 | JO31: 2 | JP31: 2 | JQ31: 3 | JR31: 5 | JS31: 5 | JT31: 1 | JU31: 2 | JV31: 2 | JW31: 2 | JX31: 1 | JZ31: 2 | KA31: 1 | KB31: 1 | KC31: 2 | KD31: 1 | KF31: 6 | KG31: 8 | KH31: 1 | KI31: 80 | KJ31: 5 | KK31: 400 | KL31: 4 | KM31: 5 | KN31: 2 | KO31: 4 | KP31: 5 | KQ31: 5 | KR31: 5 | KS31: 5 | KT31: 5 | KU31: 5 | KV31: 5 | KW31: 5 | KX31: 5 | KY31: 4 | KZ31: 1 | LA31: 1 | LB31: 4 | LC31: 4 | LD31: 5 | LE31: 3 | LF31: 4 | LG31: 4 | LH31: 5 | LI31: 4 | LJ31: 3 | LK31: 1 | LL31: 1 | LM31: 5 | LN31: 2 | LO31: 2 | LP31: 2 | LQ31: 1、5、2 | LR31: 1、2、4 | LS31: 1、3、4 | LT31: 3 | LU31: 2 | LV31: 3 | LW31: 2 | LX31: 5 | LY31: 4 | LZ31: 2 | MA31: 1 | MB31: 1 | MC31: 1 | MD31: 1 | ME31: 1 | MF31: 1 | MG31: 1 | MH31: 1 | MI31: 1 | MJ31: 4 | MK31: 3 | MM31: 2 | MN31: 1 | MO31: 2 | MP31: 2 | MQ31: 1 | MR31: 1 | MS31: 4 | MT31: 1 | MU31: 2 | MV31: 10 | MW31: 2 | MY31: 2 | NA31: 2 | NB31: 2 | NE31: 1 | NF31: 10 | NG31: 1 | NH31: 2 | NK31: 2 | NN31: 2 | NQ31: 2 | NT31: 1 | NU31: 5 | NV31: 3 | NW31: 2 | NX31: 5 | NY31: 4 | NZ31: 2 | OA31: 1 | OC31: 3 | OD31: 8 | OE31: 1 | OG31: 1 | OI31: 4 | OJ31: 4 | OK31: 1 | OL31: 4 | OM31: 1 | ON31: 1 | OO31: 5 | OP31: 1 | OQ31: 1 | OR31: 5 | OS31: 2 | OT31: 1 | OU31: 5 | OV31: 2 | OW31: 1 | OX31: 4 | OY31: 2 | OZ31: 2 | PB31: 2 | PC31: 2 | PE31: 2 | PF31: 2 | PH31: 2 | PI31: 2 | PK31: 2 | PL31: 2 | PN31: 2 | PO31: 2 | PQ31: 2 | PR31: 1 | PS31: 4 | PT31: 1 | PU31: 2 | PV31: 2 | PW31: 1 | PX31: 2 | PY31: 1 | PZ31: 3 | QA31: 2 | QB31: 3 | QC31: 2 | QD31: 4 | QE31: 2 | QF31: 4 | QG31: 2 | QH31: 5 | QI31: 1 | QJ31: 4 | QK31: 1 | QL31: 4 | QM31: 4 | QN31: 5 | QO31: 4 | QP31: 4 | QQ31: 5 | QR31: 5 | QS31: 3 | QT31: 5 | QU31: 5 | QV31: 5 | QW31: 5 | QX31: 5 | QY31: 5 | QZ31: 5 | RA31: 4 | RB31: 4 | RC31: 3
A32: 27 | B32: 杜三峡 | C32: 杜三峡 | D32: 湖北省 | E32: 荆门市钟祥县 | F32: 长滩镇 | G32: 同心村 | H32: 黎明强 | I32: 13886923509 | J32: 2 | K32: 0.5 | L32: 5 | M32: 1 | N32: 0 | O32: 2 | P32: 2 | Q32: 20 | R32: 5 | S32: 20000 | T32: 1 | U32: 1 | V32: 1 | W32: 54 | X32: 5 | Y32: 5 | Z32: 2 | AA32: 0 | AB32: 0 | AC32: 0 | AD32: 2 | AE32: 2 | AF32: 2 | AG32: 53 | AH32: 5 | AI32: 9 | AJ32: 2 | AK32: 0 | AL32: 0 | AM32: 0 | AN32: 3 | AO32: 4 | AP32: 1 | AQ32: 26 | AR32: 5 | AS32: 15 | AT32: 2 | AU32: 4 | AV32: 6 | AW32: 12 | AX32: 4 | AY32: 4 | AZ32: 2 | BA32: 23 | BB32: 5 | BC32: 15 | BD32: 2 | BE32: 4 | BF32: 4 | BG32: 12 | BR32: 4 | BS32: 70 | BT32: 667 | BU32: 45 | BV32: 60 | BW32: 38 | BX32: 2 | BY32: 2 | BZ32: 3 | CA32: 1000 | CB32: 1 | CC32: 2 | CD32: 60 | CE32: 1300 | CF32: 0.8 | CG32: 200 | CH32: 0 | CI32: 100 | CJ32: 190 | CK32: 200 | CL32: 5 | DG32: 1 | DH32: 1 | DI32: 4 | DJ32: 1 | DK32: 5 | DL32: 1 | DM32: 5 | DN32: 2 | DO32: 2000 | DP32: 2 | DQ32: 2 | DR32: 1 | DS32: 1 | DT32: 1 | DU32: 2019 | DV32: 5 | DW32: 1 | DX32: 1 | DY32: 2019 | DZ32: 5 | EG32: 1 | EH32: 1 | EI32: 1 | EJ32: 10 | EK32: 100 | EL32: 洋丰 | EM32: 115 | EN32: 80 | EO32: 27 | EP32: 16 | EQ32: 9 | ER32: 2 | ES32: 2 | ET32: 1 | EU32: 1 | EV32: 20 | EW32: 潜江 | EX32: 90 | EY32: 80 | EZ32: 46 | FC32: 3 | FD32: 2 | FE32: 1 | FF32: 17税肥 | FG32: 20 | FH32: 洋丰 | FI32: 115 | FJ32: 80 | FK32: 27 | FL32: 16 | FM32: 9 | GJ32: 2 | GK32: 2 | GL32: 2 | GQ32: 4 | GR32: 4 | GS32: 4 | GT32: 2 | GU32: 2 | GV32: 1 | GW32: 5 | GX32: 1 | GY32: 4 | GZ32: 1 | HA32: 1 | HB32: 1 | HC32: 1 | HD32: 5 | HE32: 5 | HF32: 2 | HG32: 2 | HK32: 1 | HL32: 5 | HM32: 5 | HN32: 1 | HO32: 5 | HP32: 4 | HQ32: 1、3 | HR32: 1 | HS32: 2 | HU32: 3 | HV32: 5 | HW32: 4 | HX32: 1 | HY32: 5 | HZ32: 3 | IA32: 2 | IB32: 4 | IC32: 2 | ID32: 2 | IE32: 1 | IF32: 3 | IG32: 1 | IH32: 1 | II32: 1 | IJ32: 5 | IK32: 1 | IL32: 2 | IM32: 1 | IN32: 5 | JQ32: 4 | JR32: 5 | JS32: 5 | JT32: 1、3 | JU32: 2 | JV32: 2 | JW32: 1 | JZ32: 5 | KA32: 1 | KB32: 1 | KC32: 2 | KD32: 1 | KF32: 6 | KG32: 3 | KH32: 2 | KJ32: 1 | KK32: 200 | KL32: 1 | KM32: 4 | KN32: 3 | KO32: 3 | KP32: 4 | KQ32: 5 | KR32: 5 | KS32: 5 | KT32: 4 | KU32: 5 | KV32: 5 | KW32: 4 | KX32: 5 | KY32: 5 | KZ32: 1 | LA32: 1 | LB32: 5 | LC32: 5 | LD32: 4 | LE32: 4 | LF32: 5 | LG32: 5 | LH32: 5 | LI32: 5 | LJ32: 5 | LK32: 1 | LL32: 1 | LM32: 3 | LN32: 2 | LO32: 2 | LP32: 2 | LQ32: 1、4 | LR32: 1、2 | LS32: 1、3 | LT32: 4 | LU32: 4 | LV32: 2 | LW32: 1 | LX32: 5 | LY32: 3 | LZ32: 2 | MA32: 1 | MB32: 1 | MC32: 1 | MD32: 1 | ME32: 1 | MF32: 1 | MG32: 1 | MH32: 1 | MI32: 1 | MJ32: 5 | MK32: 2 | ML32: 4植保站 | MM32: 1 | MN32: 2 | MO32: 2 | MP32: 2 | MQ32: 1 | MR32: 1 | MS32: 5 | MT32: 1 | MU32: 2 | MV32: 8 | MW32: 2 | MY32: 1 | MZ32: 10 | NA32: 1 | NB32: 2 | NE32: 1 | NF32: 10 | NG32: 2 | NH32: 2 | NK32: 2 | NN32: 2 | NQ32: 2 | NT32: 1 | NU32: 5 | NV32: 3 | NW32: 2 | NX32: 1 | NY32: 4 | NZ32: 2 | OA32: 1 | OC32: 3 | OD32: 1 | OE32: 3 | OF32: 1 | OG32: 1 | OI32: 5 | OJ32: 5 | OK32: 1 | OL32: 5 | OM32: 1 | ON32: 1 | OO32: 5 | OP32: 1 | OQ32: 1 | OR32: 5 | OS32: 1 | OT32: 1 | OU32: 5 | OV32: 1 | OW32: 2 | OY32: 2 | OZ32: 2 | PB32: 2 | PC32: 2 | PE32: 2 | PF32: 2 | PH32: 2 | PI32: 1 | PJ32: 5 | PK32: 2 | PL32: 2 | PN32: 2 | PO32: 2 | PQ32: 2 | PR32: 1 | PS32: 4 | PT32: 1 | PU32: 2 | PV32: 2 | PW32: 1 | PX32: 5 | PY32: 5 | PZ32: 3 | QA32: 2 | QB32: 4 | QC32: 2 | QD32: 4 | QE32: 2 | QF32: 3 | QG32: 2 | QH32: 3 | QI32: 1 | QJ32: 5 | QK32: 1 | QL32: 5 | QM32: 4 | QN32: 5 | QO32: 5 | QP32: 5 | QQ32: 5 | QR32: 5 | QS32: 2 | QT32: 5 | QU32: 5 | QV32: 5 | QW32: 4 | QX32: 5 | QY32: 5 | QZ32: 4 | RA32: 3 | RB32: 4 | RC32: 4
A33: 28 | B33: 杜三峡 | C33: 杜三峡 | D33: 湖北省 | E33: 荆门市钟祥县 | F33: 长滩镇 | G33: 同心村 | H33: 程型科 | I33: 18972906637 | J33: 2 | K33: 0.5 | L33: 2 | M33: 0 | N33: 2 | O33: 1 | P33: 2 | Q33: 3 | R33: 0.8 | S33: 20000 | T33: 1 | U33: 1 | V33: 1 | W33: 69 | X33: 3 | Y33: 5 | Z33: 2 | AA33: 0 | AB33: 0 | AC33: 0 | AD33: 2 | AE33: 2 | AF33: 2 | AG33: 68 | AH33: 4 | AI33: 15 | AJ33: 2 | AK33: 0 | AL33: 0 | AM33: 0 | BR33: 1 | BS33: 13 | BT33: 667 | BU33: 13 | BV33: 10 | BW33: 7 | BX33: 3 | BY33: 2 | BZ33: 3 | CA33: 1200 | CB33: 1 | CC33: 2 | CD33: 10 | CE33: 1200 | CF33: 1.08 | CG33: 150 | CH33: 0 | CI33: 120 | CJ33: 210 | CK33: 150 | CL33: 6 | DG33: 1 | DH33: 2 | DI33: 3 | DJ33: 1 | DK33: 5 | DL33: 1 | DM33: 5 | DN33: 2 | DO33: 1500 | DP33: 2 | DQ33: 1 | DR33: 2 | EF33: 5 | EG33: 1 | EH33: 1 | EI33: 1 | EJ33: 10 | EK33: 100 | EL33: 丰神 | EM33: 135 | EN33: 100 | EO33: 26 | EP33: 10 | EQ33: 16 | ER33: 2 | ES33: 2 | ET33: 1 | EU33: 1 | EV33: 18 | EW33: 三宁 | EX33: 90 | EY33: 80 | EZ33: 46.4 | FC33: 3 | FD33: 2 | FE33: 1 | FF33: 10 | FG33: 15 | FH33: 丰神 | FI33: 135 | FJ33: 100 | FK33: 26 | FL33: 10 | FM33: 16 | GJ33: 2 | GK33: 2 | GL33: 2 | GQ33: 3 | GR33: 3 | GS33: 3 | GT33: 3 | GU33: 2 | GV33: 2 | GW33: 2 | GX33: 3 | GY33: 3 | GZ33: 1 | HA33: 1 | HB33: 1 | HC33: 2 | HD33: 3 | HE33: 1 | HF33: 1 | HG33: 1 | HK33: 5 | HL33: 5 | HM33: 2 | HN33: 1 | HO33: 1 | HP33: 1 | HQ33: 1 | HR33: 1 | HS33: 1 | HT33: 3 | HU33: 3 | HV33: 3 | HW33: 2 | HX33: 2 | HY33: 3 | HZ33: 1 | IA33: 2 | IB33: 3 | IC33: 2 | ID33: 2 | IE33: 1 | IF33: 4 | IG33: 2 | IH33: 3 | II33: 2 | IJ33: 3 | IK33: 3 | IL33: 2 | IM33: 2 | JQ33: 4 | JR33: 4 | JS33: 4 | JT33: 1、2 | JU33: 1 | JZ33: 4 | KA33: 1 | KB33: 2 | KL33: 3 | KM33: 3 | KN33: 1 | KO33: 1 | KP33: 4 | KQ33: 3 | KR33: 4 | KS33: 5 | KT33: 5 | KU33: 5 | KV33: 5 | KW33: 4 | KX33: 5 | KY33: 2 | KZ33: 2 | LA33: 2 | LB33: 4 | LC33: 4 | LD33: 4 | LE33: 5 | LF33: 4 | LG33: 4 | LH33: 5 | LI33: 4 | LJ33: 3 | LK33: 3、5 | LL33: 1 | LM33: 2 | LN33: 2 | LO33: 2 | LP33: 2 | LQ33: 4 | LR33: 1 | LS33: 1 | LT33: 5 | LU33: 1 | LV33: 1 | LW33: 1 | LX33: 4 | LY33: 3 | LZ33: 1、2 | MA33: 1 | MB33: 1 | MC33: 1 | MD33: 1 | ME33: 1 | MF33: 1 | MG33: 1 | MH33: 1 | MI33: 1 | MJ33: 3 | MK33: 3 | MM33: 2 | MN33: 2 | MO33: 2 | MP33: 2 | MQ33: 2 | MR33: 2 | MT33: 2 | MU33: 2 | MW33: 1 | MX33: 4 | MY33: 2 | NB33: 1 | NC33: 0 | ND33: 3 | NE33: 1 | NF33: 10 | NG33: 1 | NH33: 2 | NK33: 2 | NN33: 2 | NQ33: 2 | NT33: 1 | NU33: 5 | NV33: 2 | NW33: 2 | NX33: 4 | NY33: 2 | NZ33: 2 | OA33: 1 | OC33: 3 | OD33: 1 | OE33: 1 | OG33: 1 | OI33: 4 | OJ33: 5 | OK33: 1 | OL33: 5 | OM33: 1 | ON33: 2 | OP33: 2 | OQ33: 1 | OR33: 5 | OS33: 2 | OT33: 1 | OU33: 5 | OV33: 1 | OW33: 2 | OY33: 2 | OZ33: 2 | PB33: 2 | PC33: 2 | PE33: 2 | PF33: 2 | PH33: 2 | PI33: 2 | PK33: 2 | PL33: 2 | PN33: 2 | PO33: 2 | PQ33: 2 | PR33: 1 | PS33: 5 | PT33: 1 | PU33: 2 | PV33: 1 | PZ33: 3 | QA33: 2 | QB33: 3 | QC33: 2 | QD33: 3 | QE33: 2 | QF33: 4 | QG33: 2 | QH33: 4 | QI33: 1 | QJ33: 5 | QK33: 1 | QL33: 5 | QM33: 5 | QN33: 4 | QO33: 5 | QP33: 5 | QQ33: 5 | QR33: 5 | QS33: 2 | QT33: 5 | QU33: 5 | QV33: 5 | QW33: 4 | QX33: 4 | QY33: 5 | QZ33: 4 | RA33: 3 | RB33: 3 | RC33: 3
A34: 29 | B34: 杜三峡 | C34: 杜三峡 | D34: 湖北省 | E34: 荆门市钟祥县 | F34: 长滩镇 | G34: 同心村 | H34: 何晓群 | I34: 13677250717 | J34: 2 | K34: 0.5 | L34: 4 | M34: 0 | N34: 0 | O34: 2 | P34: 4 | Q34: 6 | R34: 5 | S34: 10000 | T34: 1 | U34: 2 | V34: 2 | W34: 53 | X34: 4 | Y34: 9 | Z34: 2 | AA34: 0 | AB34: 0 | AC34: 0 | AD34: 2 | AE34: 1 | AF34: 1 | AG34: 54 | AH34: 5 | AI34: 9 | AJ34: 2 | AK34: 0 | AL34: 0 | AM34: 0 | BR34: 4 | BS34: 60 | BT34: 667 | BU34: 65 | BV34: 60 | BW34: 65 | BX34: 3 | BY34: 2 | BZ34: 3 | CA34: 3000 | CB34: 1 | CC34: 2 | CD34: 60 | CE34: 1300 | CF34: 0.84 | CG34: 150 | CH34: 0 | CI34: 100 | CJ34: 140 | CK34: 200 | CL34: 6 | DG34: 1 | DH34: 1 | DI34: 4 | DJ34: 3 | DK34: 5 | DL34: 1 | DM34: 4 | DN34: 2 | DO34: 1500 | DP34: 1 | DQ34: 1 | DR34: 2 | EF34: 5 | EG34: 1 | EH34: 1 | EI34: 1 | EJ34: 10 | EK34: 80 | EL34: 洋丰 | EM34: 115 | EN34: 80 | EO34: 27 | EP34: 16 | EQ34: 9 | ER34: 2 | ES34: 2 | ET34: 1 | EU34: 1 | EV34: 15 | EX34: 90 | EY34: 80 | GJ34: 2 | GK34: 2 | GL34: 1 | GM34: 2 | GN34: 2016 | GO34: 2 | GP34: 2 | GQ34: 4 | GR34: 5 | GS34: 5 | GT34: 3 | GU34: 3 | GV34: 1 | GW34: 3 | GX34: 2 | GY34: 2 | GZ34: 3 | HA34: 4 | HB34: 5 | HC34: 5 | HD34: 3 | HE34: 5 | HF34: 2 | HG34: 2 | HH34: 20 | HI34: 4 | HJ34: 1 | HK34: 1 | HL34: 5 | HM34: 3 | HN34: 1 | HO34: 2 | HP34: 3 | HQ34: 1、2 | HR34: 1 | HS34: 2 | HU34: 1 | HV34: 4 | HW34: 3 | HX34: 2 | HY34: 3 | HZ34: 1 | IA34: 2 | IB34: 3 | IC34: 1 | ID34: 2 | IE34: 1 | IF34: 5 | IG34: 1 | IH34: 1 | II34: 2 | IJ34: 4 | IK34: 3 | IL34: 2 | IM34: 2 | IO34: 3 | IP34: 4 | IQ34: 3 | IR34: 2 | IS34: 1 | IT34: 1 | IU34: 1 | IV34: 4 | IW34: 4 | IX34: 2 | IY34: 2 | IZ34: 2 | JA34: 2 | JB34: 3 | JC34: 4 | JD34: 2 | JE34: 4 | JF34: 2 | JG34: 2 | JH34: 1 | JI34: 4 | JJ34: 2 | JK34: 4 | JL34: 2 | JM34: 2 | JN34: 2 | JO34: 1 | JP34: 1 | JQ34: 4 | JR34: 4 | JS34: 5 | JT34: 1、3 | JU34: 1 | JZ34: 1 | KA34: 1 | KB34: 1 | KC34: 2 | KD34: 1 | KF34: 6 | KG34: 3 | KH34: 2 | KJ34: 4 | KK34: 200 | KL34: 2 | KM34: 5 | KN34: 1 | KO34: 1 | KP34: 3 | KQ34: 3 | KR34: 5 | KS34: 5 | KT34: 4 | KU34: 5 | KV34: 5 | KW34: 4 | KX34: 5 | KY34: 1 | KZ34: 1 | LA34: 1 | LB34: 2 | LC34: 2 | LD34: 2 | LE34: 1 | LF34: 1 | LG34: 4 | LH34: 4 | LI34: 3 | LJ34: 3 | LK34: 3、5 | LL34: 3、5 | LM34: 2 | LN34: 2 | LO34: 3 | LP34: 3 | LQ34: 5 | LR34: 2、4 | LS34: 1、3、4 | LT34: 4 | LU34: 3 | LV34: 3 | LW34: 2 | LX34: 4 | LY34: 4 | LZ34: 2 | MA34: 1 | MB34: 1 | MC34: 1 | MD34: 1 | ME34: 1 | MF34: 1 | MG34: 1 | MH34: 1 | MI34: 1 | MJ34: 4 | MK34: 3 | MM34: 2 | MN34: 2 | MO34: 2 | MP34: 2 | MQ34: 2 | MR34: 2 | MT34: 1 | MU34: 1 | MV34: 10 | MW34: 2 | MY34: 2 | NA34: 3 | NB34: 2 | NE34: 1 | NF34: 10 | NG34: 1 | NH34: 2 | NK34: 2 | NN34: 2 | NQ34: 2 | NT34: 1 | NU34: 5 | NV34: 2 | NW34: 2 | NX34: 4 | NY34: 2 | NZ34: 2 | OA34: 1 | OC34: 3 | OD34: 1 | OE34: 1 | OG34: 1 | OI34: 5 | OJ34: 5 | OK34: 1 | OL34: 4 | OM34: 1 | ON34: 2 | OP34: 2 | OQ34: 2 | OS34: 2 | OT34: 1 | OU34: 4 | OV34: 1 | OW34: 2 | OY34: 2 | OZ34: 2 | PB34: 2 | PC34: 2 | PE34: 2 | PF34: 2 | PH34: 2 | PI34: 2 | PK34: 2 | PL34: 2 | PN34: 2 | PO34: 2 | PQ34: 2 | PR34: 1 | PS34: 5 | PT34: 2 | PU34: 2 | PV34: 2 | PW34: 1 | PX34: 5 | PY34: 1 | PZ34: 2 | QA34: 2 | QB34: 3 | QC34: 2 | QD34: 3 | QE34: 2 | QF34: 2 | QG34: 2 | QH34: 2 | QI34: 1 | QJ34: 4 | QK34: 1 | QL34: 4 | QM34: 4 | QN34: 4 | QO34: 5 | QP34: 5 | QQ34: 5 | QR34: 5 | QS34: 2 | QT34: 5 | QU34: 5 | QV34: 5 | QW34: 5 | QX34: 5 | QY34: 5 | QZ34: 5 | RA34: 5 | RB34: 4 | RC34: 5
A35: 30 | B35: 杜三峡 | C35: 杜三峡 | D35: 湖北省 | E35: 荆门市钟祥县 | F35: 长滩镇 | G35: 同心村 | H35: 黄学珍 | I35: 15827843652 | J35: 2 | K35: 0.8 | L35: 4 | M35: 0 | N35: 1 | O35: 2 | P35: 4 | Q35: 8 | R35: 5 | S35: 20000 | T35: 1 | U35: 2 | V35: 2 | W35: 40 | X35: 5 | Y35: 12 | Z35: 2 | AA35: 0 | AB35: 0 | AC35: 0 | AD35: 2 | AE35: 1 | AF35: 1 | AG35: 44 | AH35: 5 | AI35: 12 | AJ35: 1 | AK35: 1 | AL35: 2.4 | AM35: 12 | BR35: 4 | BS35: 74 | BT35: 667 | BU35: 50 | BV35: 17 | BW35: 20 | BX35: 3 | BY35: 2 | BZ35: 3 | CA35: 2500 | CB35: 1 | CC35: 2 | CD35: 17 | CE35: 1100 | CF35: 1.1 | CG35: 150 | CH35: 0 | CI35: 60 | CJ35: 80 | CK35: 150 | CL35: 5 | DG35: 1 | DH35: 2 | DI35: 4 | DJ35: 3 | DK35: 5 | DL35: 1 | DM35: 5 | DN35: 2 | DO35: 800 | DP35: 1 | DQ35: 1 | DR35: 1 | DW35: 1 | DX35: 1 | DY35: 2018 | DZ35: 5 | EG35: 1 | EH35: 1 | EI35: 1 | EJ35: 10 | EK35: 100 | EL35: 洋丰 | EM35: 115 | EN35: 80 | EO35: 27 | EP35: 16 | EQ35: 9 | ER35: 2 | ES35: 2 | ET35: 1 | EU35: 1 | EV35: 20 | EW35: 当阳 | EX35: 92 | EY35: 80 | GJ35: 2 | GK35: 2 | GL35: 1 | GM35: 2 | GN35: 2015 | GO35: 2 | GP35: 3 | GQ35: 4 | GR35: 5 | GS35: 5 | GT35: 3 | GU35: 1 | GV35: 1 | GW35: 5 | GX35: 5 | GY35: 4 | GZ35: 1 | HA35: 3 | HB35: 2 | HC35: 3 | HD35: 3 | HE35: 5 | HF35: 4 | HG35: 4 | HH35: 16 | HI35: 6 | HJ35: 1 | HK35: 5 | HL35: 5 | HM35: 1 | HN35: 1 | HO35: 5 | HP35: 4 | HQ35: 1、2、3 | HR35: 1 | HS35: 2 | HU35: 3 | HV35: 5 | HW35: 4 | HX35: 1 | HY35: 5 | HZ35: 1 | IA35: 2 | IB35: 3 | IC35: 2 | ID35: 1 | IE35: 5 | IF35: 5 | IG35: 1 | IH35: 1 | II35: 1 | IJ35: 5 | IK35: 2 | IL35: 2 | IM35: 2 | IO35: 4 | IP35: 2 | IQ35: 3 | IR35: 1 | IS35: 3 | IT35: 1 | IU35: 1 | IV35: 5 | IW35: 5 | IX35: 2 | IY35: 2 | IZ35: 1 | JA35: 1 | JB35: 4 | JC35: 4 | JD35: 3 | JE35: 5 | JF35: 5 | JG35: 4 | JH35: 2 | JI35: 5 | JJ35: 3 | JK35: 4 | JL35: 3 | JM35: 3 | JN35: 3 | JO35: 2 | JP35: 2 | JQ35: 4 | JR35: 5 | JS35: 5 | JT35: 3 | JU35: 1 | JZ35: 2 | KA35: 1 | KB35: 1 | KC35: 2 | KD35: 1 | KF35: 6 | KG35: 不清楚 | KH35: 2 | KJ35: 4 | KK35: 400 | KL35: 4 | KM35: 5 | KN35: 3 | KO35: 3 | KP35: 5 | KQ35: 5 | KR35: 5 | KS35: 5 | KT35: 5 | KU35: 5 | KV35: 5 | KW35: 5 | KX35: 5 | KY35: 2 | KZ35: 1 | LA35: 1 | LB35: 4 | LC35: 4 | LD35: 4 | LE35: 1 | LF35: 2 | LG35: 4 | LH35: 5 | LI35: 5 | LJ35: 1 | LK35: 3、5 | LL35: 3、5 | LM35: 2 | LN35: 2 | LO35: 2 | LP35: 2 | LQ35: 4 | LR35: 2、4 | LS35: 3、4 | LT35: 5 | LU35: 4 | LV35: 5 | LW35: 5 | LX35: 5 | LY35: 4 | LZ35: 2 | MA35: 1 | MB35: 1 | MC35: 1 | MD35: 1 | ME35: 1 | MF35: 1 | MG35: 1 | MH35: 1 | MI35: 1 | MJ35: 3 | MK35: 3 | MM35: 2 | MN35: 2 | MO35: 2 | MP35: 2 | MQ35: 1 | MR35: 1 | MS35: 5 | MT35: 1 | MU35: 2 | MW35: 2 | MY35: 2 | NB35: 1 | NC35: 0 | ND35: 2 | NE35: 1 | NF35: 10 | NG35: 1 | NH35: 2 | NK35: 2 | NN35: 2 | NQ35: 2 | NT35: 1 | NU35: 5 | NV35: 3 | NW35: 2 | NX35: 5 | NY35: 2 | NZ35: 2 | OA35: 1 | OC35: 3 | OD35: 1 | OE35: 1 | OG35: 1 | OI35: 4 | OJ35: 5 | OK35: 1 | OL35: 5 | OM35: 1 | ON35: 2 | OP35: 2 | OQ35: 2 | OS35: 2 | OT35: 1 | OU35: 5 | OV35: 1 | OW35: 1 | OX35: 4 | OY35: 2 | OZ35: 2 | PB35: 2 | PC35: 2 | PE35: 2 | PF35: 2 | PH35: 2 | PI35: 2 | PK35: 2 | PL35: 2 | PN35: 2 | PO35: 2 | PQ35: 2 | PR35: 2 | PT35: 1 | PU35: 2 | PV35: 2 | PW35: 1 | PX35: 5 | PY35: 1 | PZ35: 3 | QA35: 2 | QB35: 3 | QC35: 2 | QD35: 3 | QE35: 2 | QF35: 4 | QG35: 2 | QH35: 4 | QI35: 1 | QJ35: 2 | QK35: 1 | QL35: 3 | QM35: 5 | QN35: 5 | QO35: 5 | QP35: 5 | QQ35: 4 | QR35: 4 | QS35: 3 | QT35: 5 | QU35: 5 | QV35: 5 | QW35: 4 | QX35: 5 | QY35: 5 | QZ35: 4 | RA35: 4 | RB35: 5 | RC35: 5
A36: 31 | B36: 杜三峡 | C36: 杜三峡 | D36: 湖北省 | E36: 荆门市钟祥县 | F36: 长滩镇 | G36: 同心村 | H36: 段雪君 | I36: 13774033906 | J36: 2 | K36: 2.5 | L36: 4 | M36: 0 | N36: 1 | O36: 2 | P36: 3 | Q36: 6 | R36: 2 | S36: 10000 | T36: 1 | U36: 1 | V36: 1 | W36: 49 | X36: 5 | Y36: 9 | Z36: 1 | AA36: 1 | AB36: 1.5 | AC36: 12 | AD36: 2 | AE36: 2 | AF36: 2 | AG36: 49 | AH36: 5 | AI36: 9 | AJ36: 2 | AK36: 0 | AL36: 0 | AM36: 0 | BR36: 1 | BS36: 26 | BT36: 667 | BU36: 17 | BV36: 18 | BW36: 11 | BX36: 4 | BY36: 1 | BZ36: 3 | CA36: 2000 | CB36: 1 | CC36: 2 | CD36: 18 | CE36: 1300 | CF36: 1 | CG36: 150 | CH36: 0 | CI36: 90 | CJ36: 140 | CK36: 0 | CL36: 6 | DG36: 1 | DH36: 1 | DI36: 5 | DJ36: 3 | DK36: 5 | DL36: 1 | DM36: 5 | DN36: 2 | DO36: 2000 | DP36: 1 | DQ36: 2 | DR36: 1 | DW36: 1 | DX36: 2 | DY36: 2019 | DZ36: 4 | EG36: 1 | EH36: 1 | EI36: 1 | EJ36: 10 | EK36: 80 | EL36: 洋丰 | EM36: 115 | EN36: 80 | EO36: 27 | EP36: 16 | EQ36: 9 | ER36: 2 | ES36: 2 | ET36: 1 | EU36: 1 | EV36: 15 | EX36: 92 | EY36: 80 | GJ36: 2 | GK36: 2 | GL36: 2 | GQ36: 3 | GR36: 5 | GS36: 5 | GT36: 4 | GU36: 3 | GV36: 1 | GW36: 4 | GX36: 4 | GY36: 3 | GZ36: 5 | HA36: 5 | HB36: 5 | HC36: 4 | HD36: 5 | HE36: 3 | HF36: 2 | HG36: 2 | HK36: 1 | HL36: 5 | HM36: 1 | HN36: 1 | HO36: 4 | HP36: 2 | HQ36: 1、2、3 | HR36: 1 | HS36: 2 | HU36: 3 | HV36: 2 | HW36: 5 | HX36: 1 | HY36: 3 | HZ36: 1 | IA36: 2 | IB36: 3 | IC36: 1 | ID36: 1 | IE36: 3 | IF36: 5 | IG36: 1 | IH36: 1 | II36: 1 | IJ36: 5 | IK36: 4 | IL36: 2 | IM36: 2 | JQ36: 5 | JR36: 5 | JS36: 5 | JT36: 3 | JU36: 1 | JZ36: 5 | KA36: 1 | KB36: 1 | KC36: 2 | KD36: 1 | KF36: 6 | KG36: 不清楚 | KJ36: 5 | KK36: 400 | KL36: 5 | KM36: 4 | KN36: 2 | KO36: 1 | KP36: 5 | KQ36: 5 | KR36: 5 | KS36: 5 | KT36: 4 | KU36: 5 | KV36: 5 | KW36: 4 | KX36: 4 | KY36: 3 | KZ36: 1 | LA36: 1 | LB36: 4 | LC36: 4 | LD36: 4 | LE36: 5 | LF36: 5 | LG36: 5 | LH36: 5 | LI36: 3 | LJ36: 4 | LK36: 3、5 | LL36: 1 | LM36: 3 | LN36: 2 | LO36: 2 | LP36: 2 | LQ36: 4 | LR36: 2、3 | LS36: 1、2 | LT36: 4 | LU36: 5 | LV36: 2 | LW36: 1 | LX36: 5 | LY36: 2 | LZ36: 2 | MA36: 1 | MB36: 1 | MC36: 1 | MD36: 1 | ME36: 1 | MF36: 1 | MG36: 1 | MH36: 1 | MI36: 1 | MJ36: 5 | MK36: 3 | MM36: 1 | MN36: 2 | MO36: 2 | MP36: 2 | MQ36: 1 | MR36: 1 | MS36: 5 | MT36: 1 | MU36: 2 | MW36: 2 | MY36: 2 | NB36: 1 | NC36: 10 | ND36: 2 | NE36: 1 | NF36: 10 | NG36: 3 | NH36: 2 | NK36: 2 | NM36: 1 | NN36: 2 | NQ36: 2 | NT36: 1 | NU36: 5 | NW36: 2 | NX36: 5 | NY36: 2 | NZ36: 2 | OA36: 1 | OC36: 3 | OD36: 1 | OE36: 1 | OG36: 1 | OI36: 4 | OJ36: 5 | OK36: 1 | OL36: 5 | OM36: 1 | ON36: 1 | OO36: 4 | OP36: 1 | OQ36: 1 | OR36: 5 | OS36: 1 | OT36: 1 | OU36: 5 | OV36: 1 | OW36: 2 | OY36: 2 | OZ36: 1 | PA36: 5 | PB36: 1 | PC36: 2 | PE36: 2 | PF36: 2 | PH36: 2 | PI36: 1 | PJ36: 4 | PK36: 1 | PL36: 2 | PN36: 2 | PO36: 2 | PQ36: 2 | PR36: 1 | PS36: 5 | PT36: 1 | PU36: 2 | PV36: 2 | PW36: 1 | PX36: 1 | PY36: 1 | PZ36: 5 | QA36: 2 | QB36: 4 | QC36: 2 | QD36: 4 | QE36: 2 | QF36: 3 | QG36: 2 | QH36: 3 | QI36: 1 | QJ36: 5 | QK36: 1 | QL36: 5 | QM36: 5 | QN36: 4 | QO36: 5 | QP36: 5 | QQ36: 5 | QR36: 5 | QS36: 4 | QT36: 5 | QU36: 5 | QV36: 5 | QW36: 4 | QX36: 5 | QY36: 5 | QZ36: 4 | RA36: 5 | RB36: 5 | RC36: 5
A37: 32 | B37: 杜三峡 | C37: 杜三峡 | D37: 湖北省 | E37: 荆门市钟祥县 | F37: 长滩镇 | G37: 同心村 | H37: 陈莉 | I37: 15908658759 | J37: 2 | K37: 2.5 | L37: 4 | M37: 0 | N37: 0 | O37: 2 | P37: 3 | Q37: 12 | R37: 8 | S37: 30000 | T37: 1 | U37: 2 | V37: 2 | W37: 50 | X37: 5 | Y37: 12 | Z37: 1 | AA37: 1 | AB37: 1.5 | AC37: 12 | AD37: 2 | AE37: 1 | AF37: 1 | AG37: 53 | AH37: 5 | AI37: 9 | AJ37: 2 | AK37: 4 | AL37: 2 | AM37: 2 | BR37: 4 | BS37: 90 | BT37: 667 | BU37: 80 | BV37: 70 | BW37: 60 | BX37: 3 | BY37: 1 | BZ37: 3 | CA37: 800 | CB37: 1 | CC37: 2 | CD37: 70 | CE37: 1200 | CF37: 1 | CG37: 200 | CH37: 0 | CI37: 90 | CJ37: 140 | CK37: 160 | CL37: 6 | DG37: 1 | DH37: 1 | DI37: 5 | DJ37: 3 | DK37: 5 | DL37: 1 | DM37: 5 | DN37: 2 | DO37: 1000 | DP37: 1 | DQ37: 1 | DR37: 2 | EF37: 2 | EG37: 1 | EH37: 1 | EI37: 1 | EJ37: 10 | EK37: 100 | EL37: 洋丰 | EM37: 125 | EN37: 80 | EO37: 17 | EP37: 16 | EQ37: 9 | ER37: 2 | ES37: 2 | ET37: 1 | EU37: 1 | EV37: 20 | EW37: 枝江 | EX37: 98 | EY37: 80 | FC37: 3 | FD37: 2 | FE37: 1 | FF37: 10 | FG37: 20 | FH37: 洋丰 | FI37: 125 | FJ37: 80 | FK37: 27 | FL37: 16 | FM37: 9 | GJ37: 2 | GK37: 2 | GL37: 2 | GQ37: 4 | GR37: 5 | GS37: 5 | GT37: 5 | GU37: 2 | GV37: 4 | GW37: 5 | GX37: 1 | GY37: 4 | GZ37: 5 | HA37: 5 | HB37: 4 | HC37: 2 | HD37: 5 | HE37: 5 | HF37: 1 | HG37: 1 | HK37: 1 | HL37: 5 | HM37: 1 | HN37: 1 | HO37: 5 | HP37: 4 | HQ37: 1、2、3、4、5 | HR37: 2 | HS37: 2 | HU37: 2 | HV37: 4 | HW37: 3 | HX37: 2 | HY37: 1 | HZ37: 1 | IA37: 2 | IB37: 3 | IC37: 2 | ID37: 2 | IE37: 1 | IF37: 3 | IG37: 1 | IH37: 1 | II37: 2 | IJ37: 5 | IK37: 1 | IL37: 2 | IM37: 2 | JQ37: 3 | JR37: 5 | JS37: 5 | JT37: 1 | JU37: 2 | JV37: 2 | JW37: 2 | JX37: 2 | JY37: 2 | JZ37: 5 | KA37: 1 | KB37: 1 | KC37: 1 | KD37: 1 | KF37: 6 | KH37: 2 | KJ37: 3 | KK37: 500 | KL37: 1 | KM37: 5 | KN37: 2 | KO37: 2 | KP37: 5 | KQ37: 5 | KR37: 4 | KS37: 5 | KT37: 4 | KU37: 5 | KV37: 5 | KW37: 4 | KX37: 5 | KY37: 4 | KZ37: 1 | LA37: 1 | LB37: 5 | LC37: 5 | LD37: 5 | LE37: 1 | LF37: 3 | LG37: 5 | LH37: 4 | LI37: 3 | LJ37: 1 | LK37: 1 | LL37: 1 | LM37: 3 | LN37: 1 | LO37: 1 | LP37: 2 | LQ37: 4 | LR37: 1、2 | LS37: 1、2 | LT37: 1 | LU37: 3 | LV37: 3 | LW37: 2 | LX37: 4 | LY37: 3 | LZ37: 2 | MA37: 1 | MB37: 1 | MC37: 1 | MD37: 1 | ME37: 1 | MF37: 1 | MG37: 1 | MH37: 1 | MI37: 1 | MJ37: 5 | MK37: 2 | ML37: 2 | MM37: 1 | MN37: 2 | MO37: 2 | MP37: 2 | MQ37: 1 | MR37: 1 | MS37: 5 | MT37: 2 | MU37: 2 | MW37: 1 | MX37: 4 | MY37: 2 | NA37: 2 | NB37: 1 | NC37: 0 | NE37: 1 | NF37: 0 | NH37: 2 | NK37: 2 | NM37: 1 | NN37: 2 | NP37: 3 | NQ37: 1 | NR37: 0 | NT37: 1 | NU37: 0 | NW37: 2 | NX37: 5 | NY37: 5 | NZ37: 3 | OA37: 1 | OC37: 3 | OD37: 1 | OE37: 3 | OF37: 7 | OG37: 1 | OI37: 4 | OJ37: 5 | OK37: 1 | OL37: 5 | OM37: 1 | ON37: 1 | OO37: 4 | OP37: 1 | OQ37: 1 | OR37: 4 | OS37: 1 | OT37: 1 | OU37: 5 | OV37: 1 | OW37: 2 | OY37: 2 | OZ37: 2 | PB37: 2 | PC37: 2 | PE37: 2 | PF37: 2 | PH37: 2 | PI37: 2 | PK37: 2 | PL37: 2 | PN37: 2 | PO37: 2 | PQ37: 2 | PR37: 1 | PS37: 5 | PT37: 1 | PU37: 1 | PV37: 2 | PW37: 1 | PX37: 10 | PY37: 1 | PZ37: 5 | QA37: 2 | QB37: 3 | QC37: 2 | QD37: 3 | QE37: 1 | QF37: 4 | QG37: 1 | QH37: 3 | QI37: 1 | QJ37: 5 | QK37: 1 | QL37: 5 | QM37: 3 | QN37: 4 | QO37: 5 | QP37: 3 | QQ37: 5 | QR37: 5 | QS37: 5 | QT37: 5 | QU37: 5 | QV37: 5 | QW37: 2 | QX37: 5 | QY37: 5 | QZ37: 5 | RA37: 5 | RB37: 5 | RC37: 5
A38: 33 | B38: 杜三峡 | C38: 杜三峡 | D38: 湖北省 | E38: 荆门市钟祥县 | F38: 长滩镇 | G38: 同心村 | H38: 黄学翠 | I38: 13797932030 | J38: 2 | K38: 3 | L38: 4 | M38: 0 | N38: 2 | O38: 2 | P38: 4 | Q38: 3.5 | R38: 1 | S38: 15000 | T38: 1 | U38: 4 | V38: 2 | W38: 43 | X38: 5 | Y38: 12 | Z38: 2 | AA38: 1 | AB38: 2 | AC38: 12 | AD38: 2 | AE38: 1 | AF38: 1 | AG38: 70 | AH38: 3 | AI38: 6 | AJ38: 2 | AK38: 0 | AL38: 0 | AM38: 0 | AN38: 3 | AO38: 2 | AP38: 2 | AQ38: 72 | AR38: 3 | AS38: 3 | AT38: 2 | AU38: 0 | AV38: 0 | AW38: 0 | BR38: 1 | BS38: 10 | BT38: 667 | BU38: 10 | BV38: 7 | BW38: 6 | BX38: 4 | BY38: 2 | BZ38: 3 | CA38: 1000 | CB38: 1 | CC38: 2 | CD38: 7 | CE38: 1100 | CF38: 1.01 | CG38: 150 | CH38: 0 | CI38: 90 | CJ38: 240 | CK38: 170 | CL38: 5 | DG38: 1 | DH38: 2 | DI38: 4 | DJ38: 1 | DK38: 5 | DL38: 1 | DM38: 5 | DN38: 2 | DO38: 1000 | DP38: 1 | DQ38: 2 | DR38: 2 | EF38: 2 | EG38: 1 | EH38: 1 | EI38: 1 | EJ38: 10 | EK38: 100 | EL38: 洋丰 | EM38: 115 | EN38: 80 | EO38: 27 | EP38: 16 | EQ38: 9 | ER38: 2 | ES38: 2 | ET38: 1 | EU38: 1 | EV38: 20 | EW38: 三宁 | EX38: 90 | EY38: 80 | FC38: 3 | FD38: 1 | FE38: 1 | FF38: 10 | FG38: 20 | FH38: 洋丰 | FI38: 115 | FJ38: 80 | FK38: 27 | FL38: 16 | FM38: 9 | GJ38: 2、3 | GK38: 2 | GL38: 1 | GM38: 2 | GN38: 2007 | GO38: 2 | GP38: 2 | GQ38: 5 | GR38: 5 | GS38: 5 | GT38: 4 | GU38: 4 | GV38: 2 | GW38: 2 | GX38: 3 | GY38: 2 | GZ38: 5 | HA38: 5 | HB38: 5 | HC38: 2 | HD38: 2 | HE38: 5 | HF38: 3 | HG38: 3 | HH38: 14 | HI38: 2 | HJ38: 1 | HK38: 1 | HL38: 2 | HM38: 1 | HN38: 1 | HO38: 5 | HP38: 3 | HQ38: 1 | HR38: 2 | HS38: 2 | HU38: 1 | HV38: 5 | HW38: 3 | HX38: 2 | HY38: 5 | HZ38: 2 | IA38: 2 | IB38: 4 | IC38: 2 | ID38: 1 | IE38: 2 | IF38: 5 | IG38: 1 | IH38: 1 | II38: 2 | IJ38: 5 | IK38: 4 | IL38: 2 | IM38: 2 | IO38: 3 | IP38: 2 | IQ38: 2 | IR38: 1 | IS38: 1 | IT38: 1 | IU38: 1 | IV38: 2 | IW38: 2 | IX38: 1 | IY38: 1 | IZ38: 1 | JA38: 1 | JB38: 1 | JC38: 1 | JD38: 1 | JE38: 4 | JF38: 3 | JG38: 3 | JH38: 2 | JI38: 1 | JJ38: 2 | JK38: 3 | JL38: 1 | JM38: 1 | JN38: 1 | JO38: 1 | JP38: 1 | JQ38: 5 | JR38: 5 | JS38: 5 | JT38: 1、2、3 | JU38: 2 | JV38: 2 | JW38: 2 | JX38: 2 | JY38: 2 | JZ38: 4 | KA38: 1 | KB38: 1 | KC38: 1 | KD38: 1 | KF38: 6 | KG38: 12 | KJ38: 1 | KK38: 500 | KL38: 2 | KM38: 5 | KN38: 1 | KO38: 3 | KP38: 5 | KQ38: 5 | KR38: 5 | KS38: 5 | KT38: 5 | KU38: 5 | KV38: 5 | KW38: 5 | KX38: 5 | KY38: 4 | KZ38: 1 | LA38: 1 | LB38: 4 | LC38: 4 | LD38: 5 | LE38: 4 | LF38: 4 | LG38: 5 | LH38: 5 | LI38: 4 | LJ38: 1 | LK38: 1、3、5 | LL38: 1、3、5 | LM38: 2 | LN38: 2 | LO38: 2 | LP38: 2 | LQ38: 4 | LR38: 2、4 | LS38: 1、2 | LT38: 1 | LU38: 4 | LV38: 3 | LW38: 2 | LX38: 4 | LY38: 4 | LZ38: 2 | MA38: 1 | MB38: 1 | MC38: 1 | MD38: 1 | ME38: 1 | MF38: 1 | MG38: 1 | MH38: 1 | MI38: 1 | MJ38: 5 | MK38: 3 | MM38: 1 | MN38: 2 | MO38: 2 | MP38: 2 | MQ38: 1 | MR38: 2 | MT38: 1 | MU38: 2 | MW38: 2 | MY38: 2 | NB38: 2 | NE38: 1 | NF38: 10 | NG38: 1 | NH38: 2 | NK38: 2 | NM38: 2 | NN38: 2 | NQ38: 2 | NT38: 1 | NU38: 10 | NV38: 3 | NW38: 2 | NX38: 5 | NY38: 2 | NZ38: 3 | OA38: 1 | OC38: 3 | OD38: 1 | OE38: 1 | OG38: 1 | OI38: 3 | OJ38: 4 | OK38: 1 | OL38: 5 | OM38: 1 | ON38: 1 | OO38: 4 | OP38: 1 | OQ38: 1 | OR38: 4 | OS38: 1 | OT38: 1 | OU38: 5 | OV38: 1 | OW38: 2 | OY38: 2 | OZ38: 2 | PB38: 2 | PC38: 2 | PE38: 2 | PF38: 2 | PH38: 2 | PI38: 2 | PK38: 2 | PL38: 2 | PN38: 2 | PO38: 2 | PQ38: 2 | PR38: 1 | PS38: 4 | PT38: 2 | PU38: 2 | PV38: 2 | PW38: 1 | PX38: 3 | PY38: 3 | PZ38: 4 | QA38: 2 | QB38: 3 | QC38: 2 | QD38: 4 | QE38: 2 | QF38: 3 | QG38: 2 | QH38: 4 | QI38: 1 | QJ38: 5 | QK38: 1 | QL38: 5 | QM38: 5 | QN38: 4 | QO38: 5 | QP38: 3 | QQ38: 5 | QR38: 5 | QS38: 3 | QT38: 5 | QU38: 5 | QV38: 5 | QW38: 4 | QX38: 4 | QY38: 5 | QZ38: 5 | RA38: 3 | RB38: 4 | RC38: 4
A39: 34 | B39: 杜三峡 | C39: 杜三峡 | D39: 湖北省 | E39: 荆门市钟祥县 | F39: 长寿镇 | G39: 刘畈村 | H39: 钟萍 | I39: 13451182155 | J39: 2 | K39: 3 | L39: 3 | M39: 0 | N39: 0 | O39: 2 | P39: 2 | Q39: 13 | R39: 5 | S39: 8000 | T39: 1 | U39: 2 | V39: 2 | W39: 42 | X39: 5 | Y39: 12 | Z39: 1 | AA39: 1 | AB39: 1.5 | AC39: 12 | AD39: 2 | AE39: 1 | AF39: 1 | AG39: 43 | AH39: 5 | AI39: 12 | AJ39: 2 | AK39: 0 | AL39: 0 | AM39: 0 | AN39: 3 | AO39: 4 | AP39: 1 | AQ39: 20 | AR39: 5 | AS39: 16 | AT39: 2 | AU39: 5 | AV39: 6 | AW39: 12 | BR39: 4 | BS39: 35 | BT39: 667 | BU39: 20 | BV39: 35 | BW39: 20 | BX39: 3 | BY39: 1 | BZ39: 3 | CA39: 1000 | CB39: 1 | CC39: 2 | CD39: 35 | CE39: 1400 | CF39: 1.05 | CG39: 200 | CH39: 0 | CI39: 60 | CJ39: 0 | CK39: 0 | CL39: 12 | DG39: 1 | DH39: 3 | DI39: 5 | DJ39: 3 | DK39: 5 | DL39: 3 | DM39: 5 | DN39: 2 | DO39: 2000 | DP39: 2 | DQ39: 2 | DR39: 1 | DS39: 1 | DT39: 2 | DU39: 2018 | DV39: 5 | DW39: 1 | DX39: 2 | DY39: 2018 | DZ39: 5 | EG39: 1 | EH39: 1 | EI39: 5 | EJ39: 9 | EK39: 80 | EL39: 南国 | EM39: 105 | EN39: 80 | ER39: 2 | ES39: 2 | ET39: 1 | EU39: 1 | EV39: 10 | EW39: 枝江 | EX39: 90 | EY39: 80 | GJ39: 1 | GK39: 2 | GL39: 1 | GM39: 1 | GN39: 2013 | GO39: 1 | GP39: 1、2 | GQ39: 4 | GR39: 5 | GS39: 5 | GT39: 5 | GU39: 2 | GV39: 1 | GW39: 5 | GX39: 4 | GY39: 5 | GZ39: 5 | HA39: 5 | HB39: 5 | HC39: 2 | HD39: 5 | HE39: 5 | HF39: 4 | HG39: 4 | HH39: 35 | HI39: 6 | HJ39: 1 | HK39: 3 | HL39: 5 | HM39: 4 | HN39: 1 | HO39: 5 | HP39: 5 | HQ39: 1、2、3、4、5 | HR39: 1 | HS39: 1 | HT39: 4 | HU39: 3 | HV39: 5 | HW39: 5 | HX39: 1 | HY39: 5 | HZ39: 1 | IA39: 1 | IB39: 3 | IC39: 1 | ID39: 1 | IE39: 3 | IF39: 5 | IG39: 1 | IH39: 1 | II39: 2 | IJ39: 5 | IK39: 2 | IL39: 1 | IM39: 1 | IN39: 4 | IO39: 4 | IP39: 5 | IQ39: 3 | IR39: 4 | IS39: 4 | IT39: 5 | IU39: 4 | IV39: 4 | IW39: 3 | IX39: 4 | IY39: 4 | IZ39: 4 | JA39: 4 | JB39: 5 | JC39: 5 | JD39: 4 | JE39: 5 | JF39: 5 | JG39: 5 | JH39: 3 | JI39: 5 | JJ39: 5 | JK39: 5 | JL39: 5 | JM39: 4 | JN39: 5 | JO39: 5 | JP39: 5 | JQ39: 5 | JR39: 5 | JS39: 5 | JT39: 1、2、3 | JU39: 1 | JZ39: 5 | KA39: 1 | KB39: 1 | KC39: 1 | KD39: 1 | KF39: 6 | KG39: 按受灾比例 | KH39: 1 | KI39: 60 | KJ39: 5 | KK39: 500 | KL39: 5 | KM39: 5 | KN39: 3 | KO39: 4 | KP39: 5 | KQ39: 5 | KR39: 5 | KS39: 5 | KT39: 4 | KU39: 5 | KV39: 5 | KW39: 3 | KX39: 5 | KY39: 4 | KZ39: 1 | LA39: 1 | LB39: 4 | LC39: 4 | LD39: 5 | LE39: 1 | LF39: 2 | LG39: 4 | LH39: 5 | LI39: 4 | LJ39: 2 | LK39: 3、4、5 | LL39: 3、4、5 | LM39: 1 | LN39: 1 | LO39: 3 | LP39: 3 | LQ39: 4 | LR39: 3 | LS39: 1 | LT39: 3 | LU39: 5 | LV39: 5 | LW39: 5 | LX39: 5 | LY39: 5 | LZ39: 2 | MA39: 1 | MB39: 1 | MC39: 1 | MD39: 1 | ME39: 1 | MF39: 1 | MG39: 1 | MH39: 1 | MI39: 1 | MJ39: 5 | MK39: 1 | ML39: 2 | MM39: 1 | MN39: 2 | MO39: 2 | MP39: 1 | MQ39: 1 | MR39: 1 | MS39: 5 | MT39: 2 | MU39: 2 | MW39: 2 | MY39: 2 | NB39: 1 | NC39: 10 | NE39: 1 | NF39: 10 | NG39: 1 | NH39: 2 | NK39: 2 | NN39: 2 | NQ39: 1 | NR39: 10 | NS39: 2 | NT39: 1 | NU39: 10 | NV39: 3 | NW39: 2 | NX39: 4 | NY39: 5 | NZ39: 4 | OA39: 1 | OC39: 3 | OD39: 1 | OE39: 3 | OF39: 7 | OG39: 3 | OH39: 7 | OI39: 4 | OJ39: 5 | OK39: 1 | OL39: 5 | OM39: 1 | ON39: 2 | OP39: 1 | OQ39: 1 | OR39: 5 | OS39: 1 | OT39: 1 | OU39: 4 | OV39: 1 | OW39: 1 | OX39: 5 | OY39: 1 | OZ39: 2 | PB39: 2 | PC39: 2 | PE39: 2 | PF39: 2 | PH39: 2 | PI39: 2 | PK39: 2 | PL39: 1 | PM39: 5 | PN39: 1 | PO39: 1 | PP39: 5 | PQ39: 1 | PR39: 1 | PS39: 5 | PT39: 1 | PU39: 2 | PV39: 2 | PW39: 1 | PX39: 3 | PY39: 3 | PZ39: 4 | QA39: 2 | QB39: 5 | QC39: 2 | QD39: 4 | QE39: 2 | QF39: 4 | QG39: 1 | QH39: 1 | QI39: 1 | QJ39: 5 | QK39: 1 | QL39: 5 | QM39: 5 | QN39: 5 | QO39: 5 | QP39: 5 | QQ39: 5 | QR39: 5 | QS39: 4 | QT39: 5 | QU39: 5 | QV39: 5 | QW39: 5 | QX39: 5 | QY39: 5 | QZ39: 5 | RA39: 4 | RB39: 5 | RC39: 5
A40: 35 | B40: 杜三峡 | C40: 杜三峡 | D40: 湖北省 | E40: 荆门市钟祥县 | F40: 长寿镇 | G40: 刘畈村 | H40: 江学胜 | I40: 15972637913 | J40: 2 | K40: 2 | L40: 5 | M40: 1 | N40: 2 | O40: 2 | P40: 3 | Q40: 7 | R40: 2 | S40: 20000 | T40: 1 | U40: 1 | V40: 1 | W40: 65 | X40: 5 | Y40: 6 | Z40: 2 | AA40: 1 | AB40: 0.6 | AC40: 2 | AD40: 2 | AE40: 2 | AF40: 2 | AG40: 65 | AH40: 5 | AI40: 0 | AJ40: 2 | AK40: 1 | AL40: 0.2 | AM40: 1 | AN40: 3 | AO40: 4 | AP40: 1 | AQ40: 42 | AR40: 5 | AS40: 9 | AT40: 2 | AU40: 2 | AV40: 4 | AW40: 12 | BR40: 1 | BS40: 15 | BT40: 667 | BU40: 8 | BV40: 15 | BW40: 8 | BX40: 3 | BY40: 2 | BZ40: 3 | CA40: 500 | CB40: 1 | CC40: 2 | CD40: 15 | CE40: 1600 | CF40: 1.06 | CG40: 180 | CH40: 0 | CI40: 200 | CJ40: 80 | CK40: 0 | CL40: 10 | DG40: 1 | DH40: 2 | DI40: 1 | DJ40: 3 | DK40: 5 | DL40: 1 | DM40: 4 | DN40: 1 | DO40: 2000 | DP40: 2 | DQ40: 2 | DR40: 2 | EF40: 2 | EG40: 1 | EH40: 1 | EI40: 1 | EJ40: 10 | EK40: 80 | EM40: 120 | EN40: 80 | EO40: 26 | EP40: 20 | EQ40: 6 | ER40: 2 | ES40: 2 | ET40: 1 | EU40: 1 | EV40: 30 | EW40: 当阳 | EX40: 90 | EY40: 80 | FC40: 3 | FD40: 2 | FE40: 1 | FF40: 1 | FG40: 30 | FI40: 90 | FJ40: 80 | GJ40: 2 | GK40: 2 | GL40: 1 | GM40: 2 | GN40: 2013 | GO40: 1 | GP40: 3 | GQ40: 4 | GR40: 3 | GS40: 3 | GT40: 4 | GU40: 4 | GV40: 5 | GW40: 4 | GX40: 3 | GY40: 3 | GZ40: 2 | HA40: 3 | HB40: 1 | HC40: 1 | HD40: 1 | HE40: 4 | HF40: 1 | HG40: 1 | HH40: 20 | HI40: 4 | HJ40: 1 | HK40: 5 | HL40: 5 | HM40: 5 | HN40: 1 | HO40: 5 | HP40: 3 | HQ40: 1、2、3 | HR40: 1 | HS40: 2 | HU40: 3 | HV40: 4 | HW40: 1 | HX40: 1 | HY40: 5 | HZ40: 3、4 | IA40: 2 | IB40: 3 | IC40: 1 | ID40: 1 | IE40: 3 | IF40: 5 | IG40: 1 | IH40: 1 | II40: 2 | IJ40: 5 | IK40: 5 | IL40: 2 | IM40: 2 | IO40: 2 | IP40: 1 | IQ40: 2 | IR40: 3 | IS40: 3 | IT40: 5 | IU40: 5 | IV40: 4 | IW40: 3 | IX40: 2 | IY40: 2 | IZ40: 1 | JA40: 1 | JB40: 5 | JC40: 5 | JD40: 4 | JE40: 4 | JF40: 3 | JG40: 4 | JH40: 4 | JI40: 5 | JJ40: 1 | JK40: 4 | JL40: 2 | JM40: 1 | JN40: 1 | JO40: 1 | JP40: 1 | JQ40: 5 | JR40: 5 | JS40: 5 | JT40: 1 | JU40: 1 | JZ40: 5 | KA40: 1 | KB40: 1 | KC40: 1 | KD40: 1 | KF40: 6 | KG40: 按受灾比例 | KH40: 2 | KJ40: 5 | KK40: 200 | KL40: 4 | KM40: 5 | KN40: 1 | KO40: 4 | KP40: 5 | KQ40: 5 | KR40: 5 | KS40: 5 | KT40: 5 | KU40: 5 | KV40: 5 | KW40: 4 | KX40: 5 | KY40: 3 | KZ40: 1 | LA40: 1 | LB40: 4 | LC40: 4 | LD40: 5 | LE40: 5 | LF40: 4 | LG40: 4 | LH40: 4 | LI40: 3 | LJ40: 4 | LK40: 1 | LL40: 1 | LM40: 2 | LN40: 2 | LO40: 3 | LP40: 3 | LQ40: 4 | LR40: 4 | LS40: 5 | LT40: 3 | LU40: 5 | LV40: 3 | LW40: 2 | LX40: 5 | LY40: 5 | LZ40: 2 | MA40: 1 | MB40: 1 | MC40: 1 | MD40: 1 | ME40: 1 | MF40: 1 | MG40: 1 | MH40: 1 | MI40: 1 | MJ40: 4 | MK40: 3 | MM40: 1 | MN40: 2 | MO40: 2 | MP40: 1 | MQ40: 1 | MR40: 2 | MT40: 1 | MU40: 2 | MW40: 1 | MX40: 4 | MY40: 1 | MZ40: 0 | NB40: 1 | NC40: 10 | NE40: 1 | NF40: 10 | NG40: 3 | NH40: 2 | NK40: 2 | NM40: 1 | NN40: 2 | NP40: 2 | NQ40: 1 | NR40: 0 | NT40: 1 | NU40: 0 | NW40: 2 | NX40: 4 | NY40: 4 | NZ40: 1 | OA40: 1 | OC40: 3 | OD40: 1 | OE40: 1 | OG40: 1 | OI40: 4 | OJ40: 5 | OK40: 1 | OL40: 5 | OM40: 1 | ON40: 2 | OP40: 2 | OQ40: 1 | OR40: 5 | OS40: 1 | OT40: 2 | OV40: 2 | OW40: 2 | OY40: 2 | OZ40: 2 | PB40: 2 | PC40: 2 | PE40: 2 | PF40: 2 | PH40: 2 | PI40: 2 | PK40: 2 | PL40: 2 | PN40: 2 | PO40: 2 | PQ40: 2 | PR40: 1 | PS40: 5 | PT40: 1 | PU40: 2 | PV40: 1 | PZ40: 2 | QA40: 2 | QB40: 3 | QC40: 2 | QD40: 3 | QE40: 2 | QF40: 4 | QG40: 2 | QH40: 3 | QI40: 2 | QJ40: 4 | QK40: 1 | QL40: 5 | QM40: 4 | QN40: 4 | QO40: 4 | QP40: 5 | QQ40: 4 | QR40: 2 | QS40: 2 | QT40: 4 | QU40: 4 | QV40: 4 | QW40: 5 | QX40: 5 | QY40: 5 | QZ40: 3 | RA40: 1 | RB40: 2 | RC40: 2
A41: 36 | B41: 杜三峡 | C41: 杜三峡 | D41: 湖北省 | E41: 荆门市钟祥县 | F41: 长寿镇 | G41: 刘畈村 | H41: 杨中国 | I41: 15827825442 | J41: 2 | K41: 2.5 | L41: 6 | M41: 1 | N41: 2 | O41: 1 | P41: 4 | Q41: 1 | R41: 1.5 | S41: 8000 | T41: 1 | U41: 1 | V41: 1 | W41: 63 | X41: 4 | Y41: 7 | Z41: 2 | AA41: 1 | AB41: 0.5 | AC41: 3 | AD41: 2 | AE41: 2 | AF41: 2 | AG41: 60 | AH41: 3 | AI41: 4 | AJ41: 2 | AK41: 0 | AL41: 0 | AM41: 0 | AN41: 3 | AO41: 4 | AP41: 1 | AQ41: 38 | AR41: 5 | AS41: 9 | AT41: 2 | AU41: 5 | AV41: 4 | AW41: 12 | AX41: 4 | AY41: 4 | AZ41: 1 | BA41: 29 | BB41: 5 | BC41: 12 | BD41: 2 | BE41: 5 | BF41: 5 | BG41: 12 | BR41: 1 | BS41: 10 | BT41: 667 | BU41: 6 | BV41: 10 | BW41: 6 | BX41: 3 | BY41: 1 | BZ41: 3 | CA41: 1000 | CB41: 1 | CC41: 2 | CD41: 10 | CE41: 1250 | CF41: 1.1 | CG41: 180 | CH41: 0 | CI41: 60 | CJ41: 26 | CK41: 0 | CL41: 12 | DG41: 1 | DH41: 1 | DI41: 5 | DJ41: 1 | DK41: 5 | DL41: 1 | DM41: 5 | DN41: 2 | DO41: 1500 | DP41: 1 | DQ41: 2 | DR41: 1 | DW41: 3 | DX41: 2 | DY41: 2018 | DZ41: 4 | EG41: 1 | EH41: 1 | EI41: 1 | EJ41: 9 | EK41: 80 | EL41: 桂湖 | EM41: 125 | EN41: 80 | EO41: 26 | EP41: 10 | EQ41: 16 | ER41: 2 | ES41: 2 | ET41: 1 | EU41: 1 | EV41: 10 | EW41: 三宁 | EX41: 100 | EY41: 80 | EZ41: 46.4 | GJ41: 1、7不同功效 | GK41: 1 | GL41: 1 | GM41: 1 | GN41: 2005 | GO41: 1 | GP41: 1 | GQ41: 4 | GR41: 5 | GS41: 5 | GT41: 5 | GU41: 5 | GV41: 5 | GW41: 5 | GX41: 3 | GY41: 3 | GZ41: 5 | HA41: 5 | HB41: 5 | HC41: 1 | HD41: 1 | HE41: 5 | HF41: 5 | HG41: 4 | HH41: 10 | HI41: 1 | HJ41: 2 | HK41: 1 | HL41: 5 | HM41: 1 | HN41: 1 | HO41: 5 | HP41: 5 | HQ41: 1 | HR41: 1 | HS41: 2 | HU41: 1 | HV41: 5 | HW41: 5 | HX41: 1 | HY41: 5 | HZ41: 1 | IA41: 2 | IB41: 4 | IC41: 2 | ID41: 2 | IE41: 1 | IF41: 5 | IG41: 1 | IH41: 1 | II41: 1 | IJ41: 4 | IK41: 3 | IL41: 2 | IM41: 2 | IO41: 4 | IP41: 5 | IQ41: 3 | IR41: 4 | IS41: 4 | IT41: 4 | IU41: 5 | IV41: 4 | IW41: 2 | IX41: 4 | IY41: 2 | IZ41: 3 | JA41: 2 | JB41: 5 | JC41: 5 | JD41: 5 | JE41: 5 | JF41: 5 | JG41: 4 | JH41: 4 | JI41: 5 | JJ41: 4 | JK41: 5 | JL41: 4 | JM41: 4 | JN41: 5 | JO41: 5 | JP41: 5 | JQ41: 2 | JR41: 1 | JS41: 5 | JT41: 4商家 | JU41: 1 | JZ41: 4 | KA41: 1 | KB41: 2 | KJ41: 3 | KK41: 4 | KL41: 5 | KM41: 2 | KN41: 5 | KO41: 5 | KP41: 5 | KQ41: 5 | KR41: 5 | KS41: 5 | KT41: 4 | KU41: 5 | KV41: 5 | KW41: 4 | KX41: 5 | KY41: 4 | KZ41: 1 | LA41: 1 | LB41: 4 | LC41: 4 | LD41: 4 | LE41: 4 | LF41: 4 | LG41: 5 | LH41: 4 | LI41: 4 | LJ41: 3 | LK41: 1 | LL41: 1 | LM41: 2 | LN41: 2 | LO41: 2 | LP41: 2 | LQ41: 4 | LR41: 1、2 | LS41: 1、3、4 | LT41: 4 | LU41: 5 | LV41: 4 | LW41: 3 | LX41: 5 | LY41: 5 | LZ41: 2 | MA41: 1 | MB41: 1 | MC41: 1 | MD41: 1 | ME41: 1 | MF41: 1 | MG41: 1 | MH41: 1 | MI41: 1 | MJ41: 4 | MK41: 3 | MM41: 1 | MN41: 2 | MO41: 2 | MP41: 2 | MQ41: 1 | MR41: 2 | MT41: 2 | MU41: 2 | MW41: 1 | MX41: 4 | MY41: 2 | NB41: 1 | NC41: 0 | NE41: 1 | NF41: 10 | NG41: 2 | NH41: 2 | NK41: 2 | NM41: 1 | NN41: 2 | NQ41: 1 | NR41: 0 | NS41: 3 | NT41: 1 | NU41: 0 | NW41: 2 | NX41: 5 | NY41: 4 | NZ41: 4 | OA41: 1 | OC41: 3 | OD41: 1 | OE41: 1 | OG41: 1 | OI41: 4 | OJ41: 5 | OK41: 1 | OL41: 4 | OM41: 1 | ON41: 2 | OP41: 2 | OQ41: 1 | OR41: 5 | OS41: 1 | OT41: 1 | OU41: 5 | OV41: 1 | OW41: 2 | OY41: 2 | OZ41: 2 | PB41: 2 | PC41: 2 | PE41: 2 | PF41: 2 | PH41: 2 | PI41: 2 | PK41: 2 | PL41: 2 | PN41: 2 | PO41: 2 | PQ41: 2 | PR41: 1 | PS41: 5 | PT41: 2 | PU41: 2 | PV41: 2 | PW41: 1 | PX41: 4 | PY41: 1 | PZ41: 4 | QA41: 2 | QB41: 4 | QC41: 2 | QD41: 3 | QE41: 2 | QF41: 4 | QG41: 1 | QH41: 5 | QI41: 1 | QJ41: 5 | QK41: 1 | QL41: 5 | QM41: 4 | QN41: 5 | QO41: 5 | QP41: 5 | QQ41: 4 | QR41: 4 | QS41: 3 | QT41: 5 | QU41: 5 | QV41: 5 | QW41: 5 | QX41: 5 | QY41: 5 | QZ41: 5 | RA41: 3 | RB41: 4 | RC41: 4
A42: 37 | B42: 杜三峡 | C42: 杜三峡 | D42: 湖北省 | E42: 荆门市钟祥县 | F42: 长寿镇 | G42: 刘畈村 | H42: 杨明财 | I42: 15972620801 | J42: 2 | K42: 2 | L42: 6 | M42: 0 | N42: 1 | O42: 2 | P42: 2 | Q42: 9 | R42: 2 | S42: 10000 | T42: 1 | U42: 1 | V42: 1 | W42: 60 | X42: 5 | Y42: 9 | Z42: 2 | AA42: 1 | AB42: 0.3 | AC42: 2 | AD42: 2 | AE42: 2 | AF42: 2 | AG42: 54 | AH42: 2 | AI42: 9 | AJ42: 2 | AK42: 0 | AL42: 0 | AM42: 0 | AN42: 3 | AO42: 4 | AP42: 1 | AQ42: 32 | AR42: 5 | AS42: 12 | AT42: 2 | AU42: 4 | AV42: 2 | AW42: 12 | AX42: 4 | AY42: 4 | AZ42: 1 | BA42: 30 | BB42: 5 | BC42: 12 | BD42: 2 | BE42: 5 | BF42: 3 | BG42: 12 | BR42: 1 | BS42: 10 | BT42: 667 | BU42: 7 | BV42: 10 | BW42: 7 | BX42: 2 | BY42: 2 | BZ42: 3 | CA42: 200 | CB42: 1 | CC42: 2 | CD42: 10 | CE42: 1400 | CF42: 1.25 | CG42: 150 | CH42: 0 | CI42: 50 | CJ42: 100 | CK42: 170 | CL42: 10 | DG42: 1 | DH42: 2 | DI42: 3 | DJ42: 3 | DK42: 5 | DL42: 1 | DM42: 5 | DN42: 2 | DO42: 2000 | DP42: 1 | DQ42: 2 | DR42: 2 | EF42: 2 | EG42: 1 | EH42: 1 | EI42: 1 | EJ42: 9 | EK42: 80 | EL42: 楚嘉 | EM42: 125 | EN42: 80 | ER42: 2 | ES42: 2 | ET42: 1 | EU42: 1 | EV42: 20 | EX42: 95 | EY42: 80 | GJ42: 2 | GK42: 2 | GL42: 2 | GQ42: 3 | GR42: 3 | GS42: 3 | GT42: 4 | GU42: 4 | GV42: 4 | GW42: 4 | GX42: 3 | GY42: 3 | GZ42: 3 | HA42: 3 | HB42: 3 | HC42: 1 | HD42: 1 | HE42: 3 | HF42: 1 | HG42: 1 | HK42: 5 | HL42: 4 | HM42: 1 | HN42: 1 | HO42: 4 | HP42: 3 | HQ42: 1 | HR42: 1 | HS42: 2 | HU42: 1 | HV42: 4 | HW42: 3 | HX42: 2 | HY42: 4 | HZ42: 1 | IA42: 2 | IB42: 3 | IC42: 2 | ID42: 1 | IE42: 1 | IF42: 5 | IG42: 1 | IH42: 3 | II42: 2 | IJ42: 4 | IK42: 1 | IL42: 2 | IM42: 2 | JQ42: 2 | JR42: 3 | JS42: 4 | JT42: 1 | JU42: 1 | JZ42: 3 | KA42: 1 | KB42: 2 | KJ42: 1 | KL42: 2 | KM42: 4 | KN42: 1 | KO42: 1 | KP42: 4 | KQ42: 3 | KR42: 5 | KS42: 5 | KT42: 4 | KU42: 5 | KV42: 5 | KW42: 3 | KX42: 1 | KY42: 3 | KZ42: 1 | LA42: 1 | LB42: 4 | LC42: 3 | LD42: 4 | LE42: 3 | LF42: 2 | LG42: 4 | LH42: 3 | LI42: 4 | LJ42: 1 | LK42: 1 | LL42: 1 | LM42: 2 | LN42: 2 | LO42: 2 | LP42: 2 | LQ42: 5 | LR42: 2 | LS42: 3 | LT42: 3 | LU42: 2 | LV42: 1 | LW42: 1 | LX42: 3 | LY42: 3 | LZ42: 2 | MA42: 1 | MB42: 1 | MC42: 1 | MD42: 1 | ME42: 1 | MF42: 1 | MG42: 1 | MH42: 1 | MI42: 1 | MJ42: 2 | MK42: 2 | ML42: 2 | MM42: 1 | MN42: 2 | MO42: 2 | MP42: 2 | MQ42: 2 | MR42: 2 | MT42: 1 | MU42: 2 | MW42: 2 | MY42: 1 | MZ42: 0 | NB42: 2 | NE42: 1 | NF42: 5 | NG42: 1 | NH42: 2 | NK42: 2 | NN42: 2 | NQ42: 1 | NR42: 0 | NS42: 2 | NT42: 1 | NU42: 0 | NV42: 3 | NW42: 2 | NX42: 3 | NY42: 3 | NZ42: 3 | OA42: 1 | OC42: 3 | OD42: 1 | OE42: 3 | OF42: 1 | OG42: 1 | OI42: 4 | OJ42: 5 | OK42: 1 | OL42: 5 | OM42: 1 | ON42: 1 | OO42: 5 | OP42: 2 | OQ42: 2 | OS42: 2 | OT42: 1 | OU42: 5 | OV42: 2 | OW42: 2 | OY42: 2 | OZ42: 2 | PB42: 2 | PC42: 2 | PE42: 2 | PF42: 2 | PH42: 2 | PI42: 2 | PK42: 2 | PL42: 2 | PN42: 2 | PO42: 2 | PQ42: 2 | PR42: 1 | PS42: 5 | PT42: 2 | PU42: 2 | PV42: 2 | PW42: 1 | PX42: 1 | PY42: 1 | PZ42: 3 | QA42: 2 | QB42: 3 | QC42: 2 | QD42: 4 | QE42: 2 | QF42: 3 | QG42: 2 | QH42: 4 | QI42: 2 | QJ42: 4 | QK42: 2 | QL42: 4 | QM42: 5 | QN42: 4 | QO42: 4 | QP42: 5 | QQ42: 5 | QR42: 5 | QS42: 2 | QT42: 5 | QU42: 5 | QV42: 4 | QW42: 4 | QX42: 5 | QY42: 5 | QZ42: 4 | RA42: 3 | RB42: 3 | RC42: 4
A43: 38 | B43: 杜三峡 | C43: 余威震 | D43: 湖北省 | E43: 荆门市钟祥县 | F43: 长寿镇 | G43: 刘畈村 | H43: 陶华 | I43: 15872923394 | J43: 2 | K43: 1 | L43: 4 | M43: 0 | N43: 0 | O43: 2 | P43: 2 | Q43: 8 | R43: 2 | S43: 200 | T43: 1 | U43: 2 | V43: 2 | W43: 52 | X43: 4 | Y43: 9 | Z43: 2 | AA43: 0 | AB43: 0 | AC43: 0 | AD43: 2 | AE43: 1 | AF43: 1 | AG43: 52 | AH43: 4 | AI43: 9 | AJ43: 2 | AK43: 1 | AL43: 1 | AM43: 3 | AN43: 3 | AO43: 4 | AP43: 2 | AQ43: 27 | AR43: 5 | AS43: 12 | AT43: 2 | AU43: 5 | AV43: 5 | AW43: 12 | BR43: 1 | BS43: 13 | BT43: 667 | BU43: 9 | BV43: 13 | BW43: 9 | BX43: 3 | BY43: 2 | BZ43: 3 | CA43: 500 | CB43: 1 | CC43: 2 | CD43: 10 | CE43: 1400 | CF43: 1.08 | CG43: 100 | CH43: 100 | CI43: 0 | CJ43: 0 | CK43: 0 | CL43: 10 | DG43: 1 | DH43: 3 | DI43: 5 | DJ43: 3 | DK43: 5 | DL43: 3 | DM43: 5 | DN43: 2 | DO43: 2000 | DP43: 1 | DQ43: 2 | DR43: 2 | EF43: 1 | EG43: 1 | EH43: 1 | EI43: 1 | EJ43: 9 | EK43: 80 | EL43: 楚嘉 | EM43: 92 | EN43: 80 | ER43: 2 | ES43: 2 | ET43: 1 | EU43: 1 | EV43: 16 | EX43: 90 | EY43: 80 | GK43: 2 | GL43: 2 | GO43: 1 | GP43: 2 | GQ43: 3 | GR43: 4 | GS43: 5 | GT43: 3 | GU43: 3 | GV43: 4 | GW43: 4 | GX43: 3 | GY43: 3 | GZ43: 5 | HA43: 5 | HB43: 4 | HC43: 3 | HD43: 3 | HE43: 4 | HF43: 4 | HG43: 3 | HK43: 3 | HL43: 3 | HM43: 1 | HN43: 3、4 | HO43: 1 | HP43: 2 | HQ43: 4 | HR43: 2 | HS43: 2 | HU43: 1 | HV43: 3 | HW43: 1 | HX43: 2 | HY43: 3 | HZ43: 1 | IA43: 2 | IB43: 3 | IC43: 1 | ID43: 1 | IE43: 5 | IF43: 5 | IG43: 1 | IH43: 1 | II43: 2 | IJ43: 3 | IK43: 4 | IL43: 2 | IM43: 2 | JQ43: 4 | JR43: 5 | JS43: 5 | JT43: 1、3 | JU43: 1 | JZ43: 3 | KA43: 1 | KB43: 2 | KJ43: 3 | KK43: 400 | KL43: 2 | KM43: 5 | KN43: 4 | KO43: 4 | KP43: 5 | KQ43: 5 | KR43: 4 | KS43: 4 | KT43: 3 | KU43: 4 | KV43: 4 | KW43: 3 | KX43: 3 | KY43: 3 | KZ43: 3 | LA43: 4 | LB43: 3 | LC43: 4 | LD43: 3 | LE43: 3 | LF43: 4 | LG43: 5 | LH43: 5 | LI43: 3 | LJ43: 3 | LK43: 1 | LL43: 1 | LM43: 2 | LN43: 2 | LO43: 2 | LP43: 2 | LQ43: 4 | LR43: 1 | LS43: 2、3、5 | LT43: 3 | LU43: 4 | LV43: 1 | LW43: 1 | LX43: 2 | LY43: 5 | LZ43: 2 | MA43: 1 | MB43: 1 | MC43: 1 | MD43: 1 | ME43: 1 | MF43: 1 | MG43: 1 | MH43: 1 | MI43: 1 | MJ43: 5 | MK43: 3 | MM43: 2 | MN43: 2 | MO43: 2 | MP43: 2 | MQ43: 1 | MR43: 2 | MT43: 1 | MU43: 2 | MV43: 100 | MW43: 2 | MY43: 2 | NA43: 3 | NB43: 2 | NE43: 2 | NH43: 2 | NK43: 2 | NN43: 2 | NQ43: 1 | NR43: 0 | NS43: 1 | NT43: 2 | NV43: 2 | NW43: 2 | NX43: 3 | NY43: 2 | NZ43: 3 | OA43: 1 | OC43: 3 | OD43: 8农资站 | OE43: 1 | OG43: 1 | OI43: 2 | OJ43: 3 | OK43: 1 | OL43: 1 | OM43: 2 | ON43: 2 | OP43: 2 | OQ43: 2 | OS43: 2 | OT43: 1 | OU43: 4 | OV43: 2 | OW43: 2 | OY43: 2 | OZ43: 1 | PA43: 4 | PB43: 2 | PC43: 1 | PD43: 4 | PE43: 1 | PF43: 1 | PG43: 5 | PH43: 1 | PI43: 2 | PK43: 2 | PL43: 2 | PN43: 2 | PO43: 2 | PQ43: 2 | PR43: 2 | PT43: 2 | PU43: 2 | PV43: 2 | PW43: 2 | PY43: 1 | PZ43: 5 | QA43: 2 | QB43: 5 | QC43: 2 | QD43: 3 | QE43: 2 | QF43: 3 | QG43: 1 | QH43: 4 | QI43: 1 | QJ43: 4 | QK43: 2 | QL43: 3 | QM43: 4 | QN43: 4 | QO43: 5 | QP43: 4 | QQ43: 5 | QR43: 5 | QS43: 2 | QT43: 4 | QU43: 1 | QV43: 1 | QW43: 1 | QX43: 3 | QY43: 4 | QZ43: 5 | RA43: 3 | RB43: 3 | RC43: 2
A44: 39 | B44: 杜三峡 | C44: 余威震 | D44: 湖北省 | E44: 荆门市钟祥县 | F44: 长寿镇 | G44: 刘畈村 | H44: 李邦志 | I44: 13257238558 | J44: 2 | K44: 1 | L44: 2 | M44: 0 | N44: 2 | O44: 2 | P44: 2 | Q44: 2.4 | R44: 2 | S44: 2000 | T44: 1 | U44: 1 | V44: 1 | W44: 62 | X44: 4 | Y44: 9 | Z44: 2 | AA44: 1 | AB44: 0.4 | AC44: 1 | AD44: 2 | AE44: 2 | AF44: 2 | AG44: 60 | AH44: 4 | AI44: 9 | AJ44: 2 | AK44: 0 | AL44: 0 | AM44: 0 | BR44: 1 | BS44: 10 | BT44: 667 | BU44: 8 | BV44: 10 | BW44: 8 | BX44: 3 | BY44: 1 | BZ44: 3 | CA44: 300 | CB44: 1 | CC44: 2 | CD44: 10 | CE44: 1400 | CF44: 1.1 | CG44: 100 | CH44: 100 | CI44: 0 | CJ44: 175 | CK44: 0 | CL44: 5 | DG44: 1 | DH44: 1 | DI44: 5 | DJ44: 3 | DK44: 5 | DL44: 1 | DM44: 5 | DN44: 2 | DO44: 1000 | DP44: 1 | DQ44: 2 | DR44: 2 | EF44: 1 | EG44: 1 | EH44: 1 | EI44: 1 | EJ44: 10 | EK44: 80 | EL44: 云壤 | EM44: 110 | EN44: 80 | EO44: 28 | EP44: 10 | EQ44: 14 | ER44: 2 | ES44: 2 | ET44: 1 | EU44: 1 | EV44: 10 | EX44: 90 | EY44: 80 | GK44: 1 | GL44: 1 | GM44: 1 | GN44: 2014 | GO44: 1 | GP44: 2 | GQ44: 3 | GR44: 5 | GS44: 4 | GT44: 4 | GU44: 4 | GV44: 4 | GW44: 3 | GX44: 2 | GY44: 3 | GZ44: 3 | HA44: 4 | HB44: 4 | HC44: 3 | HD44: 3 | HE44: 4 | HF44: 2 | HG44: 3 | HH44: 10 | HI44: 3 | HJ44: 1 | HK44: 1、2 | HL44: 4 | HM44: 2 | HN44: 1 | HO44: 2 | HP44: 2 | HQ44: 4 | HR44: 2 | HS44: 2 | HU44: 1 | HV44: 3 | HW44: 1 | HX44: 2 | HY44: 3 | HZ44: 1 | IA44: 2 | IB44: 3 | IC44: 2 | ID44: 2 | IE44: 5 | IF44: 4 | IG44: 1 | IH44: 3 | II44: 2 | IJ44: 5 | IK44: 3 | IL44: 2 | IM44: 2 | IO44: 4 | IP44: 5 | IQ44: 5 | IR44: 5 | IS44: 5 | IT44: 5 | IU44: 5 | IV44: 4 | IW44: 4 | IX44: 3 | IY44: 3 | IZ44: 3 | JA44: 3 | JB44: 4 | JC44: 5 | JD44: 4 | JE44: 5 | JF44: 3 | JG44: 4 | JH44: 4 | JI44: 5 | JJ44: 4 | JK44: 4 | JL44: 3 | JM44: 4 | JN44: 4 | JO44: 5 | JP44: 5 | JQ44: 5 | JR44: 5 | JS44: 4 | JT44: 1、2、3 | JU44: 1 | JZ44: 2 | KA44: 2 | KB44: 2 | KJ44: 4 | KK44: 400 | KL44: 4 | KM44: 5 | KN44: 4 | KO44: 4 | KP44: 5 | KQ44: 5 | KR44: 5 | KS44: 4 | KT44: 4 | KU44: 5 | KV44: 3 | KW44: 4 | KX44: 4 | KY44: 3 | KZ44: 2 | LA44: 2 | LB44: 2 | LC44: 4 | LD44: 4 | LE44: 2 | LF44: 2 | LG44: 3 | LH44: 2 | LI44: 3 | LJ44: 3 | LK44: 1 | LL44: 1 | LM44: 2 | LN44: 2 | LO44: 2 | LP44: 2 | LQ44: 4 | LR44: 1、2 | LS44: 2、3 | LT44: 3 | LU44: 5 | LV44: 2 | LW44: 3 | LX44: 5 | LY44: 4 | LZ44: 2 | MA44: 1 | MB44: 1 | MC44: 1 | MD44: 1 | ME44: 1 | MF44: 1 | MG44: 1 | MH44: 1 | MI44: 1 | MJ44: 5 | MK44: 3 | MM44: 1 | MN44: 2 | MO44: 2 | MP44: 2 | MQ44: 1 | MR44: 1 | MS44: 5 | MT44: 2 | MU44: 2 | MY44: 2 | NA44: 2 | NB44: 2 | ND44: 3 | NE44: 2 | NH44: 2 | NK44: 2 | NN44: 2 | NQ44: 1 | NS44: 1 | NT44: 1 | NW44: 2 | NX44: 3 | NY44: 3 | NZ44: 3 | OA44: 1 | OC44: 3 | OD44: 1、8 | OE44: 1 | OG44: 1 | OI44: 3 | OJ44: 4 | OK44: 1 | OL44: 4 | OM44: 1 | ON44: 2 | OP44: 2 | OQ44: 2 | OS44: 2 | OT44: 1 | OU44: 5 | OV44: 1 | OW44: 1 | OX44: 3 | OY44: 2 | OZ44: 1 | PA44: 4 | PB44: 2 | PC44: 2 | PE44: 2 | PF44: 1 | PG44: 5 | PH44: 1 | PI44: 1 | PJ44: 4 | PK44: 1 | PL44: 2 | PN44: 2 | PO44: 2 | PQ44: 2 | PR44: 2 | PT44: 2 | PU44: 2 | PV44: 2 | PW44: 1 | PX44: 10 | PZ44: 4 | QA44: 2 | QB44: 2 | QC44: 2 | QD44: 3 | QE44: 2 | QF44: 3 | QG44: 2 | QH44: 4 | QI44: 1 | QJ44: 5 | QK44: 2 | QL44: 3 | QM44: 4 | QN44: 5 | QO44: 4 | QP44: 3 | QQ44: 5 | QR44: 4 | QS44: 2 | QT44: 5 | QU44: 5 | QV44: 5 | QW44: 4 | QX44: 5 | QY44: 5 | QZ44: 5 | RA44: 4 | RB44: 3 | RC44: 4
A45: 40 | B45: 杜三峡 | C45: 余威震 | D45: 湖北省 | E45: 荆门市钟祥县 | F45: 长寿镇 | G45: 刘畈村 | H45: 侯指军 | I45: 13872925767 | J45: 2 | K45: 2 | L45: 6 | M45: 0 | N45: 1 | O45: 2 | P45: 4 | Q45: 12 | R45: 2 | S45: 2000 | T45: 1 | U45: 1 | V45: 1 | W45: 66 | X45: 3 | Y45: 5 | Z45: 2 | AA45: 1 | AB45: 0.4 | AC45: 12 | AD45: 2 | AE45: 2 | AF45: 2 | AG45: 57 | AH45: 3 | AI45: 5 | AJ45: 2 | AK45: 1 | AL45: 0.2 | AM45: 1 | AN45: 3 | AO45: 4 | AP45: 1 | AQ45: 37 | AR45: 5 | AS45: 6 | AT45: 2 | AU45: 5 | AV45: 5 | AW45: 12 | AX45: 4 | AY45: 4 | AZ45: 2 | BA45: 37 | BB45: 5 | BC45: 6 | BD45: 2 | BE45: 5 | BF45: 5 | BG45: 12 | BR45: 1 | BS45: 14.7 | BT45: 667 | BU45: 4 | BV45: 14.7 | BW45: 4 | BX45: 3 | BY45: 1 | BZ45: 2 | CA45: 500 | CB45: 1 | CC45: 2 | CD45: 14.7 | CE45: 1200 | CF45: 1.05 | CG45: 100 | CH45: 100 | CI45: 0 | CJ45: 200 | CK45: 150 | CL45: 5 | DG45: 1 | DH45: 2 | DJ45: 1 | DK45: 5 | DL45: 1 | DM45: 5 | DN45: 2 | DO45: 1500 | DP45: 1 | DQ45: 2 | DR45: 1 | DS45: 1 | DT45: 2 | DU45: 2016 | DV45: 4 | DW45: 1 | DX45: 2 | DY45: 2016 | DZ45: 4 | EG45: 1 | EH45: 1 | EI45: 1 | EJ45: 9 | EK45: 60 | EL45: 楚嘉 | EM45: 150 | EN45: 100 | ER45: 2 | ES45: 2 | ET45: 1 | EU45: 1 | EV45: 20 | EX45: 80 | EY45: 80 | GK45: 2 | GL45: 1 | GM45: 1 | GN45: 2009 | GO45: 1 | GP45: 2 | GQ45: 4 | GR45: 5 | GS45: 5 | GT45: 4 | GU45: 4 | GV45: 3 | GW45: 4 | GX45: 3 | GY45: 3 | GZ45: 4 | HA45: 4 | HB45: 5 | HC45: 3 | HD45: 3 | HE45: 5 | HF45: 4 | HG45: 4 | HH45: 10 | HI45: 3 | HJ45: 1 | HK45: 3 | HL45: 5 | HM45: 1 | HN45: 1、4 | HO45: 1 | HP45: 5 | HQ45: 1、2、4、5 | HR45: 1 | HS45: 1 | HT45: 4 | HU45: 3 | HV45: 5 | HW45: 5 | HX45: 1 | HY45: 3 | HZ45: 1 | IA45: 2 | IB45: 2 | IC45: 1 | ID45: 1 | IE45: 5 | IF45: 5 | IG45: 1 | IH45: 1 | II45: 2 | IJ45: 5 | IK45: 2 | IL45: 2 | IM45: 1 | IN45: 3 | IO45: 4 | IP45: 5 | IQ45: 5 | IR45: 4 | IS45: 3 | IT45: 3 | IU45: 4 | IV45: 4 | IW45: 3 | IX45: 3 | IY45: 3 | IZ45: 3 | JA45: 3 | JB45: 5 | JC45: 5 | JD45: 5 | JE45: 4 | JF45: 4 | JG45: 5 | JH45: 5 | JI45: 4 | JJ45: 5 | JK45: 3 | JL45: 4 | JM45: 4 | JN45: 5 | JO45: 4 | JP45: 4 | JQ45: 1 | JR45: 1 | JS45: 3 | JT45: 3 | JU45: 2 | JV45: 2 | JW45: 1 | JZ45: 3 | KA45: 2 | KB45: 2 | KJ45: 4 | KK45: 400 | KL45: 5 | KM45: 5 | KN45: 4 | KO45: 3 | KP45: 5 | KQ45: 5 | KR45: 5 | KS45: 4 | KT45: 5 | KU45: 5 | KV45: 4 | KW45: 4 | KX45: 4 | KY45: 5 | KZ45: 5 | LA45: 2 | LB45: 5 | LC45: 5 | LD45: 5 | LE45: 5 | LF45: 4 | LG45: 4 | LH45: 3 | LI45: 4 | LJ45: 4 | LK45: 1 | LL45: 1 | LM45: 2 | LN45: 2 | LO45: 2 | LP45: 2 | LQ45: 1、5 | LR45: 2 | LS45: 3 | LT45: 4 | LU45: 4 | LV45: 3 | LW45: 3 | LX45: 5 | LY45: 4 | LZ45: 2 | MA45: 1 | MB45: 1 | MC45: 1 | MD45: 1 | ME45: 1 | MF45: 1 | MG45: 1 | MH45: 1 | MI45: 1 | MJ45: 4 | MK45: 3 | MM45: 1 | MN45: 2 | MO45: 2 | MP45: 2 | MQ45: 1 | MR45: 2 | MT45: 1 | MU45: 2 | MV45: 0 | MW45: 2 | MY45: 2 | NA45: 3 | NB45: 2 | NE45: 2 | NH45: 2 | NK45: 2 | NN45: 2 | NQ45: 1 | NS45: 1 | NT45: 1 | NV45: 2 | NW45: 2 | NX45: 3 | NY45: 3 | NZ45: 3 | OA45: 1 | OC45: 2 | OD45: 8 | OE45: 1 | OG45: 1 | OI45: 4 | OJ45: 4 | OK45: 1 | OL45: 4 | OM45: 1 | ON45: 2 | OP45: 2 | OQ45: 2 | OS45: 2 | OT45: 1 | OU45: 4 | OV45: 1 | OW45: 2 | OY45: 2 | OZ45: 1 | PA45: 3 | PB45: 1 | PC45: 2 | PE45: 2 | PF45: 1 | PG45: 3 | PH45: 1 | PI45: 1 | PJ45: 4 | PK45: 2 | PL45: 2 | PN45: 2 | PO45: 2 | PQ45: 2 | PR45: 2 | PT45: 2 | PU45: 2 | PV45: 2 | PW45: 1 | PX45: 2 | PZ45: 5 | QA45: 2 | QB45: 1 | QC45: 2 | QD45: 1 | QE45: 2 | QF45: 2 | QG45: 2 | QH45: 5 | QI45: 1 | QJ45: 3 | QK45: 2 | QL45: 3 | QM45: 5 | QN45: 4 | QO45: 5 | QP45: 4 | QQ45: 5 | QR45: 5 | QS45: 3 | QT45: 5 | QU45: 4 | QV45: 5 | QW45: 4 | QX45: 4 | QY45: 5 | QZ45: 3 | RA45: 3 | RB45: 3 | RC45: 3
A46: 41 | B46: 杜三峡 | C46: 余威震 | D46: 湖北省 | E46: 荆门市钟祥县 | F46: 东桥镇 | G46: 联盟村 | H46: 李顺银 | I46: 17371626169 | J46: 2 | K46: 7 | L46: 3 | M46: 0 | N46: 0 | O46: 2 | P46: 2 | Q46: 15 | R46: 4 | S46: 5000 | T46: 1 | U46: 1 | V46: 1 | W46: 54 | X46: 4 | Y46: 12 | Z46: 2 | AA46: 0 | AB46: 0 | AC46: 0 | AD46: 2 | AE46: 2 | AF46: 2 | AG46: 52 | AH46: 3 | AI46: 9 | AJ46: 2 | AK46: 0 | AL46: 0 | AM46: 0 | AN46: 3 | AO46: 4 | AP46: 2 | AQ46: 31 | AR46: 5 | AS46: 15 | AT46: 2 | AU46: 5 | AV46: 9.6 | AW46: 12 | BR46: 1 | BS46: 30 | BT46: 800 | BU46: 20 | BV46: 30 | BW46: 20 | BX46: 2 | BY46: 1 | BZ46: 3 | CA46: 100 | CB46: 1 | CC46: 2 | CD46: 30 | CE46: 1600 | CF46: 1.1 | CG46: 200 | CH46: 40 | CI46: 20 | CJ46: 130 | CK46: 30 | CL46: 10 | DG46: 1 | DH46: 1 | DI46: 5 | DJ46: 1 | DK46: 5 | DL46: 1 | DM46: 5 | DN46: 2 | DO46: 1500 | DP46: 2 | DQ46: 2 | DR46: 1 | DS46: 1 | DT46: 1 | DU46: 2018 | DV46: 3 | DW46: 1 | DX46: 1 | DY46: 2018 | DZ46: 3 | EG46: 1 | EH46: 1 | EI46: 1 | EJ46: 10 | EK46: 150 | EL46: 鄂中 | EM46: 115 | EN46: 80 | EO46: 15 | EP46: 10 | EQ46: 10 | ER46: 2 | ES46: 2 | ET46: 1 | EU46: 1 | EV46: 15 | EX46: 35 | EY46: 80 | FC46: 3 | FD46: 1 | FE46: 1 | FF46: 10 | FG46: 25 | FH46: 鄂中 | FI46: 115 | FJ46: 80 | FK46: 15 | FL46: 10 | FM46: 10 | GK46: 1 | GL46: 1 | GM46: 1 | GN46: 2013 | GO46: 2 | GP46: 2 | GQ46: 4 | GR46: 4 | GS46: 4 | GT46: 3 | GU46: 3 | GV46: 3 | GW46: 3 | GX46: 3 | GY46: 3 | GZ46: 4 | HA46: 5 | HB46: 4 | HC46: 2 | HD46: 3 | HE46: 3 | HF46: 4 | HG46: 3 | HH46: 30 | HI46: 4 | HJ46: 1 | HK46: 3 | HL46: 3 | HM46: 2 | HN46: 2 | HO46: 4 | HP46: 4 | HR46: 1 | HS46: 2 | HU46: 3 | HV46: 4 | HW46: 1 | HX46: 2 | HY46: 3 | HZ46: 1 | IA46: 2 | IB46: 3 | IC46: 2 | ID46: 2 | IE46: 1 | IF46: 5 | IG46: 2 | IH46: 3 | II46: 2 | IJ46: 5 | IK46: 3 | IL46: 2 | IM46: 2 | IO46: 4 | IP46: 4 | IQ46: 3 | IR46: 3 | IS46: 4 | IT46: 4 | IU46: 3 | IV46: 3 | IW46: 3 | IX46: 3 | IY46: 2 | IZ46: 3 | JA46: 1 | JB46: 3 | JC46: 3 | JD46: 3 | JE46: 4 | JF46: 3 | JG46: 4 | JH46: 3 | JI46: 2 | JJ46: 3 | JK46: 2 | JL46: 2 | JM46: 2 | JN46: 2 | JO46: 2 | JP46: 1 | JQ46: 3 | JR46: 4 | JS46: 4 | JT46: 1、2 | JU46: 2 | JV46: 2 | JW46: 1 | JZ46: 5 | KA46: 1 | KB46: 1 | KC46: 1 | KD46: 4 | KE46: 6 | KG46: 400 | KH46: 1 | KI46: 25 | KJ46: 1 | KK46: 800 | KL46: 4 | KM46: 4 | KN46: 3 | KO46: 3 | KP46: 5 | KQ46: 5 | KR46: 4 | KS46: 3 | KT46: 3 | KU46: 2 | KV46: 3 | KW46: 3 | KX46: 3 | KY46: 4 | KZ46: 3 | LA46: 3 | LB46: 5 | LC46: 5 | LD46: 5 | LE46: 3 | LF46: 3 | LG46: 2 | LH46: 3 | LI46: 3 | LJ46: 3 | LK46: 1 | LL46: 5 | LM46: 4 | LN46: 2 | LO46: 1 | LP46: 1 | LQ46: 4 | LR46: 2、3 | LS46: 4 | LT46: 3 | LU46: 5 | LV46: 2 | LW46: 2 | LX46: 4 | LY46: 3 | LZ46: 2 | MA46: 1 | MB46: 1 | MC46: 1 | MD46: 1 | ME46: 1 | MF46: 1 | MG46: 1 | MH46: 1 | MI46: 1 | MJ46: 2 | MK46: 3 | MM46: 1 | MN46: 2 | MO46: 2 | MP46: 1 | MQ46: 1 | MR46: 1 | MS46: 5 | MT46: 1 | MU46: 2 | MW46: 2 | MY46: 1 | MZ46: 5 | NA46: 1 | NB46: 1 | NC46: 10 | ND46: 2 | NE46: 1 | NF46: 5 | NH46: 2 | NK46: 2 | NN46: 2 | NQ46: 1 | NR46: 10 | NS46: 3 | NT46: 1 | NU46: 5 | NW46: 2 | NX46: 2 | NY46: 2 | NZ46: 2 | OA46: 1 | OC46: 3 | OD46: 1、8农资站 | OE46: 1 | OG46: 1 | OI46: 5 | OJ46: 4 | OK46: 1 | OL46: 5 | OM46: 1 | ON46: 2 | OP46: 2 | OQ46: 1 | OR46: 3 | OS46: 2 | OT46: 1 | OU46: 5 | OV46: 1 | OW46: 1 | OX46: 4 | OY46: 1 | OZ46: 1 | PA46: 5 | PB46: 1 | PC46: 1 | PD46: 4 | PE46: 1 | PF46: 1 | PG46: 5 | PH46: 1 | PI46: 2 | PK46: 2 | PL46: 2 | PN46: 2 | PO46: 2 | PQ46: 2 | PR46: 2 | PT46: 2 | PU46: 2 | PV46: 2 | PW46: 2 | PY46: 2 | PZ46: 5 | QA46: 2 | QB46: 3 | QC46: 2 | QD46: 3 | QE46: 1 | QF46: 4 | QG46: 1 | QH46: 5 | QI46: 2 | QJ46: 5 | QK46: 2 | QL46: 5 | QM46: 5 | QN46: 4 | QO46: 3 | QP46: 2 | QQ46: 4 | QR46: 4 | QS46: 2 | QT46: 3 | QU46: 5 | QV46: 5 | QW46: 5 | QX46: 4 | QY46: 5 | QZ46: 5 | RA46: 2 | RB46: 1 | RC46: 2
A47: 42 | B47: 杜三峡 | C47: 余威震 | D47: 湖北省 | E47: 荆门市钟祥县 | F47: 东桥镇 | G47: 永隆村 | H47: 李玉新 | I47: 13597977431 | J47: 2 | K47: 4 | L47: 2 | M47: 0 | N47: 1 | O47: 1 | P47: 2 | Q47: 2.5 | R47: 2.5 | S47: 1000 | T47: 1 | U47: 1 | V47: 1 | W47: 62 | X47: 3 | Y47: 9 | Z47: 2 | AA47: 0 | AB47: 0 | AC47: 0 | AD47: 2 | AE47: 2 | AF47: 2 | AG47: 58 | AH47: 1 | AI47: 9 | AJ47: 2 | AK47: 0 | AL47: 0 | AM47: 0 | BR47: 1 | BS47: 20 | BT47: 667 | BU47: 21 | BV47: 20 | BW47: 20 | BX47: 4 | BY47: 1 | BZ47: 3 | CA47: 600 | CB47: 1 | CC47: 2 | CD47: 20 | CE47: 1000 | CF47: 1.2 | CG47: 200 | CH47: 50 | CI47: 0 | CJ47: 190 | CK47: 0 | CL47: 10 | DG47: 1 | DH47: 3 | DI47: 5 | DJ47: 1 | DK47: 5 | DL47: 1 | DM47: 5 | DN47: 2 | DO47: 1000 | DP47: 1 | DQ47: 2 | DR47: 1 | DS47: 7农资店 | DT47: 1 | DU47: 2018 | DV47: 4 | DW47: 7农资店 | DX47: 1 | DY47: 2018 | DZ47: 4 | EG47: 1 | EH47: 1 | EI47: 1 | EJ47: 9 | EK47: 100 | EL47: 鄂中 | EM47: 120 | EN47: 80 | ER47: 2 | ES47: 2 | ET47: 1 | EU47: 1 | EV47: 8~10 | EX47: 90 | EY47: 80 | FC47: 3 | FD47: 3 | FE47: 1 | FF47: 9 | FG47: 15 | FH47: 鄂中 | FI47: 120 | FJ47: 80 | GL47: 1 | GM47: 1 | GN47: 2010 | GO47: 2 | GP47: 3 | GQ47: 4 | GR47: 4 | GS47: 4 | GT47: 5 | GU47: 5 | GV47: 4 | GW47: 3 | GX47: 3 | GY47: 3 | GZ47: 3 | HA47: 4 | HB47: 4 | HC47: 2 | HD47: 4 | HE47: 3 | HF47: 3 | HG47: 2 | HH47: 30 | HI47: 3 | HJ47: 2 | HK47: 2 | HL47: 3 | HM47: 1 | HN47: 1 | HO47: 2 | HP47: 2 | HQ47: 5 | HR47: 2 | HS47: 2 | HU47: 1 | HV47: 4 | HW47: 2 | HX47: 2 | HY47: 4 | HZ47: 3 | IA47: 2 | IB47: 3 | IC47: 2 | ID47: 2 | IE47: 1 | IF47: 4 | IG47: 1 | IH47: 3 | II47: 2 | IJ47: 5 | IK47: 4 | IL47: 2 | IM47: 2 | IO47: 3 | IP47: 4 | IQ47: 3 | IR47: 4 | IS47: 3 | IT47: 3 | IU47: 3 | IV47: 4 | IW47: 3 | IX47: 3 | IY47: 3 | IZ47: 4 | JA47: 4 | JB47: 4 | JC47: 4 | JD47: 4 | JE47: 3 | JF47: 3 | JG47: 4 | JH47: 4 | JI47: 3 | JJ47: 4 | JK47: 3 | JL47: 4 | JM47: 4 | JN47: 3 | JO47: 4 | JP47: 4 | JQ47: 3 | JR47: 3 | JS47: 5 | JT47: 1、2 | JU47: 1 | JZ47: 4 | KA47: 1 | KB47: 1 | KC47: 1 | KE47: 6 | KG47: 200 | KH47: 1 | KI47: 25 | KJ47: 3 | KK47: 600 | KL47: 5 | KM47: 5 | KN47: 4 | KO47: 4 | KP47: 5 | KQ47: 4 | KR47: 3 | KS47: 4 | KT47: 4 | KU47: 3 | KV47: 3 | KW47: 3 | KX47: 3 | KY47: 5 | KZ47: 4 | LA47: 4 | LB47: 4 | LC47: 4 | LD47: 3 | LE47: 4 | LF47: 4 | LG47: 5 | LH47: 4 | LI47: 4 | LJ47: 4 | LK47: 1 | LL47: 1 | LM47: 2 | LN47: 2 | LO47: 2 | LP47: 2 | LQ47: 6农资店 | LR47: 2 | LS47: 2、3 | LT47: 3 | LU47: 5 | LV47: 5 | LW47: 5 | LX47: 4 | LY47: 4 | LZ47: 2 | MA47: 1 | MB47: 1 | MC47: 1 | MD47: 1 | ME47: 1 | MF47: 1 | MG47: 1 | MH47: 1 | MI47: 1 | MJ47: 5 | MK47: 3 | MM47: 1 | MN47: 2 | MO47: 2 | MP47: 2 | MQ47: 1 | MR47: 1 | MS47: 5 | MT47: 2 | MU47: 2 | MW47: 1 | MX47: 4 | MY47: 1 | NA47: 1 | NB47: 1 | NE47: 2 | NH47: 2 | NK47: 1 | NM47: 2 | NN47: 2 | NQ47: 1 | NS47: 3 | NT47: 1 | NW47: 2 | NX47: 3 | NY47: 3 | NZ47: 3 | OA47: 1 | OC47: 2 | OD47: 1、9农资站 | OE47: 1 | OG47: 1 | OI47: 4 | OJ47: 4 | OK47: 1 | OL47: 5 | OM47: 1 | ON47: 2 | OP47: 2 | OQ47: 1 | OR47: 3 | OS47: 2 | OT47: 1 | OU47: 5 | OV47: 1 | OW47: 1 | OX47: 4 | OY47: 1 | OZ47: 2 | PB47: 2 | PC47: 1 | PD47: 4 | PE47: 2 | PF47: 1 | PG47: 4 | PH47: 1 | PI47: 1 | PJ47: 3 | PK47: 2 | PL47: 1 | PM47: 3 | PN47: 2 | PO47: 2 | PQ47: 2 | PR47: 2 | PT47: 2 | PU47: 2 | PV47: 2 | PW47: 1 | PX47: 5 | PZ47: 5 | QA47: 2 | QB47: 3 | QC47: 2 | QD47: 3 | QE47: 2 | QF47: 3 | QG47: 1 | QH47: 5 | QI47: 1 | QJ47: 5 | QK47: 1 | QL47: 5 | QM47: 4 | QN47: 4 | QO47: 5 | QP47: 2 | QQ47: 4 | QR47: 4 | QS47: 2 | QT47: 3 | QU47: 4 | QV47: 3 | QW47: 4 | QX47: 4 | QY47: 4 | QZ47: 5 | RA47: 3 | RB47: 3 | RC47: 4
A48: 43 | B48: 杜三峡 | C48: 余威震 | D48: 湖北省 | E48: 荆门市钟祥县 | F48: 东桥镇 | G48: 永隆村 | H48: 高显伦 | I48: 13986967913 | J48: 2 | K48: 4.5 | L48: 5 | M48: 0 | N48: 1 | O48: 3 | P48: 5 | Q48: 6 | R48: 5 | S48: 10000 | T48: 1 | U48: 1 | V48: 1 | W48: 67 | X48: 4 | Y48: 5 | Z48: 2 | AA48: 0 | AB48: 0 | AC48: 0 | AD48: 2 | AE48: 4 | AF48: 1 | AG48: 44 | AH48: 5 | AI48: 9 | AJ48: 2 | AK48: 5 | AL48: 0.8 | AM48: 2 | AN48: 3 | AO48: 4 | AP48: 2 | AQ48: 45 | AR48: 5 | AS48: 9 | AT48: 2 | AU48: 0 | AV48: 0 | AW48: 0 | BR48: 1 | BS48: 40 | BT48: 667 | BU48: 40 | BV48: 40 | BW48: 40 | BX48: 3 | BY48: 2 | BZ48: 3 | CA48: 500 | CB48: 1 | CC48: 2 | CD48: 40 | CE48: 1200 | CF48: 1.12 | CG48: 200 | CH48: 60 | CI48: 60 | CJ48: 0 | CK48: 0 | CL48: 5 | DG48: 1 | DH48: 3 | DI48: 5 | DJ48: 3 | DK48: 5 | DL48: 3 | DM48: 5 | DN48: 2 | DO48: 4000 | DP48: 1 | DQ48: 2 | DR48: 1 | DS48: 1 | DT48: 1 | DU48: 2018 | DV48: 3 | DW48: 1 | DX48: 1 | DY48: 2018 | DZ48: 3 | EA48: 种子 | EB48: 1 | EC48: 1 | ED48: 2018 | EE48: 3 | EG48: 1 | EH48: 1 | EI48: 1 | EJ48: 9 | EK48: 120 | EM48: 80 | EN48: 80 | EO48: 25 | EP48: 15 | EQ48: 5 | ER48: 2 | ES48: 2 | ET48: 1 | EU48: 1 | EV48: 15 | EX48: 100 | EY48: 80 | FC48: 2 | FD48: 3 | FE48: 1 | FF48: 9 | FG48: 20 | FI48: 80 | FJ48: 80 | FK48: 25 | FL48: 15 | FM48: 5 | GK48: 1 | GL48: 1 | GM48: 1 | GN48: 2016 | GO48: 1 | GP48: 2 | GQ48: 5 | GR48: 5 | GS48: 5 | GT48: 4 | GU48: 4 | GV48: 4 | GW48: 3 | GX48: 3 | GY48: 2 | GZ48: 5 | HA48: 5 | HB48: 4 | HC48: 4 | HD48: 3 | HE48: 4 | HF48: 4 | HG48: 4 | HH48: 15 | HI48: 2 | HJ48: 2 | HK48: 3 | HL48: 5 | HM48: 2 | HN48: 1、2 | HO48: 2 | HP48: 3 | HQ48: 1、3、5 | HR48: 1 | HS48: 1 | HT48: 5 | HU48: 3 | HV48: 5 | HW48: 4 | HX48: 1 | HY48: 5 | HZ48: 3 | IA48: 1 | IB48: 2 | IC48: 2 | ID48: 1 | IE48: 4 | IF48: 5 | IG48: 2 | IH48: 3 | II48: 2 | IJ48: 5 | IK48: 3 | IL48: 2 | IM48: 2 | IO48: 4 | IP48: 3 | IQ48: 4 | IR48: 3 | IS48: 3 | IT48: 4 | IU48: 4 | IV48: 2 | IW48: 2 | IX48: 2 | IY48: 3 | IZ48: 3 | JA48: 3 | JB48: 4 | JC48: 4 | JD48: 4 | JE48: 3 | JF48: 4 | JG48: 5 | JH48: 5 | JI48: 2 | JJ48: 3 | JK48: 3 | JL48: 4 | JM48: 4 | JN48: 4 | JO48: 5 | JP48: 4 | JQ48: 2 | JR48: 2 | JS48: 4 | JT48: 1 | JU48: 1 | JZ48: 5 | KA48: 1 | KB48: 1 | KC48: 1 | KD48: 4 | KE48: 6 | KG48: 200 | KH48: 1 | KI48: 25 | KJ48: 4 | KK48: 400 | KL48: 5 | KM48: 5 | KN48: 4 | KO48: 4 | KP48: 4 | KQ48: 3 | KR48: 4 | KS48: 5 | KT48: 4 | KU48: 5 | KV48: 4 | KW48: 3 | KX48: 3 | KY48: 4 | KZ48: 3 | LA48: 3 | LB48: 2 | LC48: 2 | LD48: 3 | LE48: 3 | LF48: 3 | LG48: 4 | LH48: 4 | LI48: 3 | LJ48: 3 | LK48: 1、3 | LL48: 1 | LM48: 2 | LN48: 2 | LO48: 2 | LP48: 2 | LQ48: 1、4 | LR48: 2、3 | LS48: 2、3 | LT48: 3 | LU48: 5 | LV48: 1 | LW48: 3 | LX48: 5 | LY48: 4 | LZ48: 2 | MA48: 1 | MB48: 1 | MC48: 1 | MD48: 1 | ME48: 1 | MF48: 1 | MG48: 1 | MH48: 1 | MI48: 1 | MJ48: 5 | MK48: 3 | MM48: 1 | MN48: 2 | MO48: 2 | MP48: 2 | MQ48: 1 | MR48: 1 | MT48: 2 | MU48: 2 | MW48: 1 | MX48: 3 | MY48: 1 | MZ48: 10 | NA48: 1 | NB48: 2 | NE48: 2 | NH48: 2 | NK48: 1 | NL48: 1 | NM48: 3 | NN48: 2 | NQ48: 1 | NR48: 5 | NS48: 2 | NT48: 1 | NW48: 2 | NX48: 3 | NY48: 3 | NZ48: 3 | OA48: 1 | OC48: 3 | OD48: 1、10农资站 | OE48: 1 | OG48: 1 | OI48: 5 | OJ48: 5 | OK48: 1 | OL48: 5 | OM48: 1 | ON48: 2 | OP48: 2 | OQ48: 1 | OR48: 3 | OS48: 2 | OT48: 1 | OU48: 4 | OV48: 1 | OW48: 1 | OX48: 3 | OY48: 2 | OZ48: 2 | PB48: 2 | PC48: 1 | PD48: 4 | PE48: 2 | PF48: 1 | PG48: 5 | PH48: 1 | PI48: 1 | PJ48: 2 | PK48: 1 | PL48: 1 | PM48: 4 | PN48: 2 | PO48: 2 | PQ48: 2 | PR48: 2 | PT48: 2 | PU48: 2 | PV48: 1 | PW48: 1 | PX48: 6 | PZ48: 5 | QA48: 2 | QB48: 3 | QC48: 1 | QD48: 4 | QE48: 1 | QF48: 3 | QG48: 1 | QH48: 5 | QI48: 1 | QJ48: 5 | QK48: 1 | QL48: 5 | QM48: 4 | QN48: 5 | QO48: 4 | QP48: 4 | QQ48: 5 | QR48: 5 | QS48: 3 | QT48: 4 | QU48: 4 | QV48: 5 | QW48: 4 | QX48: 3 | QY48: 5 | QZ48: 4 | RA48: 4 | RB48: 3 | RC48: 3
A49: 44 | B49: 杜三峡 | C49: 余威震 | D49: 湖北省 | E49: 荆门市钟祥县 | F49: 东桥镇 | G49: 永隆村 | H49: 陈德祥 | I49: 19980590679 | J49: 2 | K49: 5 | L49: 3 | M49: 0 | N49: 0 | O49: 1 | P49: 1 | Q49: 9.8 | R49: 5 | S49: 4000 | T49: 1 | U49: 1 | V49: 1 | W49: 52 | X49: 4 | Y49: 5 | Z49: 2 | AA49: 2 | AB49: 1 | AC49: 3 | AD49: 2 | AE49: 2 | AF49: 2 | AG49: 49 | AH49: 4 | AI49: 5 | AJ49: 2 | AK49: 4 | AL49: 4.8 | AM49: 12 | AN49: 3 | AO49: 4 | AP49: 2 | AQ49: 27 | AR49: 5 | AS49: 12 | AT49: 2 | AU49: 4 | AV49: 0 | AW49: 0 | BR49: 1 | BS49: 30 | BT49: 800 | BU49: 30 | BV49: 30 | BW49: 30 | BX49: 4 | BY49: 1 | BZ49: 3 | CA49: 300 | CB49: 1 | CC49: 2 | CD49: 30 | CE49: 1500 | CF49: 1.12 | CG49: 160 | CH49: 60 | CI49: 0 | CJ49: 160 | CK49: 0 | CL49: 10 | DG49: 1 | DH49: 3 | DI49: 5 | DJ49: 1 | DK49: 5 | DL49: 1 | DM49: 5 | DN49: 2 | DO49: 2000 | DP49: 1 | DQ49: 2 | DR49: 1 | DS49: 1 | DT49: 2 | DU49: 2018 | DV49: 5 | DW49: 1 | DX49: 2 | DY49: 2018 | DZ49: 5 | EG49: 1 | EH49: 1 | EI49: 1 | EJ49: 9 | EK49: 50 | EL49: 洋丰 | EM49: 70 | EN49: 50 | ER49: 2 | ES49: 1 | ET49: 1 | EU49: 9 | EV49: 20 | EX49: 95 | EY49: 80 | FC49: 2 | FD49: 1 | FE49: 1 | FF49: 9 | FG49: 20 | FI49: 95 | FJ49: 80 | GK49: 2 | GL49: 1 | GM49: 1 | GN49: 2015 | GO49: 1 | GP49: 2 | GQ49: 2 | GR49: 4 | GS49: 4 | GT49: 3 | GU49: 3 | GV49: 3 | GW49: 3 | GX49: 4 | GY49: 4 | GZ49: 5 | HA49: 5 | HB49: 5 | HC49: 4 | HD49: 3 | HE49: 4 | HF49: 3 | HG49: 3 | HH49: 30 | HI49: 9 | HJ49: 1 | HK49: 2 | HL49: 3 | HM49: 2 | HN49: 1 | HO49: 4 | HP49: 3 | HQ49: 1 | HR49: 1 | HS49: 2 | HU49: 3 | HV49: 5 | HW49: 3 | HX49: 2 | HY49: 4 | HZ49: 3 | IA49: 2 | IB49: 4 | IC49: 1 | ID49: 1 | IE49: 5 | IF49: 5 | IG49: 1 | IH49: 1 | II49: 2 | IJ49: 2 | IK49: 3 | IL49: 2 | IM49: 2 | IO49: 4 | IP49: 4 | IQ49: 3 | IR49: 4 | IS49: 3 | IT49: 4 | IU49: 4 | IV49: 4 | IW49: 3 | IX49: 4 | IY49: 3 | IZ49: 3 | JA49: 2 | JB49: 5 | JC49: 5 | JD49: 5 | JE49: 4 | JF49: 3 | JG49: 4 | JH49: 4 | JI49: 5 | JJ49: 4 | JK49: 3 | JL49: 4 | JM49: 4 | JN49: 4 | JO49: 5 | JP49: 5 | JQ49: 5 | JR49: 5 | JS49: 4 | JT49: 2 | JU49: 1 | JZ49: 5 | KA49: 1 | KB49: 2 | KJ49: 3 | KK49: 400 | KL49: 5 | KM49: 5 | KN49: 4 | KO49: 4 | KP49: 5 | KQ49: 5 | KR49: 5 | KS49: 5 | KT49: 4 | KU49: 5 | KV49: 4 | KW49: 4 | KX49: 4 | KY49: 3 | KZ49: 3 | LA49: 2 | LB49: 3 | LC49: 3 | LD49: 3 | LE49: 3 | LF49: 2 | LG49: 3 | LH49: 2 | LI49: 2 | LJ49: 2 | LK49: 1 | LL49: 1 | LM49: 1 | LN49: 2 | LO49: 2 | LP49: 2 | LQ49: 1 | LR49: 2 | LS49: 2 | LT49: 5 | LU49: 4 | LV49: 5 | LW49: 5 | LX49: 5 | LY49: 5 | LZ49: 2 | MA49: 1 | MB49: 1 | MC49: 1 | MD49: 1 | ME49: 1 | MF49: 1 | MG49: 1 | MH49: 1 | MI49: 1 | MJ49: 5 | MK49: 3 | MM49: 2 | MN49: 2 | MO49: 2 | MP49: 2 | MQ49: 1 | MR49: 1 | MS49: 5 | MT49: 2 | MU49: 2 | MW49: 1 | MX49: 3 | MY49: 1 | MZ49: 10 | NA49: 3 | NB49: 1 | NE49: 2 | NH49: 2 | NK49: 2 | NN49: 2 | NQ49: 1 | NR49: 10 | NS49: 1 | NT49: 1 | NV49: 2 | NW49: 2 | NX49: 3 | NY49: 3 | NZ49: 2 | OA49: 1 | OC49: 2 | OD49: 8 | OE49: 1 | OG49: 1 | OI49: 4 | OJ49: 5 | OK49: 1 | OL49: 5 | OM49: 1 | ON49: 2 | OP49: 2 | OQ49: 1 | OR49: 3 | OS49: 2 | OT49: 1 | OU49: 4 | OV49: 1 | OW49: 1 | OX49: 3 | OY49: 2 | OZ49: 1 | PA49: 5 | PB49: 2 | PC49: 1 | PD49: 5 | PE49: 2 | PF49: 1 | PG49: 5 | PH49: 1 | PI49: 2 | PK49: 2 | PL49: 1 | PM49: 4 | PN49: 2 | PO49: 1 | PP49: 3 | PQ49: 2 | PR49: 2 | PT49: 2 | PU49: 2 | PV49: 2 | PW49: 1 | PX49: 1 | PZ49: 4 | QA49: 1 | QB49: 3 | QC49: 1 | QD49: 4 | QE49: 1 | QF49: 5 | QG49: 1 | QH49: 5 | QI49: 1 | QJ49: 3 | QK49: 1 | QL49: 3 | QM49: 4 | QN49: 5 | QO49: 5 | QP49: 5 | QQ49: 4 | QR49: 5 | QS49: 2 | QT49: 4 | QU49: 3 | QV49: 4 | QW49: 5 | QX49: 5 | QY49: 5 | QZ49: 4 | RA49: 4 | RB49: 3 | RC49: 4
A50: 45 | B50: 杜三峡 | C50: 余威震 | D50: 湖北省 | E50: 荆门市钟祥县 | F50: 东桥镇 | G50: 永隆村 | H50: 曾祥彪 | I50: 18727597989 | J50: 2 | K50: 0 | L50: 6 | M50: 1 | N50: 1 | O50: 1 | P50: 4 | Q50: 7 | R50: 6 | S50: 4000 | T50: 1 | U50: 1 | V50: 1 | W50: 58 | X50: 4 | Y50: 12 | Z50: 2 | AA50: 4 | AB50: 1 | AC50: 3 | AD50: 2 | AE50: 2 | AF50: 2 | AG50: 55 | AH50: 4 | AI50: 5 | AJ50: 2 | AK50: 0 | AL50: 0 | AM50: 0 | AN50: 3 | AO50: 4 | AP50: 1 | AQ50: 32 | AR50: 5 | AS50: 14 | AT50: 2 | AU50: 0 | AV50: 0 | AW50: 0 | AX50: 4 | AY50: 4 | AZ50: 1 | BA50: 31 | BB50: 5 | BC50: 14 | BD50: 2 | BE50: 0 | BF50: 0 | BG50: 0 | BR50: 4 | BS50: 80 | BT50: 667 | BU50: 80 | BV50: 80 | BW50: 80 | BX50: 2 | BY50: 2 | BZ50: 3 | CA50: 100 | CB50: 1 | CC50: 2 | CD50: 80 | CE50: 1000 | CF50: 1.05 | CG50: 200 | CH50: 100 | CI50: 60 | CJ50: . | CK50: 40 | CL50: 3 | DG50: 1 | DH50: 3 | DI50: 5 | DJ50: 3 | DK50: 5 | DL50: 3 | DM50: 5 | DN50: 2 | DO50: 1000 | DP50: 1 | DQ50: 2 | DR50: 1 | DS50: 1、7农资店 | DT50: 3 | DU50: 2018 | DV50: 5 | DW50: 1、7农资店 | DX50: 3 | DY50: 2018 | DZ50: 5 | EG50: 1 | EH50: 1 | EI50: 1 | EJ50: 9 | EK50: 100 | EM50: 70 | EN50: 50 | ER50: 2 | ES50: 2 | ET50: 1 | EU50: 9 | EV50: 20 | EX50: 70 | EY50: 50 | FC50: 3 | FD50: 2 | FE50: 1 | FF50: 1 | FG50: 20 | FI50: 90 | FJ50: 80 | GK50: 2 | GL50: 1 | GM50: 1 | GN50: 2014 | GO50: 1 | GP50: 2 | GQ50: 4 | GR50: 4 | GS50: 3 | GT50: 3 | GU50: 3 | GV50: 3 | GW50: 3 | GX50: 4 | GY50: 5 | GZ50: 4 | HA50: 4 | HB50: 4 | HC50: 2 | HD50: 3 | HE50: 4 | HF50: 5 | HG50: 4 | HH50: 50 | HI50: 6 | HJ50: 1 | HK50: 1、2 | HL50: 3 | HM50: 3 | HN50: 1 | HO50: 3 | HP50: 4 | HQ50: 1、2 | HR50: 1 | HS50: 1 | HT50: 5 | HU50: 3 | HV50: 4 | HW50: 4 | HX50: 1 | HY50: 4 | HZ50: 3 | IA50: 2 | IB50: 4 | IC50: 2 | ID50: 2 | IE50: 1 | IF50: 5 | IG50: 1 | IH50: 1 | II50: 2 | IJ50: 4 | IK50: 3 | IL50: 1 | IM50: 2 | IO50: 5 | IP50: 4 | IQ50: 5 | IR50: 4 | IS50: 5 | IT50: 4 | IU50: 4 | IV50: 5 | IW50: 5 | IX50: 3 | IY50: 3 | IZ50: 3 | JA50: 3 | JB50: 5 | JC50: 5 | JD50: 5 | JE50: 4 | JF50: 4 | JG50: 5 | JH50: 5 | JI50: 4 | JJ50: 5 | JK50: 4 | JL50: 5 | JM50: 5 | JN50: 5 | JO50: 4 | JP50: 5 | JQ50: 2 | JR50: 2 | JS50: 3 | JT50: 2 | JU50: 1 | JZ50: 5 | KA50: 1 | KB50: 1 | KC50: 1 | KD50: 4 | KE50: 6 | KG50: 400 | KH50: 1 | KI50: 25 | KJ50: 3 | KK50: 600 | KL50: 5 | KM50: 5 | KN50: 4 | KO50: 3 | KP50: 3 | KQ50: 3 | KR50: 3 | KS50: 4 | KT50: 3 | KU50: 5 | KV50: 4 | KW50: 3 | KX50: 3 | KY50: 4 | KZ50: 4 | LA50: 4 | LB50: 5 | LC50: 5 | LD50: 5 | LE50: 5 | LF50: 4 | LG50: 5 | LH50: 5 | LI50: 4 | LJ50: 2 | LK50: 3 | LL50: 3 | LM50: 4 | LN50: 1 | LO50: 2 | LP50: 2 | LQ50: 1、2 | LR50: 1、2、3 | LS50: 2、5 | LT50: 3 | LU50: 5 | LV50: 2 | LW50: 2 | LX50: 4 | LY50: 5 | LZ50: 2 | MA50: 1 | MB50: 1 | MC50: 1 | MD50: 1 | ME50: 1 | MF50: 1 | MG50: 1 | MH50: 1 | MI50: 1 | MJ50: 5 | MK50: 3 | MM50: 1 | MN50: 1 | MO50: 1 | MP50: 2 | MQ50: 1 | MR50: 1 | MS50: 4 | MT50: 2 | MU50: 2 | MW50: 2 | MY50: 1 | MZ50: 5 | NA50: 2 | NB50: 1 | NC50: 1 | ND50: 3 | NE50: 2 | NH50: 2 | NK50: 1 | NL50: 5 | NM50: 1 | NN50: 2 | NQ50: 1 | NR50: 1 | NT50: 1 | NU50: 0 | NW50: 2 | NX50: 3 | NY50: 2 | NZ50: 2 | OA50: 1 | OC50: 3 | OD50: 8农资站 | OE50: 1 | OG50: 1 | OI50: 5 | OJ50: 5 | OK50: 1 | OL50: 5 | OM50: 1 | ON50: 1 | OO50: 4 | OP50: 1 | OQ50: 1 | OR50: 5 | OS50: 1 | OT50: 1 | OU50: 5 | OV50: 1 | OW50: 2 | OY50: 2 | OZ50: 1 | PA50: 3 | PB50: 1 | PC50: 1 | PD50: 3 | PE50: 2 | PF50: 1 | PG50: 3 | PH50: 2 | PI50: 2 | PK50: 2 | PL50: 1 | PM50: 3 | PN50: 2 | PO50: 2 | PQ50: 2 | PR50: 2 | PT50: 2 | PU50: 2 | PV50: 2 | PW50: 2 | PY50: 2 | PZ50: 4 | QA50: 1 | QB50: 3 | QC50: 1 | QD50: 3 | QE50: 1 | QF50: 3 | QG50: 1 | QH50: 3 | QI50: 1 | QJ50: 5 | QK50: 1 | QL50: 5 | QM50: 4 | QN50: 5 | QO50: 4 | QP50: 3 | QQ50: 5 | QR50: 5 | QS50: 2 | QT50: 3 | QU50: 3 | QV50: 4 | QW50: 5 | QX50: 4 | QY50: 3 | QZ50: 4 | RA50: 2 | RB50: 2 | RC50: 4
A51: 46 | B51: 杜三峡 | C51: 余威震 | D51: 湖北省 | E51: 荆门市钟祥县 | F51: 冷水镇 | G51: 侯集村 | H51: 李平 | I51: 18972892372 | J51: 2 | K51: 8 | L51: 5 | M51: 0 | N51: 2 | O51: 4 | P51: 5 | Q51: 8 | R51: 4 | S51: 10000 | T51: 1 | U51: 1 | V51: 1 | W51: 43 | X51: 5 | Y51: 9 | Z51: 2 | AA51: 1 | AB51: 3.5 | AC51: 3 | AD51: 2 | AE51: 2 | AF51: 2 | AG51: 42 | AH51: 5 | AI51: 9 | AJ51: 2 | AK51: 2 | AL51: 2 | AM51: 6 | AN51: 3 | AO51: 3 | AP51: 1 | AQ51: 65 | AR51: 4 | AS51: 5 | AT51: 2 | AU51: 0 | AV51: 0 | AW51: 0 | AX51: 4 | AY51: 3 | AZ51: 2 | BA51: 64 | BB51: 4 | BC51: 5 | BD51: 2 | BE51: 0 | BF51: 0 | BG51: 0 | BR51: 1 | BS51: 30 | BT51: 667 | BU51: 20 | BV51: 30 | BW51: 20 | BX51: 2 | BY51: 1 | BZ51: 3 | CA51: 1000 | CB51: 1 | CC51: 2 | CD51: 30 | CE51: 1300 | CF51: 1.28 | CG51: 150 | CH51: 30 | CI51: 0 | CJ51: 80 | CK51: 0 | CL51: 8 | DG51: 1 | DH51: 3 | DI51: 5 | DJ51: 3 | DK51: 5 | DL51: 1 | DM51: 5 | DN51: 2 | DO51: 2000 | DP51: 1 | DQ51: 2 | DR51: 1 | DS51: 1 | DT51: 1 | DU51: 2019 | DV51: 5 | DW51: 1 | DX51: 1 | DY51: 2019 | DZ51: 5 | EG51: 1 | EH51: 1 | EI51: 1 | EJ51: 9 | EK51: 60 | EL51: 洋丰 | EM51: 135 | EN51: 80 | ER51: 2 | ES51: 2 | ET51: 1 | EU51: 9 | EV51: 10 | EW51: 洋丰 | EX51: 135 | EY51: 80 | FC51: 3 | FD51: 3 | FG51: 30 | GK51: 2 | GL51: 1 | GM51: 1 | GN51: 2019 | GO51: 2 | GP51: 3 | GQ51: 4 | GR51: 4 | GS51: 5 | GT51: 5 | GU51: 5 | GV51: 4 | GW51: 4 | GX51: 4 | GY51: 4 | GZ51: 5 | HA51: 5 | HB51: 5 | HC51: 5 | HD51: 5 | HE51: 4 | HF51: 4 | HG51: 4 | HH51: 10 | HI51: 4 | HJ51: 1 | HK51: 2 | HL51: 5 | HM51: 2 | HN51: 1 | HO51: 3 | HP51: 4 | HQ51: 1、2、4、5 | HR51: 1 | HS51: 2 | HU51: 3 | HV51: 3 | HW51: 4 | HX51: 1 | HY51: 3 | HZ51: 3 | IA51: 1 | IB51: 1 | IC51: 2 | ID51: 2 | IE51: 1 | IF51: 4 | IG51: 1 | IH51: 1 | II51: 2 | IJ51: 5 | IK51: 3 | IL51: 2 | IM51: 2 | IO51: 4 | IP51: 4 | IQ51: 3 | IR51: 4 | IS51: 3 | IT51: 4 | IU51: 4 | IV51: 4 | IW51: 3 | IX51: 3 | IY51: 3 | IZ51: 3 | JA51: 3 | JB51: 4 | JC51: 3 | JD51: 3 | JE51: 4 | JF51: 4 | JG51: 4 | JH51: 4 | JI51: 5 | JJ51: 4 | JK51: 3 | JL51: 3 | JM51: 3 | JN51: 2 | JO51: 3 | JP51: 3 | JQ51: 3 | JR51: 4 | JS51: 5 | JT51: 1 | JU51: 2 | JV51: 2 | JW51: 1 | JZ51: 3 | KA51: 1 | KB51: 2 | KJ51: 3 | KL51: 4 | KM51: 5 | KN51: 5 | KO51: 5 | KP51: 4 | KQ51: 4 | KR51: 5 | KS51: 4 | KT51: 4 | KU51: 4 | KV51: 5 | KW51: 5 | KX51: 4 | KY51: 5 | KZ51: 5 | LA51: 5 | LB51: 5 | LC51: 5 | LD51: 5 | LE51: 4 | LF51: 4 | LG51: 4 | LH51: 3 | LI51: 3 | LJ51: 3 | LK51: 1 | LL51: 5 | LM51: 1 | LN51: 2 | LO51: 3 | LP51: 3 | LQ51: 4 | LR51: 2 | LS51: 3 | LT51: 3 | LU51: 5 | LV51: 5 | LW51: 5 | LX51: 5 | LY51: 5 | LZ51: 2 | MA51: 1 | MB51: 1 | MC51: 1 | MD51: 1 | ME51: 1 | MF51: 1 | MG51: 1 | MH51: 1 | MI51: 1 | MJ51: 5 | MK51: 3 | MM51: 1 | MN51: 2 | MO51: 2 | MP51: 2 | MQ51: 1 | MR51: 1 | MS51: 5 | MT51: 1 | MU51: 2 | MV51: 免费 | MW51: 1 | MX51: 2 | MY51: 1 | MZ51: 50 | NA51: 1 | NB51: 1 | ND51: 2 | NE51: 2 | NH51: 2 | NK51: 2 | NN51: 2 | NQ51: 1 | NS51: 3 | NT51: 1 | NW51: 2 | NX51: 3 | NY51: 3 | NZ51: 3 | OA51: 1 | OC51: 3 | OD51: 1、8农资站 | OE51: 1 | OG51: 1 | OI51: 4 | OJ51: 4 | OK51: 1 | OL51: 5 | OM51: 1 | ON51: 2 | OP51: 2 | OQ51: 2 | OS51: 2 | OT51: 1 | OU51: 5 | OV51: 2 | OW51: 1 | OX51: 4 | OY51: 1 | OZ51: 1 | PA51: 4 | PB51: 1 | PC51: 1 | PD51: 3 | PE51: 2 | PF51: 1 | PG51: 5 | PH51: 1 | PI51: 2 | PK51: 2 | PL51: 2 | PN51: 2 | PO51: 2 | PQ51: 2 | PR51: 2 | PT51: 2 | PU51: 2 | PV51: 2 | PW51: 2 | PY51: 5 | PZ51: 4 | QA51: 2 | QB51: 3 | QC51: 2 | QD51: 5 | QE51: 1 | QF51: 4 | QG51: 1 | QH51: 4 | QI51: 2 | QJ51: 3 | QK51: 2 | QL51: 3 | QM51: 4 | QN51: 4 | QO51: 4 | QP51: 3 | QQ51: 4 | QR51: 4 | QS51: 3 | QT51: 5 | QU51: 5 | QV51: 5 | QW51: 5 | QX51: 4 | QY51: 4 | QZ51: 4 | RA51: 3 | RB51: 3 | RC51: 2
A52: 47 | B52: 杜三峡 | C52: 余威震 | D52: 湖北省 | E52: 荆门市钟祥县 | F52: 冷水镇 | G52: 白佛村 | H52: 徐定鸿 | I52: 13477556177 | J52: 2 | K52: 7.5 | L52: 5 | M52: 0 | N52: 1 | O52: 2 | P52: 5 | Q52: 2 | R52: 1 | S52: 1000 | T52: 1 | U52: 1 | V52: 1 | W52: 49 | X52: 4 | Y52: 9 | Z52: 2 | AA52: 5 | AB52: 0.8 | AC52: 2 | AD52: 2 | AE52: 2 | AF52: 2 | AG52: 43 | AH52: 3 | AI52: 9 | AJ52: 2 | AK52: 0 | AL52: 0 | AM52: 0 | BR52: 1 | BS52: 12 | BT52: 667 | BU52: 15 | BV52: 12 | BW52: 15 | BX52: 3 | BY52: 2 | BZ52: 3 | CA52: 1500 | CB52: 1 | CC52: 2 | CD52: 12 | CE52: 1000 | CF52: 1.2 | CG52: 160 | CH52: 20 | CI52: 0 | CJ52: 140 | CK52: 0 | CL52: 3 | DG52: 1 | DH52: 1 | DI52: 5 | DJ52: 3 | DK52: 5 | DL52: 1 | DM52: 5 | DN52: 2 | DO52: 4000 | DP52: 1 | DQ52: 2 | DR52: 2 | EF52: 1 | EG52: 1 | EH52: 1 | EI52: 1 | EJ52: 9 | EK52: 70 | EM52: 140 | EN52: 80 | EO52: 16 | EP52: 16 | EQ52: 10 | ER52: 2 | ES52: 2 | ET52: 1 | EU52: 1 | EV52: 15 | EX52: 80 | EY52: 80 | GK52: 2 | GL52: 1 | GM52: 1 | GN52: 2012 | GO52: 2 | GP52: 3 | GQ52: 4 | GR52: 4 | GS52: 4 | GT52: 4 | GU52: 4 | GV52: 4 | GW52: 4 | GX52: 3 | GY52: 3 | GZ52: 4 | HA52: 4 | HB52: 4 | HC52: 3 | HD52: 3 | HE52: 5 | HF52: 5 | HG52: 4 | HH52: 5 | HI52: 1.5 | HJ52: 1 | HK52: 1 | HL52: 5 | HM52: 2 | HN52: 1 | HO52: 5 | HP52: 3 | HQ52: 1、4 | HR52: 1 | HS52: 2 | HU52: 3 | HV52: 3 | HW52: 3 | HX52: 2 | HY52: 2 | HZ52: 3 | IA52: 2 | IB52: 3 | IC52: 2 | ID52: 2 | IE52: 1 | IF52: 4 | IG52: 1 | IH52: 2 | II52: 2 | IJ52: 5 | IK52: 3 | IL52: 2 | IM52: 2 | IO52: 5 | IP52: 4 | IQ52: 3 | IR52: 4 | IS52: 3 | IT52: 4 | IU52: 3 | IV52: 3 | IW52: 3 | IX52: 3 | IY52: 3 | IZ52: 4 | JA52: 3 | JB52: 3 | JC52: 3 | JD52: 3 | JE52: 5 | JF52: 4 | JG52: 4 | JH52: 5 | JI52: 4 | JJ52: 3 | JK52: 4 | JL52: 4 | JM52: 3 | JN52: 4 | JO52: 3 | JP52: 3 | JQ52: 3 | JR52: 3 | JS52: 3 | JT52: 1 | JU52: 1 | JZ52: 2 | KA52: 2 | KB52: 2 | KJ52: 3 | KK52: 800 | KL52: 4 | KM52: 3 | KN52: 2 | KO52: 2 | KP52: 4 | KQ52: 4 | KR52: 4 | KS52: 5 | KT52: 5 | KU52: 5 | KV52: 3 | KW52: 3 | KX52: 3 | KY52: 3 | KZ52: 2 | LA52: 2 | LB52: 4 | LC52: 4 | LD52: 4 | LE52: 5 | LF52: 5 | LG52: 5 | LH52: 3 | LI52: 3 | LJ52: 3 | LK52: 1、3 | LL52: 1、3 | LM52: 1 | LN52: 2 | LO52: 3 | LP52: 3 | LQ52: 4、5 | LR52: 2 | LS52: 5 | LT52: 3 | LU52: 5 | LV52: 5 | LW52: 5 | LX52: 5 | LY52: 4 | LZ52: 2 | MA52: 1 | MB52: 1 | MC52: 1 | MD52: 1 | ME52: 1 | MF52: 1 | MG52: 1 | MH52: 1 | MI52: 1 | MJ52: 2 | MK52: 3 | MM52: 1 | MN52: 2 | MO52: 2 | MP52: 1 | MQ52: 1 | MR52: 1 | MS52: 4 | MT52: 2 | MU52: 2 | MW52: 1 | MX52: 4 | MY52: 1 | NA52: 2 | NB52: 1 | ND52: 1 | NE52: 2 | NH52: 2 | NK52: 2 | NN52: 2 | NQ52: 1 | NT52: 1 | NV52: 3 | NW52: 2 | NX52: 3 | NY52: 3 | NZ52: 3 | OA52: 1 | OC52: 3 | OD52: 8 | OE52: 1 | OG52: 1 | OI52: 4 | OJ52: 3 | OK52: 1 | OL52: 5 | OM52: 1 | ON52: 2 | OP52: 1 | OQ52: 1 | OR52: 4 | OS52: 1 | OT52: 1 | OU52: 5 | OV52: 1 | OW52: 1 | OX52: 3 | OY52: 2 | OZ52: 1 | PA52: 4 | PB52: 2 | PC52: 1 | PD52: 3 | PE52: 2 | PF52: 1 | PG52: 5 | PH52: 1 | PI52: 1 | PJ52: 3 | PK52: 1 | PL52: 2 | PN52: 2 | PO52: 2 | PQ52: 2 | PR52: 2 | PT52: 2 | PU52: 2 | PV52: 1 | PZ52: 3 | QA52: 2 | QB52: 4 | QC52: 2 | QD52: 3 | QE52: 2 | QF52: 5 | QG52: 2 | QH52: 5 | QI52: 2 | QJ52: 4 | QK52: 2 | QL52: 4 | QM52: 4 | QN52: 4 | QO52: 4 | QP52: 5 | QQ52: 5 | QR52: 5 | QS52: 2 | QT52: 4 | QU52: 5 | QV52: 4 | QW52: 4 | QX52: 4 | QY52: 4 | QZ52: 4 | RA52: 3 | RB52: 2 | RC52: 1
A53: 48 | B53: 杜三峡 | C53: 余威震 | D53: 湖北省 | E53: 荆门市钟祥县 | F53: 冷水镇 | G53: 白佛村 | H53: 龚应祥 | I53: 13597927630 | J53: 2 | K53: 7 | L53: 2 | M53: 0 | N53: 0 | O53: 2 | P53: 2 | Q53: 1 | R53: 1 | S53: 4000 | T53: 1 | U53: 1 | V53: 1 | W53: 57 | X53: 5 | Y53: 9 | Z53: 2 | AA53: 0 | AB53: 0 | AC53: 0 | AD53: 2 | AE53: 2 | AF53: 2 | AG53: 57 | AH53: 5 | AI53: 9 | AJ53: 2 | AK53: 0 | AL53: 0 | AM53: 0 | BR53: 1 | BS53: 10 | BT53: 667 | BU53: 10 | BV53: 10 | BW53: 10 | BX53: 4 | BY53: 1 | BZ53: 3 | CA53: 1000 | CB53: 1 | CC53: 2 | CD53: 10 | CE53: 1000 | CF53: 1.1 | CG53: 150 | CH53: 100 | CI53: 0 | CJ53: 140 | CK53: 0 | CL53: 10 | DG53: 1 | DH53: 1 | DI53: 4 | DJ53: 1 | DK53: 5 | DL53: 1 | DM53: 2 | DN53: 2 | DO53: 1000 | DP53: 1 | DQ53: 2 | DR53: 1 | DW53: 1 | DX53: 2 | DY53: 2018 | DZ53: 5 | EG53: 1 | EH53: 1 | EI53: 1 | EJ53: 9 | EK53: 55 | EM53: 140 | EN53: 100 | GK53: 2 | GL53: 1 | GM53: 1 | GN53: 2011 | GO53: 1 | GP53: 3 | GQ53: 5 | GR53: 5 | GS53: 5 | GT53: 4 | GU53: 3 | GV53: 3 | GW53: 4 | GX53: 4 | GY53: 4 | GZ53: 5 | HA53: 5 | HB53: 5 | HC53: 4 | HD53: 5 | HE53: 5 | HF53: 5 | HG53: 5 | HH53: 10 | HI53: 1 | HJ53: 1 | HK53: 3 | HL53: 3 | HM53: 2 | HN53: 4 | HO53: 2 | HP53: 3 | HQ53: 4、5 | HR53: 2 | HS53: 1 | HT53: 5 | HU53: 3 | HV53: 5 | HW53: 3 | HX53: 2 | HY53: 4 | HZ53: 3 | IA53: 2 | IB53: 3 | IC53: 2 | ID53: 2 | IE53: 1 | IF53: 5 | IG53: 1 | IH53: 3 | II53: 2 | IJ53: 5 | IK53: 4 | IL53: 2 | IM53: 2 | IO53: 5 | IP53: 5 | IQ53: 5 | IR53: 5 | IS53: 5 | IT53: 5 | IU53: 5 | IV53: 4 | IW53: 4 | IX53: 3 | IY53: 4 | IZ53: 3 | JA53: 3 | JB53: 5 | JC53: 5 | JD53: 5 | JE53: 4 | JF53: 4 | JG53: 5 | JH53: 5 | JI53: 5 | JJ53: 4 | JK53: 4 | JL53: 5 | JM53: 5 | JN53: 4 | JO53: 5 | JP53: 5 | JQ53: 5 | JR53: 5 | JS53: 5 | JT53: 1 | JU53: 1 | JZ53: 4 | KA53: 1 | KB53: 2 | KJ53: 2 | KK53: 700 | KL53: 3 | KM53: 5 | KN53: 4 | KO53: 3 | KP53: 4 | KQ53: 4 | KR53: 4 | KS53: 5 | KT53: 5 | KU53: 5 | KV53: 5 | KW53: 4 | KX53: 4 | KY53: 3 | KZ53: 3 | LA53: 3 | LB53: 3 | LC53: 3 | LD53: 3 | LE53: 3 | LF53: 3 | LG53: 3 | LH53: 2 | LI53: 3 | LJ53: 2 | LK53: 1 | LL53: 1 | LM53: 1 | LN53: 2 | LO53: 3 | LP53: 3 | LQ53: 4 | LR53: 3 | LS53: 3、5 | LT53: 3 | LU53: 3 | LV53: 2 | LW53: 2 | LX53: 5 | LY53: 5 | LZ53: 2 | MA53: 1 | MB53: 1 | MC53: 1 | MD53: 1 | ME53: 1 | MF53: 1 | MG53: 1 | MH53: 1 | MI53: 1 | MJ53: 4 | MK53: 3 | MM53: 1 | MN53: 2 | MO53: 1 | MP53: 2 | MQ53: 1 | MR53: 1 | MS53: 5 | MT53: 2 | MU53: 2 | MW53: 2 | MY53: 2 | NB53: 1 | ND53: 3 | NE53: 2 | NH53: 2 | NK53: 2 | NN53: 2 | NQ53: 1 | NS53: 1 | NT53: 1 | NV53: 2 | NW53: 2 | NX53: 3 | NY53: 3 | NZ53: 3 | OA53: 3 | OB53: 8农资店 | OC53: 3 | OD53: 1、8 | OE53: 1 | OG53: 1 | OI53: 4 | OJ53: 4 | OK53: 1 | OL53: 5 | OM53: 1 | ON53: 2 | OP53: 2 | OQ53: 1 | OR53: 4 | OS53: 1 | OT53: 1 | OU53: 3 | OV53: 2 | OW53: 2 | OY53: 2 | OZ53: 1 | PA53: 3 | PB53: 2 | PC53: 1 | PD53: 5 | PE53: 1 | PF53: 1 | PG53: 3 | PH53: 2 | PI53: 1 | PJ53: 3 | PK53: 2 | PL53: 1 | PM53: 3 | PN53: 2 | PO53: 2 | PQ53: 2 | PR53: 2 | PT53: 2 | PU53: 2 | PV53: 2 | PW53: 1 | PX53: 10 | PZ53: 4 | QA53: 1 | QB53: 5 | QC53: 2 | QD53: 5 | QE53: 2 | QF53: 5 | QG53: 1 | QH53: 5 | QI53: 1 | QJ53: 4 | QK53: 1 | QL53: 4 | QM53: 5 | QN53: 4 | QO53: 5 | QP53: 4 | QQ53: 5 | QR53: 5 | QS53: 3 | QT53: 4 | QU53: 5 | QV53: 4 | QW53: 5 | QX53: 5 | QY53: 4 | QZ53: 5 | RA53: 1 | RB53: 3 | RC53: 3
A54: 49 | B54: 杜三峡 | C54: 余威震 | D54: 湖北省 | E54: 荆门市钟祥县 | F54: 冷水镇 | G54: 白佛村 | H54: 徐定贵 | I54: 13597913245 | J54: 2 | K54: 7 | L54: 6 | M54: 1 | N54: 2 | O54: 2 | P54: 2 | Q54: 10 | R54: 4 | S54: 10000 | T54: 1 | U54: 1 | V54: 1 | W54: 52 | X54: 3 | Y54: 12 | Z54: 1 | AA54: 1 | AB54: 3 | AC54: 3 | AD54: 2 | AE54: 2 | AF54: 2 | AG54: 51 | AH54: 3 | AI54: 9 | AJ54: 2 | AK54: 0 | AL54: 0 | AM54: 0 | BR54: 2 | BS54: 70 | BT54: 667 | BU54: 60 | BV54: 70 | BW54: 60 | BX54: 3 | BY54: 1 | BZ54: 3 | CA54: 300 | CB54: 1 | CC54: 2 | CD54: 70 | CE54: 1300 | CF54: 1.16 | CG54: 100 | CH54: 0 | CI54: 30 | CJ54: 100 | CK54: 0 | CL54: 8 | DG54: 1 | DH54: 3 | DI54: 5 | DJ54: 3 | DK54: 5 | DL54: 1 | DM54: 5 | DN54: 2 | DO54: 2000 | DP54: 1 | DQ54: 1 | DR54: 1 | DS54: 1 | DT54: 2 | DU54: 2018 | DV54: 4 | DW54: 1 | DX54: 2 | DY54: 2018 | DZ54: 4 | EG54: 1 | EH54: 1 | EI54: 1 | EJ54: 10 | EK54: 80 | EM54: 100 | EN54: 80 | EO54: 22 | EP54: 8 | EQ54: 10 | ER54: 2 | ES54: 2 | ET54: 1 | EU54: 1 | EV54: 10~15 | EX54: 80 | EY54: 80 | GK54: 1 | GL54: 1 | GM54: 1 | GN54: 2009 | GO54: 1 | GP54: 2 | GQ54: 5 | GR54: 5 | GS54: 5 | GT54: 5 | GU54: 4 | GV54: 4 | GW54: 3 | GX54: 3 | GY54: 3 | GZ54: 4 | HA54: 4 | HB54: 5 | HC54: 2 | HD54: 2 | HE54: 3 | HF54: 5 | HG54: 5 | HH54: 60 | HI54: 8 | HJ54: 1 | HK54: 1、3 | HL54: 5 | HM54: 3 | HN54: 1 | HO54: 4 | HP54: 5 | HQ54: 1、2、4、5 | HR54: 1 | HS54: 1 | HT54: 3 | HU54: 3 | HV54: 4 | HW54: 4 | HX54: 1 | HY54: 5 | HZ54: 3 | IA54: 1 | IB54: 3 | IC54: 2 | ID54: 2 | IE54: 1 | IF54: 5 | IG54: 1 | IH54: 1 | II54: 2 | IJ54: 5 | IK54: 5 | IL54: 2 | IM54: 2 | IO54: 2 | IP54: 4 | IQ54: 4 | IR54: 4 | IS54: 4 | IT54: 4 | IU54: 4 | IV54: 3 | IW54: 3 | IX54: 4 | IY54: 3 | IZ54: 3 | JA54: 3 | JB54: 4 | JC54: 4 | JD54: 4 | JE54: 3 | JF54: 5 | JG54: 4 | JH54: 4 | JI54: 3 | JJ54: 4 | JK54: 5 | JL54: 4 | JM54: 4 | JN54: 4 | JO54: 5 | JP54: 5 | JQ54: 4 | JR54: 4 | JS54: 4 | JT54: 3 | JU54: 2 | JV54: 2 | JW54: 1 | JZ54: 4 | KA54: 1 | KB54: 1 | KC54: 1 | KD54: 4 | KE54: 6 | KG54: 200 | KH54: 1 | KI54: 25 | KJ54: 1 | KK54: 400 | KL54: 2 | KM54: 5 | KN54: 5 | KO54: 4 | KP54: 5 | KQ54: 5 | KR54: 4 | KS54: 5 | KT54: 5 | KU54: 5 | KV54: 5 | KW54: 4 | KX54: 5 | KY54: 4 | KZ54: 4 | LA54: 4 | LB54: 5 | LC54: 5 | LD54: 5 | LE54: 4 | LF54: 4 | LG54: 5 | LH54: 5 | LI54: 4 | LJ54: 4 | LK54: 1、3 | LL54: 1、3 | LM54: 2 | LN54: 2 | LO54: 3 | LP54: 3 | LQ54: 4 | LR54: 3 | LS54: 2、5 | LT54: 5 | LU54: 5 | LV54: 5 | LW54: 5 | LX54: 5 | LY54: 5 | LZ54: 4 | MA54: 1 | MB54: 1 | MC54: 1 | MD54: 1 | ME54: 1 | MF54: 1 | MG54: 1 | MH54: 1 | MI54: 1 | MJ54: 5 | MK54: 3 | MM54: 1 | MN54: 2 | MO54: 2 | MP54: 2 | MQ54: 2 | MR54: 1 | MS54: 5 | MT54: 1 | MU54: 1 | MV54: 0 | MW54: 2 | MY54: 1 | NA54: 3 | NB54: 2 | NE54: 1 | NG54: 1 | NH54: 2 | NK54: 2 | NN54: 2 | NQ54: 1 | NS54: 2 | NT54: 1 | NW54: 1 | NX54: 4 | NY54: 3 | NZ54: 2 | OA54: 3 | OB54: 1 | OC54: 3 | OD54: 1 | OE54: 1 | OG54: 1 | OI54: 4 | OJ54: 5 | OK54: 1 | OL54: 5 | OM54: 1 | ON54: 2 | OP54: 2 | OQ54: 1 | OR54: 5 | OS54: 1 | OT54: 1 | OU54: 4 | OV54: 1 | OW54: 1 | OX54: 5 | OY54: 1 | OZ54: 1 | PA54: 4 | PB54: 1 | PC54: 2 | PE54: 2 | PF54: 1 | PG54: 5 | PH54: 1 | PI54: 2 | PK54: 2 | PL54: 1 | PM54: 5 | PN54: 1 | PO54: 2 | PQ54: 2 | PR54: 2 | PT54: 2 | PU54: 2 | PV54: 2 | PW54: 1 | PX54: 6 | PZ54: 5 | QA54: 2 | QB54: 3 | QC54: 2 | QD54: 3 | QE54: 1 | QF54: 5 | QG54: 1 | QH54: 4 | QI54: 1 | QJ54: 5 | QK54: 1 | QL54: 4 | QM54: 5 | QN54: 5 | QO54: 5 | QP54: 3 | QQ54: 5 | QR54: 5 | QS54: 2 | QT54: 4 | QU54: 5 | QV54: 5 | QW54: 4 | QX54: 5 | QY54: 5 | QZ54: 5 | RA54: 3 | RB54: 2 | RC54: 2
A55: 50 | B55: 杜三峡 | C55: 余威震 | D55: 湖北省 | E55: 荆门市钟祥县 | F55: 东桥镇 | G55: 联盟村 | H55: 朱翠琴 | I55: 15107264244 | J55: 2 | K55: 7 | L55: 4 | M55: 0 | N55: 0 | O55: 2 | P55: 2 | Q55: 43 | R55: 6 | S55: 5000 | T55: 1 | U55: 2 | V55: 2 | W55: 51 | X55: 3 | Y55: 12 | Z55: 2 | AA55: 4 | AB55: 1 | AC55: 3 | AD55: 2 | AE55: 1 | AF55: 1 | AG55: 54 | AH55: 4 | AI55: 12 | AJ55: 2 | AK55: 4 | AL55: 1 | AM55: 3 | AN55: 3 | AO55: 4 | AP55: 2 | AQ55: 30 | AR55: 5 | AS55: 15 | AT55: 2 | AU55: 5 | AV55: 25 | AW55: 12 | AX55: 4 | AY55: 4 | AZ55: 2 | BA55: 25 | BB55: 5 | BC55: 14 | BD55: 2 | BE55: 4 | BF55: 5 | BG55: 12 | BR55: 1.3 | BS55: 30 | BT55: 800 | BU55: 20 | BV55: 30 | BW55: 20 | BX55: 2 | BY55: 2 | BZ55: 3 | CA55: 100 | CB55: 1 | CC55: 2 | CD55: 30 | CE55: 1700 | CF55: 1.2 | CG55: 25 | CH55: 50 | CI55: 0 | CJ55: 0 | CK55: 50 | CL55: 5 | DG55: 1 | DH55: 3 | DI55: 5 | DJ55: 3 | DK55: 5 | DL55: 3 | DM55: 5 | DN55: 2 | DO55: 1700 | DP55: 1 | DQ55: 2 | DR55: 1 | DS55: 1 | DT55: 1 | DU55: 2018 | DV55: 4 | DW55: 1 | DX55: 1 | DY55: 2018 | DZ55: 4 | EG55: 1 | EH55: 1 | EI55: 1 | EJ55: 10 | EK55: 120 | EM55: 115 | EN55: 80 | ER55: 2 | ES55: 2 | ET55: 1 | EU55: 1 | EV55: 20 | EX55: 95 | EY55: 80 | FC55: 3 | FD55: 3 | FE55: 1 | FF55: 10 | FG55: 25 | FI55: 115 | FJ55: 80 | FN55: 4 | FO55: 4 | FP55: 1 | FQ55: 8 | FR55: 50 | GK55: 2 | GL55: 2 | GO55: 2 | GQ55: 2 | GR55: 2 | GS55: 2 | GT55: 3 | GU55: 3 | GV55: 3 | GW55: 3 | GX55: 2 | GY55: 2 | GZ55: 3 | HA55: 3 | HB55: 2 | HC55: 3 | HD55: 3 | HE55: 1 | HF55: 2 | HG55: 1 | HK55: 1 | HL55: 2 | HM55: 1 | HN55: 1 | HO55: 5 | HP55: 2 | HQ55: 1、5 | HR55: 1 | HS55: 2 | HU55: 1 | HV55: 5 | HW55: 2 | HX55: 2 | HY55: 2 | HZ55: 1 | IA55: 2 | IB55: 5 | IC55: 2 | ID55: 2 | IE55: 1 | IF55: 4 | IG55: 2 | IH55: 3 | II55: 2 | IJ55: 5 | IK55: 3 | IL55: 2 | IM55: 2 | JQ55: 2 | JR55: 3 | JS55: 3 | JT55: 2 | JU55: 1 | JZ55: 5 | KA55: 1 | KB55: 1 | KC55: 1 | KD55: 4 | KE55: 6 | KH55: 1 | KI55: 25 | KJ55: 3 | KK55: 600 | KL55: 3 | KM55: 5 | KN55: 5 | KO55: 5 | KP55: 5 | KQ55: 5 | KR55: 4 | KS55: 5 | KT55: 4 | KU55: 3 | KV55: 4 | KW55: 4 | KX55: 5 | KY55: 5 | KZ55: 3 | LA55: 3 | LB55: 5 | LC55: 5 | LD55: 4 | LE55: 5 | LF55: 5 | LG55: 5 | LH55: 4 | LI55: 3 | LJ55: 3 | LK55: 1、3 | LL55: 1 | LM55: 2 | LN55: 2 | LO55: 2 | LP55: 2 | LQ55: 4、5 | LR55: 2 | LS55: 2、3 | LT55: 3 | LU55: 4 | LV55: 2 | LW55: 3 | LX55: 4 | LY55: 3 | LZ55: 2 | MA55: 1 | MB55: 1 | MC55: 1 | MD55: 1 | ME55: 1 | MF55: 1 | MG55: 1 | MH55: 1 | MI55: 1 | MJ55: 5 | MK55: 3 | MM55: 1 | MN55: 2 | MO55: 2 | MP55: 2 | MQ55: 1 | MR55: 2 | MT55: 2 | MU55: 2 | MW55: 1 | MX55: 3 | MY55: 2 | NB55: 1 | NC55: 3 | ND55: 2 | NE55: 1 | NF55: 3 | NG55: 1 | NH55: 2 | NK55: 2 | NN55: 2 | NQ55: 1 | NR55: 1 | NS55: 3 | NT55: 1 | NU55: 1 | NW55: 2 | NX55: 3 | NY55: 3 | NZ55: 3 | OA55: 1 | OC55: 3 | OD55: 1、8 | OE55: 1 | OG55: 1 | OI55: 4 | OJ55: 4 | OK55: 1 | OL55: 5 | OM55: 1 | ON55: 2 | OP55: 2 | OQ55: 2 | OS55: 2 | OT55: 1 | OU55: 4 | OV55: 1 | OW55: 1 | OX55: 4 | OY55: 2 | OZ55: 1 | PA55: 3 | PB55: 2 | PC55: 1 | PD55: 3 | PE55: 2 | PF55: 1 | PG55: 5 | PH55: 1 | PI55: 2 | PK55: 2 | PL55: 2 | PN55: 2 | PO55: 2 | PQ55: 2 | PR55: 2 | PT55: 2 | PU55: 2 | PV55: 2 | PW55: 1 | PX55: 4 | PZ55: 5 | QA55: 2 | QB55: 4 | QC55: 2 | QD55: 4 | QE55: 2 | QF55: 3 | QG55: 2 | QH55: 4 | QI55: 2 | QJ55: 5 | QK55: 2 | QL55: 5 | QM55: 5 | QN55: 5 | QO55: 5 | QP55: 2 | QQ55: 4 | QR55: 5 | QS55: 2 | QT55: 4 | QU55: 5 | QV55: 4 | QW55: 5 | QX55: 5 | QY55: 5 | QZ55: 4 | RA55: 3 | RB55: 2 | RC55: 2
A56: 51 | B56: 杜三峡 | C56: 余威震 | D56: 湖北省 | E56: 荆门市钟祥县 | F56: 东桥镇 | G56: 联盟村 | H56: 张应忠 | I56: 15916679319 | J56: 2 | K56: 7 | L56: 7 | M56: 0 | N56: 2 | O56: 2 | P56: 5 | Q56: 19 | R56: 11 | S56: 1000 | T56: 1 | U56: 1 | V56: 1 | W56: 51 | X56: 4 | Y56: 8 | Z56: 1 | AA56: 0 | AB56: 0 | AC56: 0 | AD56: 2 | AE56: 2 | AF56: 2 | AG56: 49 | AH56: 5 | AI56: 8 | AJ56: 2 | AK56: 0 | AL56: 0 | AM56: 0 | AN56: 3 | AO56: 4 | AP56: 1 | AQ56: 27 | AR56: 5 | AS56: 12 | AT56: 2 | AU56: 1 | AV56: 4.5 | AW56: 12 | AX56: 4 | AY56: 4 | AZ56: 2 | BA56: 26 | BB56: 5 | BC56: 12 | BD56: 2 | BE56: 5 | BF56: 5 | BG56: 12 | BR56: 1.3 | BS56: 19.5 | BT56: 667 | BU56: 30 | BV56: 19.5 | BW56: 30 | BX56: 2 | BY56: 1 | BZ56: 1 | CA56: 200 | CB56: 1 | CC56: 2 | CD56: 19.5 | CE56: 1000 | CF56: 1 | CG56: 250 | CH56: 100 | CI56: 0 | CJ56: 150 | CK56: 0 | CL56: 7 | DG56: 1 | DH56: 3 | DI56: 5 | DJ56: 1 | DK56: 5 | DL56: 1 | DM56: 5 | DN56: 2 | DO56: 3000 | DP56: 1 | DQ56: 2 | DR56: 1 | DS56: 1 | DT56: 1 | DU56: 2018 | DV56: 5 | DW56: 1 | DX56: 1 | DY56: 2018 | DZ56: 5 | EA56: 种子 | EB56: 1 | EC56: 1 | ED56: 2018 | EE56: 5 | EG56: 1 | EH56: 1 | EI56: 1 | EJ56: 10 | EK56: 100 | EM56: 100 | EN56: 100 | ER56: 2 | ES56: 2 | ET56: 1 | EU56: 1 | EV56: 15 | EX56: 95 | EY56: 80 | GK56: 2 | GL56: 2 | GO56: 2 | GQ56: 4 | GR56: 5 | GS56: 5 | GT56: 4 | GU56: 4 | GV56: 4 | GW56: 3 | GX56: 3 | GY56: 3 | GZ56: 5 | HA56: 5 | HB56: 4 | HC56: 5 | HD56: 4 | HE56: 2 | HF56: 3 | HG56: 2 | HK56: 1 | HL56: 3 | HM56: 4 | HN56: 1 | HO56: 2 | HP56: 2 | HQ56: 1 | HR56: 1 | HS56: 2 | HU56: 1 | HV56: 4 | HW56: 1 | HX56: 2 | HY56: 3 | HZ56: 1 | IA56: 2 | IB56: 3 | IC56: 2 | ID56: 2 | IE56: 1 | IF56: 5 | IG56: 2 | IH56: 3 | II56: 2 | IJ56: 5 | IK56: 3 | IL56: 2 | IM56: 2 | JQ56: 4 | JR56: 4 | JS56: 5 | JT56: 1 | JU56: 1 | JZ56: 5 | KA56: 1 | KB56: 1 | KC56: 1 | KD56: 4 | KE56: 6 | KG56: 400 | KH56: 1 | KI56: 25 | KJ56: 2 | KK56: 800 | KL56: 5 | KM56: 5 | KN56: 4 | KO56: 4 | KP56: 5 | KQ56: 5 | KR56: 4 | KS56: 5 | KT56: 5 | KU56: 4 | KV56: 2 | KW56: 2 | KX56: 4 | KY56: 5 | KZ56: 4 | LA56: 3 | LB56: 5 | LC56: 5 | LD56: 5 | LE56: 4 | LF56: 4 | LG56: 5 | LH56: 2 | LI56: 2 | LJ56: 2 | LK56: 1 | LL56: 1 | LM56: 3 | LN56: 2 | LO56: 1 | LP56: 1 | LQ56: 1 | LR56: 2 | LS56: 3 | LT56: 3 | LU56: 5 | LV56: 4 | LW56: 4 | LX56: 5 | LY56: 4 | LZ56: 2 | MA56: 1 | MB56: 1 | MC56: 1 | MD56: 1 | ME56: 1 | MF56: 1 | MG56: 1 | MH56: 1 | MI56: 1 | MJ56: 4 | MK56: 3 | MM56: 1 | MN56: 2 | MO56: 2 | MP56: 2 | MQ56: 1 | MR56: 1 | MS56: 5 | MT56: 2 | MU56: 2 | MW56: 1 | MX56: 3 | MY56: 2 | NB56: 1 | NC56: 5 | ND56: 2 | NE56: 2 | NH56: 2 | NK56: 2 | NN56: 2 | NQ56: 1 | NS56: 1 | NT56: 1 | NV56: 3 | NW56: 2 | NX56: 3 | NY56: 4 | NZ56: 3 | OA56: 1 | OC56: 3 | OD56: 8农资站 | OE56: 1 | OG56: 1 | OI56: 5 | OJ56: 5 | OK56: 1 | OL56: 5 | OM56: 1 | ON56: 2 | OP56: 2 | OQ56: 1 | OR56: 3 | OS56: 1 | OT56: 1 | OU56: 4 | OV56: 1 | OW56: 1 | OX56: 3 | OY56: 1 | OZ56: 1 | PA56: 4 | PB56: 2 | PC56: 1 | PD56: 3 | PE56: 2 | PF56: 1 | PG56: 5 | PH56: 1 | PI56: 1 | PJ56: 4 | PK56: 1 | PL56: 1 | PM56: 3 | PN56: 2 | PO56: 2 | PQ56: 2 | PR56: 2 | PT56: 2 | PU56: 2 | PV56: 2 | PW56: 2 | PY56: 6 | PZ56: 5 | QA56: 1 | QB56: 4 | QC56: 1 | QD56: 4 | QE56: 1 | QF56: 4 | QG56: 1 | QH56: 4 | QI56: 1 | QJ56: 4 | QK56: 1 | QL56: 4 | QM56: 5 | QN56: 4 | QO56: 5 | QP56: 3 | QQ56: 5 | QR56: 5 | QS56: 2 | QT56: 5 | QU56: 4 | QV56: 4 | QW56: 5 | QX56: 4 | QY56: 5 | QZ56: 5 | RA56: 2 | RB56: 2 | RC56: 3
A57: 52 | B57: 杜三峡 | C57: 余威震 | D57: 湖北省 | E57: 荆门市钟祥县 | F57: 东桥镇 | G57: 永隆村 | H57: 支德友 | I57: 13339762026 | J57: 2 | K57: 9 | L57: 4 | M57: 0 | N57: 0 | O57: 2 | P57: 4 | Q57: 5.5 | R57: 4.5 | S57: 2000 | T57: 1 | U57: 1 | V57: 1 | W57: 45 | X57: 4 | Y57: 4 | Z57: 2 | AA57: 1 | AB57: 1 | AC57: 3 | AD57: 2 | AE57: 2 | AF57: 2 | AG57: 43 | AH57: 5 | AI57: 5 | AJ57: 2 | AK57: 0 | AL57: 0 | AM57: 0 | BR57: 1 | BS57: 30 | BT57: 800 | BU57: 20 | BV57: 30 | BW57: 20 | BX57: 3 | BY57: 1 | BZ57: 1 | CA57: 500 | CB57: 1 | CC57: 2 | CD57: 30 | CE57: 1400 | CF57: 1.1 | CG57: 200 | CH57: 100 | CI57: 0 | CJ57: 120 | CK57: 0 | CL57: 30 | DG57: 1 | DH57: 3 | DI57: 5 | DJ57: 3 | DK57: 5 | DL57: 1 | DM57: 5 | DN57: 2 | DO57: 1000 | DP57: 1 | DQ57: 2 | DR57: 2 | EF57: 1 | EG57: 1 | EH57: 1 | EI57: 1 | EJ57: 10 | EK57: 120 | EL57: 洋丰 | EM57: 120 | EN57: 80 | EO57: 16 | EP57: 16 | EQ57: 10 | ER57: 2 | ES57: 1 | ET57: 1 | EU57: 10 | EV57: 25 | EX57: 120 | EY57: 80 | EZ57: 26 | FA57: 16 | FB57: 10 | GK57: 2 | GL57: 2 | GO57: 2 | GQ57: 4 | GR57: 4 | GS57: 5 | GT57: 3 | GU57: 3 | GV57: 3 | GW57: 3 | GX57: 2 | GY57: 2 | GZ57: 5 | HA57: 5 | HB57: 5 | HC57: 4 | HD57: 1 | HE57: 2 | HF57: 3 | HG57: 3 | HK57: 2 | HL57: 4 | HM57: 2 | HN57: 1 | HO57: 2 | HP57: 2 | HQ57: 1 | HR57: 1 | HS57: 2 | HU57: 1 | HV57: 4 | HW57: 1 | HX57: 2 | HY57: 4 | HZ57: 1 | IA57: 2 | IB57: 2 | IC57: 2 | ID57: 2 | IE57: 1 | IF57: 3 | IG57: 2 | IH57: 3 | II57: 2 | IJ57: 4 | IK57: 3 | IL57: 2 | IM57: 2 | JQ57: 4 | JR57: 3 | JS57: 2 | JT57: 1 | JU57: 1 | JZ57: 5 | KA57: 1 | KB57: 1 | KC57: 1 | KD57: 4 | KE57: 6 | KG57: 400 | KH57: 1 | KI57: 25 | KJ57: 3 | KK57: 600 | KL57: 5 | KM57: 3 | KN57: 3 | KO57: 3 | KP57: 4 | KQ57: 3 | KR57: 4 | KS57: 5 | KT57: 4 | KU57: 4 | KV57: 5 | KW57: 4 | KX57: 5 | KY57: 4 | KZ57: 3 | LA57: 3 | LB57: 3 | LC57: 5 | LD57: 5 | LE57: 5 | LF57: 2 | LG57: 3 | LH57: 5 | LI57: 4 | LJ57: 4 | LK57: 1 | LL57: 1 | LM57: 3 | LN57: 2 | LO57: 2 | LP57: 2 | LQ57: 2 | LR57: 2 | LS57: 2 | LT57: 4 | LU57: 5 | LV57: 5 | LW57: 5 | LX57: 5 | LY57: 5 | LZ57: 2 | MA57: 1 | MB57: 1 | MC57: 1 | MD57: 1 | ME57: 1 | MF57: 1 | MG57: 1 | MH57: 1 | MI57: 1 | MJ57: 5 | MK57: 3 | MM57: 1 | MN57: 2 | MO57: 2 | MP57: 2 | MQ57: 1 | MR57: 1 | MS57: 5 | MT57: 2 | MU57: 2 | MW57: 1 | MX57: 3 | MY57: 2 | NB57: 2 | NE57: 2 | NG57: 3 | NH57: 2 | NK57: 2 | NN57: 2 | NQ57: 1 | NR57: 25 | NS57: 1 | NT57: 1 | NU57: 10 | NV57: 2 | NW57: 2 | NX57: 3 | NY57: 3 | NZ57: 4 | OA57: 1 | OC57: 2 | OD57: 8农资站 | OE57: 1 | OG57: 1 | OI57: 3 | OJ57: 5 | OK57: 1 | OL57: 5 | OM57: 1 | ON57: 2 | OP57: 2 | OQ57: 1 | OR57: 3 | OS57: 2 | OT57: 1 | OU57: 5 | OV57: 1 | OW57: 1 | OX57: 4 | OY57: 1 | OZ57: 1 | PA57: 4 | PB57: 2 | PC57: 2 | PE57: 1 | PF57: 1 | PG57: 5 | PH57: 1 | PI57: 1 | PJ57: 3 | PK57: 2 | PL57: 1 | PM57: 3 | PN57: 2 | PO57: 2 | PQ57: 2 | PR57: 2 | PT57: 2 | PU57: 2 | PV57: 2 | PW57: 1 | PX57: 3 | PZ57: 5 | QA57: 2 | QB57: 3 | QC57: 2 | QD57: 3 | QE57: 1 | QF57: 4 | QG57: 1 | QH57: 5 | QI57: 2 | QJ57: 3 | QK57: 2 | QL57: 3 | QM57: 4 | QN57: 4 | QO57: 4 | QP57: 5 | QQ57: 5 | QR57: 5 | QS57: 2 | QT57: 5 | QU57: 5 | QV57: 4 | QW57: 5 | QX57: 5 | QY57: 5 | QZ57: 5 | RA57: 4 | RB57: 4 | RC57: 4
A58: 53 | B58: 杜三峡 | C58: 余威震 | D58: 湖北省 | E58: 荆门市钟祥县 | F58: 冷水镇 | G58: 侯集村 | H58: 付彦权 | I58: 15872907863 | J58: 2 | K58: 10 | L58: 5 | M58: 0 | N58: 0 | O58: 2 | P58: 2 | Q58: 12 | R58: 2 | S58: 500 | T58: 1 | U58: 2 | V58: 2 | W58: 56 | X58: 4 | Y58: 6 | Z58: 2 | AA58: 0 | AB58: 0 | AC58: 0 | AD58: 2 | AE58: 1 | AF58: 1 | AG58: 58 | AH58: 2 | AI58: 9 | AJ58: 2 | AK58: 0 | AL58: 0 | AM58: 0 | AN58: 3 | AO58: 4 | AP58: 1 | AQ58: 33 | AR58: 5 | AS58: 9 | AT58: 2 | AU58: 3 | AV58: 5 | AW58: 12 | AX58: 4 | AY58: 4 | AZ58: 2 | BA58: 31 | BB58: 5 | BC58: 12 | BD58: 2 | BE58: 3 | BF58: 5 | BG58: 12 | BR58: 1 | BS58: 15 | BT58: 667 | BU58: 8 | BV58: 15 | BW58: 8 | BX58: 2 | BY58: 1 | BZ58: 2 | CA58: 400 | CB58: 1 | CC58: 2 | CD58: 15 | CE58: 1000 | CF58: 1.2 | CG58: 150 | CH58: 0 | CI58: 0 | CJ58: 130 | CK58: 0 | CL58: 0 | DG58: 1 | DH58: 1 | DI58: 4 | DJ58: 3 | DK58: 5 | DL58: 1 | DM58: 5 | DN58: 2 | DO58: 2000 | DP58: 1 | DQ58: 2 | DR58: 2 | EF58: 1 | EG58: 1 | EH58: 1 | EI58: 1 | EJ58: 10 | EK58: 65 | EM58: 120 | EN58: 80 | ER58: 2 | ES58: 2 | ET58: 1 | EU58: 10 | EV58: 8 | EX58: 70 | EY58: 80 | GK58: 2 | GL58: 2 | GO58: 2 | GQ58: 3 | GR58: 3 | GS58: 3 | GT58: 3 | GU58: 3 | GV58: 3 | GW58: 2 | GX58: 2 | GY58: 2 | GZ58: 3 | HA58: 2 | HB58: 2 | HC58: 3 | HD58: 2 | HE58: 2 | HF58: 2 | HG58: 2 | HK58: 2 | HL58: 3 | HM58: 1 | HN58: 2 | HO58: 3 | HP58: 2 | HQ58: 1 | HR58: 1 | HS58: 2 | HU58: 5 | HV58: 3 | HW58: 1 | HX58: 2 | HY58: 3 | HZ58: 1 | IA58: 2 | IB58: 3 | IC58: 2 | ID58: 2 | IE58: 1 | IF58: 4 | IG58: 2 | IH58: 3 | II58: 2 | IJ58: 4 | IK58: 4 | IL58: 2 | IM58: 2 | JQ58: 4 | JR58: 3 | JS58: 3 | JT58: 1、2、3 | JU58: 1 | JZ58: 2 | KA58: 2 | KB58: 2 | KJ58: 3 | KL58: 3 | KM58: 5 | KN58: 4 | KO58: 3 | KP58: 2 | KQ58: 3 | KR58: 4 | KS58: 3 | KT58: 4 | KU58: 3 | KV58: 4 | KW58: 3 | KX58: 3 | KY58: 3 | KZ58: 2 | LA58: 3 | LB58: 3 | LC58: 5 | LD58: 5 | LE58: 4 | LF58: 4 | LG58: 4 | LH58: 3 | LI58: 3 | LJ58: 2 | LK58: 1 | LL58: 1 | LM58: 1 | LN58: 2 | LO58: 3 | LP58: 3 | LQ58: 2 | LR58: 2 | LS58: 3 | LT58: 3 | LU58: 3 | LV58: 3 | LW58: 3 | LX58: 5 | LY58: 4 | LZ58: 2 | MA58: 1 | MB58: 1 | MC58: 1 | MD58: 1 | ME58: 1 | MF58: 1 | MG58: 1 | MH58: 1 | MI58: 1 | MJ58: 2 | MK58: 3 | MM58: 1 | MN58: 2 | MO58: 1 | MP58: 2 | MQ58: 1 | MR58: 2 | MT58: 1 | MU58: 2 | MV58: 10 | MW58: 1 | MX58: 4 | MY58: 1 | NA58: 1 | NB58: 1 | ND58: 2 | NE58: 2 | NH58: 2 | NK58: 2 | NN58: 2 | NQ58: 1 | NS58: 3 | NT58: 1 | NW58: 2 | NX58: 3 | NY58: 3 | NZ58: 3 | OA58: 1 | OC58: 3 | OD58: 8农资站 | OE58: 1 | OG58: 1 | OI58: 3 | OJ58: 4 | OK58: 1 | OL58: 5 | OM58: 1 | ON58: 2 | OP58: 2 | OQ58: 1 | OR58: 5 | OS58: 2 | OT58: 1 | OU58: 4 | OV58: 2 | OW58: 1 | OX58: 3 | OY58: 1 | OZ58: 1 | PA58: 4 | PB58: 2 | PC58: 1 | PD58: 3 | PE58: 2 | PF58: 1 | PG58: 5 | PH58: 1 | PI58: 2 | PK58: 2 | PL58: 1 | PM58: 2 | PN58: 2 | PO58: 2 | PQ58: 2 | PR58: 2 | PT58: 2 | PU58: 2 | PV58: 2 | PW58: 1 | PX58: 5 | PZ58: 4 | QA58: 2 | QB58: 2 | QC58: 2 | QD58: 2 | QE58: 2 | QF58: 3 | QG58: 2 | QH58: 4 | QI58: 2 | QJ58: 5 | QK58: 2 | QL58: 5 | QM58: 4 | QN58: 4 | QO58: 5 | QP58: 3 | QQ58: 5 | QR58: 4 | QS58: 2 | QT58: 3 | QU58: 3 | QV58: 4 | QW58: 4 | QX58: 5 | QY58: 5 | QZ58: 4 | RA58: 2 | RB58: 3 | RC58: 3
A59: 54 | B59: 杜三峡 | C59: 余威震 | D59: 湖北省 | E59: 荆门市钟祥县 | F59: 冷水镇 | G59: 经建村 | H59: 孙军 | I59: 13972885917 | J59: 2 | K59: 24 | L59: 5 | M59: 2 | N59: 2 | O59: 2 | P59: 5 | Q59: 6 | R59: 5 | S59: 6000 | T59: 1 | U59: 1 | V59: 1 | W59: 37 | X59: 5 | Y59: 9 | Z59: 2 | AA59: 3 | AB59: 1 | AC59: 3 | AD59: 2 | AE59: 2 | AF59: 2 | AG59: 32 | AH59: 5 | AI59: 9 | AJ59: 2 | AK59: 3 | AL59: 3 | AM59: 3 | AN59: 3 | AO59: 3 | AP59: 1 | AQ59: 65 | AR59: 4 | AS59: 9 | AT59: 2 | AU59: 0 | AV59: 0 | AW59: 0 | BR59: 1 | BS59: 50 | BT59: 667 | BU59: 20 | BV59: 50 | BW59: 20 | BX59: 3 | BY59: 2 | BZ59: 3 | CA59: 1000 | CB59: 2 | CC59: 2 | CD59: 50 | CE59: 1200 | CF59: 1.2 | CG59: 150 | CH59: 50 | CI59: 0 | CJ59: 0 | CK59: 40 | CL59: 0 | DG59: 1 | DH59: 3 | DI59: 5 | DJ59: 3 | DK59: 5 | DL59: 3 | DM59: 5 | DN59: 2 | DO59: 2000 | DP59: 1 | DQ59: 2 | DR59: 2 | EF59: 2 | EG59: 1 | EH59: 1 | EI59: 1 | EJ59: 10 | EK59: 80 | EL59: 鄂中 | EM59: 120 | EN59: 80 | ER59: 2 | ES59: 2 | ET59: 1 | EU59: 1 | EV59: 10 | EX59: 90 | EY59: 80 | GK59: 2 | GL59: 2 | GQ59: 4 | GR59: 4 | GS59: 4 | GT59: 5 | GU59: 4 | GV59: 3 | GW59: 3 | GX59: 3 | GY59: 4 | GZ59: 4 | HA59: 3 | HB59: 3 | HC59: 3 | HD59: 2 | HE59: 1 | HF59: 3 | HG59: 3 | HK59: 1 | HL59: 5 | HM59: 3 | HN59: 1 | HO59: 4 | HP59: 2 | HQ59: 1、5 | HR59: 2 | HS59: 2 | HU59: 3 | HV59: 5 | HW59: 2 | HX59: 2 | HY59: 4 | HZ59: 3 | IA59: 2 | IB59: 3 | IC59: 2 | ID59: 2 | IE59: 1 | IF59: 3 | IG59: 1 | IH59: 1 | II59: 1 | IJ59: 5 | IK59: 5 | IL59: 2 | IM59: 2 | JQ59: 4 | JR59: 3 | JS59: 5 | JT59: 1、2、3 | JU59: 1 | JZ59: 5 | KA59: 1 | KB59: 1 | KC59: 1 | KD59: 4 | KE59: 6 | KG59: 400 | KH59: 1 | KI59: 25 | KJ59: 3 | KK59: 800 | KL59: 4 | KM59: 4 | KN59: 4 | KO59: 3 | KP59: 5 | KQ59: 4 | KR59: 4 | KS59: 4 | KT59: 4 | KU59: 5 | KV59: 4 | KW59: 4 | KX59: 3 | KY59: 4 | KZ59: 3 | LA59: 5 | LB59: 5 | LC59: 4 | LD59: 4 | LE59: 2 | LF59: 2 | LG59: 2 | LH59: 3 | LI59: 3 | LJ59: 3 | LK59: 1、3 | LL59: 1、3 | LM59: 3 | LN59: 2 | LO59: 2 | LP59: 2 | LQ59: 6 | LR59: 1、2 | LS59: 2 | LT59: 3 | LU59: 4 | LV59: 2 | LW59: 3 | LX59: 5 | LY59: 5 | LZ59: 2、4 | MA59: 1 | MB59: 1 | MC59: 1 | MD59: 1 | ME59: 1 | MF59: 1 | MG59: 1 | MH59: 1 | MI59: 1 | MJ59: 5 | MK59: 3 | MM59: 1 | MN59: 2 | MO59: 1 | MP59: 2 | MQ59: 1 | MR59: 1 | MS59: 5 | MT59: 1 | MU59: 1 | MV59: 10 | MY59: 1 | NA59: 2 | NB59: 1 | NC59: 10 | ND59: 1 | NE59: 2 | NH59: 2 | NK59: 2 | NN59: 2 | NQ59: 1 | NR59: 0 | NT59: 1 | NV59: 3 | NW59: 2 | NX59: 3 | NY59: 3 | NZ59: 3 | OA59: 1 | OC59: 3 | OD59: 8农资站 | OE59: 1 | OG59: 1 | OI59: 3 | OJ59: 4 | OK59: 1 | OL59: 5 | OM59: 1 | ON59: 2 | OP59: 2 | OQ59: 1 | OR59: 3 | OS59: 1 | OT59: 1 | OU59: 4 | OV59: 2 | OW59: 1 | OX59: 4 | OY59: 2 | OZ59: 1 | PA59: 5 | PB59: 2 | PC59: 1 | PD59: 3 | PE59: 2 | PF59: 1 | PG59: 5 | PH59: 1 | PI59: 1 | PJ59: 4 | PK59: 2 | PL59: 2 | PN59: 2 | PO59: 2 | PQ59: 2 | PR59: 2 | PT59: 2 | PU59: 2 | PV59: 2 | PW59: 1 | PX59: 10 | PZ59: 4 | QA59: 2 | QB59: 3 | QC59: 2 | QD59: 3 | QE59: 2 | QF59: 3 | QG59: 1 | QH59: 4 | QI59: 1 | QJ59: 5 | QK59: 2 | QL59: 5 | QM59: 4 | QN59: 4 | QO59: 4 | QP59: 5 | QQ59: 5 | QR59: 4 | QS59: 2 | QT59: 4 | QU59: 5 | QV59: 5 | QW59: 4 | QX59: 4 | QY59: 5 | QZ59: 4 | RA59: 4 | RB59: 3 | RC59: 4
A60: 55 | B60: 杜三峡 | C60: 余威震 | D60: 湖北省 | E60: 荆门市钟祥县 | F60: 冷水镇 | G60: 经建村 | H60: 马会贵 | I60: 13593789979 | J60: 2 | K60: 23 | L60: 3 | M60: 0 | N60: 1 | O60: 2 | P60: 2 | Q60: 3 | R60: 2 | S60: 6000 | T60: 1 | U60: 1 | V60: 1 | W60: 55 | X60: 3 | Y60: 9 | Z60: 2 | AA60: 1 | AB60: 2 | AC60: 6 | AD60: 2 | AE60: 2 | AF60: 2 | AG60: 55 | AH60: 3 | AI60: 9 | AJ60: 2 | AK60: 1 | AL60: 2 | AM60: 2 | AN60: 3 | AO60: 3 | AP60: 2 | AQ60: 83 | AR60: 3 | AS60: 3 | AT60: 2 | AU60: 0 | AV60: 0 | AW60: 0 | BR60: 1 | BS60: 26 | BT60: 666 | BU60: 18 | BV60: 26 | BW60: 18 | BX60: 3 | BY60: 2 | BZ60: 3 | CA60: 100 | CB60: 1 | CC60: 2 | CD60: 26 | CE60: 1000 | CF60: 1.1 | CG60: 150 | CH60: 40 | CI60: 0 | CJ60: 100 | CK60: 0 | CL60: 0 | DG60: 1 | DH60: 3 | DI60: 5 | DJ60: 3 | DK60: 5 | DL60: 2 | DM60: 5 | DN60: 3 | DO60: 1200 | DP60: 1 | DQ60: 1 | DR60: 1 | DS60: 1 | DT60: 1 | DU60: 2014 | DV60: 5 | EG60: 1 | EH60: 1 | EI60: 1 | EJ60: 10 | EK60: 40 | EL60: 鄂中复合肥 | EM60: 130 | EN60: 80 | EO60: 20 | EP60: 13 | EQ60: 8 | ER60: 2 | ES60: 2 | ET60: 1 | EU60: 1 | EV60: 10 | EX60: 90 | EY60: 80 | GK60: 1 | GL60: 1 | GM60: 1 | GN60: 2017 | GO60: 1 | GP60: 2 | GQ60: 5 | GR60: 5 | GS60: 5 | GT60: 3 | GU60: 3 | GV60: 3 | GW60: 4 | GX60: 3 | GY60: 3 | GZ60: 5 | HA60: 5 | HB60: 4 | HC60: 3 | HD60: 3 | HE60: 2 | HF60: 4 | HG60: 3 | HH60: 20 | HI60: 3 | HJ60: 1 | HK60: 1 | HL60: 5 | HM60: 1 | HN60: 1 | HO60: 3 | HP60: 4 | HQ60: 1、5 | HR60: 1 | HS60: 2 | HU60: 3 | HV60: 5 | HW60: 2 | HX60: 2 | HY60: 5 | HZ60: 3 | IA60: 2 | IB60: 3 | IC60: 2 | ID60: 2 | IE60: 1 | IF60: 3 | IG60: 2 | IH60: 1 | II60: 2 | IJ60: 5 | IK60: 5 | IL60: 1 | IM60: 2 | IO60: 5 | IP60: 5 | IQ60: 5 | IR60: 5 | IS60: 4 | IT60: 5 | IU60: 4 | IV60: 4 | IW60: 4 | IX60: 3 | IY60: 3 | IZ60: 4 | JA60: 4 | JB60: 5 | JC60: 5 | JD60: 5 | JE60: 4 | JF60: 4 | JG60: 5 | JH60: 4 | JI60: 2 | JJ60: 4 | JK60: 4 | JL60: 5 | JM60: 5 | JN60: 4 | JO60: 3 | JP60: 3 | JQ60: 5 | JR60: 5 | JS60: 5 | JT60: 1、2、3 | JU60: 1 | JZ60: 4 | KA60: 1 | KB60: 1 | KC60: 1 | KD60: 4 | KE60: 6 | KG60: 400 | KH60: 1 | KI60: 25 | KJ60: 3 | KK60: 800 | KL60: 5 | KM60: 4 | KN60: 4 | KO60: 4 | KP60: 5 | KQ60: 5 | KR60: 4 | KS60: 5 | KT60: 5 | KU60: 5 | KV60: 4 | KW60: 3 | KX60: 4 | KY60: 4 | KZ60: 4 | LA60: 4 | LB60: 3 | LC60: 3 | LD60: 4 | LE60: 4 | LF60: 3 | LG60: 4 | LH60: 3 | LI60: 4 | LJ60: 3 | LK60: 1 | LL60: 3、5 | LM60: 2 | LN60: 2 | LO60: 3 | LP60: 2 | LQ60: 5 | LR60: 2、3 | LS60: 2 | LT60: 3 | LU60: 5 | LV60: 5 | LW60: 4 | LX60: 5 | LY60: 5 | LZ60: 2 | MA60: 1 | MB60: 1 | MC60: 1 | MD60: 1 | ME60: 1 | MF60: 1 | MG60: 1 | MH60: 1 | MI60: 1 | MJ60: 5 | MK60: 3 | MM60: 1 | MN60: 2 | MO60: 1 | MP60: 2 | MQ60: 1 | MR60: 1 | MS60: 5 | MT60: 1 | MU60: 2 | MV60: 10 | MW60: 2 | MY60: 1 | MZ60: 50 | NA60: 1 | NB60: 1 | NE60: 2 | NG60: 3 | NH60: 2 | NK60: 2 | NN60: 2 | NQ60: 1 | NS60: 2 | NT60: 1 | NW60: 2 | NX60: 3 | NY60: 2 | NZ60: 3 | OA60: 1 | OC60: 3 | OD60: 8农资店 | OE60: 1 | OG60: 1 | OI60: 3 | OJ60: 4 | OK60: 1 | OL60: 5 | OM60: 1 | ON60: 2 | OP60: 2 | OQ60: 1 | OR60: 3 | OS60: 2 | OT60: 1 | OU60: 4 | OV60: 1 | OW60: 1 | OX60: 4 | OY60: 1 | OZ60: 2 | PB60: 2 | PC60: 1 | PD60: 4 | PE60: 1 | PF60: 1 | PG60: 5 | PH60: 1 | PI60: 1 | PJ60: 3 | PK60: 2 | PL60: 2 | PN60: 2 | PO60: 2 | PQ60: 2 | PR60: 2 | PT60: 2 | PU60: 2 | PV60: 2 | PW60: 2 | PY60: 4 | PZ60: 4 | QA60: 2 | QB60: 2 | QC60: 2 | QD60: 3 | QE60: 2 | QF60: 3 | QG60: 2 | QH60: 5 | QI60: 1 | QJ60: 5 | QK60: 2 | QL60: 3 | QM60: 4 | QN60: 3 | QO60: 4 | QP60: 3 | QQ60: 5 | QR60: 4 | QS60: 2 | QT60: 4 | QU60: 5 | QV60: 5 | QW60: 4 | QX60: 5 | QY60: 4 | QZ60: 5 | RA60: 3 | RB60: 4 | RC60: 3
A61: 56 | B61: 杜三峡 | C61: 余威震 | D61: 湖北省 | E61: 荆门市钟祥县 | F61: 冷水镇 | G61: 经建村 | H61: 舒国文 | I61: 13339753320 | J61: 2 | K61: 23 | L61: 4 | M61: 1 | N61: 0 | O61: 2 | P61: 3 | Q61: 11 | R61: 10 | S61: 5000 | T61: 1 | U61: 1 | V61: 1 | W61: 55 | X61: 5 | Y61: 9 | Z61: 2 | AA61: 1 | AB61: 1 | AC61: 2.5 | AD61: 2 | AE61: 2 | AF61: 2 | AG61: 54 | AH61: 5 | AI61: 9 | AJ61: 2 | AK61: 1 | AL61: 0.5 | AM61: 3 | BR61: 1.4 | BS61: 80 | BT61: 667 | BU61: 48 | BV61: 80 | BW61: 48 | BX61: 3 | BY61: 2 | BZ61: 3 | CA61: 1500 | CB61: 2 | CC61: 2 | CD61: 80 | CE61: 1100 | CF61: 1.1 | CG61: 140 | CH61: 50 | CI61: 0 | CJ61: 0 | CK61: 0 | CL61: 0 | DG61: 1 | DH61: 3 | DI61: 5 | DJ61: 3 | DK61: 5 | DL61: 3 | DM61: 5 | DN61: 2 | DO61: 2000 | DP61: 1 | DQ61: 2 | DR61: 1 | DS61: 1 | DT61: 1 | DU61: 2014 | DV61: 4 | DW61: 1 | DX61: 1 | DY61: 2014 | DZ61: 5 | EG61: 1 | EH61: 1 | EI61: 1 | EJ61: 10 | EK61: 70 | EL61: 鄂中 | EM61: 125 | EN61: 70 | EO61: 26 | EP61: 16 | EQ61: 10 | ER61: 2 | ES61: 2 | ET61: 1 | EU61: 1 | EV61: 14 | EX61: 115 | EY61: 100 | FC61: 3 | FD61: 3 | FE61: 1 | FF61: 10 | FG61: 20 | FH61: 鄂中 | FI61: 125 | FJ61: 70 | FK61: 26 | FL61: 16 | FM61: 10 | GK61: 2 | GL61: 1 | GM61: 2 | GN61: 2016 | GO61: 2 | GP61: 2 | GQ61: 5 | GR61: 4 | GS61: 4 | GT61: 3 | GU61: 3 | GV61: 3 | GW61: 2 | GX61: 2 | GY61: 3 | GZ61: 3 | HA61: 3 | HB61: 4 | HC61: 4 | HD61: 4 | HE61: 3 | HF61: 4 | HG61: 5 | HH61: 80 | HI61: 10 | HJ61: 1 | HK61: 1 | HL61: 5 | HM61: 2 | HN61: 1 | HO61: 2 | HP61: 4 | HQ61: 1、2、5 | HR61: 1 | HS61: 1 | HT61: 2 | HU61: 2 | HV61: 4 | HW61: 4 | HX61: 1 | HY61: 4 | HZ61: 3 | IA61: 2 | IB61: 3 | IC61: 2 | ID61: 2 | IE61: 1 | IF61: 3 | IG61: 2 | IH61: 1 | II61: 2 | IJ61: 5 | IK61: 5 | IL61: 1 | IM61: 2 | IO61: 4 | IP61: 4 | IQ61: 5 | IR61: 4 | IS61: 4 | IT61: 4 | IU61: 5 | IV61: 3 | IW61: 3 | IX61: 2 | IY61: 2 | IZ61: 3 | JA61: 3 | JB61: 4 | JC61: 4 | JD61: 4 | JE61: 5 | JF61: 4 | JG61: 5 | JH61: 5 | JI61: 2 | JJ61: 3 | JK61: 4 | JL61: 5 | JM61: 5 | JN61: 4 | JO61: 2 | JP61: 2 | JQ61: 4 | JR61: 3 | JS61: 5 | JT61: 1、2 | JU61: 1 | JV61: 1 | JZ61: 5 | KA61: 1 | KB61: 1 | KC61: 2 | KD61: 4 | KE61: 6 | KG61: 400 | KH61: 1 | KI61: 25 | KJ61: 4 | KK61: 400 | KL61: 3 | KM61: 5 | KN61: 4 | KO61: 4 | KP61: 4 | KQ61: 4 | KR61: 5 | KS61: 5 | KT61: 2 | KU61: 4 | KV61: 4 | KW61: 3 | KX61: 4 | KY61: 5 | KZ61: 4 | LA61: 4 | LB61: 4 | LC61: 4 | LD61: 4 | LE61: 4 | LF61: 2 | LG61: 4 | LH61: 3 | LI61: 3 | LJ61: 3 | LK61: 1 | LL61: 1 | LM61: 3 | LN61: 2 | LO61: 2 | LP61: 2 | LQ61: 2 | LR61: 2 | LS61: 2 | LT61: 5 | LU61: 5 | LV61: 4 | LW61: 1 | LX61: 5 | LY61: 5 | LZ61: 4 | MA61: 1 | MB61: 1 | MC61: 1 | MD61: 1 | ME61: 1 | MF61: 1 | MG61: 1 | MH61: 1 | MI61: 1 | MJ61: 5 | MK61: 3 | MM61: 1 | MN61: 2 | MO61: 2 | MP61: 2 | MQ61: 1 | MR61: 1 | MS61: 5 | MT61: 1 | MU61: 1 | MV61: 10 | MY61: 1 | NB61: 1 | ND61: 3 | NE61: 2 | NH61: 2 | NK61: 2 | NN61: 2 | NQ61: 1 | NS61: 1 | NT61: 1 | NW61: 2 | NX61: 4 | NY61: 3 | NZ61: 2 | OA61: 1 | OC61: 3 | OD61: 1、8农资站 | OE61: 1 | OG61: 1 | OI61: 4 | OJ61: 4 | OK61: 1 | OL61: 5 | OM61: 1 | ON61: 2 | OP61: 2 | OQ61: 1 | OR61: 4 | OS61: 2 | OT61: 1 | OU61: 4 | OV61: 1 | OW61: 1 | OX61: 3 | OY61: 2 | OZ61: 1 | PA61: 4 | PB61: 2 | PC61: 1 | PD61: 3 | PE61: 2 | PF61: 1 | PG61: 5 | PH61: 1 | PI61: 1 | PJ61: 3 | PK61: 1 | PL61: 2 | PN61: 2 | PO61: 2 | PQ61: 2 | PR61: 2 | PT61: 2 | PU61: 2 | PV61: 2 | PW61: 1 | PX61: 10 | PZ61: 3 | QA61: 2 | QB61: 5 | QC61: 1 | QD61: 5 | QE61: 2 | QF61: 5 | QG61: 1 | QH61: 5 | QI61: 1 | QJ61: 3 | QK61: 2 | QL61: 3 | QM61: 5 | QN61: 4 | QO61: 4 | QP61: 5 | QQ61: 4 | QR61: 4 | QS61: 2 | QT61: 4 | QU61: 2 | QV61: 3 | QW61: 4 | QX61: 5 | QY61: 5 | QZ61: 3 | RA61: 5 | RB61: 4 | RC61: 4
A62: 57 | B62: 杜三峡 | C62: 余威震 | D62: 湖北省 | E62: 荆门市钟祥县 | F62: 冷水镇 | G62: 白佛村 | H62: 刘民海 | I62: 15572629816 | J62: 2 | K62: 7.5 | L62: 5 | M62: 0 | N62: 2 | O62: 2 | P62: 4 | Q62: 3 | R62: 4.5 | S62: 3000 | T62: 1 | U62: 1 | V62: 1 | W62: 61 | X62: 4 | Y62: 4 | Z62: 2 | AA62: 0 | AB62: 0 | AC62: 0 | AD62: 2 | AE62: 2 | AF62: 2 | AG62: 61 | AH62: 2 | AI62: 0 | AJ62: 2 | AK62: 0 | AL62: 0 | AM62: 0 | AN62: 3 | AO62: 4 | AP62: 2 | AQ62: 33 | AR62: 5 | AS62: 9 | AT62: 2 | AU62: 3 | AV62: 2.5 | AW62: 12 | BR62: 1 | BS62: 32 | BT62: 667 | BU62: 25 | BV62: 32 | BW62: 25 | BX62: 3 | BY62: 1 | BZ62: 3 | CA62: 1000 | CB62: 1 | CC62: 2 | CD62: 32 | CE62: 1100 | CF62: 1.2 | CG62: 160 | CH62: 100 | CI62: 0 | CJ62: 160 | CK62: 0 | CL62: 2 | DG62: 1 | DH62: 1 | DI62: 4 | DJ62: 3 | DK62: 5 | DL62: 1 | DM62: 2 | DN62: 2 | DO62: 2000 | DP62: 1 | DQ62: 2 | DR62: 1 | DW62: 1 | DX62: 2 | DY62: 2016 | DZ62: 3 | EG62: 1 | EH62: 1 | EI62: 1 | EJ62: 10 | EK62: 80 | EM62: 140 | EN62: 80 | ER62: 2 | ES62: 2 | ET62: 1 | EU62: 1 | EV62: 15 | EX62: 80 | EY62: 80 | GK62: 2 | GL62: 2 | GO62: 2 | GQ62: 4 | GR62: 5 | GS62: 5 | GT62: 4 | GU62: 3 | GV62: 3 | GW62: 3 | GX62: 2 | GY62: 2 | GZ62: 3 | HA62: 3 | HB62: 3 | HC62: 3 | HD62: 3 | HE62: 3 | HF62: 4 | HG62: 4 | HK62: 1 | HL62: 3 | HM62: 5 | HN62: 1 | HO62: 3 | HP62: 2 | HQ62: 1 | HR62: 1 | HS62: 2 | HU62: 1 | HV62: 4 | HW62: 1 | HX62: 2 | HY62: 3 | HZ62: 1 | IA62: 2 | IB62: 5 | IC62: 2 | ID62: 1 | IE62: 1 | IF62: 3 | IG62: 2 | IH62: 3 | II62: 2 | IJ62: 5 | IK62: 5 | IL62: 2 | IM62: 2 | JQ62: 3 | JR62: 3 | JS62: 3 | JT62: 1 | JZ62: 2 | KA62: 2 | KB62: 2 | KJ62: 3 | KK62: 800 | KL62: 3 | KM62: 3 | KN62: 3 | KO62: 2 | KP62: 3 | KQ62: 3 | KR62: 4 | KS62: 2 | KT62: 2 | KU62: 3 | KV62: 3 | KW62: 2 | KX62: 2 | KY62: 5 | KZ62: 4 | LA62: 3 | LB62: 5 | LC62: 5 | LD62: 5 | LE62: 4 | LF62: 4 | LG62: 4 | LH62: 3 | LI62: 3 | LJ62: 3 | LK62: 1、5 | LL62: 5 | LM62: 1 | LN62: 2 | LO62: 2 | LP62: 2 | LQ62: 4 | LR62: 2、3 | LS62: 2 | LT62: 3 | LU62: 2 | LV62: 2 | LW62: 2 | LX62: 4 | LY62: 4 | LZ62: 2 | MA62: 1 | MB62: 1 | MC62: 1 | MD62: 1 | ME62: 1 | MF62: 1 | MG62: 1 | MH62: 1 | MI62: 1 | MJ62: 2 | MK62: 3 | MM62: 1 | MN62: 2 | MO62: 2 | MP62: 2 | MQ62: 1 | MR62: 2 | MT62: 2 | MU62: 2 | MW62: 2 | MY62: 2 | NB62: 1 | ND62: 2 | NE62: 2 | NH62: 2 | NK62: 2 | NN62: 2 | NQ62: 1 | NS62: 1 | NT62: 1 | NV62: 3 | NW62: 2 | NX62: 3 | NY62: 3 | NZ62: 4 | OA62: 1 | OC62: 3 | OD62: 8农资站 | OE62: 1 | OG62: 1 | OI62: 4 | OJ62: 3 | OK62: 1 | OL62: 5 | OM62: 1 | ON62: 1 | OO62: 3 | OP62: 2 | OQ62: 1 | OR62: 4 | OS62: 2 | OT62: 1 | OU62: 4 | OV62: 2 | OW62: 1 | OX62: 3 | OY62: 1 | OZ62: 1 | PA62: 3 | PB62: 2 | PC62: 1 | PD62: 4 | PE62: 2 | PF62: 1 | PG62: 5 | PH62: 1 | PI62: 1 | PJ62: 4 | PK62: 2 | PL62: 1 | PM62: 3 | PN62: 2 | PO62: 2 | PQ62: 2 | PR62: 2 | PT62: 2 | PU62: 2 | PV62: 2 | PW62: 1 | PX62: 5 | PZ62: 3 | QA62: 2 | QB62: 3 | QC62: 2 | QD62: 3 | QE62: 2 | QF62: 4 | QG62: 2 | QH62: 4 | QI62: 1 | QJ62: 5 | QK62: 1 | QL62: 5 | QM62: 4 | QN62: 4 | QO62: 4 | QP62: 3 | QQ62: 4 | QR62: 4 | QS62: 2 | QT62: 5 | QU62: 5 | QV62: 5 | QW62: 4 | QX62: 5 | QY62: 4 | QZ62: 3 | RA62: 3 | RB62: 2 | RC62: 2
... 77 more rows

Sheet 调整问卷
A1: 问卷基本信息 | J1: 基本情况 | EG1: 测土配方施肥技术采纳及认知情况 | JQ1: 农村绿色发展现状 | QM1: 四、对于以下观点
T3: 家庭劳动力基本情况 | BR3: 家庭生产经营情况 | CC3: 水稻种植成本收益 | DH3: 购买农机服务难易程度 | EG3: 测土配方施肥技术采纳现状 | HK3: 施肥认知 | HP3: 测土配方施肥技术认知现状 | IO3: 测土配方施肥技术整体认知 | JQ3: 农业绿色发展 | LM3: （二）病虫害管理 | OI3: 农村人居环境
CC4: 收益 | CG4: 成本 | CM4: 收益 | CQ4: 成本 | CW4: 收益 | DA4: 成本 | DH4: 插秧环节 | DJ4: 耕地环节 | DL4: 收割环节 | DS4: 测土配方施肥技术 | DW4: 病虫害管理技术 | EA4: 其他 | EG4: 2018水稻种植生产中的施肥情况 | HH4: 初次采纳非2018年，当年情况 | HR4: 认知环节 | HX4: 配方环节 | IC4: 配肥环节 | IG4: 供应环节 | IL4: 施肥指导环节 | KM4: 14.邻里效应（居住地邻里） | KY4: 14.邻里效应（地块邻里） | LU4: 8.农药毒性的了解程度 | MA4: 10.是否认识以下病虫害 | MY4: 抗病虫种子 | NB4: 灌水淹虫、翻土晒田 | NE4: 生物农药 | NH4: 天敌 | NK4: 灯光捕杀 | NN4: 粘虫板 | NQ4: 轮换施用农药品种 | NT4: 遵守安全间隔期 | OA4: 统一购买生物农药服务 | OC4: 农药施用技术指导服务 | OE4: 农产品质量安全监测或追溯服务 | OG4: 绿色农产品统购统销服务 | OK4: 1.生活垃圾集中处理 | ON4: 2.生活污水集中处理 | OQ4: 3.村庄周边绿化带建设 | OT4: 4.厕所改造 | OW4: 1.减少化肥农药用量 | OZ4: 2.畜禽粪便综合处理及资源化利用 | PC4: 3.农膜回收及污染治理 | PF4: 4.秸秆综合利用工程 | PI4: 5.农药化肥等包装袋回收及污染治理 | PL4: 1.河流、池塘水污染治理 | PO4: 2.饮用水源地保护 | PR4: 3.森林植被 | QA4: 取消或暂缓村里的优惠 | QC4: 经济处罚 | QE4: 广播/告示通报 | QG4: 私底批评教育 | QI4: 荣誉称号 | QK4: 物质奖励
A5: 问卷编号 | B5: 问卷 录入 者 | C5: 问卷 调查 者 | D5: 省份 | E5: 市县 | F5: 具体地址 （镇） | G5: 具体地址 （村） | H5: 被调查者姓名 | I5: 电话 | J5: 地形 | K5: 最近的集镇市场离住处距离km | L5: 家庭总人口 | M5: 儿童（0-6岁） | N5: 老人（≥60岁） | O5: 农业劳动力 | P5: 常年在家 | Q5: 2018家庭总收入（万元） | R5: 2018农业总收入（万元) | S5: 周边邻里的人情支出（元） | T5: 家庭成员编码1（受访者） | U5: 与户主的关系 | V5: 性别 | W5: 年龄（周岁） | X5: 健康状况 | Y5: 受教育年限（年） | Z5: 是否为公职人员或村干部 | AA5: 务工地点 | AB5: 一年务工收入（万元） | AC5: 务工时间（月） | AD5: 家庭成员编码2 | AE5: 与户主的关系 | AF5: 性别 | AG5: 年龄（周岁） | AH5: 健康状况 | AI5: 受教育年限（年） | AJ5: 是否为公职人员或村干部 | AK5: 务工地点 | AL5: 一年务工收入（万元） | AM5: 务工时间（月） | AN5: 家庭成员编码3 | AO5: 与户主的关系 | AP5: 性别 | AQ5: 年龄（周岁） | AR5: 健康状况 | AS5: 受教育年限（年） | AT5: 是否为公职人员或村干部 | AU5: 务工地点 | AV5: 一年务工收入（万元） | AW5: 务工时间（月） | AX5: 家庭成员编码4 | AY5: 与户主的关系 | AZ5: 性别 | BA5: 年龄（周岁） | BB5: 健康状况 | BC5: 受教育年限（年） | BD5: 是否为公职人员或村干部 | BE5: 务工地点 | BF5: 一年务工收入（万元） | BG5: 务工时间（月） | BH5: 家庭成员编码5 | BI5: 与户主的关系 | BJ5: 性别 | BK5: 年龄（周岁） | BL5: 健康状况 | BM5: 受教育年限（年） | BN5: 是否为公职人员或村干部 | BO5: 务工地点 | BP5: 一年务工收入（万元） | BQ5: 务工时间（月） | BR5: 家庭生产经营主体形式 | BS5: 2018家庭耕作面积（亩） | BT5: 1亩= 平方米 | BU5: 分为（ ）块 | BV5: 水稻种植面积（亩） | BW5: 块 | BX5: 土壤肥力 | BY5: 是否便于灌溉 | BZ5: 土壤质地 | CA5: 水稻各地块离家平均距离（米） | CB5: 是否都通了机耕路/马路 | CC5: 品种 | CD5: 规模（亩） | CE5: 单产（斤/亩） | CF5: 单价（元/斤） | CG5: 种子 | CH5: 化学农药 | CI5: 生物农药 | CJ5: 机械 | CK5: 雇工 | CL5: 自用工（工） | CM5: 品种 | CN5: 规模（亩） | CO5: 单产（斤/亩） | CP5: 单价（元/斤） | CQ5: 种子 | CR5: 化学农药 | CS5: 生物农药 | CT5: 机械 | CU5: 雇工 | CV5: 自用工（工） | CW5: 品种 | CX5: 规模（亩） | CY5: 单产（斤/亩） | CZ5: 单价（元/斤） | DA5: 种子 | DB5: 化学农药 | DC5: 生物农药 | DD5: 机械 | DE5: 雇工 | DF5: 自用工（工） | DG5: 所在村庄是否有农业机械服务 | DH5: 是否购买 | DI5: 获取难易程度 | DJ5: 是否购买 | DK5: 获取难易程度 | DL5: 是否购买 | DM5: 获取难易程度 | DN5: 种植水稻目的 | DO5: 部分自留数量（斤） | DP5: 农闲时意愿 | DQ5: 农闲时村庄打牌人数 | DR5: 是否参加过农业技术培训 | DS5: 培训主体 | DT5: 平均一年（ ）次 | DU5: 最近一年 | DV5: 有效性 | DW5: 培训主体 | DX5: 平均一年（ ）次 | DY5: 最近一年 | DZ5: 有效性 | EA5: 其他 | EB5: 培训主体 | EC5: 平均一年（ ）次 | ED5: 最近一年 | EE5: 有效性 | EF5: 未参加原因 | EG5: 施肥次序 | EH5: 施肥时期 | EI5: 购买来源 | EJ5: 化肥代码 | EK5: 施用量（斤/亩） | EL5: 肥料品牌 | EM5: 每袋单价 | EN5: 肥料规格（斤/袋） | EO5: N(%) | EP5: P2O5(%) | EQ5: K2O(%) | ER5: 施肥次序 | ES5: 施肥时期 | ET5: 购买来源 | EU5: 化肥代码 | EV5: 施用量（斤/亩） | EW5: 肥料品牌 | EX5: 每袋单价 | EY5: 肥料规格（斤/袋） | EZ5: N(%) | FA5: P2O5(%) | FB5: K2O(%) | FC5: 施肥次序 | FD5: 施肥时期 | FE5: 购买来源 | FF5: 化肥代码 | FG5: 施用量（斤/亩） | FH5: 肥料品牌 | FI5: 每袋单价 | FJ5: 肥料规格（斤/袋） | FK5: N(%) | FL5: P2O5(%) | FM5: K2O(%) | FN5: 施肥次序 | FO5: 施肥时期 | FP5: 购买来源 | FQ5: 化肥代码 | FR5: 施用量（斤/亩） | FS5: 肥料品牌 | FT5: 每袋单价 | FU5: 肥料规格（斤/袋） | FV5: N(%) | FW5: P2O5(%) | FX5: K2O(%) | FY5: 施肥次序 | FZ5: 施肥时期 | GA5: 购买来源 | GB5: 化肥代码 | GC5: 施用量（斤/亩） | GD5: 肥料品牌 | GE5: 每袋单价 | GF5: 肥料规格（斤/袋） | GG5: N(%) | GH5: P2O5(%) | GI5: K2O(%) | GJ5: 施用配方肥同时施用其他肥料原因 | GK5: 是否会根据施肥建议购买相应肥料 | GL5: 2018年之前是否使用配方肥 | GM5: 每年都使用配方肥吗？ | GN5: 从哪一年开始使用 | GO5: 初次使用是否全部地块都用？ | GP5: 当时使用情形 | GQ5: 1.学习掌握测土配方肥技术对我来说很容易 | GR5: 2.通过技术讲解，很容易理解技术要领 | GS5: 3.通过简单培训，能掌握并熟练使用测土配方肥技术 | GT5: 4.使用测土配方肥技术可以提高粮食单产 | GU5: 5.可以节约生产资料投入 | GV5: 6.可以节省劳动力 | GW5: 7.可以改善土壤质量 | GX5: 8.可以保护生物多样性 | GY5: 9.可以缓解水体污染 | GZ5: 10.我想要学习使用测土配方施肥技术 | HA5: 11.如果条件允许，我会考虑使用测土配方施肥技术 | HB5: 12.我愿意向亲戚朋友推荐测土配方施肥技术 | HC5: 13.地下水、池塘河流的水体污染十分普遍 | HD5: 14.土壤板结、酸化等现象十分普遍 | HE5: 15.我可以方便的购买到配方肥 | HF5: 16.当有困难时，我可以获得测土配方施肥指导 | HG5: 17.当有测土服务需求是，我可以轻易的找到相关组织 | HH5: 水稻种植面积（亩） | HI5: 家庭总收入（万元） | HJ5: 主要农业劳动力是否兼业 | HK5: 1.购买肥料时如何选择 | HL5: 2.是否清楚袋子上数字组合的含义 | HM5: 3.施肥越多，产量越高？ | HN5: 4.化肥用量判断 | HO5: 5.是否有必要使用微量元素肥料 | HP5: 1.对测土配方施肥技术的了解程度 | HQ5: 2.各环节知晓度 | HR5: 3.是否见过相关人员下田测土？ | HS5: 4.相关人员是否将测土结果及时公布？ | HT5: 若“是”，结果是否准确？ | HU5: 5.哪些组织可以提供测土服务？ | HV5: 6.测土环节对配方肥的精准配置有多大帮助？ | HW5: 7.是否知道测土结果出来后的用途 | HX5: 8.是否知道根据测土结果进行的配方肥设计 | HY5: 9.相信相关组织能根据测土结果进行配方设计吗？ | HZ5: 10.哪些组织可以提供配方服务？ | IA5: 11.是否听说过“大配方、小调整？” | IB5: 12.“大配方、小调整”的有效性 | IC5: 13.是否知道化肥企业会根据配方进行配方肥生产？ | ID5: 14.化肥企业是否会完全按照配方进行生产？ | IE5: 15.哪些组织可以提供配肥服务？ | IF5: 16.政府是否应该对化肥企业进行监管？ | IG5: 17.是否能从市场买到配方肥？ | IH5: 18.配方肥和复合肥有区别吗？ | II5: 19.家附近是否有配方肥供肥点？ | IJ5: 20.市场上可供选择的肥料品种多吗？ | IK5: 21.当地肥料市场是否规范？ | IL5: 22.是否收到过测土配方施肥建议卡？ | IM5: 23.是否使用过“测土配方施肥手机综合信息服务平台？ | IN5: 若是，使用后是否满意？ | IO5: 1.使用前和使用后看法不一样 | IP5: 2.可以提高粮食单产 | IQ5: 3.提高了粮食单产，并超出了 我的预期 | IR5: 4.可以节约生产资料投入 | IS5: 5.节约了生产成本，并超出了我的预期 | IT5: 6.可以节省劳动力 | IU5: 7.节省了劳动力，炳超过了我的预期 | IV5: 8.可以改善土壤质量 | IW5: 9.改善了土壤质量，并超出了我的预期 | IX5: 10.可以保护生物多样性 | IY5: 11.保护了生物多样性，并超出了我的预期 | IZ5: 12.可以缓解水体污染 | JA5: 13.缓解了水体污染，并超出了我的预期 | JB5: 14.使用之后感觉很满意 | JC5: 15.使用之后很高兴 | JD5: 16.使用之后很有成就感 | JE5: 17.非常确信以上回答基于多次使用测土配方施肥技术 | JF5: 18.相信自己可以学会并掌握 | JG5: 19.通过别人的简单知道，就可以学会 | JH5: 20.有丰富的种植经验，可以应对农业生产中的不确定因素 | JI5: 21.可以方便的购买到配方肥 | JJ5: 22.在使用过程中遇到问题可以轻易找到人咨询 | JK5: 23.具有使用的经济条件 | JL5: 24.愿意继续使用 | JM5: 25.愿意使用更多的配方肥来替代化肥 | JN5: 26.愿意使用来提高生产效率 | JO5: 27.一直在使用测土配方施肥技术 | JP5: 28.多年在使用测土配方施肥技术 | JQ5: 1.化学农药大量施用对环境的影响程度 | JR5: 2.化学农药大量施用对人类健康的影响程度 | JS5: 3.农产品质量安全重要吗？ | JT5: 4.目前农药施用对农产品质量安全的原因 | JU5: 5.游戏① | JV5: 5.游戏② | JW5: 5.游戏③ | JX5: 5.游戏④ | JY5: 5.游戏⑤ | JZ5: 8.对农业保险了解吗 | KA5: 9.所在地区是否有农业保险服务 | KB5: 10.是否购买了农业保险？ | KC5: 若购买，方式是 | KD5: 购买的保险范畴 | KE5: 保费（ ）元/年 | KF5: 保费（ ）元/亩 | KG5: 赔偿比例 | KH5: 农业保险的保费是否由政府承担 | KI5: 自己承担（ ）%保费 | KJ5: 11.对目前的赔偿标准是否满意 | KK5: 12.自行选择赔偿费用是（ ）元/亩 | KL5: 13.是否同意农业保险能避免损失？ | KM5: 1.平常会经常和邻居保持联系 | KN5: 2.经常和邻居一起接触 | KO5: 3.经常邀请邻居来家聊天 | KP5: 4.经常和邻居交流种田的心得方法 | KQ5: 5.经常向邻居请教技术使用方法 | KR5: 6.经常观察邻居施肥 | KS5: 7.农忙时邻居经常相互帮忙 | KT5: 8.能从邻居那里获得有用的信息 | KU5: 9.遇到困难时大家都来帮忙 | KV5: 10.愿意把自己家的农业用品借给邻居 | KW5: 11.邻居是否信守承诺 | KX5: 12.平常出门是否会请邻居看门 | KY5: 1.平常会经常和邻居保持联系 | KZ5: 2.经常和邻居一起接触 | LA5: 3.经常邀请邻居来家聊天 | LB5: 4.经常和邻居交流种田的心得方法 | LC5: 5.经常向邻居请教技术使用方法 | LD5: 6.经常观察邻居施肥 | LE5: 7.农忙时邻居经常相互帮忙 | LF5: 8.能从邻居那里获得有用的信息 | LG5: 9.遇到困难时大家都来帮忙 | LH5: 10.愿意把自己家的农业用品借给邻居 | LI5: 11.邻居是否信守承诺 | LJ5: 12.平常出门是否会请邻居看门 | LK5: 15.住处邻里人群 | LL5: 15.地块邻里人群 | LM5: 1.2018年，农作物病虫害严重程度 | LN5: 2.近五年，是否出现减产1/3及以上的情况 | LO5: 3.2018半年单次农药施用量 | LP5: 施药次数 | LQ5: 4.如何判断何时施用农药 | LR5: 5.选择药剂品种的方式 | LS5: 6.单次用药标准依据 | LT5: 7.施药方式是否经济合理 | LU5: 农药毒性高不高 | LV5: 残留严不严重 | LW5: 好不好降解 | LX5: 施药安全间隔期 | LY5: 是否了解农药使用标准 | LZ5: 9.目前使用的施药工具 | MA5: 稻飞虱 | MB5: 稻纵卷叶螟 | MC5: 二化螟 | MD5: 三化螟 | ME5: 稻苞虫 | MF5: 稻蓟马 | MG5: 稻瘟病 | MH5: 水稻纹枯病 | MI5: 稻曲病 | MJ5: 11.能否看懂《农药使用说明书》？ | MK5: 12.生产的农产品是否做“农药残留”检测 | ML5: 若是，检测主体是？ | MM5: 13.是否根据不同作物更换喷头 | MN5: 13.是否在极端天气施药 | MO5: 13.喷雾器是否存在“跑、冒、滴、漏”现象 | MP5: 13.近3年是否购买过假冒伪劣农药 | MQ5: 13.平时自己会主动学习和积累农药施用知识和技能 | MR5: 14.是否通过手机接收病虫害预警 | MS5: 若是，时效性如何 | MT5: 15.当地是否有病虫害统防统治服务 | MU5: 您是否购买过该服务 | MV5: 有统防统治服务，（ ）元/亩 | MW5: 若否，是否愿意购买 | MX5: 若愿意，愿意支付的最高金额 | MY5: 是否采纳 | MZ5: 该技术能减少农药施用量% | NA5: 需求排序 | NB5: 是否采纳 | NC5: 该技术能减少农药施用量% | ND5: 需求排序 | NE5: 是否采纳 | NF5: 该技术能减少农药施用量% | NG5: 需求排序 | NH5: 是否采纳 | NI5: 该技术能减少农药施用量% | NJ5: 需求排序 | NK5: 是否采纳 | NL5: 该技术能减少农药施用量% | NM5: 需求排序 | NN5: 是否采纳 | NO5: 该技术能减少农药施用量% | NP5: 需求排序 | NQ5: 是否采纳 | NR5: 该技术能减少农药施用量% | NS5: 需求排序 | NT5: 是否采纳 | NU5: 该技术能减少农药施用量% | NV5: 需求排序 | NW5: 17.采用上述绿色防控技术能否获得政府补贴？ | NX5: 18.生物农药能有效防治病虫害吗？ | NY5: 19.采用生物农药种植的农产品不愁卖？ | NZ5: 20.采用生物农药种植的农产品卖出高价的可能性 | OA5: 获取方式 | OB5: 服务来源 | OC5: 获取方式 | OD5: 服务来源 | OE5: 获取方式 | OF5: 服务来源 | OG5: 获取方式 | OH5: 服务来源 | OI5: 1.当前村庄环境状况 | OJ5: 2.是否愿意参加农村环境治理 | OK5: 去年是否参与？ | OL5: 施行效果？ | OM5: 是否了解相关政策？ | ON5: 去年是否参与？ | OO5: 施行效果？ | OP5: 是否了解相关政策？ | OQ5: 去年是否参与？ | OR5: 施行效果？ | OS5: 是否了解相关政策？ | OT5: 去年是否参与？ | OU5: 施行效果？ | OV5: 是否了解相关政策？ | OW5: 去年是否参与？ | OX5: 施行效果？ | OY5: 是否了解相关政策？ | OZ5: 去年是否参与？ | PA5: 施行效果？ | PB5: 是否了解相关政策？ | PC5: 去年是否参与？ | PD5: 施行效果？ | PE5: 是否了解相关政策？ | PF5: 去年是否参与？ | PG5: 施行效果？ | PH5: 是否了解相关政策？ | PI5: 去年是否参与？ | PJ5: 施行效果？ | PK5: 是否了解相关政策？ | PL5: 去年是否参与？ | PM5: 施行效果？ | PN5: 是否了解相关政策？ | PO5: 去年是否参与？ | PP5: 施行效果？ | PQ5: 是否了解相关政策？ | PR5: 去年是否参与？ | PS5: 施行效果？ | PT5: 是否了解相关政策？ | PU5: 4.您家是否进行生活垃圾分类？ | PV5: 5.是否愿意垃圾分类？ | PW5: 分类方式 | PX5: 自己分类，政府补贴 | PY5: 他人分类，支付的金额 | PZ5: 6.政府部门对垃圾分类的宣传活动 | QA5: 是否有相关奖惩方式 | QB5: 相关方式对行为的影响 | QC5: 是否有相关奖惩方式 | QD5: 相关方式对行为的影响 | QE5: 是否有相关奖惩方式 | QF5: 相关方式对行为的影响 | QG5: 是否有相关奖惩方式 | QH5: 相关方式对行为的影响 | QI5: 是否有相关奖惩方式 | QJ5: 相关方式对行为的影响 | QK5: 是否有相关奖惩方式 | QL5: 相关方式对行为的影响 | QM5: 1.村庄规范及村规民约对我参与环境治理有重要影响 | QN5: 2.村民邻里参与过环境治理 | QO5: 3.村民邻里认为您应该参与环境治理 | QP5: 4.我觉得赚钱就是为了消费 | QQ5: 5.生活垃圾分类处理对生态环境很重要 | QR5: 6.生活垃圾分类可以改善农村环境 | QS5: 7.我了解垃圾分类处理的法律 | QT5: 8.人与自然应该和谐相处 | QU5: 9.生态环境保护与农村经济发展同样重要 | QV5: 10.生态环境保护很重要 | QW5: 11.随意丢弃辣鸡会有负罪感 | QX5: 12.村庄是我家，保护环境靠大家 | QY5: 13.看到村庄垃圾治理越来越好，我会很自豪 | QZ5: 14.为了保护环境，农户应该警醒生活垃圾分类处理 | RA5: 15.我能比较准确掌握垃圾分类的方法 | RB5: 16.学习垃圾分类方法对我来说很容易 | RC5: 17.我当前的知识水平能够支持我对生活垃圾进行分类
A6: 1 | B6: 李明月 | C6: 黄炎忠 | D6: 湖北省 | E6: 襄阳市南漳县 | F6: 九集镇 | G6: 方庙村 | H6: 方有伦 | I6: 15571021008 | J6: 2 | K6: 3 | L6: 5 | M6: 1 | N6: 0 | O6: 1 | P6: 3 | Q6: 6 | R6: 2.6 | S6: 1500 | T6: 1 | U6: 1 | V6: 1 | W6: 56 | X6: 5 | Y6: 10 | Z6: 2 | AA6: 0 | AD6: 2 | AE6: 2 | AF6: 2 | AG6: 57 | AH6: 3 | AI6: 6 | AJ6: 2 | AK6: 0 | AN6: 3 | AO6: 4 | AP6: 2 | AQ6: 32 | AR6: 5 | AS6: 9 | AT6: 2 | AU6: 5 | AV6: 4.5 | AW6: 12 | BR6: 4 | BS6: 26 | BT6: 667 | BU6: 5 | BV6: 26 | BW6: 5 | BX6: 4 | BY6: 2 | BZ6: 2 | CA6: 100 | CB6: 1 | CC6: 2 | CD6: 26 | CE6: 1200 | CF6: 1.15 | CG6: 64 | CH6: 60 | CI6: 75 | CJ6: 1250 | CK6: 350 | CL6: 60 | DG6: 1 | DH6: 2 | DI6: 3 | DJ6: 3 | DK6: 5 | DL6: 1 | DM6: 5 | DN6: 2 | DO6: 2000 | DP6: 2 | DQ6: 2 | DR6: 2 | EF6: 5 | EG6: 1 | EH6: 1 | EI6: 1 | EJ6: 10 | EK6: 50 | EL6: 洋丰 | EM6: 85 | EN6: 50 | EO6: 15 | EP6: 15 | EQ6: 15 | ER6: 1 | ES6: 1 | ET6: 1 | EU6: 2 | EV6: 50 | EX6: 30 | EY6: 50 | FC6: 2 | FD6: 2 | FE6: 1 | FF6: 1 | FG6: 20 | FI6: 110 | FJ6: 100 | GJ6: 3 | GK6: 2 | GL6: 2 | GQ6: 4 | GR6: 4 | GS6: 5 | GT6: 5 | GU6: 5 | GV6: 5 | GW6: 3 | GX6: 3 | GY6: 2 | GZ6: 2 | HA6: 2 | HB6: 3 | HC6: 4 | HD6: 2 | HE6: 3 | HF6: 3 | HG6: 3 | HK6: 1 | HL6: 5 | HM6: 2 | HN6: 1,7（价格） | HO6: 2 | HP6: 2 | HR6: 2 | HS6: 2 | HU6: 1 | HV6: 2 | HW6: 2 | HX6: 2 | HY6: 2 | HZ6: 1 | IA6: 2 | IB6: 2 | IC6: 2 | ID6: 2 | IE6: 1 | IF6: 2 | IG6: 2 | IH6: 3 | II6: 2 | IJ6: 5 | IK6: 2 | IL6: 2 | IM6: 2 | JQ6: 4 | JR6: 3 | JS6: 5 | JT6: 3 | JU6: 1 | JV6: 2 | JZ6: 4 | KA6: 1 | KB6: 2 | KJ6: 2 | KL6: 2 | KM6: 4 | KN6: 5 | KO6: 5 | KP6: 5 | KQ6: 4 | KR6: 5 | KS6: 4 | KT6: 5 | KU6: 5 | KV6: 4 | KW6: 5 | KX6: 4 | KY6: 4 | KZ6: 5 | LA6: 4 | LB6: 5 | LC6: 5 | LD6: 5 | LE6: 5 | LF6: 5 | LG6: 5 | LH6: 4 | LI6: 4 | LJ6: 5 | LK6: 3 | LL6: 1 | LM6: 2 | LN6: 1 | LO6: 2 | LP6: 2 | LQ6: 1 | LR6: 1,2 | LS6: 2 | LT6: 2 | LU6: 4 | LV6: 2 | LW6: 3 | LX6: 4 | LY6: 4 | LZ6: 2 | MA6: 1 | MB6: 1 | MC6: 1 | MD6: 1 | ME6: 1 | MF6: 1 | MG6: 1 | MH6: 1 | MI6: 1 | MJ6: 4 | MK6: 3 | MM6: 1 | MN6: 2 | MO6: 1 | MP6: 2 | MQ6: 1 | MR6: 1 | MS6: 3 | MT6: 1 | MU6: 2 | MW6: 1 | MX6: 4 | MY6: 2 | NB6: 1 | ND6: 2 | NE6: 1 | NG6: 3 | NH6: 2 | NK6: 2 | NN6: 2 | NQ6: 1 | NS6: 1 | NT6: 1 | NW6: 2 | NX6: 3 | NY6: 2 | NZ6: 2 | OA6: 1 | OC6: 1 | OE6: 1 | OG6: 1 | OI6: 4 | OJ6: 5 | OK6: 1 | OL6: 4 | OM6: 1 | ON6: 2 | OP6: 2 | OQ6: 2 | OS6: 2 | OT6: 1 | OU6: 4 | OV6: 1 | OW6: 1 | OX6: 2 | OY6: 1 | OZ6: 2 | PB6: 2 | PC6: 1 | PE6: 2 | PF6: 1 | PG6: 2 | PH6: 1 | PI6: 2 | PK6: 2 | PL6: 2 | PN6: 2 | PO6: 2 | PQ6: 2 | PR6: 2 | PT6: 2 | PU6: 2 | PV6: 2 | PW6: 1 | PX6: 1 | PZ6: 5 | QA6: 1 | QB6: 3 | QC6: 1 | QD6: 5 | QE6: 1 | QF6: 3 | QG6: 1 | QH6: 3 | QI6: 1 | QJ6: 3 | QK6: 1 | QL6: 3 | QM6: 4 | QN6: 5 | QO6: 5 | QP6: 5 | QQ6: 4 | QR6: 5 | QS6: 5 | QT6: 5 | QU6: 5 | QV6: 5 | QW6: 4 | QX6: 5 | QY6: 1 | QZ6: 3 | RA6: 2 | RB6: 2 | RC6: 1
A7: 2 | B7: 李明月 | C7: 孙彬涵 | D7: 湖北省 | E7: 襄阳市南漳县 | F7: 九集镇 | G7: 良种场村 | H7: 刘志宝 | I7: 13871756816 | J7: 2 | K7: 1 | L7: 3 | M7: 0 | N7: 0 | O7: 2 | P7: 2 | Q7: 4.6 | R7: 0.8 | S7: 6000 | T7: 1 | U7: 1 | V7: 1 | W7: 46 | X7: 4 | Y7: 6 | Z7: 2 | AA7: 2 | AB7: 1.5 | AC7: 5 | AD7: 2 | AE7: 2 | AF7: 2 | AG7: 43 | AH7: 4 | AI7: 6 | AJ7: 2 | AK7: 2 | AL7: 0.8 | AM7: 4 | AN7: 3 | AO7: 4 | AP7: 1 | AQ7: 20 | AR7: 5 | AS7: 9 | AT7: 2 | AU7: 5 | AV7: 1.5 | AW7: 12 | BR7: 1 | BS7: 7 | BT7: 667 | BU7: 7 | BV7: 7 | BW7: 7 | BX7: 2 | BY7: 2 | BZ7: 3 | CA7: 400 | CB7: 2 | CC7: 2 | CD7: 7 | CE7: 1100 | CF7: 1.08 | CG7: 100 | CH7: 65 | CI7: 25 | CJ7: 200 | CK7: 250 | CL7: 9 | DG7: 1 | DH7: 2 | DI7: 2 | DJ7: 1 | DK7: 5 | DL7: 1 | DM7: 5 | DN7: 3 | DO7: 1300 | DP7: 1 | DQ7: 2 | DR7: 2 | EF7: 1 | EG7: 1 | EH7: 1 | EI7: 1 | EJ7: 10 | EK7: 45 | EL7: 阿波罗 | EM7: 130 | EN7: 80 | ER7: 1 | ES7: 1 | ET7: 1 | EU7: 2 | EV7: 50 | EX7: 38 | EY7: 100 | FC7: 2 | FD7: 1 | FE7: 1 | FF7: 1 | FG7: 20 | FI7: 110 | FJ7: 100 | GJ7: 2,3,5 | GK7: 1 | GL7: 2 | GQ7: 5 | GR7: 4 | GS7: 4 | GT7: 3 | GU7: 3 | GV7: 3 | GW7: 3 | GX7: 3 | GY7: 3 | GZ7: 4 | HA7: 5 | HB7: 5 | HC7: 2 | HD7: 3 | HE7: 1 | HF7: 1 | HG7: 1 | HK7: 1 | HL7: 4 | HM7: 1 | HN7: 1 | HO7: 3 | HP7: 1 | HR7: 2 | HS7: 2 | HU7: 1 | HV7: 3 | HW7: 3 | HX7: 2 | HY7: 3 | HZ7: 1 | IA7: 2 | IB7: 2 | IC7: 2 | ID7: 2 | IE7: 1 | IF7: 3 | IG7: 2 | IH7: 3 | II7: 2 | IJ7: 2 | IK7: 2 | IL7: 2 | IM7: 2 | JQ7: 4 | JR7: 4 | JS7: 4 | JT7: 1 | JU7: 2 | JV7: 2 | JW7: 1 | JZ7: 4 | KA7: 1 | KB7: 1 | KC7: 1 | KD7: 1 | KF7: 6 | KG7: 200 | KH7: 2 | KI7: 100 | KJ7: 1 | KK7: 650 | KL7: 4 | KM7: 4 | KN7: 4 | KO7: 4 | KP7: 3 | KQ7: 3 | KR7: 3 | KS7: 4 | KT7: 3 | KU7: 3 | KV7: 3 | KW7: 4 | KX7: 5 | KY7: 3 | KZ7: 3 | LA7: 4 | LB7: 3 | LC7: 3 | LD7: 4 | LE7: 3 | LF7: 3 | LG7: 3 | LH7: 3 | LI7: 2 | LJ7: 1 | LK7: 1 | LL7: 1 | LM7: 2 | LN7: 1 | LO7: 2 | LP7: 2 | LQ7: 4 | LR7: 1,2 | LS7: 1,2 | LT7: 2 | LU7: 4 | LV7: 2 | LW7: 2 | LX7: 2 | LY7: 2 | LZ7: 2 | MA7: 1 | MB7: 1 | MC7: 1 | MD7: 1 | ME7: 1 | MF7: 1 | MG7: 1 | MH7: 1 | MI7: 1 | MJ7: 4 | MK7: 3 | MM7: 2 | MN7: 2 | MO7: 1 | MP7: 1 | MQ7: 2 | MR7: 2 | MT7: 2 | MU7: 2 | MW7: 1 | MX7: 4 | MY7: 1 | MZ7: 5 | NA7: 2 | NB7: 1 | NC7: 10 | ND7: 1 | NE7: 1 | NF7: 5 | NG7: 3 | NQ7: 1 | NR7: 5 | NW7: 2 | NX7: 3 | NY7: 3 | NZ7: 3 | OA7: 1 | OC7: 1 | OE7: 1 | OG7: 1 | OI7: 3 | OJ7: 4 | OK7: 2 | OM7: 2 | ON7: 2 | OP7: 2 | OQ7: 2 | OS7: 2 | OT7: 2 | OV7: 2 | OW7: 2 | OY7: 2 | OZ7: 2 | PB7: 2 | PC7: 2 | PE7: 2 | PF7: 1 | PG7: 4 | PH7: 1 | PI7: 2 | PK7: 2 | PL7: 2 | PN7: 2 | PO7: 2 | PQ7: 2 | PR7: 2 | PT7: 2 | PU7: 2 | PV7: 2 | PW7: 2 | PY7: 1 | PZ7: 2 | QA7: 2 | QB7: 4 | QC7: 2 | QD7: 4 | QE7: 2 | QF7: 1 | QG7: 2 | QH7: 2 | QI7: 2 | QJ7: 3 | QK7: 2 | QL7: 5 | QM7: 4 | QN7: 4 | QO7: 5 | QP7: 5 | QQ7: 4 | QR7: 4 | QS7: 1 | QT7: 3 | QU7: 5 | QV7: 4 | QW7: 4 | QX7: 4 | QY7: 3 | QZ7: 3 | RA7: 1 | RB7: 4 | RC7: 4
A8: 3 | B8: 李明月 | C8: 孙彬涵 | D8: 湖北省 | E8: 襄阳市南漳县 | F8: 九集镇 | G8: 方庙村 | H8: 浦安 | I8: 13277116937 | J8: 2 | K8: 2.5 | L8: 4 | M8: 0 | N8: 0 | O8: 2 | P8: 3 | Q8: 6.3 | R8: 2 | S8: 10000 | T8: 1 | U8: 1 | V8: 1 | W8: 52 | X8: 4 | Y8: 6 | Z8: 2 | AA8: 2 | AB8: 0.7 | AC8: 2 | AD8: 2 | AE8: 2 | AF8: 2 | AG8: 48 | AH8: 4 | AI8: 6 | AJ8: 2 | AK8: 2 | AL8: 0.6 | AM8: 2 | AN8: 3 | AO8: 4 | AP8: 2 | AQ8: 20 | AR8: 5 | AS8: 9 | AT8: 2 | AU8: 5 | AV8: 3 | AW8: 12 | BR8: 1 | BS8: 12 | BT8: 667 | BU8: 10 | BV8: 12 | BW8: 10 | BX8: 3 | BY8: 1 | BZ8: 3 | CA8: 700 | CB8: 1 | CC8: 2 | CD8: 12 | CE8: 1400 | CF8: 1.1 | CG8: 150 | CH8: 50 | CI8: 50 | CJ8: 220 | CK8: 300 | CL8: 5 | DG8: 1 | DH8: 2 | DI8: 2 | DJ8: 1 | DK8: 5 | DL8: 1 | DM8: 5 | DN8: 3 | DO8: 1000 | DP8: 1 | DQ8: 2 | DR8: 2 | EF8: 1 | EG8: 1 | EH8: 1 | EI8: 1 | EJ8: 10 | EK8: 50 | EL8: 洋丰 | EM8: 80 | EN8: 50 | ER8: 1 | ES8: 1 | ET8: 1 | EU8: 2 | EV8: 50 | EX8: 38 | EY8: 100 | FC8: 2 | FD8: 2 | FE8: 1 | FF8: 1 | FG8: 10 | FI8: 120 | FJ8: 100 | GJ8: 3 | GK8: 1 | GL8: 2 | GQ8: 5 | GR8: 4 | GS8: 4 | GT8: 4 | GU8: 3 | GV8: 3 | GW8: 4 | GX8: 3 | GY8: 3 | GZ8: 4 | HA8: 4 | HB8: 5 | HC8: 2 | HD8: 1 | HE8: 1 | HF8: 2 | HG8: 2 | HK8: 1 | HL8: 4 | HM8: 1 | HN8: 1 | HO8: 3 | HP8: 2 | HQ8: 4 | HR8: 2 | HS8: 2 | HU8: 1 | HV8: 3 | HW8: 2 | HX8: 2 | HY8: 3 | HZ8: 1 | IA8: 2 | IB8: 4 | IC8: 2 | ID8: 2 | IE8: 1 | IF8: 3 | IG8: 1 | IH8: 1 | II8: 2 | IJ8: 4 | IK8: 4 | IL8: 2 | IM8: 2 | JQ8: 2 | JR8: 3 | JS8: 4 | JT8: 1 | JU8: 1 | JZ8: 3 | KA8: 1 | KB8: 1 | KC8: 1 | KD8: 1 | KF8: 30 | KG8: 不清楚 | KH8: 2 | KI8: 100 | KJ8: 3 | KK8: 1500 | KL8: 4 | KM8: 3 | KN8: 2 | KO8: 3 | KP8: 3 | KQ8: 3 | KR8: 2 | KS8: 3 | KT8: 2 | KU8: 2 | KV8: 2 | KW8: 3 | KX8: 3 | KY8: 3 | KZ8: 4 | LA8: 3 | LB8: 3 | LC8: 3 | LD8: 3 | LE8: 4 | LF8: 3 | LG8: 3 | LH8: 2 | LI8: 3 | LJ8: 1 | LK8: 1 | LL8: 1 | LM8: 4 | LN8: 2 | LO8: 1 | LP8: 1 | LQ8: 4 | LR8: 2 | LS8: 3 | LT8: 3 | LU8: 2 | LV8: 2 | LW8: 1 | LX8: 2 | LY8: 2 | LZ8: 2 | MA8: 1 | MB8: 1 | MC8: 1 | MD8: 1 | ME8: 1 | MF8: 2 | MG8: 1 | MH8: 1 | MI8: 2 | MJ8: 3 | MK8: 3 | MM8: 1 | MN8: 2 | MO8: 1 | MP8: 1 | MQ8: 2 | MR8: 2 | MT8: 1 | MU8: 2 | MW8: 1 | MX8: 4 | NB8: 1 | NC8: 10 | ND8: 2 | NE8: 1 | NF8: 30 | NG8: 1 | NH8: 2 | NK8: 2 | NN8: 2 | NQ8: 1 | NR8: 5 | NS8: 3 | NT8: 2 | NW8: 2 | NX8: 4 | NY8: 4 | NZ8: 3 | OA8: 3 | OB8: 2 | OC8: 1 | OE8: 1 | OG8: 1 | OI8: 4 | OJ8: 4 | OK8: 1 | OL8: 2 | OM8: 2 | ON8: 2 | OP8: 2 | OQ8: 2 | OS8: 2 | OT8: 2 | OV8: 2 | OW8: 2 | OY8: 2 | OZ8: 2 | PB8: 2 | PC8: 2 | PE8: 2 | PF8: 1 | PG8: 4 | PH8: 2 | PI8: 2 | PK8: 2 | PL8: 2 | PN8: 2 | PO8: 2 | PQ8: 2 | PR8: 2 | PT8: 2 | PU8: 2 | PV8: 2 | PW8: 2 | PY8: 2 | PZ8: 4 | QA8: 2 | QB8: 3 | QC8: 2 | QD8: 4 | QE8: 2 | QF8: 2 | QG8: 2 | QH8: 1 | QI8: 2 | QJ8: 1 | QK8: 2 | QL8: 5 | QM8: 4 | QN8: 5 | QO8: 5 | QP8: 5 | QQ8: 4 | QR8: 4 | QS8: 2 | QT8: 4 | QU8: 5 | QV8: 4 | QW8: 4 | QX8: 5 | QY8: 4 | QZ8: 3 | RA8: 1 | RB8: 4 | RC8: 4
A9: 4 | B9: 李明月 | C9: 孙彬涵 | D9: 湖北省 | E9: 襄阳市南漳县 | F9: 九集镇 | G9: 郑家畈 | H9: 杨维青 | I9: 15172619594 | J9: 3 | K9: 6 | L9: 6 | M9: 2 | N9: 2 | O9: 3 | P9: 6 | Q9: 7 | R9: 3 | S9: 1000 | T9: 1 | U9: 1 | V9: 2 | W9: 39 | X9: 5 | Y9: 6 | Z9: 2 | AA9: 2 | AB9: 2 | AC9: 3 | AD9: 2 | AE9: 3 | AF9: 1 | AG9: 75 | AH9: 3 | AI9: 6 | AJ9: 2 | AK9: 0 | AN9: 3 | AO9: 3 | AP9: 2 | AQ9: 68 | AR9: 4 | AS9: 6 | AT9: 2 | AU9: 0 | AX9: 4 | AY9: 2 | AZ9: 1 | BA9: 45 | BB9: 5 | BC9: 6 | BD9: 2 | BE9: 2 | BF9: 2 | BG9: 3 | BR9: 1 | BS9: 15 | BT9: 666 | BU9: 10 | BV9: 15 | BW9: 10 | BX9: 2 | BY9: 1 | BZ9: 3 | CA9: 600 | CB9: 1 | CC9: 1 | CD9: 2.5 | CE9: 1450 | CF9: 1.2 | CG9: 100 | CH9: 35 | CI9: 0 | CJ9: 120 | CK9: 0 | CL9: 10 | CM9: 3 | CN9: 12 | CO9: 1650 | CP9: 1.2 | CQ9: 110 | CR9: 40 | CS9: 0 | CT9: 120 | CU9: 0 | CV9: 9 | DG9: 1 | DH9: 2 | DI9: 1 | DJ9: 3 | DK9: 5 | DL9: 1 | DM9: 5 | DN9: 3 | DO9: 1500 | DP9: 1 | DQ9: 2 | DR9: 2 | EF9: 5 | EG9: 1 | EH9: 1 | EI9: 1 | EJ9: 10 | EK9: 50 | EM9: 75 | EN9: 50 | ER9: 1 | ES9: 1 | ET9: 1 | EU9: 2 | EV9: 80 | EX9: 40 | EY9: 80 | EZ9: 17 | GJ9: 3 | GK9: 2 | GL9: 2 | GQ9: 5 | GR9: 5 | GS9: 5 | GT9: 4 | GU9: 3 | GV9: 2 | GW9: 4 | GX9: 3 | GY9: 4 | GZ9: 5 | HA9: 5 | HB9: 4 | HC9: 1 | HD9: 2 | HE9: 3 | HF9: 4 | HG9: 3 | HK9: 1 | HL9: 1 | HM9: 1 | HN9: 1 | HO9: 1 | HP9: 2 | HQ9: 4,5 | HR9: 1 | HS9: 2 | HU9: 1 | HV9: 3 | HW9: 3 | HX9: 1 | HY9: 2 | HZ9: 1 | IA9: 2 | IB9: 4 | IC9: 2 | ID9: 2 | IE9: 1 | IF9: 3 | IG9: 2 | IH9: 1 | II9: 2 | IJ9: 2 | IK9: 2 | IL9: 2 | IM9: 2 | JQ9: 2 | JR9: 1 | JS9: 4 | JT9: 1,2,3 | JU9: 1 | JZ9: 4 | KA9: 1 | KB9: 1 | KC9: 1 | KD9: 1 | KF9: 15 | KG9: 不清楚 | KH9: 2 | KI9: 100 | KJ9: 4 | KK9: 160 | KL9: 4 | KM9: 5 | KN9: 4 | KO9: 4 | KP9: 2 | KQ9: 2 | KR9: 4 | KS9: 2 | KT9: 4 | KU9: 3 | KV9: 4 | KW9: 4 | KX9: 5 | KY9: 4 | KZ9: 2 | LA9: 2 | LB9: 4 | LC9: 3 | LD9: 4 | LE9: 2 | LF9: 2 | LG9: 2 | LH9: 4 | LI9: 4 | LJ9: 1 | LK9: 1 | LL9: 1 | LM9: 2 | LN9: 1 | LO9: 2 | LP9: 2 | LQ9: 1,4 | LR9: 1 | LS9: 1 | LT9: 4 | LU9: 4 | LV9: 2 | LW9: 2 | LX9: 3 | LY9: 3 | LZ9: 2 | MA9: 2 | MB9: 2 | MC9: 1 | MD9: 1 | ME9: 2 | MF9: 2 | MG9: 2 | MH9: 2 | MI9: 2 | MJ9: 4 | MK9: 3 | MM9: 2 | MN9: 2 | MO9: 1 | MP9: 2 | MQ9: 2 | MR9: 2 | MT9: 1 | MU9: 1 | MW9: 2 | MY9: 2 | NB9: 2 | NE9: 2 | NH9: 2 | NK9: 2 | NN9: 2 | NQ9: 1 | NS9: 1 | NT9: 2 | NW9: 2 | NX9: 3 | NY9: 3 | NZ9: 3 | OA9: 1 | OC9: 1 | OE9: 1 | OG9: 3 | OH9: 7 | OI9: 4 | OJ9: 2 | OK9: 1 | OL9: 4 | OM9: 2 | ON9: 2 | OP9: 2 | OQ9: 2 | OS9: 2 | OT9: 1 | OU9: 5 | OV9: 1 | OW9: 2 | OY9: 2 | OZ9: 1 | PA9: 4 | PB9: 1 | PC9: 2 | PE9: 2 | PF9: 1 | PG9: 3 | PH9: 1 | PI9: 2 | PK9: 2 | PL9: 2 | PN9: 2 | PO9: 2 | PQ9: 2 | PR9: 2 | PT9: 2 | PU9: 2 | PV9: 2 | PW9: 1 | PX9: 5 | PZ9: 2 | QA9: 2 | QB9: 2 | QC9: 2 | QD9: 5 | QE9: 2 | QF9: 2 | QG9: 2 | QH9: 2 | QI9: 2 | QJ9: 1 | QK9: 2 | QL9: 4 | QM9: 5 | QN9: 4 | QO9: 4 | QP9: 4 | QQ9: 3 | QR9: 3 | QS9: 1 | QT9: 4 | QU9: 5 | QV9: 4 | QW9: 2 | QX9: 4 | QY9: 3 | QZ9: 3 | RA9: 1 | RB9: 2 | RC9: 2
A10: 5 | B10: 李明月 | C10: 孙彬涵 | D10: 湖北省 | E10: 襄阳市南漳县 | F10: 九集镇 | G10: 郑家畈 | H10: 郑生友 | J10: 3 | K10: 6 | L10: 3 | M10: 0 | N10: 2 | O10: 3 | P10: 3 | Q10: 1.2 | R10: 1.2 | S10: 2000 | T10: 1 | U10: 1 | V10: 1 | W10: 68 | X10: 2 | Y10: 0 | Z10: 2 | AA10: 0 | AD10: 2 | AE10: 2 | AF10: 2 | AG10: 68 | AH10: 3 | AI10: 0 | AJ10: 2 | AK10: 0 | AN10: 3 | AO10: 4 | AP10: 1 | AQ10: 40 | AR10: 2 | AS10: 0 | AT10: 2 | AU10: 0 | BR10: 1 | BS10: 7.2 | BT10: 666 | BU10: 7 | BV10: 6 | BW10: 6 | BX10: 4 | BY10: 2 | BZ10: 2 | CA10: 250 | CB10: 1 | CC10: 2 | CD10: 6 | CE10: 1600 | CF10: 1.13 | CG10: 150 | CH10: 60 | CI10: 0 | CJ10: 250 | CK10: 0 | CL10: 20 | DG10: 1 | DH10: 2 | DI10: 4 | DJ10: 1 | DK10: 5 | DL10: 1 | DM10: 5 | DN10: 3 | DO10: 1600 | DP10: 2 | DQ10: 1 | DR10: 2 | EF10: 5 | EG10: 1 | EH10: 2 | EI10: 5 | EJ10: 9 | EK10: 100 | EL10: 大力 | EM10: 120 | EN10: 100 | EO10: 25 | EP10: 12 | EQ10: 8 | GK10: 1 | GL10: 1 | GM10: 1 | GN10: 2015 | GO10: 1 | GP10: 2 | GQ10: 5 | GR10: 4 | GS10: 4 | GT10: 3 | GU10: 1 | GV10: 2 | GW10: 2 | GX10: 3 | GY10: 2 | GZ10: 3 | HA10: 4 | HB10: 3 | HC10: 2 | HD10: 3 | HE10: 5 | HF10: 4 | HG10: 3 | HH10: 6 | HI10: 1.5 | HJ10: 2 | HK10: 1,2,5 | HL10: 2 | HM10: 1 | HN10: 1 | HO10: 1 | HP10: 3 | HQ10: 1,4 | HR10: 2 | HS10: 2 | HU10: 1 | HV10: 4 | HW10: 2 | HX10: 2 | HY10: 3 | HZ10: 1 | IA10: 2 | IB10: 4 | IC10: 1 | ID10: 2 | IE10: 1 | IF10: 3 | IG10: 1 | IH10: 2 | II10: 1 | IJ10: 3 | IK10: 2 | IL10: 2 | IM10: 2 | IO10: 4 | IP10: 2 | IQ10: 2 | IR10: 2 | IS10: 2 | IT10: 4 | IU10: 3 | IV10: 3 | IW10: 3 | IX10: 3 | IY10: 3 | IZ10: 3 | JA10: 3 | JB10: 4 | JC10: 4 | JD10: 4 | JE10: 5 | JF10: 4 | JG10: 3 | JH10: 4 | JI10: 4 | JJ10: 1 | JK10: 4 | JL10: 4 | JM10: 3 | JN10: 3 | JO10: 4 | JP10: 4 | JQ10: 2 | JR10: 3 | JS10: 4 | JT10: 1 | JU10: 1 | JZ10: 3 | KA10: 1 | KB10: 2 | KF10: 25 | KG10: 不清楚 | KH10: 2 | KI10: 100 | KJ10: 2 | KK10: 800 | KL10: 2 | KM10: 2 | KN10: 2 | KO10: 2 | KP10: 2 | KQ10: 2 | KR10: 3 | KS10: 1 | KT10: 4 | KU10: 1 | KV10: 2 | KW10: 1 | KX10: 1 | KY10: 3 | KZ10: 2 | LA10: 3 | LB10: 3 | LC10: 4 | LD10: 4 | LE10: 1 | LF10: 3 | LG10: 2 | LH10: 2 | LI10: 3 | LJ10: 1 | LK10: 1 | LL10: 1 | LM10: 3 | LN10: 2 | LO10: 3 | LP10: 3 | LQ10: 1,4 | LR10: 1 | LS10: 2 | LT10: 2 | LU10: 3 | LV10: 4 | LW10: 2 | LX10: 3 | LY10: 5 | LZ10: 1 | MA10: 2 | MB10: 2 | MC10: 1 | MD10: 1 | ME10: 2 | MF10: 1 | MG10: 1 | MH10: 1 | MI10: 1 | MJ10: 4 | MK10: 3 | MM10: 1 | MN10: 2 | MO10: 1 | MP10: 1 | MQ10: 2 | MR10: 2 | MT10: 1 | MU10: 1 | MV10: 10 | MW10: 2 | MY10: 2 | NB10: 2 | NE10: 1 | NF10: 10 | NG10: 2 | NH10: 2 | NK10: 2 | NN10: 1 | NO10: 20 | NP10: 1 | NQ10: 2 | NT10: 2 | NW10: 2 | NX10: 3 | NY10: 3 | NZ10: 3 | OA10: 3 | OB10: 2 | OC10: 1 | OE10: 2 | OF10: 6 | OG10: 1 | OI10: 4 | OJ10: 2 | OK10: 1 | OL10: 4 | OM10: 2 | ON10: 2 | OP10: 2 | OQ10: 2 | OS10: 2 | OT10: 2 | OV10: 2 | OW10: 2 | OY10: 2 | OZ10: 1 | PA10: 4 | PB10: 1 | PC10: 2 | PE10: 2 | PF10: 1 | PG10: 1 | PH10: 2 | PI10: 2 | PK10: 2 | PL10: 2 | PN10: 2 | PO10: 2 | PQ10: 2 | PR10: 2 | PT10: 2 | PU10: 2 | PV10: 2 | PW10: 1 | PX10: 3 | PZ10: 2 | QA10: 2 | QB10: 2 | QC10: 2 | QD10: 4 | QE10: 2 | QF10: 1 | QG10: 2 | QH10: 1 | QI10: 2 | QJ10: 2 | QK10: 2 | QL10: 5 | QM10: 4 | QN10: 3 | QO10: 4 | QP10: 4 | QQ10: 5 | QR10: 5 | QS10: 1 | QT10: 4 | QU10: 1 | QV10: 3 | QW10: 3 | QX10: 4 | QY10: 5 | QZ10: 3 | RA10: 1 | RB10: 1 | RC10: 1
A11: 6 | B11: 李明月 | C11: 孙彬涵 | D11: 湖北省 | E11: 襄阳市南漳县 | F11: 九集镇 | G11: 邓家集 | H11: 张华荣 | I11: 13277109987 | J11: 2 | K11: 2.5 | L11: 4 | M11: 1 | N11: 2 | O11: 2 | P11: 4 | Q11: 2 | R11: 0.8 | S11: 4500 | T11: 1 | U11: 2 | V11: 2 | W11: 60 | X11: 5 | Y11: 4 | Z11: 2 | AA11: 1 | AB11: 0.3 | AC11: 12 | AD11: 2 | AE11: 1 | AF11: 1 | AG11: 62 | AH11: 5 | AI11: 6 | AJ11: 2 | AK11: 1 | AL11: 0.3 | AM11: 12 | AN11: 3 | AO11: 4 | AP11: 1 | AQ11: 32 | AR11: 4 | AS11: 15 | AT11: 2 | AU11: 1 | AV11: 0.4 | AW11: 12 | BR11: 1 | BS11: 5.5 | BT11: 666 | BU11: 3 | BV11: 5.5 | BW11: 3 | BX11: 2 | BY11: 2 | BZ11: 3 | CA11: 1500 | CB11: 1 | CC11: 2 | CD11: 5.5 | CE11: 1200 | CF11: 1.08 | CG11: 140 | CH11: 40 | CI11: 60 | CJ11: 300 | CK11: 0 | CL11: 13 | DG11: 1 | DH11: 1 | DI11: 5 | DJ11: 1 | DK11: 4 | DL11: 1 | DM11: 4 | DN11: 3 | DO11: 2000 | DP11: 1 | DQ11: 2 | DR11: 2 | EF11: 5 | EG11: 1 | EH11: 1 | EI11: 1 | EJ11: 2 | EK11: 100 | EM11: 50 | EN11: 100 | ER11: 1 | ES11: 1 | ET11: 1 | EU11: 10 | EV11: 50 | EW11: 洋丰 | EX11: 180 | EY11: 100 | FC11: 2 | FD11: 2 | FE11: 1 | FF11: 1 | FG11: 15 | FI11: 120 | FJ11: 80 | FN11: 2 | FO11: 2 | FP11: 1 | FQ11: 10 | FR11: 20 | FS11: 洋丰 | FT11: 180 | FU11: 100 | GJ11: 2 | GK11: 2 | GL11: 2 | GQ11: 4 | GR11: 4 | GS11: 3 | GT11: 3 | GU11: 4 | GV11: 5 | GW11: 3 | GX11: 3 | GY11: 3 | GZ11: 4 | HA11: 4 | HB11: 4 | HC11: 2 | HD11: 2 | HE11: 5 | HF11: 2 | HG11: 2 | HK11: 1,5 | HL11: 1 | HM11: 1 | HN11: 1 | HO11: 1 | HP11: 1 | HQ11: 4 | HR11: 2 | HS11: 2 | HU11: 1 | HV11: 3 | HW11: 1 | HX11: 2 | HY11: 4 | HZ11: 1 | IA11: 2 | IB11: 4 | IC11: 2 | ID11: 2 | IE11: 1 | IF11: 5 | IG11: 1 | IH11: 3 | II11: 1 | IJ11: 4 | IK11: 3 | IL11: 2 | IM11: 2 | JQ11: 5 | JR11: 3 | JS11: 5 | JT11: 1 | JU11: 1 | JZ11: 4 | KA11: 1 | KB11: 1 | KC11: 1 | KD11: 1 | KF11: 10 | KG11: 80 | KH11: 2 | KI11: 100 | KJ11: 3 | KK11: 200 | KL11: 4 | KM11: 5 | KN11: 4 | KO11: 3 | KP11: 4 | KQ11: 5 | KR11: 5 | KS11: 1 | KT11: 4 | KU11: 3 | KV11: 5 | KW11: 4 | KX11: 4 | KY11: 4 | KZ11: 4 | LA11: 3 | LB11: 4 | LC11: 3 | LD11: 4 | LE11: 4 | LF11: 4 | LG11: 5 | LH11: 5 | LI11: 2 | LJ11: 1 | LK11: 1 | LL11: 1 | LM11: 2 | LN11: 1 | LO11: 3 | LP11: 3 | LQ11: 4 | LR11: 1 | LS11: 3 | LT11: 2 | LU11: 4 | LV11: 3 | LW11: 3 | LX11: 3 | LY11: 2 | LZ11: 2 | MA11: 1 | MB11: 1 | MC11: 1 | MD11: 1 | ME11: 1 | MF11: 2 | MG11: 1 | MH11: 1 | MI11: 2 | MJ11: 2 | MK11: 3 | MM11: 2 | MN11: 2 | MO11: 2 | MP11: 1 | MQ11: 1 | MR11: 2 | MT11: 2 | MW11: 1 | MX11: 4 | MY11: 1 | MZ11: 10 | NA11: 3 | NB11: 2 | NE11: 1 | NG11: 1 | NH11: 2 | NK11: 2 | NN11: 2 | NQ11: 1 | NS11: 2 | NT11: 2 | NW11: 2 | NX11: 3 | NY11: 3 | NZ11: 3 | OA11: 1 | OC11: 1 | OE11: 1 | OG11: 1 | OI11: 3 | OJ11: 5 | OK11: 1 | OL11: 4 | OM11: 2 | ON11: 1 | OO11: 3 | OP11: 2 | OQ11: 2 | OS11: 2 | OT11: 1 | OU11: 4 | OV11: 2 | OW11: 1 | OX11: 3 | OY11: 2 | OZ11: 2 | PB11: 2 | PC11: 2 | PE11: 2 | PF11: 1 | PG11: 3 | PH11: 2 | PI11: 2 | PK11: 2 | PL11: 2 | PN11: 2 | PO11: 2 | PQ11: 2 | PR11: 2 | PT11: 2 | PU11: 2 | PV11: 2 | PW11: 2 | PY11: 1 | PZ11: 3 | QA11: 2 | QB11: 3 | QC11: 2 | QD11: 2 | QE11: 2 | QF11: 3 | QG11: 2 | QH11: 2 | QI11: 2 | QJ11: 1 | QK11: 2 | QL11: 4 | QM11: 4 | QN11: 4 | QO11: 5 | QP11: 4 | QQ11: 4 | QR11: 4 | QS11: 3 | QT11: 5 | QU11: 5 | QV11: 5 | QW11: 3 | QX11: 4 | QY11: 3 | QZ11: 2 | RA11: 2 | RB11: 2 | RC11: 2
A12: 7 | B12: 李明月 | C12: 孙彬涵 | D12: 湖北省 | E12: 襄阳市南漳县 | F12: 九集镇 | G12: 邓家集 | H12: 谭习清 | I12: 13886283989 | J12: 2 | K12: 2 | L12: 5 | M12: 0 | N12: 1 | O12: 2 | P12: 4 | Q12: 11 | R12: 0.65 | S12: 5500 | T12: 1 | U12: 2 | V12: 1 | W12: 56 | X12: 4 | Y12: 15 | Z12: 1 | AA12: 1 | AB12: 3.5 | AC12: 12 | AD12: 2 | AE12: 1 | AF12: 2 | AG12: 56 | AH12: 4 | AI12: 12 | AJ12: 2 | AK12: 0 | AN12: 3 | AO12: 3 | AP12: 2 | AQ12: 90 | AR12: 4 | AS12: 0 | AT12: 2 | AU12: 0 | AX12: 4 | AY12: 4 | AZ12: 1 | BA12: 34 | BB12: 5 | BC12: 16 | BD12: 2 | BE12: 5 | BF12: 6 | BG12: 12 | BR12: 1 | BS12: 4 | BT12: 666 | BU12: 1 | BV12: 4 | BW12: 1 | BX12: 3 | BY12: 1 | BZ12: 3 | CA12: 1000 | CB12: 1 | CC12: 2 | CD12: 4 | CE12: 1400 | CF12: 1.1 | CG12: 130 | CH12: 20 | CI12: 0 | CJ12: 200 | CK12: 160 | CL12: 20 | DG12: 1 | DH12: 2 | DI12: 5 | DJ12: 1 | DK12: 5 | DL12: 1 | DM12: 5 | DN12: 3 | DO12: 1500 | DP12: 1 | DQ12: 1 | DR12: 1 | DW12: 1 | DX12: 3 | DY12: 2019 | DZ12: 4 | EG12: 1 | EH12: 1 | EI12: 1 | EJ12: 2 | EK12: 100 | EM12: 35 | EN12: 100 | ER12: 1 | ES12: 1 | ET12: 1 | EU12: 10 | EV12: 35 | EX12: 40 | EY12: 100 | FC12: 2 | FD12: 2 | FE12: 1 | FF12: 1 | FG12: 6 | FI12: 100 | FJ12: 100 | GJ12: 2 | GK12: 1 | GL12: 2 | GQ12: 5 | GR12: 4 | GS12: 4 | GT12: 4 | GU12: 2 | GV12: 5 | GW12: 4 | GX12: 3 | GY12: 3 | GZ12: 3 | HA12: 3 | HB12: 5 | HC12: 2 | HD12: 4 | HE12: 1 | HF12: 1 | HG12: 1 | HK12: 3 | HL12: 5 | HM12: 1 | HN12: 1 | HO12: 4 | HP12: 3 | HQ12: 1,4 | HR12: 2 | HS12: 2 | HU12: 3 | HV12: 3 | HW12: 3 | HX12: 1 | HY12: 3 | HZ12: 3 | IA12: 1 | IB12: 2 | IC12: 1 | ID12: 2 | IE12: 1 | IF12: 4 | IG12: 2 | IH12: 1 | II12: 2 | IJ12: 2 | IK12: 4 | IL12: 2 | IM12: 2 | JQ12: 4 | JR12: 4 | JS12: 5 | JT12: 1 | JU12: 2 | JV12: 1 | JZ12: 4 | KA12: 1 | KB12: 1 | KC12: 1 | KD12: 1 | KF12: 6 | KG12: 400 | KH12: 2 | KI12: 100 | KJ12: 4 | KK12: 1800 | KL12: 4 | KM12: 3 | KN12: 3 | KO12: 3 | KP12: 4 | KQ12: 5 | KR12: 5 | KS12: 2 | KT12: 3 | KU12: 3 | KV12: 4 | KW12: 4 | KX12: 4 | KY12: 3 | KZ12: 4 | LA12: 3 | LB12: 4 | LC12: 5 | LD12: 5 | LE12: 3 | LF12: 3 | LG12: 2 | LH12: 3 | LI12: 4 | LJ12: 1 | LK12: 1 | LL12: 1 | LM12: 2 | LN12: 2 | LO12: 2 | LP12: 2 | LQ12: 1 | LR12: 2 | LS12: 2 | LT12: 2 | LU12: 4 | LV12: 4 | LW12: 3 | LX12: 3 | LY12: 5 | LZ12: 2 | MA12: 1 | MB12: 1 | MC12: 1 | MD12: 1 | ME12: 1 | MF12: 1 | MG12: 1 | MH12: 1 | MI12: 1 | MJ12: 5 | MK12: 3 | MM12: 1 | MN12: 2 | MO12: 1 | MP12: 2 | MQ12: 1 | MR12: 2 | MT12: 1 | MU12: 2 | MW12: 2 | MY12: 1 | MZ12: 20 | NA12: 2 | NB12: 2 | NE12: 2 | NH12: 2 | NK12: 2 | NN12: 2 | NQ12: 1 | NR12: 30 | NS12: 1 | NT12: 2 | NW12: 2 | NX12: 3 | NY12: 3 | NZ12: 3 | OA12: 1 | OC12: 3 | OD12: 6 | OE12: 1 | OG12: 1 | OI12: 3 | OJ12: 5 | OK12: 1 | OL12: 4 | OM12: 1 | ON12: 2 | OP12: 1 | OQ12: 2 | OS12: 1 | OT12: 1 | OU12: 3 | OV12: 1 | OW12: 1 | OX12: 4 | OY12: 1 | OZ12: 2 | PB12: 2 | PC12: 2 | PE12: 1 | PF12: 1 | PG12: 4 | PH12: 1 | PI12: 2 | PK12: 2 | PL12: 1 | PM12: 2 | PN12: 1 | PO12: 1 | PP12: 2 | PQ12: 1 | PR12: 2 | PT12: 1 | PU12: 2 | PV12: 2 | PW12: 1 | PX12: 5 | PZ12: 2 | QA12: 2 | QB12: 1 | QC12: 2 | QD12: 4 | QE12: 2 | QF12: 1 | QG12: 2 | QH12: 2 | QI12: 2 | QJ12: 2 | QK12: 2 | QL12: 4 | QM12: 4 | QN12: 4 | QO12: 4 | QP12: 5 | QQ12: 5 | QR12: 5 | QS12: 4 | QT12: 4 | QU12: 2 | QV12: 5 | QW12: 4 | QX12: 4 | QY12: 3 | QZ12: 4 | RA12: 3 | RB12: 3 | RC12: 3
A13: 8 | B13: 李明月 | C13: 孙彬涵 | D13: 湖北省 | E13: 襄阳市南漳县 | F13: 九集镇 | G13: 邓家集 | H13: 熊燕香 | I13: 13871993748 | J13: 2 | K13: 2 | L13: 4 | M13: 0 | N13: 1 | O13: 2 | P13: 4 | Q13: 3 | R13: 0.8 | S13: 7000 | T13: 1 | U13: 1 | V13: 2 | W13: 55 | X13: 4 | Y13: 6 | Z13: 2 | AA13: 1 | AB13: 0.5 | AC13: 2 | AD13: 2 | AE13: 2 | AF13: 1 | AG13: 55 | AH13: 3 | AI13: 6 | AJ13: 2 | AK13: 1 | AL13: 1 | AM13: 4 | AN13: 3 | AO13: 4 | AP13: 2 | AQ13: 25 | AR13: 5 | AS13: 19 | AT13: 2 | AU13: 0 | AX13: 4 | AY13: 3 | AZ13: 2 | BA13: 78 | BB13: 1 | BC13: 0 | BR13: 1 | BS13: 4 | BT13: 666 | BU13: 1 | BV13: 4 | BW13: 1 | BX13: 2 | BY13: 2 | BZ13: 3 | CA13: 1000 | CB13: 1 | CC13: 2 | CD13: 4 | CE13: 1400 | CF13: 1.1 | CG13: 120 | CH13: 100 | CI13: 0 | CJ13: 180 | CK13: 150 | CL13: 15 | DG13: 1 | DH13: 2 | DI13: 5 | DJ13: 1 | DK13: 4 | DL13: 1 | DM13: 5 | DN13: 2 | DP13: 1 | DQ13: 2 | DR13: 2 | EF13: 4 | EG13: 1 | EH13: 1 | EI13: 1 | EJ13: 10 | EK13: 80 | EM13: 130 | EN13: 80 | ER13: 1 | ES13: 1 | ET13: 1 | EU13: 1 | EV13: 30 | EX13: 80 | EY13: 80 | FC13: 1 | FD13: 1 | FE13: 1 | FF13: 5 | FG13: 80 | FI13: 28 | FJ13: 80 | FN13: 2 | FO13: 2 | FP13: 1 | FQ13: 1 | FR13: 15 | FT13: 80 | FU13: 80 | GJ13: 5 | GK13: 2 | GL13: 2 | GQ13: 5 | GR13: 3 | GS13: 3 | GT13: 3 | GU13: 2 | GV13: 5 | GW13: 3 | GX13: 3 | GY13: 3 | GZ13: 3 | HA13: 3 | HB13: 5 | HC13: 2 | HD13: 3 | HE13: 1 | HF13: 1 | HG13: 1 | HK13: 1 | HL13: 1 | HM13: 1 | HN13: 1 | HO13: 3 | HP13: 2 | HQ13: 1,4 | HR13: 2 | HS13: 2 | HU13: 1 | HV13: 3 | HW13: 1 | HX13: 2 | HY13: 4 | HZ13: 1 | IA13: 2 | IB13: 3 | IC13: 2 | ID13: 2 | IE13: 1 | IF13: 3 | IG13: 2 | IH13: 3 | II13: 2 | IJ13: 4 | IK13: 2 | IL13: 2 | IM13: 2 | JQ13: 4 | JR13: 3 | JS13: 4 | JT13: 1 | JU13: 1 | JZ13: 4 | KA13: 1 | KB13: 1 | KC13: 1 | KD13: 1 | KF13: 6 | KG13: 不清楚 | KH13: 2 | KI13: 100 | KJ13: 3 | KK13: 200 | KL13: 3 | KM13: 5 | KN13: 5 | KO13: 4 | KP13: 3 | KQ13: 3 | KR13: 3 | KS13: 2 | KT13: 3 | KU13: 4 | KV13: 3 | KW13: 5 | KX13: 5 | KY13: 4 | KZ13: 3 | LA13: 4 | LB13: 4 | LC13: 3 | LD13: 3 | LE13: 3 | LF13: 4 | LG13: 5 | LH13: 5 | LI13: 2 | LJ13: 1 | LK13: 1 | LL13: 1 | LM13: 4 | LN13: 2 | LO13: 1 | LP13: 1 | LQ13: 1,3 | LR13: 2 | LS13: 3 | LT13: 3 | LU13: 2 | LV13: 1 | LW13: 1 | LX13: 1 | LY13: 2 | LZ13: 2 | MA13: 2 | MB13: 1 | MC13: 1 | MD13: 1 | ME13: 1 | MF13: 2 | MG13: 1 | MH13: 1 | MI13: 1 | MJ13: 4 | MK13: 3 | MM13: 1 | MN13: 2 | MO13: 2 | MP13: 1 | MQ13: 2 | MR13: 1 | MS13: 4 | MT13: 1 | MU13: 2 | MV13: 20 | MW13: 2 | MY13: 1 | MZ13: 5 | NA13: 2 | NB13: 2 | NE13: 2 | NH13: 2 | NK13: 2 | NN13: 2 | NQ13: 1 | NR13: 10 | NS13: 1 | NT13: 2 | NW13: 2 | NX13: 3 | NY13: 3 | NZ13: 3 | OA13: 1 | OC13: 1 | OE13: 1 | OG13: 1 | OI13: 4 | OJ13: 3 | OK13: 1 | OL13: 5 | OM13: 2 | ON13: 1 | OO13: 4 | OP13: 2 | OQ13: 2 | OS13: 2 | OT13: 2 | OV13: 2 | OW13: 2 | OY13: 2 | OZ13: 2 | PB13: 2 | PC13: 2 | PE13: 2 | PF13: 1 | PG13: 3 | PH13: 2 | PI13: 2 | PK13: 2 | PL13: 2 | PN13: 2 | PO13: 2 | PQ13: 2 | PR13: 2 | PT13: 2 | PU13: 2 | PV13: 2 | PW13: 1 | PX13: 5 | PZ13: 2 | QA13: 2 | QB13: 1 | QC13: 2 | QD13: 5 | QE13: 2 | QF13: 3 | QG13: 2 | QH13: 2 | QI13: 2 | QJ13: 2 | QK13: 2 | QL13: 5 | QM13: 4 | QN13: 5 | QO13: 5 | QP13: 4 | QQ13: 4 | QR13: 4 | QS13: 2 | QT13: 4 | QU13: 2 | QV13: 5 | QW13: 3 | QX13: 3 | QY13: 3 | QZ13: 3 | RA13: 2 | RB13: 2 | RC13: 2
A14: 9 | B14: 李明月 | C14: 孙彬涵 | D14: 湖北省 | E14: 襄阳市南漳县 | F14: 九集镇 | G14: 邓家集 | H14: 王丽 | I14: 13227654850 | J14: 2 | K14: 3.5 | L14: 4 | M14: 0 | N14: 0 | O14: 2 | P14: 4 | Q14: 7 | R14: 0.45 | S14: 15000 | T14: 1 | U14: 2 | V14: 2 | W14: 42 | X14: 4 | Y14: 9 | Z14: 2 | AA14: 0 | AD14: 2 | AE14: 1 | AF14: 1 | AG14: 40 | AH14: 4 | AI14: 6 | AJ14: 2 | AK14: 1 | AL14: 5 | AM14: 12 | BR14: 1 | BS14: 2 | BT14: 666 | BU14: 2 | BV14: 2 | BW14: 2 | BX14: 2 | BY14: 2 | BZ14: 3 | CA14: 650 | CB14: 2 | CC14: 2 | CD14: 2 | CE14: 1200 | CF14: 1.15 | CG14: 120 | CH14: 200 | CI14: 0 | CJ14: 200 | CK14: 0 | CL14: 30 | DG14: 1 | DH14: 2 | DI14: 4 | DJ14: 1 | DK14: 5 | DL14: 1 | DM14: 5 | DN14: 3 | DO14: 1000 | DP14: 1 | DQ14: 1 | DR14: 2 | EF14: 5 | EG14: 1 | EH14: 1 | EI14: 1 | EJ14: 2 | EK14: 100 | EM14: 38 | EN14: 100 | ER14: 1 | ES14: 1 | ET14: 1 | EU14: 10 | EV14: 40 | EX14: 140 | EY14: 80 | FC14: 2 | FD14: 2 | FE14: 1 | FF14: 1 | FG14: 15 | FI14: 100 | FJ14: 100 | GJ14: 2 | GK14: 1 | GL14: 2 | GQ14: 4 | GR14: 4 | GS14: 3 | GT14: 5 | GU14: 2 | GV14: 4 | GW14: 3 | GX14: 3 | GY14: 3 | GZ14: 5 | HA14: 5 | HB14: 5 | HC14: 4 | HD14: 4 | HE14: 1 | HF14: 1 | HG14: 1 | HK14: 1 | HL14: 2 | HM14: 1 | HN14: 1 | HO14: 3 | HP14: 1 | HQ14: 1,4 | HR14: 2 | HS14: 2 | HU14: 1 | HV14: 4 | HW14: 4 | HX14: 1 | HY14: 4 | HZ14: 1 | IA14: 2 | IB14: 3 | IC14: 2 | ID14: 1 | IE14: 1 | IF14: 4 | IG14: 2 | IH14: 1 | II14: 2 | IJ14: 4 | IK14: 4 | IL14: 2 | IM14: 2 | JQ14: 5 | JR14: 4 | JS14: 4 | JT14: 3 | JU14: 2 | JV14: 2 | JW14: 2 | JX14: 2 | JY14: 1 | JZ14: 3 | KA14: 1 | KB14: 1 | KC14: 1 | KD14: 1 | KF14: 20 | KG14: 不清楚 | KH14: 2 | KI14: 100 | KJ14: 3 | KK14: 1200 | KL14: 4 | KM14: 5 | KN14: 4 | KO14: 4 | KP14: 2 | KQ14: 2 | KR14: 3 | KS14: 3 | KT14: 3 | KU14: 4 | KV14: 4 | KW14: 5 | KX14: 4 | KY14: 2 | KZ14: 1 | LA14: 2 | LB14: 3 | LC14: 4 | LD14: 4 | LE14: 4 | LF14: 3 | LG14: 1 | LH14: 3 | LI14: 2 | LJ14: 1 | LK14: 1 | LL14: 1 | LM14: 2 | LN14: 2 | LO14: 2 | LP14: 2 | LQ14: 4 | LR14: 2 | LS14: 2 | LT14: 4 | LU14: 2 | LV14: 2 | LW14: 1 | LX14: 1 | LY14: 2 | LZ14: 1 | MA14: 1 | MB14: 1 | MC14: 1 | MD14: 1 | ME14: 1 | MF14: 2 | MG14: 1 | MH14: 1 | MI14: 1 | MJ14: 4 | MK14: 3 | MM14: 2 | MN14: 2 | MO14: 1 | MP14: 1 | MQ14: 1 | MR14: 2 | MT14: 2 | MU14: 2 | MW14: 1 | MX14: 4 | MY14: 1 | MZ14: 5 | NA14: 1 | NB14: 2 | NE14: 2 | NH14: 2 | NK14: 2 | NN14: 2 | NQ14: 2 | NT14: 2 | NW14: 2 | NX14: 4 | NY14: 3 | NZ14: 3 | OA14: 1 | OC14: 1 | OE14: 1 | OG14: 1 | OI14: 4 | OJ14: 5 | OK14: 2 | OM14: 2 | ON14: 2 | OP14: 2 | OQ14: 2 | OS14: 2 | OT14: 2 | OV14: 2 | OW14: 2 | OY14: 2 | OZ14: 2 | PB14: 2 | PC14: 2 | PE14: 2 | PF14: 1 | PG14: 3 | PH14: 2 | PI14: 2 | PK14: 2 | PL14: 2 | PN14: 2 | PO14: 2 | PQ14: 2 | PR14: 2 | PT14: 2 | PU14: 2 | PV14: 2 | PW14: 1 | PX14: 3 | PZ14: 2 | QA14: 2 | QB14: 3 | QC14: 2 | QD14: 4 | QE14: 2 | QF14: 1 | QG14: 2 | QH14: 1 | QI14: 2 | QJ14: 2 | QK14: 2 | QL14: 5 | QM14: 4 | QN14: 5 | QO14: 5 | QP14: 4 | QQ14: 4 | QR14: 4 | QS14: 2 | QT14: 3 | QU14: 5 | QV14: 3 | QW14: 3 | QX14: 4 | QY14: 4 | QZ14: 4 | RA14: 2 | RB14: 2 | RC14: 2
A15: 10 | B15: 李明月 | C15: 孙彬涵 | D15: 湖北省 | E15: 襄阳市南漳县 | F15: 九集镇 | G15: 邓家集 | H15: 张文权 | I15: 13117233035 | J15: 2 | K15: 3 | L15: 4 | M15: 0 | N15: 0 | O15: 2 | P15: 3 | Q15: 9.6 | R15: 0.9 | S15: 7500 | T15: 1 | U15: 1 | V15: 1 | W15: 50 | X15: 4 | Y15: 0 | Z15: 2 | AA15: 2 | AB15: 1.7 | AC15: 4 | AD15: 2 | AE15: 2 | AF15: 2 | AG15: 48 | AH15: 4 | AI15: 0 | AJ15: 2 | AK15: 0 | AN15: 3 | AO15: 4 | AP15: 2 | AQ15: 29 | AR15: 5 | AS15: 16 | AT15: 2 | AU15: 5 | AV15: 7 | AW15: 12 | AX15: 4 | AY15: 4 | AZ15: 2 | BA15: 23 | BB15: 5 | BC15: 17 | BD15: 2 | BE15: 0 | BR15: 1 | BS15: 8 | BT15: 667 | BU15: 5 | BV15: 6 | BW15: 5 | BX15: 2 | BY15: 2 | BZ15: 3 | CA15: 700 | CB15: 2 | CC15: 2 | CD15: 6 | CE15: 950 | CF15: 1.15 | CG15: 120 | CH15: 100 | CI15: 0 | CJ15: 200 | CK15: 0 | CL15: 10 | DG15: 1 | DH15: 2 | DI15: 4 | DJ15: 1 | DK15: 5 | DL15: 1 | DM15: 5 | DN15: 3 | DO15: 1000 | DP15: 1 | DQ15: 1 | DR15: 2 | EF15: 3 | EG15: 1 | EH15: 1 | EI15: 1 | EJ15: 10 | EK15: 65 | EM15: 85 | EN15: 50 | ER15: 1 | ES15: 1 | ET15: 1 | EU15: 2 | EV15: 100 | EX15: 35 | EY15: 100 | FC15: 2 | FD15: 2 | FE15: 1 | FF15: 1 | FG15: 14 | FI15: 95 | FJ15: 80 | GJ15: 2,3 | GK15: 1 | GL15: 2 | GQ15: 4 | GR15: 4 | GS15: 4 | GT15: 3 | GU15: 3 | GV15: 3 | GW15: 5 | GX15: 3 | GY15: 3 | GZ15: 5 | HA15: 5 | HB15: 5 | HC15: 3 | HD15: 4 | HE15: 4 | HF15: 1 | HG15: 1 | HK15: 2 | HL15: 4 | HM15: 1 | HN15: 1 | HO15: 2 | HP15: 1 | HQ15: 4 | HR15: 2 | HS15: 2 | HU15: 1 | HV15: 3 | HW15: 2 | HX15: 2 | HY15: 3 | HZ15: 1 | IA15: 2 | IB15: 3 | IC15: 2 | ID15: 1 | IE15: 2 | IF15: 3 | IG15: 1 | IH15: 3 | II15: 2 | IJ15: 2 | IK15: 3 | IL15: 2 | IM15: 2 | JQ15: 5 | JR15: 4 | JS15: 4 | JT15: 1,2,3 | JU15: 1 | JZ15: 4 | KA15: 1 | KB15: 1 | KC15: 1 | KD15: 1 | KF15: 6 | KG15: 不清楚 | KH15: 2 | KI15: 100 | KJ15: 2 | KK15: 500 | KL15: 5 | KM15: 5 | KN15: 4 | KO15: 4 | KP15: 4 | KQ15: 5 | KR15: 4 | KS15: 4 | KT15: 3 | KU15: 5 | KV15: 4 | KW15: 5 | KX15: 5 | KY15: 3 | KZ15: 3 | LA15: 4 | LB15: 3 | LC15: 4 | LD15: 4 | LE15: 4 | LF15: 3 | LG15: 4 | LH15: 4 | LI15: 3 | LJ15: 2 | LK15: 3 | LL15: 1 | LM15: 2 | LN15: 1 | LO15: 2 | LP15: 2 | LQ15: 1,2 | LR15: 1,2 | LS15: 2 | LT15: 4 | LU15: 4 | LV15: 3 | LW15: 2 | LX15: 2 | LY15: 4 | LZ15: 2 | MA15: 1 | MB15: 1 | MC15: 1 | MD15: 1 | ME15: 1 | MF15: 1 | MG15: 1 | MH15: 1 | MI15: 1 | MJ15: 4 | MK15: 3 | MM15: 1 | MN15: 2 | MO15: 2 | MP15: 1 | MQ15: 1 | MR15: 2 | MT15: 1 | MU15: 2 | MW15: 1 | MX15: 3 | MY15: 2 | NB15: 2 | NE15: 2 | NH15: 2 | NK15: 2 | NN15: 2 | NQ15: 1 | NR15: 20 | NS15: 1 | NT15: 2 | NW15: 2 | NX15: 3 | NY15: 3 | NZ15: 3 | OA15: 1 | OC15: 1 | OE15: 1 | OG15: 1 | OI15: 4 | OJ15: 4 | OK15: 1 | OL15: 3 | OM15: 2 | ON15: 2 | OP15: 2 | OQ15: 2 | OS15: 2 | OT15: 2 | OV15: 2 | OW15: 2 | OY15: 2 | OZ15: 2 | PB15: 2 | PC15: 2 | PE15: 2 | PF15: 1 | PG15: 3 | PH15: 2 | PI15: 2 | PK15: 2 | PL15: 2 | PN15: 2 | PO15: 2 | PQ15: 2 | PR15: 2 | PT15: 2 | PU15: 2 | PV15: 2 | PW15: 1 | PX15: 2 | PZ15: 2 | QA15: 2 | QB15: 4 | QC15: 2 | QD15: 3 | QE15: 2 | QF15: 2 | QG15: 2 | QH15: 2 | QI15: 2 | QJ15: 3 | QK15: 2 | QL15: 5 | QM15: 4 | QN15: 4 | QO15: 5 | QP15: 5 | QQ15: 4 | QR15: 5 | QS15: 3 | QT15: 4 | QU15: 5 | QV15: 4 | QW15: 3 | QX15: 4 | QY15: 4 | QZ15: 4 | RA15: 1 | RB15: 4 | RC15: 1
A16: 11 | B16: 李明月 | C16: 孙彬涵 | D16: 湖北省 | E16: 襄阳市南漳县 | F16: 九集镇 | G16: 邓家集 | H16: 李家军 | I16: 17786708201 | J16: 2 | K16: 3 | L16: 4 | M16: 0 | N16: 1 | O16: 2 | P16: 3 | Q16: 5.3 | R16: 2.4 | S16: 3500 | T16: 1 | U16: 1 | V16: 1 | W16: 53 | X16: 4 | Y16: 6 | Z16: 2 | AA16: 2 | AB16: 0.9 | AC16: 4 | AD16: 2 | AE16: 2 | AF16: 2 | AG16: 47 | AH16: 4 | AI16: 6 | AJ16: 2 | AK16: 0 | AN16: 3 | AO16: 4 | AP16: 1 | AQ16: 25 | AR16: 5 | AS16: 9 | AT16: 2 | AU16: 5 | AV16: 2 | AW16: 12 | BR16: 1 | BS16: 20 | BT16: 667 | BU16: 14 | BV16: 20 | BW16: 14 | BX16: 4 | BY16: 1 | BZ16: 3 | CA16: 400 | CB16: 2 | CC16: 2 | CD16: 20 | CE16: 1100 | CF16: 1.08 | CG16: 150 | CH16: 40 | CI16: 0 | CJ16: 0 | CK16: 200 | CL16: 9 | DG16: 1 | DH16: 2 | DI16: 5 | DJ16: 3 | DK16: 5 | DL16: 3 | DM16: 5 | DN16: 3 | DO16: 1500 | DP16: 1 | DQ16: 2 | DR16: 2 | EF16: 3 | EG16: 1 | EH16: 1 | EI16: 1 | EJ16: 2 | EK16: 80 | EM16: 38 | EN16: 100 | ER16: 1 | ES16: 1 | ET16: 1 | EU16: 5 | EV16: 100 | EX16: 30 | EY16: 100 | FC16: 1 | FD16: 1 | FE16: 1 | FF16: 10 | FG16: 50 | FI16: 80 | FJ16: 50 | FK16: 15 | FL16: 15 | FM16: 15 | FN16: 2 | FO16: 2 | FP16: 1 | FQ16: 1 | FR16: 10 | FT16: 110 | FU16: 100 | GJ16: 2,3 | GK16: 1 | GL16: 2 | GQ16: 5 | GR16: 4 | GS16: 4 | GT16: 3 | GU16: 3 | GV16: 4 | GW16: 4 | GX16: 3 | GY16: 3 | GZ16: 5 | HA16: 4 | HB16: 3 | HC16: 2 | HD16: 2 | HE16: 2 | HF16: 1 | HG16: 1 | HK16: 1 | HL16: 5 | HM16: 1 | HN16: 1 | HO16: 1 | HP16: 2 | HQ16: 4 | HR16: 2 | HS16: 2 | HU16: 1 | HV16: 3 | HW16: 1 | HX16: 2 | HY16: 4 | HZ16: 1 | IA16: 2 | IB16: 2 | IC16: 2 | ID16: 2 | IE16: 1 | IF16: 3 | IG16: 1 | IH16: 1 | II16: 2 | IJ16: 4 | IK16: 4 | IL16: 2 | IM16: 2 | JQ16: 2 | JR16: 2 | JS16: 5 | JT16: 1,2 | JU16: 2 | JV16: 2 | JW16: 1 | JZ16: 4 | KA16: 1 | KB16: 2 | KJ16: 1 | KK16: 850 | KL16: 2 | KM16: 5 | KN16: 4 | KO16: 4 | KP16: 4 | KQ16: 5 | KR16: 5 | KS16: 4 | KT16: 4 | KU16: 5 | KV16: 4 | KW16: 5 | KX16: 5 | KY16: 4 | KZ16: 3 | LA16: 4 | LB16: 4 | LC16: 4 | LD16: 4 | LE16: 5 | LF16: 4 | LG16: 2 | LH16: 3 | LI16: 4 | LJ16: 2 | LK16: 1 | LL16: 1 | LM16: 2 | LN16: 2 | LO16: 2 | LP16: 2 | LQ16: 2 | LR16: 1 | LS16: 2 | LT16: 4 | LU16: 2 | LV16: 2 | LW16: 1 | LX16: 1 | LY16: 3 | LZ16: 2 | MA16: 1 | MB16: 1 | MC16: 1 | MD16: 1 | ME16: 2 | MF16: 1 | MG16: 1 | MH16: 1 | MI16: 1 | MJ16: 4 | MK16: 3 | MM16: 1 | MN16: 2 | MO16: 1 | MP16: 1 | MQ16: 2 | MR16: 2 | MT16: 2 | MU16: 2 | MW16: 1 | MX16: 4 | MY16: 2 | NB16: 1 | NC16: 20 | ND16: 1 | NE16: 2 | NH16: 2 | NK16: 2 | NN16: 2 | NQ16: 2 | NT16: 2 | NW16: 2 | NX16: 3 | NY16: 3 | NZ16: 3 | OA16: 1 | OC16: 1 | OE16: 1 | OG16: 1 | OI16: 5 | OJ16: 4 | OK16: 1 | OL16: 5 | OM16: 2 | ON16: 2 | OP16: 2 | OQ16: 2 | OS16: 2 | OT16: 1 | OU16: 5 | OV16: 2 | OW16: 2 | OY16: 2 | OZ16: 1 | PA16: 4 | PB16: 2 | PC16: 2 | PE16: 2 | PF16: 1 | PG16: 4 | PH16: 2 | PI16: 2 | PK16: 2 | PL16: 2 | PN16: 2 | PO16: 2 | PQ16: 2 | PR16: 2 | PT16: 2 | PU16: 2 | PV16: 2 | PW16: 2 | PY16: 1 | PZ16: 1 | QA16: 2 | QB16: 3 | QC16: 2 | QD16: 4 | QE16: 2 | QF16: 1 | QG16: 2 | QH16: 2 | QI16: 2 | QJ16: 3 | QK16: 2 | QL16: 5 | QM16: 5 | QN16: 5 | QO16: 5 | QP16: 4 | QQ16: 5 | QR16: 5 | QS16: 2 | QT16: 4 | QU16: 5 | QV16: 4 | QW16: 3 | QX16: 4 | QY16: 4 | QZ16: 4 | RA16: 2 | RB16: 4 | RC16: 4
A17: 12 | B17: 李明月 | C17: 孙彬涵 | D17: 湖北省 | E17: 襄阳市南漳县 | F17: 九集镇 | G17: 邓家集 | H17: 李全申 | I17: 15997273137 | J17: 2 | K17: 3 | L17: 3 | M17: 0 | N17: 0 | O17: 2 | P17: 2 | Q17: 11 | R17: 1 | S17: 5000 | T17: 1 | U17: 1 | V17: 1 | W17: 53 | X17: 4 | Y17: 9 | Z17: 2 | AA17: 5 | AB17: 6 | AC17: 6 | AD17: 2 | AE17: 2 | AF17: 2 | AG17: 56 | AH17: 4 | AI17: 6 | AJ17: 2 | AK17: 4 | AL17: 1 | AM17: 3 | AN17: 3 | AO17: 4 | AP17: 2 | AQ17: 26 | AR17: 5 | AS17: 9 | AT17: 2 | AU17: 2 | AV17: 3 | AW17: 12 | BR17: 1 | BS17: 6 | BT17: 667 | BU17: 3 | BV17: 6 | BW17: 3 | BX17: 4 | BY17: 1 | BZ17: 3 | CA17: 500 | CB17: 1 | CC17: 2 | CD17: 6 | CE17: 1000 | CF17: 1.1 | CG17: 100 | CH17: 50 | CI17: 10 | CJ17: 300 | CK17: 200 | CL17: 7 | DG17: 1 | DH17: 2 | DI17: 4 | DJ17: 1 | DK17: 5 | DL17: 1 | DM17: 5 | DN17: 2 | DP17: 1 | DQ17: 2 | DR17: 2 | EF17: 5 | EG17: 1 | EH17: 1 | EI17: 1 | EJ17: 10 | EK17: 50 | EM17: 90 | EN17: 50 | ER17: 2 | ES17: 2 | ET17: 1 | EU17: 1 | EV17: 15 | EX17: 100 | EY17: 80 | GK17: 1 | GL17: 2 | GQ17: 5 | GR17: 5 | GS17: 4 | GT17: 4 | GU17: 4 | GV17: 4 | GW17: 3 | GX17: 3 | GY17: 3 | GZ17: 4 | HA17: 4 | HB17: 5 | HC17: 2 | HD17: 2 | HE17: 3 | HF17: 1 | HG17: 1 | HK17: 1 | HL17: 2 | HM17: 1 | HN17: 1 | HO17: 2 | HP17: 2 | HQ17: 4 | HR17: 2 | HS17: 2 | HU17: 1 | HV17: 4 | HW17: 1 | HX17: 2 | HY17: 3 | HZ17: 1 | IA17: 2 | IB17: 3 | IC17: 2 | ID17: 2 | IE17: 1 | IF17: 4 | IG17: 1 | IH17: 1 | II17: 1 | IJ17: 4 | IK17: 4 | IL17: 2 | IM17: 2 | JQ17: 3 | JR17: 2 | JS17: 5 | JT17: 3 | JU17: 1 | JZ17: 4 | KA17: 1 | KB17: 2 | KJ17: 3 | KK17: 550 | KL17: 3 | KM17: 4 | KN17: 5 | KO17: 4 | KP17: 5 | KQ17: 5 | KR17: 4 | KS17: 4 | KT17: 3 | KU17: 4 | KV17: 3 | KW17: 5 | KX17: 4 | KY17: 3 | KZ17: 4 | LA17: 3 | LB17: 3 | LC17: 3 | LD17: 3 | LE17: 4 | LF17: 3 | LG17: 3 | LH17: 4 | LI17: 2 | LJ17: 1 | LK17: 1 | LL17: 1 | LM17: 2 | LN17: 2 | LO17: 2 | LP17: 2 | LQ17: 2 | LR17: 2 | LS17: 2 | LT17: 3 | LU17: 3 | LV17: 2 | LW17: 2 | LX17: 4 | LY17: 4 | LZ17: 2 | MA17: 1 | MB17: 1 | MC17: 1 | MD17: 1 | ME17: 1 | MF17: 1 | MG17: 1 | MH17: 1 | MI17: 1 | MJ17: 4 | MK17: 3 | MM17: 1 | MN17: 2 | MO17: 1 | MP17: 2 | MQ17: 1 | MR17: 1 | MS17: 4 | MT17: 2 | MU17: 2 | MW17: 1 | MX17: 4 | MY17: 1 | MZ17: 40 | NA17: 1 | NB17: 1 | NC17: 20 | ND17: 2 | NE17: 2 | NH17: 2 | NK17: 2 | NN17: 2 | NQ17: 2 | NT17: 2 | NW17: 2 | NX17: 3 | NY17: 3 | NZ17: 3 | OA17: 1 | OC17: 1 | OE17: 1 | OG17: 1 | OI17: 4 | OJ17: 4 | OK17: 1 | OL17: 4 | OM17: 2 | ON17: 2 | OP17: 2 | OQ17: 2 | OS17: 2 | OT17: 1 | OU17: 4 | OV17: 2 | OW17: 2 | OY17: 2 | OZ17: 2 | PB17: 2 | PC17: 2 | PE17: 2 | PF17: 1 | PG17: 3 | PH17: 1 | PI17: 2 | PK17: 2 | PL17: 2 | PN17: 2 | PO17: 2 | PQ17: 2 | PR17: 2 | PT17: 2 | PU17: 2 | PV17: 2 | PW17: 1 | PX17: 1 | PZ17: 1 | QA17: 2 | QB17: 2 | QC17: 2 | QD17: 5 | QE17: 2 | QF17: 2 | QG17: 2 | QH17: 1 | QI17: 2 | QJ17: 2 | QK17: 2 | QL17: 5 | QM17: 4 | QN17: 5 | QO17: 4 | QP17: 4 | QQ17: 4 | QR17: 5 | QS17: 2 | QT17: 4 | QU17: 5 | QV17: 4 | QW17: 3 | QX17: 4 | QY17: 4 | QZ17: 3 | RA17: 1 | RB17: 2 | RC17: 2
A18: 13 | B18: 李明月 | C18: 孙彬涵 | D18: 湖北省 | E18: 襄阳市南漳县 | F18: 九集镇 | G18: 邓家集 | H18: 李华生 | I18: 18972265184 | J18: 2 | K18: 3 | L18: 5 | M18: 1 | N18: 0 | O18: 2 | P18: 3 | Q18: 8.5 | R18: 1 | S18: 6000 | T18: 1 | U18: 1 | V18: 1 | W18: 50 | X18: 4 | Y18: 6 | Z18: 2 | AA18: 3 | AB18: 1.5 | AC18: 3 | AD18: 2 | AE18: 2 | AF18: 2 | AG18: 46 | AH18: 4 | AI18: 6 | AJ18: 2 | AK18: 0 | AN18: 3 | AO18: 4 | AP18: 1 | AQ18: 28 | AR18: 5 | AS18: 9 | AT18: 2 | AU18: 5 | AV18: 3 | AW18: 12 | AX18: 4 | AY18: 4 | AZ18: 2 | BA18: 29 | BB18: 5 | BC18: 6 | BD18: 2 | BE18: 5 | BF18: 3 | BG18: 12 | BR18: 1 | BS18: 6.5 | BT18: 667 | BU18: 6 | BV18: 6.5 | BW18: 6 | BX18: 2 | BY18: 1 | BZ18: 3 | CA18: 500 | CB18: 1 | CC18: 2 | CD18: 6.5 | CE18: 1000 | CF18: 1.1 | CG18: 105 | CH18: 35 | CI18: 15 | CJ18: 400 | CK18: 200 | CL18: 10 | DG18: 1 | DH18: 2 | DI18: 4 | DJ18: 1 | DK18: 5 | DL18: 1 | DM18: 5 | DN18: 3 | DO18: 1350 | DP18: 1 | DQ18: 2 | DR18: 1 | DW18: 3 | DX18: 0.5 | DZ18: 4 | EG18: 1 | EH18: 1 | EI18: 1 | EJ18: 10 | EK18: 60 | EM18: 160 | EN18: 100 | ER18: 1 | ES18: 1 | ET18: 1 | EU18: 2 | EV18: 100 | EW18: 洋丰 | EX18: 38 | EY18: 100 | GJ18: 2,3 | GK18: 1 | GL18: 2 | GQ18: 4 | GR18: 4 | GS18: 4 | GT18: 3 | GU18: 3 | GV18: 4 | GW18: 3 | GX18: 3 | GY18: 3 | GZ18: 3 | HA18: 3 | HB18: 4 | HC18: 2 | HD18: 4 | HE18: 4 | HF18: 2 | HG18: 2 | HK18: 1,2 | HL18: 3 | HM18: 1 | HN18: 1 | HO18: 2 | HP18: 4 | HQ18: 1,2,4 | HR18: 2 | HS18: 2 | HU18: 1 | HV18: 3 | HW18: 4 | HX18: 1 | HY18: 3 | HZ18: 1 | IA18: 2 | IB18: 3 | IC18: 1 | ID18: 2 | IE18: 1 | IF18: 3 | IG18: 1 | IH18: 1 | II18: 2 | IJ18: 5 | IK18: 2 | IL18: 2 | IM18: 2 | JQ18: 3 | JR18: 4 | JS18: 4 | JT18: 1,3 | JU18: 2 | JV18: 1 | JZ18: 4 | KA18: 1 | KB18: 1 | KC18: 1 | KD18: 1 | KF18: 15 | KG18: 350 | KH18: 2 | KI18: 100 | KJ18: 2 | KK18: 850 | KL18: 3 | KM18: 4 | KN18: 5 | KO18: 4 | KP18: 5 | KQ18: 5 | KR18: 5 | KS18: 1 | KT18: 3 | KU18: 3 | KV18: 2 | KW18: 4 | KX18: 3 | KY18: 4 | KZ18: 3 | LA18: 4 | LB18: 3 | LC18: 3 | LD18: 2 | LE18: 3 | LF18: 4 | LG18: 3 | LH18: 3 | LI18: 3 | LJ18: 1 | LK18: 1 | LL18: 3 | LM18: 2 | LN18: 2 | LO18: 2 | LP18: 2 | LQ18: 1 | LR18: 2 | LS18: 3 | LT18: 4 | LU18: 3 | LV18: 1 | LW18: 1 | LX18: 2 | LY18: 3 | LZ18: 2 | MA18: 1 | MB18: 1 | MC18: 1 | MD18: 1 | ME18: 1 | MF18: 2 | MG18: 1 | MH18: 1 | MI18: 1 | MJ18: 4 | MK18: 3 | MM18: 2 | MN18: 2 | MO18: 2 | MP18: 1 | MQ18: 1 | MR18: 2 | MT18: 2 | MU18: 2 | MW18: 1 | MX18: 4 | MY18: 1 | MZ18: 20 | NA18: 2 | NB18: 1 | NC18: 20 | ND18: 1 | NE18: 1 | NF18: 5 | NG18: 3 | NH18: 2 | NK18: 2 | NN18: 2 | NQ18: 2 | NT18: 2 | NW18: 2 | NX18: 2 | NY18: 2 | NZ18: 2 | OA18: 1 | OC18: 1 | OE18: 1 | OG18: 1 | OI18: 4 | OJ18: 4 | OK18: 1 | OL18: 4 | OM18: 2 | ON18: 2 | OP18: 2 | OQ18: 2 | OS18: 2 | OT18: 1 | OU18: 5 | OV18: 2 | OW18: 2 | OY18: 2 | OZ18: 2 | PB18: 2 | PC18: 2 | PE18: 2 | PF18: 2 | PH18: 1 | PI18: 2 | PK18: 2 | PL18: 2 | PN18: 2 | PO18: 2 | PQ18: 2 | PR18: 2 | PT18: 2 | PU18: 2 | PV18: 2 | PW18: 1 | PX18: 1 | PZ18: 1 | QA18: 2 | QB18: 1 | QC18: 2 | QD18: 3 | QE18: 2 | QF18: 1 | QG18: 2 | QH18: 1 | QI18: 2 | QJ18: 1 | QK18: 2 | QL18: 4 | QM18: 4 | QN18: 5 | QO18: 4 | QP18: 4 | QQ18: 4 | QR18: 5 | QS18: 2 | QT18: 4 | QU18: 3 | QV18: 5 | QW18: 3 | QX18: 4 | QY18: 3 | QZ18: 4 | RA18: 1 | RB18: 1 | RC18: 1
A19: 14 | B19: 李明月 | C19: 孙彬涵 | D19: 湖北省 | E19: 襄阳市南漳县 | F19: 九集镇 | G19: 方家集 | H19: 熊成军 | I19: 13545337450 | J19: 2 | K19: 5 | L19: 6 | M19: 2 | N19: 2 | O19: 4 | P19: 6 | Q19: 6 | R19: 1 | S19: 10000 | T19: 1 | U19: 1 | V19: 1 | W19: 63 | X19: 3 | Y19: 0 | Z19: 2 | AA19: 0 | AD19: 2 | AE19: 2 | AF19: 2 | AG19: 62 | AH19: 2 | AI19: 0 | AJ19: 2 | AK19: 0 | AN19: 3 | AO19: 4 | AP19: 1 | AQ19: 41 | AR19: 4 | AS19: 9 | AT19: 2 | AU19: 1 | AV19: 2.5 | AW19: 12 | AX19: 4 | AY19: 4 | AZ19: 2 | BA19: 40 | BB19: 4 | BC19: 9 | BD19: 2 | BE19: 1 | BF19: 2.5 | BG19: 12 | BR19: 1 | BS19: 14 | BT19: 667 | BU19: 13 | BV19: 10 | BW19: 9 | BX19: 3 | BY19: 2 | BZ19: 3 | CA19: 800 | CB19: 2 | CC19: 2 | CD19: 10 | CE19: 1000 | CF19: 1.14 | CG19: 180 | CH19: 40 | CI19: 50 | CJ19: 200 | CK19: 220 | CL19: 12 | DG19: 1 | DH19: 2 | DI19: 1 | DJ19: 1 | DK19: 5 | DL19: 1 | DM19: 5 | DN19: 3 | DO19: 2200 | DP19: 2 | DQ19: 2 | DR19: 2 | EF19: 2,3 | EG19: 1 | EH19: 1 | EI19: 1 | EJ19: 2 | EK19: 45 | EM19: 35 | EN19: 100 | ER19: 1 | ES19: 1 | ET19: 1 | EU19: 10 | EV19: 45 | EX19: 170 | EY19: 100 | FC19: 2 | FD19: 2 | FE19: 1 | FF19: 1 | FG19: 10 | FI19: 100 | FJ19: 90 | GJ19: 3 | GK19: 1 | GL19: 2 | GQ19: 4 | GR19: 4 | GS19: 4 | GT19: 3 | GU19: 3 | GV19: 4 | GW19: 3 | GX19: 3 | GY19: 3 | GZ19: 4 | HA19: 4 | HB19: 5 | HC19: 2 | HD19: 2 | HE19: 1 | HF19: 1 | HG19: 1 | HK19: 1 | HL19: 1 | HM19: 1 | HN19: 1 | HO19: 3 | HP19: 1 | HR19: 2 | HS19: 2 | HU19: 1 | HV19: 3 | HW19: 3 | HX19: 2 | HY19: 4 | HZ19: 1 | IA19: 2 | IB19: 3 | IC19: 2 | ID19: 2 | IE19: 1 | IF19: 4 | IG19: 2 | IH19: 1 | II19: 2 | IJ19: 4 | IK19: 4 | IL19: 2 | IM19: 2 | JQ19: 2 | JR19: 2 | JS19: 4 | JT19: 1 | JU19: 2 | JV19: 2 | JW19: 1 | JZ19: 2 | KA19: 2 | KB19: 2 | KK19: 550 | KL19: 4 | KM19: 4 | KN19: 4 | KO19: 3 | KP19: 3 | KQ19: 4 | KR19: 4 | KS19: 3 | KT19: 3 | KU19: 3 | KV19: 3 | KW19: 5 | KX19: 2 | KY19: 4 | KZ19: 4 | LA19: 4 | LB19: 3 | LC19: 4 | LD19: 3 | LE19: 2 | LF19: 3 | LG19: 3 | LH19: 4 | LI19: 3 | LJ19: 1 | LK19: 1 | LL19: 1 | LM19: 2 | LN19: 2 | LO19: 2 | LP19: 2 | LQ19: 2 | LR19: 2 | LS19: 3 | LT19: 3 | LU19: 3 | LV19: 1 | LW19: 1 | LX19: 1 | LY19: 2 | LZ19: 2 | MA19: 1 | MB19: 1 | MC19: 1 | MD19: 1 | ME19: 1 | MF19: 1 | MG19: 1 | MH19: 1 | MI19: 2 | MJ19: 1 | MK19: 3 | MM19: 1 | MN19: 2 | MO19: 2 | MP19: 2 | MQ19: 2 | MR19: 2 | MT19: 1 | MU19: 1 | MV19: 15 | MY19: 1 | MZ19: 10 | NA19: 3 | NB19: 1 | NC19: 10 | ND19: 2 | NE19: 1 | NF19: 15 | NG19: 1 | NH19: 2 | NK19: 2 | NN19: 2 | NQ19: 2 | NT19: 2 | NW19: 2 | NX19: 4 | NY19: 4 | NZ19: 4 | OA19: 2 | OC19: 1 | OE19: 1 | OG19: 1 | OI19: 3 | OJ19: 3 | OK19: 1 | OL19: 4 | OM19: 2 | ON19: 2 | OP19: 2 | OQ19: 2 | OS19: 2 | OT19: 1 | OU19: 5 | OV19: 2 | OW19: 2 | OY19: 2 | OZ19: 2 | PB19: 2 | PC19: 2 | PE19: 2 | PF19: 2 | PH19: 1 | PI19: 2 | PK19: 2 | PL19: 2 | PN19: 2 | PO19: 2 | PQ19: 2 | PR19: 2 | PT19: 2 | PU19: 2 | PV19: 2 | PW19: 1 | PX19: 1 | PZ19: 3 | QA19: 2 | QB19: 3 | QC19: 2 | QD19: 4 | QE19: 2 | QF19: 2 | QG19: 2 | QH19: 2 | QI19: 2 | QJ19: 1 | QK19: 2 | QL19: 5 | QM19: 4 | QN19: 5 | QO19: 4 | QP19: 5 | QQ19: 4 | QR19: 4 | QS19: 1 | QT19: 4 | QU19: 5 | QV19: 4 | QW19: 3 | QX19: 3 | QY19: 3 | QZ19: 3 | RA19: 1 | RB19: 1 | RC19: 1
A20: 15 | B20: 李明月 | C20: 孙彬涵 | D20: 湖北省 | E20: 襄阳市南漳县 | F20: 九集镇 | G20: 方家集 | H20: 夏家梅 | I20: 357611 | J20: 2 | K20: 3 | L20: 2 | M20: 0 | N20: 1 | O20: 1 | P20: 2 | Q20: 3.5 | R20: 0.5 | S20: 2500 | T20: 1 | U20: 1 | V20: 2 | W20: 60 | X20: 3 | Y20: 0 | Z20: 2 | AA20: 0 | AD20: 2 | AE20: 4 | AF20: 1 | AG20: 39 | AH20: 4 | AI20: 6 | AJ20: 2 | AK20: 5 | AL20: 3 | AM20: 12 | BR20: 1 | BS20: 7 | BT20: 667 | BU20: 6 | BV20: 7 | BW20: 6 | BX20: 2 | BY20: 2 | BZ20: 3 | CA20: 650 | CB20: 2 | CC20: 2 | CD20: 7 | CE20: 900 | CF20: 1.12 | CG20: 140 | CH20: 40 | CI20: 0 | CJ20: 200 | CK20: 0 | CL20: 10 | DG20: 1 | DH20: 2 | DI20: 3 | DJ20: 1 | DK20: 5 | DL20: 1 | DM20: 5 | DN20: 3 | DO20: 2000 | DP20: 2 | DQ20: 2 | DR20: 2 | EF20: 1,5 | EG20: 1 | EH20: 1 | EI20: 1 | EJ20: 2 | EK20: 200 | EM20: 35 | EN20: 100 | ER20: 1 | ES20: 1 | ET20: 1 | EU20: 10 | EV20: 35 | EX20: 160 | EY20: 100 | FC20: 1 | FD20: 1 | FE20: 1 | FF20: 5 | FG20: 150 | FI20: 45 | FJ20: 100 | FN20: 2 | FO20: 2 | FP20: 1 | FQ20: 1 | FR20: 25 | FT20: 110 | FU20: 100 | GJ20: 2,5 | GK20: 1 | GL20: 2 | GQ20: 3 | GR20: 3 | GS20: 3 | GT20: 3 | GU20: 3 | GV20: 4 | GW20: 3 | GX20: 3 | GY20: 3 | GZ20: 4 | HA20: 4 | HB20: 4 | HC20: 4 | HD20: 3 | HE20: 1 | HF20: 1 | HG20: 1 | HK20: 2 | HL20: 1 | HM20: 1 | HN20: 2 | HO20: 3 | HP20: 1 | HR20: 2 | HS20: 2 | HU20: 1 | HV20: 3 | HW20: 3 | HX20: 2 | HY20: 3 | HZ20: 1 | IA20: 2 | IB20: 3 | IC20: 2 | ID20: 2 | IE20: 1 | IF20: 3 | IG20: 2 | IH20: 3 | II20: 2 | IJ20: 2 | IK20: 4 | IL20: 2 | IM20: 2 | JQ20: 5 | JR20: 3 | JS20: 4 | JT20: 1 | JU20: 1 | JZ20: 2 | KA20: 2 | KB20: 2 | KK20: 700 | KL20: 4 | KM20: 3 | KN20: 3 | KO20: 3 | KP20: 4 | KQ20: 4 | KR20: 4 | KS20: 2 | KT20: 3 | KU20: 4 | KV20: 3 | KW20: 4 | KX20: 3 | KY20: 3 | KZ20: 4 | LA20: 4 | LB20: 4 | LC20: 3 | LD20: 4 | LE20: 2 | LF20: 3 | LG20: 1 | LH20: 2 | LI20: 4 | LJ20: 1 | LK20: 1 | LL20: 1 | LM20: 3 | LN20: 2 | LO20: 1 | LP20: 1 | LQ20: 3 | LR20: 2 | LS20: 3 | LT20: 3 | LU20: 1 | LV20: 1 | LW20: 1 | LX20: 1 | LY20: 1 | LZ20: 1 | MA20: 1 | MB20: 1 | MC20: 1 | MD20: 1 | ME20: 1 | MF20: 1 | MG20: 1 | MH20: 1 | MI20: 1 | MJ20: 1 | MK20: 3 | MM20: 1 | MN20: 2 | MO20: 1 | MP20: 1 | MQ20: 2 | MR20: 2 | MT20: 1 | MU20: 2 | MV20: 15 | MW20: 1 | MX20: 4 | MY20: 2 | NB20: 2 | NE20: 1 | NF20: 15 | NG20: 1 | NH20: 2 | NK20: 2 | NN20: 2 | NQ20: 1 | NR20: 10 | NS20: 2 | NT20: 2 | NW20: 2 | NX20: 4 | NY20: 4 | NZ20: 3 | OA20: 2 | OC20: 1 | OE20: 1 | OG20: 1 | OI20: 2 | OJ20: 4 | OK20: 1 | OL20: 2 | OM20: 2 | ON20: 2 | OP20: 2 | OQ20: 2 | OS20: 2 | OT20: 2 | OV20: 2 | OW20: 2 | OY20: 2 | OZ20: 2 | PB20: 2 | PC20: 2 | PE20: 2 | PF20: 2 | PH20: 2 | PI20: 2 | PK20: 2 | PL20: 2 | PN20: 2 | PO20: 2 | PQ20: 2 | PR20: 2 | PT20: 2 | PU20: 2 | PV20: 2 | PW20: 1 | PX20: 1 | PZ20: 1 | QA20: 2 | QB20: 1 | QC20: 2 | QD20: 4 | QE20: 2 | QF20: 1 | QG20: 2 | QH20: 2 | QI20: 2 | QJ20: 2 | QK20: 2 | QL20: 5 | QM20: 4 | QN20: 4 | QO20: 4 | QP20: 5 | QQ20: 4 | QR20: 3 | QS20: 1 | QT20: 3 | QU20: 5 | QV20: 4 | QW20: 3 | QX20: 4 | QY20: 2 | QZ20: 2 | RA20: 1 | RB20: 1 | RC20: 1
A21: 16 | B21: 李明月 | C21: 孙彬涵 | D21: 湖北省 | E21: 襄阳市南漳县 | F21: 九集镇 | G21: 方家集 | H21: 张家国 | I21: 13329862579 | J21: 2 | K21: 3 | L21: 6 | M21: 0 | N21: 2 | O21: 2 | P21: 4 | Q21: 15 | R21: 0.6 | S21: 20000 | T21: 1 | U21: 1 | V21: 1 | W21: 50 | X21: 5 | Y21: 6 | Z21: 2 | AA21: 1 | AB21: 1.5 | AC21: 3 | AD21: 2 | AE21: 2 | AF21: 2 | AG21: 48 | AH21: 2 | AI21: 6 | AJ21: 2 | AK21: 0 | AN21: 3 | AO21: 4 | AP21: 1 | AQ21: 30 | AR21: 5 | AS21: 15 | AT21: 2 | AU21: 5 | AV21: 3 | AW21: 12 | AX21: 4 | AY21: 4 | AZ21: 2 | BA21: 25 | BB21: 5 | BC21: 16 | BD21: 2 | BE21: 5 | BF21: 10 | BG21: 12 | BR21: 1 | BS21: 8 | BT21: 667 | BU21: 8 | BV21: 8 | BW21: 8 | BX21: 3 | BY21: 2 | BZ21: 3 | CA21: 500 | CB21: 1 | CC21: 2 | CD21: 8 | CE21: 1000 | CF21: 1.1 | CG21: 100 | CH21: 120 | CI21: 70 | CJ21: 200 | CK21: 0 | CL21: 12 | DG21: 1 | DH21: 2 | DI21: 2 | DJ21: 1 | DK21: 5 | DL21: 1 | DM21: 5 | DN21: 3 | DO21: 1000 | DP21: 1 | DQ21: 1 | DR21: 2 | EF21: 5 | EG21: 1 | EH21: 1 | EI21: 5 | EJ21: 10 | EK21: 50 | EM21: 160 | EN21: 100 | ER21: 1 | ES21: 1 | ET21: 5 | EU21: 9 | EV21: 15 | EX21: 10 | EY21: 2 | FC21: 2 | FD21: 2 | FE21: 5 | FF21: 10 | FG21: 20 | FI21: 160 | FJ21: 100 | GJ21: 5 | GK21: 1 | GL21: 1 | GM21: 1 | GN21: 2014 | GO21: 2 | GP21: 3 | GQ21: 5 | GR21: 4 | GS21: 4 | GT21: 4 | GU21: 2 | GV21: 5 | GW21: 4 | GX21: 3 | GY21: 3 | GZ21: 4 | HA21: 4 | HB21: 5 | HC21: 4 | HD21: 4 | HE21: 5 | HF21: 4 | HG21: 4 | HH21: 8 | HI21: 5 | HJ21: 1 | HK21: 2 | HL21: 1 | HM21: 1 | HN21: 1 | HO21: 2 | HP21: 4 | HQ21: 1,2,3,4,5 | HR21: 1 | HS21: 2 | HU21: 4 | HV21: 4 | HW21: 4 | HX21: 1 | HY21: 4 | HZ21: 1 | IA21: 2 | IB21: 2 | IC21: 1 | ID21: 2 | IE21: 1 | IF21: 4 | IG21: 1 | IH21: 1 | II21: 1 | IJ21: 4 | IK21: 3 | IL21: 2 | IM21: 2 | IO21: 4 | IP21: 4 | IQ21: 3 | IR21: 2 | IS21: 1 | IT21: 3 | IU21: 4 | IV21: 3 | IW21: 3 | IX21: 3 | IY21: 3 | IZ21: 3 | JA21: 3 | JB21: 4 | JC21: 4 | JD21: 4 | JE21: 5 | JF21: 5 | JG21: 5 | JH21: 4 | JI21: 5 | JJ21: 4 | JK21: 4 | JL21: 5 | JM21: 5 | JN21: 5 | JO21: 5 | JP21: 5 | JQ21: 4 | JR21: 5 | JS21: 5 | JT21: 4 | JU21: 2 | JV21: 2 | JW21: 2 | JX21: 2 | JY21: 1 | JZ21: 3 | KA21: 1 | KB21: 1 | KC21: 1 | KD21: 1 | KF21: 3 | KG21: 15 | KH21: 2 | KI21: 100 | KJ21: 4 | KK21: 750 | KL21: 5 | KM21: 5 | KN21: 5 | KO21: 5 | KP21: 4 | KQ21: 5 | KR21: 4 | KS21: 4 | KT21: 3 | KU21: 4 | KV21: 4 | KW21: 5 | KX21: 5 | KY21: 4 | KZ21: 4 | LA21: 3 | LB21: 4 | LC21: 3 | LD21: 4 | LE21: 4 | LF21: 4 | LG21: 2 | LH21: 3 | LI21: 4 | LJ21: 1 | LK21: 1 | LL21: 1 | LM21: 2 | LN21: 2 | LO21: 3 | LP21: 3 | LQ21: 4 | LR21: 2 | LS21: 2 | LT21: 4 | LU21: 4 | LV21: 4 | LW21: 4 | LX21: 4 | LY21: 4 | LZ21: 2 | MA21: 1 | MB21: 1 | MC21: 1 | MD21: 1 | ME21: 1 | MF21: 1 | MG21: 1 | MH21: 1 | MI21: 1 | MJ21: 5 | MK21: 3 | MM21: 1 | MN21: 2 | MO21: 1 | MP21: 1 | MQ21: 1 | MR21: 2 | MT21: 1 | MU21: 1 | MV21: 0 | MY21: 1 | MZ21: 10 | NA21: 1 | NB21: 1 | NC21: 10 | ND21: 3 | NE21: 1 | NF21: 10 | NH21: 2 | NK21: 2 | NN21: 2 | NQ21: 1 | NR21: 10 | NS21: 2 | NT21: 1 | NU21: 15 | NW21: 2 | NX21: 3 | NY21: 4 | NZ21: 1 | OA21: 1 | OC21: 3 | OD21: 2 | OE21: 1 | OG21: 1 | OI21: 3 | OJ21: 4 | OK21: 1 | OL21: 4 | OM21: 1 | ON21: 2 | OP21: 2 | OQ21: 2 | OS21: 2 | OT21: 1 | OU21: 4 | OV21: 1 | OW21: 1 | OX21: 5 | OY21: 1 | OZ21: 2 | PB21: 2 | PC21: 2 | PE21: 2 | PF21: 1 | PG21: 4 | PH21: 1 | PI21: 2 | PK21: 2 | PL21: 2 | PN21: 2 | PO21: 2 | PQ21: 2 | PR21: 2 | PT21: 2 | PU21: 2 | PV21: 2 | PW21: 1 | PX21: 1 | PZ21: 4 | QA21: 2 | QB21: 3 | QC21: 2 | QD21: 4 | QE21: 2 | QF21: 3 | QG21: 2 | QH21: 3 | QI21: 2 | QJ21: 3 | QK21: 2 | QL21: 4 | QM21: 5 | QN21: 5 | QO21: 4 | QP21: 5 | QQ21: 4 | QR21: 4 | QS21: 3 | QT21: 4 | QU21: 5 | QV21: 4 | QW21: 4 | QX21: 4 | QY21: 3 | QZ21: 3 | RA21: 1 | RB21: 5 | RC21: 5
A22: 17 | B22: 李明月 | C22: 孙彬涵 | D22: 湖北省 | E22: 襄阳市南漳县 | F22: 九集镇 | G22: 方家集 | H22: 常昌元 | I22: 15872226721 | J22: 2 | K22: 3 | L22: 6 | M22: 1 | N22: 2 | O22: 4 | P22: 6 | Q22: 18 | R22: 14 | S22: 15000 | T22: 1 | U22: 1 | V22: 1 | W22: 34 | X22: 4 | Y22: 6 | Z22: 2 | AA22: 2 | AB22: 2 | AC22: 4 | AD22: 2 | AE22: 2 | AF22: 2 | AG22: 36 | AH22: 4 | AI22: 6 | AJ22: 2 | AK22: 0 | AN22: 3 | AO22: 3 | AP22: 1 | AQ22: 60 | AR22: 4 | AS22: 0 | AT22: 2 | AU22: 2 | AV22: 2 | AW22: 4 | AX22: 4 | AY22: 3 | AZ22: 2 | BA22: 60 | BB22: 3 | BC22: 0 | BD22: 2 | BE22: 0 | BR22: 4 | BS22: 65 | BT22: 667 | BU22: 45 | BV22: 65 | BW22: 45 | BX22: 4 | BY22: 2 | BZ22: 3 | CA22: 250 | CB22: 1 | CC22: 2 | CD22: 65 | CE22: 1800 | CF22: 1.25 | CG22: 100 | CH22: 0 | CI22: 0 | CJ22: 0 | CK22: 220 | CL22: 5 | DG22: 1 | DH22: 2 | DI22: 2 | DJ22: 3 | DK22: 5 | DL22: 3 | DM22: 5 | DN22: 3 | DO22: 2200 | DP22: 1 | DQ22: 2 | DR22: 2 | EF22: 5 | EG22: 1 | EH22: 1 | EI22: 1 | EJ22: 2 | EK22: 60 | EM22: 38 | EN22: 100 | ER22: 1 | ES22: 1 | ET22: 1 | EU22: 10 | EV22: 40 | EX22: 140 | EY22: 100 | EZ22: 15 | FA22: 15 | FB22: 15 | GK22: 1 | GL22: 2 | GQ22: 5 | GR22: 4 | GS22: 4 | GT22: 4 | GU22: 3 | GV22: 3 | GW22: 5 | GX22: 3 | GY22: 3 | GZ22: 4 | HA22: 4 | HB22: 4 | HC22: 4 | HD22: 3 | HE22: 1 | HF22: 1 | HG22: 1 | HK22: 1 | HL22: 4 | HM22: 1 | HN22: 1 | HO22: 2 | HP22: 1 | HR22: 2 | HS22: 2 | HU22: 1 | HV22: 3 | HW22: 3 | HX22: 2 | HY22: 4 | HZ22: 1 | IA22: 2 | IB22: 3 | IC22: 2 | ID22: 2 | IE22: 1 | IF22: 4 | IG22: 2 | IH22: 3 | II22: 2 | IJ22: 4 | IK22: 4 | IL22: 2 | IM22: 2 | JQ22: 4 | JR22: 4 | JS22: 4 | JT22: 1 | JU22: 1 | JZ22: 3 | KA22: 1 | KB22: 1 | KC22: 1 | KD22: 1 | KF22: 5 | KG22: 不清楚 | KH22: 1 | KI22: 25 | KJ22: 3 | KK22: 400 | KL22: 4 | KM22: 4 | KN22: 3 | KO22: 3 | KP22: 3 | KQ22: 3 | KR22: 4 | KS22: 2 | KT22: 3 | KU22: 4 | KV22: 4 | KW22: 4 | KX22: 3 | KY22: 3 | KZ22: 3 | LA22: 3 | LB22: 4 | LC22: 4 | LD22: 4 | LE22: 4 | LF22: 2 | LG22: 3 | LH22: 4 | LI22: 4 | LJ22: 2 | LK22: 1 | LL22: 3 | LM22: 2 | LN22: 2 | LO22: 2 | LP22: 2 | LQ22: 4 | LR22: 2 | LS22: 2 | LT22: 4 | LU22: 4 | LV22: 4 | LW22: 3 | LX22: 4 | LY22: 4 | LZ22: 2 | MA22: 2 | MB22: 1 | MC22: 1 | MD22: 1 | ME22: 1 | MF22: 1 | MG22: 2 | MH22: 1 | MI22: 2 | MJ22: 4 | MK22: 3 | MM22: 2 | MN22: 2 | MO22: 2 | MP22: 2 | MQ22: 1 | MR22: 2 | MT22: 1 | MU22: 2 | MV22: 9 | MW22: 2 | MY22: 1 | MZ22: 30 | NA22: 1 | NB22: 2 | NE22: 2 | NH22: 2 | NK22: 2 | NN22: 2 | NQ22: 2 | NT22: 2 | NW22: 2 | NX22: 4 | NY22: 3 | NZ22: 3 | OA22: 3 | OB22: 2 | OC22: 1 | OE22: 1 | OG22: 1 | OI22: 2 | OJ22: 4 | OK22: 1 | OL22: 3 | OM22: 2 | ON22: 2 | OP22: 2 | OQ22: 2 | OS22: 2 | OT22: 2 | OV22: 2 | OW22: 1 | OX22: 4 | OY22: 2 | OZ22: 2 | PB22: 2 | PC22: 2 | PE22: 2 | PF22: 1 | PG22: 3 | PH22: 2 | PI22: 2 | PK22: 2 | PL22: 2 | PN22: 2 | PO22: 2 | PQ22: 2 | PR22: 2 | PT22: 2 | PU22: 2 | PV22: 2 | PW22: 1 | PX22: 1 | PZ22: 2 | QA22: 2 | QB22: 2 | QC22: 2 | QD22: 5 | QE22: 2 | QF22: 2 | QG22: 2 | QH22: 2 | QI22: 2 | QJ22: 1 | QK22: 2 | QL22: 5 | QM22: 4 | QN22: 4 | QO22: 4 | QP22: 4 | QQ22: 5 | QR22: 5 | QS22: 1 | QT22: 3 | QU22: 5 | QV22: 5 | QW22: 4 | QX22: 4 | QY22: 4 | QZ22: 4 | RA22: 1 | RB22: 2 | RC22: 2
A23: 18 | B23: 杜三峡 | C23: 杜三峡 | D23: 湖北省 | E23: 荆门市钟祥县 | F23: 冷水镇 | G23: 白佛村 | H23: 苏祖祥 | I23: 13197137800 | J23: 2 | K23: 7 | L23: 8 | M23: 1 | N23: 2 | O23: 2 | P23: 2 | Q23: 8 | R23: 1 | S23: 5000 | T23: 1 | U23: 1 | V23: 1 | W23: 66 | X23: 3 | Y23: 4 | Z23: 2 | AA23: 0 | AB23: 0 | AC23: 0 | AD23: 2 | AE23: 2 | AF23: 2 | AG23: 63 | AH23: 3 | AI23: 0 | AJ23: 2 | AK23: 0 | AL23: 0 | AM23: 0 | AN23: 3 | AO23: 4 | AP23: 2 | AQ23: 40 | AR23: 5 | AS23: 9 | AT23: 2 | AU23: 5 | AV23: 0.2 | AW23: 1 | BR23: 1 | BS23: 10 | BT23: 667 | BU23: 8 | BV23: 10 | BW23: 8 | BX23: 4 | BY23: 2 | BZ23: 3 | CA23: 500 | CB23: 1 | CC23: 2 | CD23: 10 | CE23: 1200 | CF23: 1.05 | CG23: 50 | CH23: 0 | CI23: 0 | CJ23: 80 | CK23: 0 | CL23: 5 | DG23: 1 | DH23: 2 | DI23: 5 | DJ23: 3 | DK23: 5 | DL23: 1 | DM23: 5 | DN23: 2 | DO23: 3000 | DP23: 2 | DQ23: 2 | DR23: 2 | EF23: 4 | EG23: 1 | EH23: 1 | EI23: 1 | EJ23: 10 | EK23: 80 | EM23: 120 | EN23: 80 | ER23: 2 | ES23: 2 | ET23: 1 | EU23: 1 | EV23: 8 | EX23: 90 | EY23: 80 | GJ23: 2 | GK23: 2 | GL23: 2 | GQ23: 2 | GR23: 4 | GS23: 5 | GT23: 2 | GU23: 3 | GV23: 3 | GW23: 4 | GX23: 3 | GY23: 3 | GZ23: 5 | HA23: 5 | HB23: 5 | HC23: 1 | HD23: 5 | HE23: 1 | HF23: 1 | HG23: 1 | HK23: 1、6只有一种肥料 | HL23: 5 | HM23: 5 | HN23: 1 | HO23: 3 | HP23: 2 | HQ23: 1 | HR23: 1 | HS23: 2 | HU23: 3 | HV23: 3 | HW23: 4 | HX23: 2 | HY23: 5 | HZ23: 1 | IA23: 2 | IB23: 3 | IC23: 2 | ID23: 2 | IE23: 1 | IF23: 5 | IG23: 2 | IH23: 3 | II23: 2 | IJ23: 1 | IK23: 3 | IL23: 2 | IM23: 2 | JQ23: 5 | JR23: 5 | JS23: 5 | JT23: 1 | JU23: 1 | JZ23: 4 | KA23: 2 | KB23: 2 | KJ23: 2 | KK23: 100 | KL23: 1 | KM23: 2 | KN23: 1 | KO23: 1 | KP23: 1 | KQ23: 1 | KR23: 1 | KS23: 5 | KT23: 3 | KU23: 5 | KV23: 5 | KW23: 5 | KX23: 5 | KY23: 1 | KZ23: 1 | LA23: 1 | LB23: 5 | LC23: 5 | LD23: 5 | LE23: 5 | LF23: 5 | LG23: 4 | LH23: 5 | LI23: 5 | LJ23: 4 | LK23: 1 | LL23: 1 | LM23: 3 | LN23: 2 | LO23: 3 | LP23: 3 | LU23: 2 | LV23: 4 | LW23: 4 | LX23: 1 | LY23: 1 | MA23: 1 | MB23: 1 | MC23: 1 | MD23: 1 | ME23: 1 | MG23: 1 | MH23: 1 | MJ23: 1 | MK23: 4 | MT23: 2 | MU23: 2 | MW23: 2 | MY23: 1 | MZ23: 10 | NA23: 1 | NB23: 2 | ND23: 2 | NE23: 2 | NG23: 3 | NH23: 2 | NK23: 2 | NN23: 2 | NQ23: 2 | NT23: 2 | NW23: 2 | NX23: 3 | NY23: 5 | NZ23: 3 | OA23: 1 | OC23: 1 | OE23: 1 | OG23: 1 | OI23: 4 | OJ23: 5 | OK23: 1 | OL23: 5 | OM23: 1 | ON23: 2 | OP23: 2 | OQ23: 2 | OS23: 2 | OT23: 2 | OV23: 1 | OW23: 1 | OX23: 5 | OY23: 2 | OZ23: 2 | PB23: 2 | PC23: 2 | PE23: 2 | PF23: 1 | PG23: 5 | PH23: 1 | PI23: 2 | PK23: 2 | PL23: 2 | PN23: 2 | PO23: 1 | PP23: 2 | PQ23: 2 | PR23: 1 | PS23: 5 | PT23: 1 | PU23: 2 | PV23: 2 | PW23: 1 | PX23: 2 | PY23: 1 | PZ23: 4 | QA23: 2 | QB23: 3 | QC23: 2 | QD23: 5 | QE23: 2 | QF23: 4 | QG23: 2 | QH23: 4 | QI23: 2 | QJ23: 5 | QK23: 2 | QL23: 5 | QM23: 4 | QN23: 5 | QO23: 5 | QP23: 4 | QQ23: 5 | QR23: 5 | QS23: 1 | QT23: 3 | QU23: 4 | QV23: 4 | QW23: 5 | QX23: 5 | QY23: 5 | QZ23: 5 | RA23: 1 | RB23: 4 | RC23: 4
A24: 19 | B24: 杜三峡 | C24: 杜三峡 | D24: 湖北省 | E24: 荆门市钟祥县 | F24: 冷水镇 | G24: 白佛村 | H24: 周发菊 | I24: 15572695537 | J24: 2 | K24: 8.5 | L24: 6 | M24: 1 | N24: 1 | O24: 1 | P24: 1 | Q24: 10 | R24: 0.3 | S24: 20000 | T24: 1 | U24: 2 | V24: 2 | W24: 52 | X24: 4 | Y24: 9 | Z24: 2 | AA24: 0 | AB24: 0 | AC24: 0 | AD24: 2 | AE24: 1 | AF24: 1 | AG24: 49 | AH24: 5 | AI24: 6 | AJ24: 2 | AK24: 5 | AL24: 4 | AM24: 10 | BR24: 1 | BS24: 2 | BT24: 667 | BU24: 2 | BV24: 2 | BW24: 2 | BX24: 3 | BY24: 2 | BZ24: 2 | CA24: 1000 | CB24: 2 | CC24: 2 | CD24: 2 | CE24: 1100 | CF24: 1.1 | CG24: 60 | CH24: 30 | CI24: 0 | CJ24: 0 | CK24: 0 | CL24: 6 | DG24: 1 | DH24: 2 | DI24: 4 | DJ24: 1 | DK24: 4 | DL24: 1 | DM24: 5 | DN24: 3 | DO24: 1000 | DP24: 1 | DQ24: 2 | DR24: 2 | EF24: 2 | EG24: 1 | EH24: 1 | EI24: 1 | EJ24: 10 | EK24: 100 | EM24: 128 | EN24: 80 | ER24: 2 | ES24: 2 | ET24: 1 | EU24: 1 | EV24: 9 | EX24: 90 | EY24: 80 | GJ24: 2、4、5 | GK24: 2 | GL24: 2 | GQ24: 4 | GR24: 5 | GS24: 5 | GT24: 3 | GU24: 3 | GV24: 4 | GW24: 3 | GX24: 3 | GY24: 2 | GZ24: 4 | HA24: 5 | HB24: 5 | HC24: 4 | HD24: 5 | HE24: 1 | HF24: 1 | HG24: 1 | HK24: 2、5 | HL24: 1 | HM24: 3 | HN24: 6 | HO24: 2 | HP24: 1 | HR24: 2 | HS24: 2 | HU24: 1 | HV24: 4 | HW24: 1 | HX24: 2 | HY24: 1 | HZ24: 1 | IA24: 2 | IB24: 3 | IC24: 2 | ID24: 2 | IE24: 1 | IF24: 5 | IG24: 2 | IH24: 3 | II24: 2 | IJ24: 4 | IK24: 4 | IL24: 2 | IM24: 2 | JQ24: 5 | JR24: 4 | JS24: 5 | JT24: 3 | JU24: 1 | JZ24: 1 | KA24: 2 | KB24: 2 | KJ24: 2 | KK24: 500 | KL24: 2 | KM24: 2 | KN24: 1 | KO24: 1 | KP24: 5 | KQ24: 5 | KR24: 5 | KS24: 4 | KT24: 5 | KU24: 5 | KV24: 5 | KW24: 4 | KX24: 4 | KY24: 1 | KZ24: 1 | LA24: 1 | LB24: 3 | LC24: 3 | LD24: 3 | LE24: 2 | LF24: 3 | LG24: 4 | LH24: 5 | LI24: 2 | LJ24: 1 | LK24: 1 | LL24: 1 | LM24: 4 | LN24: 1 | LO24: 2 | LP24: 3 | LQ24: 4 | LR24: 2 | LS24: 3 | LT24: 4 | LU24: 2 | LV24: 1 | LW24: 1 | LX24: 1 | LY24: 1 | LZ24: 1 | MA24: 2 | MB24: 2 | MC24: 1 | MD24: 2 | ME24: 1 | MF24: 2 | MG24: 2 | MH24: 1 | MI24: 2 | MJ24: 4 | MK24: 3 | MM24: 2 | MN24: 2 | MO24: 1 | MP24: 2 | MQ24: 2 | MR24: 2 | MT24: 2 | MU24: 2 | MW24: 2 | NA24: 2 | NB24: 1 | NC24: 10 | ND24: 1 | NE24: 2 | NG24: 3 | NH24: 2 | NK24: 2 | NN24: 2 | NQ24: 2 | NT24: 2 | NW24: 2 | NX24: 3 | NY24: 5 | NZ24: 3 | OA24: 1 | OC24: 3 | OD24: 2 | OE24: 1 | OG24: 1 | OI24: 4 | OJ24: 4 | OK24: 1 | OL24: 3 | OM24: 2 | ON24: 2 | OP24: 2 | OQ24: 2 | OS24: 2 | OT24: 2 | OV24: 1 | OW24: 1 | OX24: 4 | OY24: 1 | OZ24: 2 | PB24: 1 | PC24: 2 | PE24: 2 | PF24: 2 | PH24: 1 | PI24: 2 | PK24: 2 | PL24: 2 | PN24: 2 | PO24: 2 | PQ24: 2 | PR24: 1 | PS24: 5 | PT24: 2 | PU24: 2 | PV24: 2 | PW24: 1 | PX24: 3 | PY24: 1 | PZ24: 2 | QA24: 2 | QB24: 3 | QC24: 2 | QD24: 4 | QE24: 2 | QF24: 3 | QG24: 2 | QH24: 2 | QI24: 2 | QJ24: 3 | QK24: 2 | QL24: 3 | QM24: 3 | QN24: 2 | QO24: 3 | QP24: 5 | QQ24: 5 | QR24: 4 | QS24: 2 | QT24: 5 | QU24: 5 | QV24: 5 | QW24: 5 | QX24: 5 | QY24: 5 | QZ24: 5 | RA24: 3 | RB24: 4 | RC24: 4
A25: 20 | B25: 杜三峡 | C25: 杜三峡 | D25: 湖北省 | E25: 荆门市钟祥县 | F25: 冷水镇 | G25: 白佛村 | H25: 刘中山 | I25: 15972632738 | J25: 2 | K25: 8 | L25: 7 | M25: 1 | N25: 2 | O25: 2 | P25: 2 | Q25: 15 | R25: 2 | S25: 15000 | T25: 1 | U25: 1 | V25: 1 | W25: 73 | X25: 4 | Y25: 6 | Z25: 2 | AA25: 0 | AB25: 0 | AC25: 0 | AD25: 2 | AE25: 2 | AF25: 2 | AG25: 72 | AH25: 3 | AI25: 1 | AJ25: 2 | AK25: 0 | AL25: 0 | AM25: 0 | AN25: 3 | AO25: 4 | AP25: 1 | AQ25: 50 | AR25: 4 | AS25: 6 | AT25: 2 | AU25: 5 | AV25: 8 | AW25: 11 | AX25: 4 | AY25: 4 | AZ25: 2 | BA25: 48 | BB25: 3 | BC25: 6 | BD25: 2 | BE25: 5 | BF25: 5 | BG25: 11 | BR25: 1 | BS25: 13 | BT25: 667 | BU25: 15 | BV25: 13 | BW25: 15 | BX25: 3 | BY25: 1 | BZ25: 3 | CA25: 1000 | CB25: 1 | CC25: 2 | CD25: 13 | CE25: 1300 | CF25: 1 | CG25: 50 | CH25: 0 | CI25: 10 | CJ25: 300 | CK25: 0 | CL25: 10 | DG25: 1 | DH25: 1 | DI25: 5 | DJ25: 1 | DK25: 5 | DL25: 1 | DM25: 5 | DN25: 2 | DO25: 2000 | DP25: 1 | DQ25: 2 | DR25: 2 | EF25: 2 | EG25: 1 | EH25: 1 | EI25: 1 | EJ25: 10 | EK25: 100 | EM25: 120 | EN25: 80 | ER25: 2 | ES25: 2 | ET25: 1 | EU25: 1 | EV25: 10 | EX25: 90 | EY25: 80 | GJ25: 2 | GK25: 2 | GL25: 2 | GQ25: 1 | GR25: 2 | GS25: 2 | GT25: 3 | GU25: 3 | GV25: 3 | GW25: 3 | GX25: 2 | GY25: 2 | GZ25: 3 | HA25: 4 | HB25: 4 | HC25: 3 | HD25: 2 | HE25: 3 | HF25: 1 | HG25: 2 | HK25: 5 | HL25: 1 | HM25: 2 | HN25: 1 | HO25: 1 | HP25: 1 | HR25: 2 | HS25: 2 | HU25: 1 | HV25: 4 | HW25: 2 | HX25: 2 | HY25: 4 | HZ25: 1 | IA25: 2 | IB25: 3 | IC25: 2 | ID25: 2 | IE25: 1 | IF25: 5 | IG25: 2 | IH25: 1 | II25: 2 | IJ25: 5 | IK25: 4 | IL25: 2 | IM25: 2 | JQ25: 5 | JR25: 3 | JS25: 5 | JT25: 1 | JU25: 1 | JZ25: 4 | KA25: 2 | KB25: 2 | KJ25: 1 | KK25: 400 | KL25: 3 | KM25: 2 | KN25: 1 | KO25: 3 | KP25: 1 | KQ25: 1 | KR25: 1 | KS25: 3 | KT25: 2 | KU25: 4 | KV25: 5 | KW25: 4 | KX25: 5 | KY25: 1 | KZ25: 1 | LA25: 1 | LB25: 1 | LC25: 1 | LD25: 1 | LE25: 4 | LF25: 4 | LG25: 3 | LH25: 5 | LI25: 3 | LJ25: 2 | LK25: 1 | LL25: 1 | LM25: 5 | LN25: 1 | LO25: 2 | LP25: 2 | LQ25: 4 | LR25: 2 | LS25: 3 | LT25: 4 | LU25: 2 | LV25: 1 | LW25: 1 | LX25: 1 | LY25: 1 | LZ25: 1 | MA25: 1 | MB25: 2 | MC25: 1 | MD25: 1 | ME25: 1 | MF25: 2 | MG25: 1 | MH25: 1 | MI25: 1 | MJ25: 4 | MK25: 3 | MM25: 1 | MN25: 1 | MO25: 2 | MP25: 2 | MQ25: 2 | MR25: 2 | MT25: 2 | MU25: 2 | MW25: 2 | MY25: 1 | MZ25: 5 | NA25: 1 | NB25: 1 | NC25: 5 | ND25: 3 | NE25: 1 | NF25: 10 | NG25: 2 | NH25: 2 | NK25: 2 | NN25: 2 | NQ25: 2 | NT25: 2 | NW25: 2 | NX25: 4 | NY25: 5 | NZ25: 4 | OA25: 1 | OC25: 3 | OD25: 2 | OE25: 1 | OG25: 1 | OI25: 5 | OJ25: 5 | OK25: 1 | OL25: 5 | OM25: 1 | ON25: 2 | OP25: 2 | OQ25: 2 | OS25: 2 | OT25: 2 | OV25: 2 | OW25: 2 | OY25: 2 | OZ25: 2 | PB25: 2 | PC25: 2 | PE25: 2 | PF25: 2 | PH25: 2 | PI25: 2 | PK25: 2 | PL25: 2 | PN25: 2 | PO25: 2 | PQ25: 2 | PR25: 1 | PS25: 5 | PT25: 1 | PU25: 2 | PV25: 2 | PW25: 1 | PX25: 2 | PY25: 1 | PZ25: 3 | QA25: 2 | QB25: 3 | QC25: 2 | QD25: 5 | QE25: 1 | QF25: 5 | QG25: 2 | QH25: 3 | QI25: 2 | QJ25: 4 | QK25: 2 | QL25: 4 | QM25: 3 | QN25: 3 | QO25: 4 | QP25: 3 | QQ25: 5 | QR25: 4 | QS25: 2 | QT25: 4 | QU25: 4 | QV25: 5 | QW25: 5 | QX25: 5 | QY25: 5 | QZ25: 4 | RA25: 2 | RB25: 3 | RC25: 3
A26: 21 | B26: 杜三峡 | C26: 杜三峡 | D26: 湖北省 | E26: 荆门市钟祥县 | F26: 冷水镇 | G26: 白佛村 | H26: 刘红珍 | I26: 18727611339 | J26: 2 | K26: 7.5 | L26: 8 | M26: 1 | N26: 2 | O26: 4 | P26: 4 | Q26: 2 | R26: 1 | S26: 20000 | T26: 1 | U26: 2 | V26: 2 | W26: 46 | X26: 3 | Y26: 9 | Z26: 2 | AA26: 0 | AB26: 0 | AC26: 0 | AD26: 2 | AE26: 1 | AF26: 1 | AG26: 48 | AH26: 3 | AI26: 9 | AJ26: 2 | AK26: 0 | AL26: 0 | AM26: 0 | AN26: 3 | AO26: 4 | AP26: 2 | AQ26: 25 | AR26: 5 | AS26: 12 | AT26: 2 | AU26: 3 | AV26: 0.4 | AW26: 2 | AX26: 4 | AY26: 4 | AZ26: 1 | BA26: 29 | BB26: 5 | BC26: 9 | BD26: 2 | BE26: 0 | BF26: 0 | BG26: 0 | BR26: 1 | BS26: 6 | BT26: 667 | BU26: 10 | BV26: 6 | BW26: 10 | BX26: 1 | BY26: 2 | BZ26: 3 | CA26: 800 | CB26: 2 | CC26: 2 | CD26: 6 | CE26: 1200 | CF26: 1.1 | CG26: 200 | CH26: 0 | CI26: 30 | CJ26: 300 | CK26: 0 | CL26: 15 | DG26: 1 | DH26: 1 | DI26: 5 | DJ26: 3 | DK26: 5 | DL26: 1 | DM26: 5 | DN26: 3 | DO26: 2000 | DP26: 1 | DQ26: 2 | DR26: 2 | EF26: 3 | EG26: 1 | EH26: 1 | EI26: 1 | EJ26: 10 | EK26: 55 | EM26: 140 | EN26: 100 | ER26: 2 | ES26: 2 | ET26: 1 | EU26: 1 | EV26: 6 | EX26: 90 | EY26: 80 | GJ26: 2 | GK26: 2 | GL26: 1 | GM26: 2 | GN26: 2016 | GO26: 2 | GP26: 3 | GQ26: 3 | GR26: 4 | GS26: 5 | GT26: 4 | GU26: 4 | GV26: 4 | GW26: 4 | GX26: 3 | GY26: 4 | GZ26: 3 | HA26: 3 | HB26: 3 | HC26: 2 | HD26: 2 | HE26: 5 | HF26: 1 | HG26: 1 | HH26: 6 | HI26: 1 | HJ26: 2 | HK26: 1、5 | HL26: 5 | HM26: 2 | HN26: 1 | HO26: 4 | HP26: 3 | HQ26: 4 | HR26: 2 | HS26: 2 | HU26: 1 | HV26: 5 | HW26: 3 | HX26: 2 | HY26: 3 | HZ26: 1 | IA26: 2 | IB26: 2 | IC26: 2 | ID26: 2 | IE26: 1 | IF26: 3 | IG26: 1 | IH26: 1 | II26: 2 | IJ26: 5 | IK26: 3 | IL26: 2 | IM26: 2 | IO26: 5 | IP26: 2 | IQ26: 1 | IR26: 4 | IS26: 3 | IT26: 4 | IU26: 3 | IV26: 4 | IW26: 2 | IX26: 2 | IY26: 2 | IZ26: 2 | JA26: 2 | JB26: 4 | JC26: 4 | JD26: 3 | JE26: 4 | JF26: 4 | JG26: 4 | JH26: 1 | JI26: 3 | JJ26: 2 | JK26: 4 | JL26: 4 | JM26: 4 | JN26: 4 | JO26: 1 | JP26: 1 | JQ26: 3 | JR26: 4 | JS26: 5 | JT26: 1、3 | JU26: 2 | JV26: 2 | JW26: 1 | JZ26: 2 | KA26: 2 | KB26: 2 | KJ26: 3 | KK26: 400 | KL26: 3 | KM26: 3 | KN26: 3 | KO26: 3 | KP26: 5 | KQ26: 5 | KR26: 5 | KS26: 5 | KT26: 5 | KU26: 5 | KV26: 5 | KW26: 5 | KX26: 5 | KY26: 3 | KZ26: 3 | LA26: 3 | LB26: 5 | LC26: 5 | LD26: 5 | LE26: 4 | LF26: 5 | LG26: 5 | LH26: 5 | LI26: 4 | LJ26: 4 | LK26: 1、3 | LL26: 1、3 | LM26: 4 | LN26: 1 | LO26: 2 | LP26: 2 | LQ26: 4 | LR26: 2 | LS26: 3 | LT26: 4 | LU26: 4 | LV26: 4 | LW26: 2 | LX26: 2 | LY26: 2 | LZ26: 1 | MA26: 1 | MB26: 1 | MC26: 1 | MD26: 1 | ME26: 1 | MF26: 2 | MG26: 1 | MH26: 1 | MI26: 1 | MJ26: 4 | MK26: 3 | MM26: 2 | MN26: 2 | MO26: 1 | MP26: 2 | MQ26: 1 | MR26: 2 | MT26: 2 | MU26: 2 | MW26: 1 | MX26: 4 | MY26: 1 | MZ26: 5 | NA26: 2 | NB26: 1 | NC26: 5 | ND26: 1 | NE26: 1 | NF26: 10 | NG26: 3 | NH26: 2 | NK26: 2 | NN26: 2 | NQ26: 2 | NT26: 2 | NW26: 2 | NX26: 2 | NY26: 5 | NZ26: 5 | OA26: 1 | OC26: 3 | OD26: 2 | OE26: 1 | OG26: 1 | OI26: 5 | OJ26: 5 | OK26: 1 | OL26: 5 | OM26: 1 | ON26: 2 | OP26: 2 | OQ26: 2 | OS26: 2 | OT26: 2 | OV26: 2 | OW26: 2 | OY26: 2 | OZ26: 2 | PB26: 2 | PC26: 2 | PE26: 2 | PF26: 2 | PH26: 1 | PI26: 2 | PK26: 2 | PL26: 2 | PN26: 2 | PO26: 2 | PQ26: 2 | PR26: 1 | PS26: 5 | PT26: 1 | PU26: 2 | PV26: 2 | PW26: 1 | PX26: 2 | PY26: 2 | PZ26: 4 | QA26: 2 | QB26: 3 | QC26: 2 | QD26: 3 | QE26: 2 | QF26: 3 | QG26: 2 | QH26: 2 | QI26: 2 | QJ26: 4 | QK26: 2 | QL26: 4 | QM26: 5 | QN26: 4 | QO26: 4 | QP26: 5 | QQ26: 5 | QR26: 5 | QS26: 3 | QT26: 5 | QU26: 5 | QV26: 4 | QW26: 5 | QX26: 5 | QY26: 5 | QZ26: 5 | RA26: 4 | RB26: 5 | RC26: 5
A27: 22 | B27: 杜三峡 | C27: 杜三峡 | D27: 湖北省 | E27: 荆门市钟祥县 | F27: 冷水镇 | G27: 侯集村 | H27: 唐吉萍 | I27: 13093232028 | J27: 2 | K27: 8 | L27: 4 | M27: 0 | N27: 1 | O27: 2 | P27: 3 | Q27: 4 | R27: 3 | S27: 15000 | T27: 1 | U27: 2 | V27: 2 | W27: 47 | X27: 4 | Y27: 7 | Z27: 2 | AA27: 0 | AB27: 0 | AC27: 0 | AD27: 2 | AE27: 1 | AF27: 1 | AG27: 47 | AH27: 5 | AI27: 6 | AJ27: 2 | AK27: 0 | AL27: 0 | AM27: 0 | BR27: 1.4 | BS27: 27 | BT27: 667 | BU27: 21 | BV27: 25 | BW27: 20 | BX27: 4 | BY27: 1 | BZ27: 3 | CA27: 500 | CB27: 1 | CC27: 2 | CD27: 25 | CE27: 1300 | CF27: 1.26 | CG27: 150 | CH27: 0 | CI27: 0 | CJ27: 0 | CK27: 200 | CL27: 20 | DG27: 1 | DH27: 3 | DI27: 5 | DJ27: 3 | DK27: 5 | DL27: 3 | DM27: 5 | DN27: 2 | DO27: 3000 | DP27: 2 | DQ27: 2 | DR27: 1 | DS27: 1 | DT27: 1 | DU27: 2019 | DV27: 5 | DW27: 1 | DX27: 1 | DY27: 2019 | DZ27: 5 | EG27: 1 | EH27: 1 | EI27: 1 | EJ27: 10 | EK27: 70 | EL27: 桂湖 | EM27: 130 | EN27: 80 | EO27: 26 | EP27: 10 | EQ27: 15 | ER27: 2 | ES27: 2 | ET27: 1 | EU27: 1 | EV27: 5 | EW27: 天泽 | EX27: 88 | EY27: 80 | EZ27: 46.4 | FC27: 3 | FD27: 2 | FE27: 1 | FF27: 17硝酸磷 | FG27: 15 | FH27: 天脊 | FI27: 130 | FJ27: 80 | FK27: 26.5 | FL27: 11.5 | FM27: 0 | GJ27: 2 | GK27: 2 | GL27: 2 | GQ27: 4 | GR27: 5 | GS27: 5 | GT27: 3 | GU27: 4 | GV27: 1 | GW27: 5 | GX27: 5 | GY27: 4 | GZ27: 5 | HA27: 5 | HB27: 5 | HC27: 5 | HD27: 5 | HE27: 4 | HF27: 2 | HG27: 1 | HK27: 1 | HL27: 5 | HM27: 2 | HN27: 1 | HO27: 4 | HP27: 3 | HQ27: 1、2、3、4、5 | HR27: 1 | HS27: 2 | HU27: 3 | HV27: 4 | HW27: 4 | HX27: 2 | HY27: 4 | HZ27: 3 | IA27: 2 | IB27: 3 | IC27: 1 | ID27: 1 | IE27: 2 | IF27: 5 | IG27: 1 | IH27: 1 | II27: 2 | IJ27: 5 | IK27: 2 | IL27: 2 | IM27: 2 | JQ27: 4 | JR27: 5 | JS27: 5 | JT27: 1、2 | JU27: 1 | JZ27: 2 | KA27: 1 | KB27: 2 | KJ27: 1 | KK27: 700 | KL27: 1 | KM27: 4 | KN27: 1 | KO27: 3 | KP27: 3 | KQ27: 4 | KR27: 5 | KS27: 5 | KT27: 4 | KU27: 5 | KV27: 5 | KW27: 3 | KX27: 5 | KY27: 4 | KZ27: 1 | LA27: 1 | LB27: 4 | LC27: 5 | LD27: 5 | LE27: 5 | LF27: 5 | LG27: 5 | LH27: 5 | LI27: 4 | LJ27: 3 | LK27: 1 | LL27: 1 | LM27: 2 | LN27: 2 | LO27: 2 | LP27: 3 | LQ27: 5 | LR27: 2 | LS27: 3 | LT27: 4 | LU27: 4 | LV27: 4 | LW27: 2 | LX27: 4 | LY27: 4 | LZ27: 2 | MA27: 1 | MB27: 1 | MC27: 1 | MD27: 1 | ME27: 1 | MF27: 1 | MG27: 1 | MH27: 1 | MI27: 1 | MJ27: 5 | MK27: 3 | MM27: 1 | MN27: 2 | MO27: 2 | MP27: 2 | MQ27: 1 | MR27: 1 | MS27: 4 | MT27: 2 | MU27: 2 | MW27: 1 | MX27: 3 | MY27: 1 | MZ27: 10 | NA27: 3 | NB27: 2 | NE27: 2 | NG27: 1 | NH27: 2 | NK27: 2 | NN27: 2 | NQ27: 2 | NT27: 1 | NU27: 5 | NW27: 1 | NX27: 4 | NY27: 5 | NZ27: 4 | OA27: 1 | OC27: 3 | OD27: 8种子服务站 | OE27: 3 | OF27: 8种子服务站 | OG27: 1 | OI27: 5 | OJ27: 5 | OK27: 1 | OL27: 5 | OM27: 1 | ON27: 2 | OP27: 2 | OQ27: 1 | OR27: 5 | OS27: 2 | OT27: 1 | OU27: 4 | OV27: 1 | OW27: 1 | OX27: 5 | OY27: 1 | OZ27: 2 | PB27: 1 | PC27: 2 | PE27: 1 | PF27: 2 | PH27: 1 | PI27: 1 | PJ27: 4 | PK27: 2 | PL27: 2 | PN27: 2 | PO27: 2 | PQ27: 2 | PR27: 1 | PS27: 4 | PT27: 1 | PU27: 2 | PV27: 2 | PW27: 1 | PX27: 3 | PY27: 3 | PZ27: 3 | QA27: 2 | QB27: 5 | QC27: 2 | QD27: 4 | QE27: 2 | QF27: 5 | QG27: 2 | QH27: 5 | QI27: 2 | QJ27: 4 | QK27: 2 | QL27: 4 | QM27: 5 | QN27: 5 | QO27: 5 | QP27: 5 | QQ27: 5 | QR27: 5 | QS27: 1 | QT27: 5 | QU27: 5 | QV27: 5 | QW27: 5 | QX27: 5 | QY27: 5 | QZ27: 5 | RA27: 3 | RB27: 4 | RC27: 4
A28: 23 | B28: 杜三峡 | C28: 杜三峡 | D28: 湖北省 | E28: 荆门市钟祥县 | F28: 冷水镇 | G28: 鲍岗村 | H28: 董香 | I28: 18671613294 | J28: 2 | K28: 2.5 | L28: 5 | M28: 0 | N28: 2 | O28: 2 | P28: 5 | Q28: 5 | R28: 2 | S28: 20000 | T28: 1 | U28: 2 | V28: 2 | W28: 44 | X28: 4 | Y28: 8 | Z28: 2 | AA28: 0 | AB28: 0 | AC28: 0 | AD28: 2 | AE28: 1 | AF28: 1 | AG28: 46 | AH28: 5 | AI28: 6 | AJ28: 2 | AK28: 0 | AL28: 0 | AM28: 0 | BR28: 1 | BS28: 15 | BT28: 1000 | BU28: 9 | BV28: 12 | BW28: 4 | BX28: 4 | BY28: 2 | BZ28: 3 | CA28: 1500 | CB28: 1 | CC28: 2 | CD28: 12 | CE28: 1300 | CF28: 1.25 | CG28: 225 | CH28: 25 | CI28: 0 | CJ28: 280 | CK28: 0 | CL28: 10 | DG28: 1 | DH28: 1 | DI28: 5 | DJ28: 1 | DK28: 5 | DL28: 1 | DM28: 5 | DN28: 2 | DO28: 4000 | DP28: 1 | DQ28: 2 | DR28: 1 | DS28: 1 | DT28: 1 | DU28: 2019 | DV28: 5 | EG28: 1 | EH28: 1 | EI28: 1 | EJ28: 10 | EK28: 70 | EL28: 桂湖 | EM28: 138 | EN28: 180 | EO28: 26 | EP28: 10 | EQ28: 15 | ER28: 2 | ES28: 2 | ET28: 1 | EU28: 1 | EV28: 6 | EW28: 天泽 | EX28: 88 | EY28: 80 | EZ28: 46.4 | GJ28: 2、4 | GK28: 2 | GL28: 2 | GQ28: 4 | GR28: 4 | GS28: 4 | GT28: 5 | GU28: 5 | GV28: 4 | GW28: 5 | GX28: 5 | GY28: 4 | GZ28: 5 | HA28: 5 | HB28: 3 | HC28: 4 | HD28: 4 | HE28: 4 | HF28: 3 | HG28: 3 | HK28: 1、2 | HL28: 1 | HM28: 1 | HN28: 1 | HO28: 3 | HP28: 4 | HQ28: 1、2、3、4、5 | HR28: 1 | HS28: 2 | HU28: 3 | HV28: 5 | HW28: 2 | HX28: 2 | HY28: 3 | HZ28: 1 | IA28: 2 | IB28: 3 | IC28: 2 | ID28: 1 | IE28: 2 | IF28: 5 | IG28: 1 | IH28: 1 | II28: 2 | IJ28: 5 | IK28: 2 | IL28: 2 | IM28: 2 | JQ28: 3 | JR28: 4 | JS28: 4 | JT28: 3 | JU28: 1 | JZ28: 3 | KA28: 1 | KB28: 2 | KJ28: 4 | KK28: 600 | KL28: 4 | KM28: 5 | KN28: 1 | KO28: 1 | KP28: 5 | KQ28: 5 | KR28: 5 | KS28: 5 | KT28: 5 | KU28: 5 | KV28: 5 | KW28: 4 | KX28: 5 | KY28: 4 | KZ28: 2 | LA28: 2 | LB28: 4 | LC28: 4 | LD28: 5 | LE28: 5 | LF28: 4 | LG28: 5 | LH28: 5 | LI28: 4 | LJ28: 5 | LK28: 1 | LL28: 1 | LM28: 2 | LN28: 2 | LO28: 3 | LP28: 3 | LQ28: 4 | LR28: 2 | LS28: 3 | LT28: 4 | LU28: 3 | LV28: 3 | LW28: 2 | LX28: 4 | LY28: 2 | LZ28: 2 | MA28: 1 | MB28: 1 | MC28: 1 | MD28: 1 | ME28: 1 | MF28: 1 | MG28: 1 | MH28: 1 | MI28: 1 | MJ28: 4 | MK28: 3 | MM28: 1 | MN28: 2 | MO28: 2 | MP28: 2 | MQ28: 1 | MR28: 2 | MT28: 2 | MU28: 2 | MW28: 1 | MX28: 4 | MY28: 1 | MZ28: 5 | NA28: 1 | NB28: 1 | NC28: 5 | ND28: 2 | NE28: 2 | NG28: 3 | NH28: 2 | NK28: 2 | NN28: 2 | NQ28: 2 | NT28: 2 | NW28: 2 | NX28: 3 | NY28: 4 | NZ28: 4 | OA28: 1 | OC28: 3 | OD28: 6 | OE28: 1 | OG28: 1 | OI28: 5 | OJ28: 5 | OK28: 1 | OL28: 5 | OM28: 1 | ON28: 2 | OP28: 2 | OQ28: 2 | OS28: 2 | OT28: 1 | OU28: 4 | OV28: 1 | OW28: 2 | OY28: 2 | OZ28: 2 | PB28: 2 | PC28: 2 | PE28: 2 | PF28: 2 | PH28: 1 | PI28: 2 | PK28: 2 | PL28: 2 | PN28: 2 | PO28: 2 | PQ28: 2 | PR28: 1 | PS28: 5 | PT28: 1 | PU28: 2 | PV28: 2 | PW28: 1 | PX28: 3 | PY28: 4 | PZ28: 4 | QA28: 2 | QB28: 4 | QC28: 1 | QD28: 5 | QE28: 2 | QF28: 3 | QG28: 1 | QH28: 4 | QI28: 2 | QJ28: 3 | QK28: 2 | QL28: 3 | QM28: 4 | QN28: 5 | QO28: 5 | QP28: 5 | QQ28: 5 | QR28: 5 | QS28: 2 | QT28: 5 | QU28: 4 | QV28: 5 | QW28: 5 | QX28: 5 | QY28: 5 | QZ28: 4 | RA28: 4 | RB28: 5 | RC28: 5
A29: 24 | B29: 杜三峡 | C29: 杜三峡 | D29: 湖北省 | E29: 荆门市钟祥县 | F29: 冷水镇 | G29: 侯集村 | H29: 李冬梅 | I29: 18872427370 | J29: 2 | K29: 8 | L29: 8 | M29: 2 | N29: 2 | O29: 2 | P29: 6 | Q29: 3 | R29: 1 | S29: 10000 | T29: 1 | U29: 2 | V29: 2 | W29: 51 | X29: 3 | Y29: 9 | Z29: 2 | AA29: 0 | AB29: 0 | AC29: 0 | AD29: 2 | AE29: 1 | AF29: 1 | AG29: 53 | AH29: 3 | AI29: 9 | AJ29: 2 | AK29: 0 | AL29: 0 | AM29: 0 | AN29: 3 | AO29: 4 | AP29: 2 | AQ29: 25 | AR29: 5 | AS29: 9 | AT29: 2 | AU29: 5 | AV29: 1.8 | AW29: 6 | BR29: 1.4 | BS29: 25 | BT29: 667 | BU29: 8 | BV29: 22 | BW29: 7 | BX29: 3 | BY29: 1 | BZ29: 3 | CA29: 2000 | CB29: 1 | CC29: 2 | CD29: 2 | CE29: 1200 | CF29: 1.25 | CG29: 160 | CH29: 25 | CI29: 0 | CJ29: 80 | CK29: 200 | CL29: 8 | DG29: 1 | DH29: 3 | DI29: 5 | DJ29: 3 | DK29: 5 | DL29: 1 | DM29: 5 | DN29: 2 | DO29: 2500 | DP29: 2 | DQ29: 2 | DR29: 1 | DS29: 1 | DT29: 1 | DU29: 2019 | DV29: 5 | DW29: 1 | DX29: 1 | DY29: 2019 | DZ29: 5 | EG29: 1 | EH29: 1 | EI29: 1 | EJ29: 10 | EK29: 100 | EL29: 史丹利 | EM29: 150 | EN29: 100 | GJ29: 4 | GK29: 2 | GL29: 1 | GM29: 2 | GN29: 2009 | GO29: 2 | GP29: 2 | GQ29: 4 | GR29: 5 | GS29: 5 | GT29: 5 | GU29: 4 | GV29: 2 | GW29: 4 | GX29: 2 | GY29: 1 | GZ29: 5 | HA29: 4 | HB29: 4 | HC29: 1 | HD29: 1 | HE29: 3 | HF29: 1 | HG29: 1 | HH29: 12 | HI29: 2 | HJ29: 2 | HK29: 2 | HL29: 1 | HM29: 1 | HN29: 1 | HO29: 4 | HP29: 4 | HQ29: 1、2、3、4、5 | HR29: 2 | HS29: 2 | HU29: 1 | HV29: 5 | HW29: 5 | HX29: 1 | HY29: 5 | HZ29: 2 | IA29: 1 | IB29: 2 | IC29: 2 | ID29: 2 | IE29: 2 | IF29: 5 | IG29: 1 | IH29: 1 | II29: 2 | IJ29: 4 | IK29: 3 | IL29: 2 | IM29: 2 | IO29: 2 | IP29: 4 | IQ29: 4 | IR29: 2 | IS29: 3 | IT29: 1 | IU29: 1 | IV29: 1 | IW29: 1 | IX29: 3 | IY29: 3 | IZ29: 3 | JA29: 3 | JB29: 3 | JC29: 4 | JD29: 3 | JE29: 4 | JF29: 4 | JG29: 5 | JH29: 3 | JI29: 3 | JJ29: 1 | JK29: 4 | JL29: 3 | JM29: 3 | JN29: 4 | JO29: 2 | JP29: 2 | JQ29: 4 | JR29: 4 | JS29: 5 | JT29: 3 | JU29: 2 | JV29: 1 | JZ29: 2 | KA29: 1 | KB29: 1 | KC29: 2 | KD29: 2 | KE29: 10 | KG29: 不清楚 | KH29: 2 | KJ29: 1 | KK29: 500 | KL29: 4 | KM29: 3 | KN29: 1 | KO29: 1 | KP29: 4 | KQ29: 4 | KR29: 5 | KS29: 5 | KT29: 3 | KU29: 4 | KV29: 5 | KW29: 4 | KX29: 3 | KY29: 4 | KZ29: 1 | LA29: 1 | LB29: 4 | LC29: 4 | LD29: 4 | LE29: 4 | LF29: 3 | LG29: 4 | LH29: 5 | LI29: 4 | LJ29: 1 | LK29: 1 | LL29: 1 | LM29: 3 | LN29: 2 | LO29: 2 | LP29: 2 | LQ29: 4 | LR29: 2 | LS29: 3 | LT29: 2 | LU29: 2 | LV29: 2 | LW29: 2 | LX29: 1 | LY29: 1 | LZ29: 2 | MA29: 1 | MB29: 1 | MC29: 1 | MD29: 1 | ME29: 1 | MF29: 1 | MG29: 1 | MH29: 1 | MI29: 1 | MJ29: 5 | MK29: 3 | MM29: 1 | MN29: 2 | MO29: 2 | MP29: 2 | MQ29: 1 | MR29: 2 | MT29: 2 | MU29: 2 | MW29: 1 | MX29: 3 | MY29: 1 | MZ29: 10 | NA29: 1 | NB29: 1 | NC29: 10 | ND29: 2 | NE29: 2 | NG29: 3 | NH29: 2 | NK29: 2 | NN29: 2 | NQ29: 2 | NT29: 2 | NW29: 2 | NX29: 4 | NY29: 4 | NZ29: 4 | OA29: 1 | OC29: 1 | OE29: 1 | OG29: 1 | OI29: 4 | OJ29: 4 | OK29: 1 | OL29: 5 | OM29: 1 | ON29: 2 | OP29: 2 | OQ29: 2 | OS29: 2 | OT29: 1 | OU29: 5 | OV29: 1 | OW29: 2 | OY29: 2 | OZ29: 1 | PA29: 4 | PB29: 1 | PC29: 1 | PD29: 4 | PE29: 1 | PF29: 2 | PH29: 1 | PI29: 2 | PK29: 2 | PL29: 1 | PM29: 4 | PN29: 1 | PO29: 2 | PQ29: 2 | PR29: 1 | PT29: 2 | PU29: 2 | PV29: 2 | PW29: 1 | PX29: 10 | PY29: 10 | PZ29: 2 | QA29: 2 | QB29: 4 | QC29: 1 | QD29: 5 | QE29: 1 | QF29: 5 | QG29: 1 | QH29: 5 | QI29: 2 | QJ29: 4 | QK29: 2 | QL29: 4 | QM29: 4 | QN29: 5 | QO29: 5 | QP29: 5 | QQ29: 5 | QR29: 4 | QS29: 1 | QT29: 5 | QU29: 5 | QV29: 5 | QW29: 4 | QX29: 5 | QY29: 5 | QZ29: 4 | RA29: 4 | RB29: 5 | RC29: 5
A30: 25 | B30: 杜三峡 | C30: 杜三峡 | D30: 湖北省 | E30: 荆门市钟祥县 | F30: 石牌镇 | G30: 贺集村 | H30: 贺艳萍 | I30: 13477563827 | J30: 2 | K30: 5 | L30: 5 | M30: 0 | N30: 2 | O30: 4 | P30: 5 | Q30: 2 | R30: 1.5 | S30: 10000 | T30: 1 | U30: 2 | V30: 2 | W30: 38 | X30: 5 | Y30: 9 | Z30: 2 | AA30: 0 | AB30: 0 | AC30: 0 | AD30: 2 | AE30: 1 | AF30: 1 | AG30: 40 | AH30: 4 | AI30: 16 | AJ30: 2 | AK30: 0 | AL30: 0 | AM30: 0 | AN30: 3 | AO30: 3 | AP30: 1 | AQ30: 63 | AR30: 3 | AS30: 12 | AT30: 2 | AU30: 0 | AV30: 0 | AW30: 0 | AX30: 4 | AY30: 3 | AZ30: 2 | BA30: 63 | BB30: 2 | BC30: 0 | BD30: 2 | BE30: 0 | BF30: 0 | BG30: 0 | BR30: 1 | BS30: 10 | BT30: 667 | BU30: 8 | BV30: 9 | BW30: 7 | BX30: 3 | BY30: 1 | BZ30: 3 | CA30: 500 | CB30: 1 | CC30: 2 | CD30: 9 | CE30: 1300 | CF30: 1.17 | CG30: 120 | CH30: 10 | CI30: 20 | CJ30: 180 | CK30: 200 | CL30: 3 | DG30: 1 | DH30: 2 | DI30: 4 | DJ30: 1 | DK30: 5 | DL30: 1 | DM30: 5 | DN30: 2 | DO30: 1500 | DP30: 1 | DQ30: 1 | DR30: 1 | DS30: 1 | DT30: 1 | DU30: 2019 | DV30: 5 | DW30: 1 | DX30: 1 | DY30: 2019 | DZ30: 5 | EG30: 1 | EH30: 1 | EI30: 1 | EJ30: 10 | EK30: 80 | EL30: 洋丰 | EM30: 100 | EN30: 80 | EO30: 26 | EP30: 10 | EQ30: 12 | ER30: 2 | ES30: 2 | ET30: 1 | EU30: 1 | EV30: 10 | EX30: 70 | EY30: 80 | GJ30: 2 | GK30: 2 | GL30: 2 | GQ30: 4 | GR30: 5 | GS30: 5 | GT30: 4 | GU30: 4 | GV30: 5 | GW30: 5 | GX30: 4 | GY30: 4 | GZ30: 5 | HA30: 5 | HB30: 5 | HC30: 5 | HD30: 5 | HE30: 4 | HF30: 4 | HG30: 4 | HK30: 1、5 | HL30: 5 | HM30: 1 | HN30: 1 | HO30: 5 | HP30: 2 | HQ30: 5 | HR30: 2 | HS30: 2 | HU30: 1 | HV30: 5 | HW30: 3 | HX30: 1 | HY30: 4 | HZ30: 1 | IA30: 2 | IB30: 5 | IC30: 2 | ID30: 1 | IE30: 2 | IF30: 4 | IG30: 1 | IH30: 3 | II30: 2 | IJ30: 5 | IK30: 2 | IL30: 2 | IM30: 2 | JQ30: 5 | JR30: 4 | JS30: 5 | JT30: 1 | JU30: 1 | JZ30: 2 | KA30: 2 | KB30: 2 | KJ30: 4 | KK30: 1000 | KL30: 3 | KM30: 4 | KN30: 1 | KO30: 1 | KP30: 1 | KQ30: 3 | KR30: 4 | KS30: 5 | KT30: 5 | KU30: 5 | KV30: 5 | KW30: 4 | KX30: 5 | KY30: 1 | KZ30: 1 | LA30: 1 | LB30: 3 | LC30: 3 | LD30: 5 | LE30: 5 | LF30: 5 | LG30: 5 | LH30: 5 | LI30: 4 | LJ30: 1 | LK30: 1 | LL30: 1 | LM30: 2 | LN30: 1 | LO30: 1 | LP30: 1 | LQ30: 1 | LR30: 4 | LS30: 1 | LT30: 5 | LU30: 2 | LV30: 1 | LW30: 1 | LX30: 1 | LY30: 1 | LZ30: 2 | MA30: 1 | MB30: 1 | MC30: 1 | MD30: 1 | ME30: 1 | MF30: 1 | MG30: 1 | MH30: 1 | MI30: 1 | MJ30: 5 | MK30: 3 | MM30: 1 | MN30: 2 | MO30: 2 | MP30: 2 | MQ30: 1 | MR30: 2 | MT30: 2 | MU30: 2 | MW30: 1 | MX30: 2 | MY30: 1 | MZ30: 20 | NA30: 3 | NB30: 1 | NC30: 30 | ND30: 2 | NE30: 1 | NF30: 50 | NG30: 3 | NH30: 2 | NK30: 2 | NN30: 2 | NQ30: 2 | NT30: 2 | NW30: 2 | NX30: 5 | NY30: 5 | NZ30: 2 | OA30: 1 | OC30: 3 | OD30: 2 | OE30: 1 | OG30: 1 | OI30: 3 | OJ30: 3 | OK30: 2 | OM30: 1 | ON30: 2 | OP30: 2 | OQ30: 2 | OS30: 2 | OT30: 1 | OU30: 5 | OV30: 1 | OW30: 2 | OY30: 1 | OZ30: 2 | PB30: 2 | PC30: 2 | PE30: 2 | PF30: 2 | PH30: 2 | PI30: 2 | PK30: 2 | PL30: 2 | PN30: 2 | PO30: 2 | PQ30: 2 | PR30: 1 | PS30: 5 | PT30: 1 | PU30: 2 | PV30: 2 | PW30: 1 | PX30: 2 | PY30: 2 | PZ30: 1 | QA30: 2 | QB30: 1 | QC30: 2 | QD30: 2 | QE30: 1 | QF30: 3 | QG30: 2 | QH30: 2 | QI30: 2 | QJ30: 2 | QK30: 2 | QL30: 3 | QM30: 1 | QN30: 2 | QO30: 1 | QP30: 2 | QQ30: 5 | QR30: 5 | QS30: 2 | QT30: 5 | QU30: 5 | QV30: 5 | QW30: 5 | QX30: 4 | QY30: 4 | QZ30: 5 | RA30: 4 | RB30: 5 | RC30: 5
A31: 26 | B31: 杜三峡 | C31: 杜三峡 | D31: 湖北省 | E31: 荆门市钟祥县 | F31: 长滩镇 | G31: 同心村 | H31: 张兴兰 | I31: 15971968689 | J31: 2 | K31: 0.5 | L31: 8 | M31: 1 | N31: 2 | O31: 2 | P31: 4 | Q31: 8 | R31: 1 | S31: 10000 | T31: 1 | U31: 2 | V31: 2 | W31: 60 | X31: 2 | Y31: 6 | Z31: 2 | AA31: 0 | AB31: 0 | AC31: 0 | AD31: 2 | AE31: 1 | AF31: 1 | AG31: 64 | AH31: 3 | AI31: 6 | AJ31: 2 | AK31: 0 | AL31: 0 | AM31: 0 | BR31: 1 | BS31: 15 | BT31: 667 | BU31: 17 | BV31: 15 | BW31: 17 | BX31: 3 | BY31: 2 | BZ31: 3 | CA31: 1000 | CB31: 1 | CC31: 2 | CD31: 15 | CE31: 1200 | CF31: 0.85 | CG31: 150 | CH31: 0 | CI31: 100 | CJ31: 160 | CK31: 180 | CL31: 5 | DG31: 1 | DH31: 2 | DI31: 4 | DJ31: 1 | DK31: 5 | DL31: 1 | DM31: 5 | DN31: 2 | DO31: 1500 | DP31: 1 | DQ31: 2 | DR31: 2 | EF31: 2 | EG31: 1 | EH31: 1 | EI31: 1 | EJ31: 10 | EK31: 100 | EL31: 洋丰 | EM31: 115 | EN31: 80 | EO31: 27 | EP31: 16 | EQ31: 9 | ER31: 2 | ES31: 2 | ET31: 1 | EU31: 1 | EV31: 20 | EW31: 枝江 | EX31: 98 | EY31: 80 | GJ31: 2 | GK31: 2 | GL31: 1 | GM31: 1 | GN31: 2009 | GO31: 1 | GP31: 2 | GQ31: 4 | GR31: 5 | GS31: 5 | GT31: 5 | GU31: 4 | GV31: 4 | GW31: 2 | GX31: 2 | GY31: 3 | GZ31: 4 | HA31: 4 | HB31: 1 | HC31: 5 | HD31: 5 | HE31: 5 | HF31: 3 | HG31: 2 | HH31: 30 | HI31: 6 | HJ31: 2 | HK31: 2 | HL31: 5 | HM31: 1 | HN31: 1 | HO31: 5 | HP31: 3 | HQ31: 4 | HR31: 2 | HS31: 2 | HU31: 1 | HV31: 5 | HW31: 2 | HX31: 2 | HY31: 1 | HZ31: 5 | IA31: 2 | IB31: 3 | IC31: 2 | ID31: 2 | IE31: 1 | IF31: 4 | IG31: 1 | IH31: 3 | II31: 1 | IJ31: 5 | IK31: 3 | IL31: 2 | IM31: 2 | IO31: 3 | IP31: 2 | IQ31: 3 | IR31: 2 | IS31: 2 | IT31: 2 | IU31: 2 | IV31: 2 | IW31: 3 | IX31: 2 | IY31: 3 | IZ31: 2 | JA31: 2 | JB31: 3 | JC31: 2 | JD31: 1 | JE31: 4 | JF31: 4 | JG31: 4 | JH31: 5 | JI31: 4 | JJ31: 2 | JK31: 2 | JL31: 2 | JM31: 2 | JN31: 3 | JO31: 2 | JP31: 2 | JQ31: 3 | JR31: 5 | JS31: 5 | JT31: 1 | JU31: 2 | JV31: 2 | JW31: 2 | JX31: 1 | JZ31: 2 | KA31: 1 | KB31: 1 | KC31: 2 | KD31: 1 | KF31: 6 | KG31: 8 | KH31: 1 | KI31: 80 | KJ31: 5 | KK31: 400 | KL31: 4 | KM31: 5 | KN31: 2 | KO31: 4 | KP31: 5 | KQ31: 5 | KR31: 5 | KS31: 5 | KT31: 5 | KU31: 5 | KV31: 5 | KW31: 5 | KX31: 5 | KY31: 4 | KZ31: 1 | LA31: 1 | LB31: 4 | LC31: 4 | LD31: 5 | LE31: 3 | LF31: 4 | LG31: 4 | LH31: 5 | LI31: 4 | LJ31: 3 | LK31: 1 | LL31: 1 | LM31: 5 | LN31: 2 | LO31: 2 | LP31: 2 | LQ31: 1、5、2 | LR31: 1、2、4 | LS31: 1、3、4 | LT31: 3 | LU31: 2 | LV31: 3 | LW31: 2 | LX31: 5 | LY31: 4 | LZ31: 2 | MA31: 1 | MB31: 1 | MC31: 1 | MD31: 1 | ME31: 1 | MF31: 1 | MG31: 1 | MH31: 1 | MI31: 1 | MJ31: 4 | MK31: 3 | MM31: 2 | MN31: 1 | MO31: 2 | MP31: 2 | MQ31: 1 | MR31: 1 | MS31: 4 | MT31: 1 | MU31: 2 | MV31: 10 | MW31: 2 | MY31: 2 | NA31: 2 | NB31: 2 | NE31: 1 | NF31: 10 | NG31: 1 | NH31: 2 | NK31: 2 | NN31: 2 | NQ31: 2 | NT31: 1 | NU31: 5 | NV31: 3 | NW31: 2 | NX31: 5 | NY31: 4 | NZ31: 2 | OA31: 1 | OC31: 3 | OD31: 8 | OE31: 1 | OG31: 1 | OI31: 4 | OJ31: 4 | OK31: 1 | OL31: 4 | OM31: 1 | ON31: 1 | OO31: 5 | OP31: 1 | OQ31: 1 | OR31: 5 | OS31: 2 | OT31: 1 | OU31: 5 | OV31: 2 | OW31: 1 | OX31: 4 | OY31: 2 | OZ31: 2 | PB31: 2 | PC31: 2 | PE31: 2 | PF31: 2 | PH31: 2 | PI31: 2 | PK31: 2 | PL31: 2 | PN31: 2 | PO31: 2 | PQ31: 2 | PR31: 1 | PS31: 4 | PT31: 1 | PU31: 2 | PV31: 2 | PW31: 1 | PX31: 2 | PY31: 1 | PZ31: 3 | QA31: 2 | QB31: 3 | QC31: 2 | QD31: 4 | QE31: 2 | QF31: 4 | QG31: 2 | QH31: 5 | QI31: 1 | QJ31: 4 | QK31: 1 | QL31: 4 | QM31: 4 | QN31: 5 | QO31: 4 | QP31: 4 | QQ31: 5 | QR31: 5 | QS31: 3 | QT31: 5 | QU31: 5 | QV31: 5 | QW31: 5 | QX31: 5 | QY31: 5 | QZ31: 5 | RA31: 4 | RB31: 4 | RC31: 3
A32: 27 | B32: 杜三峡 | C32: 杜三峡 | D32: 湖北省 | E32: 荆门市钟祥县 | F32: 长滩镇 | G32: 同心村 | H32: 黎明强 | I32: 13886923509 | J32: 2 | K32: 0.5 | L32: 5 | M32: 1 | N32: 0 | O32: 2 | P32: 2 | Q32: 20 | R32: 5 | S32: 20000 | T32: 1 | U32: 1 | V32: 1 | W32: 54 | X32: 5 | Y32: 5 | Z32: 2 | AA32: 0 | AB32: 0 | AC32: 0 | AD32: 2 | AE32: 2 | AF32: 2 | AG32: 53 | AH32: 5 | AI32: 9 | AJ32: 2 | AK32: 0 | AL32: 0 | AM32: 0 | AN32: 3 | AO32: 4 | AP32: 1 | AQ32: 26 | AR32: 5 | AS32: 15 | AT32: 2 | AU32: 4 | AV32: 6 | AW32: 12 | AX32: 4 | AY32: 4 | AZ32: 2 | BA32: 23 | BB32: 5 | BC32: 15 | BD32: 2 | BE32: 4 | BF32: 4 | BG32: 12 | BR32: 4 | BS32: 70 | BT32: 667 | BU32: 45 | BV32: 60 | BW32: 38 | BX32: 2 | BY32: 2 | BZ32: 3 | CA32: 1000 | CB32: 1 | CC32: 2 | CD32: 60 | CE32: 1300 | CF32: 0.8 | CG32: 200 | CH32: 0 | CI32: 100 | CJ32: 190 | CK32: 200 | CL32: 5 | DG32: 1 | DH32: 1 | DI32: 4 | DJ32: 1 | DK32: 5 | DL32: 1 | DM32: 5 | DN32: 2 | DO32: 2000 | DP32: 2 | DQ32: 2 | DR32: 1 | DS32: 1 | DT32: 1 | DU32: 2019 | DV32: 5 | DW32: 1 | DX32: 1 | DY32: 2019 | DZ32: 5 | EG32: 1 | EH32: 1 | EI32: 1 | EJ32: 10 | EK32: 100 | EL32: 洋丰 | EM32: 115 | EN32: 80 | EO32: 27 | EP32: 16 | EQ32: 9 | ER32: 2 | ES32: 2 | ET32: 1 | EU32: 1 | EV32: 20 | EW32: 潜江 | EX32: 90 | EY32: 80 | EZ32: 46 | FC32: 3 | FD32: 2 | FE32: 1 | FF32: 17税肥 | FG32: 20 | FH32: 洋丰 | FI32: 115 | FJ32: 80 | FK32: 27 | FL32: 16 | FM32: 9 | GJ32: 2 | GK32: 2 | GL32: 2 | GQ32: 4 | GR32: 4 | GS32: 4 | GT32: 2 | GU32: 2 | GV32: 1 | GW32: 5 | GX32: 1 | GY32: 4 | GZ32: 1 | HA32: 1 | HB32: 1 | HC32: 1 | HD32: 5 | HE32: 5 | HF32: 2 | HG32: 2 | HK32: 1 | HL32: 5 | HM32: 5 | HN32: 1 | HO32: 5 | HP32: 4 | HQ32: 1、3 | HR32: 1 | HS32: 2 | HU32: 3 | HV32: 5 | HW32: 4 | HX32: 1 | HY32: 5 | HZ32: 3 | IA32: 2 | IB32: 4 | IC32: 2 | ID32: 2 | IE32: 1 | IF32: 3 | IG32: 1 | IH32: 1 | II32: 1 | IJ32: 5 | IK32: 1 | IL32: 2 | IM32: 1 | IN32: 5 | JQ32: 4 | JR32: 5 | JS32: 5 | JT32: 1、3 | JU32: 2 | JV32: 2 | JW32: 1 | JZ32: 5 | KA32: 1 | KB32: 1 | KC32: 2 | KD32: 1 | KF32: 6 | KG32: 3 | KH32: 2 | KJ32: 1 | KK32: 200 | KL32: 1 | KM32: 4 | KN32: 3 | KO32: 3 | KP32: 4 | KQ32: 5 | KR32: 5 | KS32: 5 | KT32: 4 | KU32: 5 | KV32: 5 | KW32: 4 | KX32: 5 | KY32: 5 | KZ32: 1 | LA32: 1 | LB32: 5 | LC32: 5 | LD32: 4 | LE32: 4 | LF32: 5 | LG32: 5 | LH32: 5 | LI32: 5 | LJ32: 5 | LK32: 1 | LL32: 1 | LM32: 3 | LN32: 2 | LO32: 2 | LP32: 2 | LQ32: 1、4 | LR32: 1、2 | LS32: 1、3 | LT32: 4 | LU32: 4 | LV32: 2 | LW32: 1 | LX32: 5 | LY32: 3 | LZ32: 2 | MA32: 1 | MB32: 1 | MC32: 1 | MD32: 1 | ME32: 1 | MF32: 1 | MG32: 1 | MH32: 1 | MI32: 1 | MJ32: 5 | MK32: 2 | ML32: 4植保站 | MM32: 1 | MN32: 2 | MO32: 2 | MP32: 2 | MQ32: 1 | MR32: 1 | MS32: 5 | MT32: 1 | MU32: 2 | MV32: 8 | MW32: 2 | MY32: 1 | MZ32: 10 | NA32: 1 | NB32: 2 | NE32: 1 | NF32: 10 | NG32: 2 | NH32: 2 | NK32: 2 | NN32: 2 | NQ32: 2 | NT32: 1 | NU32: 5 | NV32: 3 | NW32: 2 | NX32: 1 | NY32: 4 | NZ32: 2 | OA32: 1 | OC32: 3 | OD32: 1 | OE32: 3 | OF32: 1 | OG32: 1 | OI32: 5 | OJ32: 5 | OK32: 1 | OL32: 5 | OM32: 1 | ON32: 1 | OO32: 5 | OP32: 1 | OQ32: 1 | OR32: 5 | OS32: 1 | OT32: 1 | OU32: 5 | OV32: 1 | OW32: 2 | OY32: 2 | OZ32: 2 | PB32: 2 | PC32: 2 | PE32: 2 | PF32: 2 | PH32: 2 | PI32: 1 | PJ32: 5 | PK32: 2 | PL32: 2 | PN32: 2 | PO32: 2 | PQ32: 2 | PR32: 1 | PS32: 4 | PT32: 1 | PU32: 2 | PV32: 2 | PW32: 1 | PX32: 5 | PY32: 5 | PZ32: 3 | QA32: 2 | QB32: 4 | QC32: 2 | QD32: 4 | QE32: 2 | QF32: 3 | QG32: 2 | QH32: 3 | QI32: 1 | QJ32: 5 | QK32: 1 | QL32: 5 | QM32: 4 | QN32: 5 | QO32: 5 | QP32: 5 | QQ32: 5 | QR32: 5 | QS32: 2 | QT32: 5 | QU32: 5 | QV32: 5 | QW32: 4 | QX32: 5 | QY32: 5 | QZ32: 4 | RA32: 3 | RB32: 4 | RC32: 4
A33: 28 | B33: 杜三峡 | C33: 杜三峡 | D33: 湖北省 | E33: 荆门市钟祥县 | F33: 长滩镇 | G33: 同心村 | H33: 程型科 | I33: 18972906637 | J33: 2 | K33: 0.5 | L33: 2 | M33: 0 | N33: 2 | O33: 1 | P33: 2 | Q33: 3 | R33: 0.8 | S33: 20000 | T33: 1 | U33: 1 | V33: 1 | W33: 69 | X33: 3 | Y33: 5 | Z33: 2 | AA33: 0 | AB33: 0 | AC33: 0 | AD33: 2 | AE33: 2 | AF33: 2 | AG33: 68 | AH33: 4 | AI33: 15 | AJ33: 2 | AK33: 0 | AL33: 0 | AM33: 0 | BR33: 1 | BS33: 13 | BT33: 667 | BU33: 13 | BV33: 10 | BW33: 7 | BX33: 3 | BY33: 2 | BZ33: 3 | CA33: 1200 | CB33: 1 | CC33: 2 | CD33: 10 | CE33: 1200 | CF33: 1.08 | CG33: 150 | CH33: 0 | CI33: 120 | CJ33: 210 | CK33: 150 | CL33: 6 | DG33: 1 | DH33: 2 | DI33: 3 | DJ33: 1 | DK33: 5 | DL33: 1 | DM33: 5 | DN33: 2 | DO33: 1500 | DP33: 2 | DQ33: 1 | DR33: 2 | EF33: 5 | EG33: 1 | EH33: 1 | EI33: 1 | EJ33: 10 | EK33: 100 | EL33: 丰神 | EM33: 135 | EN33: 100 | EO33: 26 | EP33: 10 | EQ33: 16 | ER33: 2 | ES33: 2 | ET33: 1 | EU33: 1 | EV33: 18 | EW33: 三宁 | EX33: 90 | EY33: 80 | EZ33: 46.4 | FC33: 3 | FD33: 2 | FE33: 1 | FF33: 10 | FG33: 15 | FH33: 丰神 | FI33: 135 | FJ33: 100 | FK33: 26 | FL33: 10 | FM33: 16 | GJ33: 2 | GK33: 2 | GL33: 2 | GQ33: 3 | GR33: 3 | GS33: 3 | GT33: 3 | GU33: 2 | GV33: 2 | GW33: 2 | GX33: 3 | GY33: 3 | GZ33: 1 | HA33: 1 | HB33: 1 | HC33: 2 | HD33: 3 | HE33: 1 | HF33: 1 | HG33: 1 | HK33: 5 | HL33: 5 | HM33: 2 | HN33: 1 | HO33: 1 | HP33: 1 | HQ33: 1 | HR33: 1 | HS33: 1 | HT33: 3 | HU33: 3 | HV33: 3 | HW33: 2 | HX33: 2 | HY33: 3 | HZ33: 1 | IA33: 2 | IB33: 3 | IC33: 2 | ID33: 2 | IE33: 1 | IF33: 4 | IG33: 2 | IH33: 3 | II33: 2 | IJ33: 3 | IK33: 3 | IL33: 2 | IM33: 2 | JQ33: 4 | JR33: 4 | JS33: 4 | JT33: 1、2 | JU33: 1 | JZ33: 4 | KA33: 1 | KB33: 2 | KL33: 3 | KM33: 3 | KN33: 1 | KO33: 1 | KP33: 4 | KQ33: 3 | KR33: 4 | KS33: 5 | KT33: 5 | KU33: 5 | KV33: 5 | KW33: 4 | KX33: 5 | KY33: 2 | KZ33: 2 | LA33: 2 | LB33: 4 | LC33: 4 | LD33: 4 | LE33: 5 | LF33: 4 | LG33: 4 | LH33: 5 | LI33: 4 | LJ33: 3 | LK33: 3、5 | LL33: 1 | LM33: 2 | LN33: 2 | LO33: 2 | LP33: 2 | LQ33: 4 | LR33: 1 | LS33: 1 | LT33: 5 | LU33: 1 | LV33: 1 | LW33: 1 | LX33: 4 | LY33: 3 | LZ33: 1、2 | MA33: 1 | MB33: 1 | MC33: 1 | MD33: 1 | ME33: 1 | MF33: 1 | MG33: 1 | MH33: 1 | MI33: 1 | MJ33: 3 | MK33: 3 | MM33: 2 | MN33: 2 | MO33: 2 | MP33: 2 | MQ33: 2 | MR33: 2 | MT33: 2 | MU33: 2 | MW33: 1 | MX33: 4 | MY33: 2 | NB33: 1 | NC33: 0 | ND33: 3 | NE33: 1 | NF33: 10 | NG33: 1 | NH33: 2 | NK33: 2 | NN33: 2 | NQ33: 2 | NT33: 1 | NU33: 5 | NV33: 2 | NW33: 2 | NX33: 4 | NY33: 2 | NZ33: 2 | OA33: 1 | OC33: 3 | OD33: 1 | OE33: 1 | OG33: 1 | OI33: 4 | OJ33: 5 | OK33: 1 | OL33: 5 | OM33: 1 | ON33: 2 | OP33: 2 | OQ33: 1 | OR33: 5 | OS33: 2 | OT33: 1 | OU33: 5 | OV33: 1 | OW33: 2 | OY33: 2 | OZ33: 2 | PB33: 2 | PC33: 2 | PE33: 2 | PF33: 2 | PH33: 2 | PI33: 2 | PK33: 2 | PL33: 2 | PN33: 2 | PO33: 2 | PQ33: 2 | PR33: 1 | PS33: 5 | PT33: 1 | PU33: 2 | PV33: 1 | PZ33: 3 | QA33: 2 | QB33: 3 | QC33: 2 | QD33: 3 | QE33: 2 | QF33: 4 | QG33: 2 | QH33: 4 | QI33: 1 | QJ33: 5 | QK33: 1 | QL33: 5 | QM33: 5 | QN33: 4 | QO33: 5 | QP33: 5 | QQ33: 5 | QR33: 5 | QS33: 2 | QT33: 5 | QU33: 5 | QV33: 5 | QW33: 4 | QX33: 4 | QY33: 5 | QZ33: 4 | RA33: 3 | RB33: 3 | RC33: 3
